Workbook

Sheet PO
A2: PLANILHA DE ORÇAMENTO
A3: LOCALIDADE SINAPI: PORTO ALEGRE/RS
K5: DATA BASE: | L5: =+M.O.!$E$17 -> Janeiro/22
A10: OBJETO: | B10: REVITALIZAÇÃO DA PRAÇA A.R.I. - CACHORRÓDROMO - ÁREA 135/02 | D10: =CONCATENATE("Leis Sociais Horistas ",M.O.!$D$5," (SINAPI)") -> Leis Sociais Horistas c/desoneração (SINAPI) | L10: =+M.O.!$D$7 -> 0.8231
A11: DATA: | B11: 2022-03-02 | D11: =CONCATENATE("Leis Sociais Mensalistas ",M.O.!$D$5," (SINAP)I") -> Leis Sociais Mensalistas c/desoneração (SINAP)I | L11: =+M.O.!$D$8 -> 0.4598
A12: ART nº: | B12: 11751298 | D12: BDI: | L12: =+M.O.!$F$7 -> 28,21%
A16: Composição | B16: Item | C16: Descrição | D16: Quantidade | E16: Un | F16: Custo Unit.Mat.+Eq. | G16: Custo Unit. M.O. | H16: Custo Unit. | I16: Preço Unit.Mat.+Eq. | J16: Preço Unit. M.O. | K16: Preço Unit. | L16: Total
B17: 1 | C17: SERVIÇOS PRELIMINARES
A18: =CONCATENATE("SINAPI ",Composições!A12) -> SINAPI 98524 | B18: 1.1 | C18: LIMPEZA MANUAL DE VEGETAÇÃO EM TERRENO COM ENXADA | D18: 163 | E18: m² | F18: 0 | G18: =+Composições!C15 -> 2.42 | H18: =+F18+G18 -> 2.42 | I18: =+K18-J18 -> 0 | J18: =+TRUNC((G18*(1+$L$12)),2) -> 3.1 | K18: =+Composições!F21 -> 3.1 | L18: =TRUNC((D18*K18),2) -> 505.3
A19: =CONCATENATE("SMAMUS ",Composições!A24) -> SMAMUS 20 | C19: DEMOLIÇÃO DE CONCRETO ARMADO COM MARTELETE C/REMOÇÃO DE ENTULHO | E19: m³ | F19: =+Composições!C30 -> 437.09 | G19: =+Composições!C33 -> 124.24 | H19: =+F19+G19 -> 561.33 | I19: =+K19-J19 -> 560.4 | J19: =+TRUNC((G19*(1+$L$12)),2) -> 159.28 | K19: =+Composições!F39 -> 719.68 | L19: =TRUNC((D19*K19),2) -> 0
A20: =CONCATENATE("SMAMUS ",Composições!A42) -> SMAMUS 21 | C20: DEMOLIÇÃO DE PISO DE CONCRETO ARMADO COM MARTELETE Esp = 8 cm C/REMOÇÃO DE ENTULHO | E20: m² | F20: =+Composições!C48 -> 34.94 | G20: =+Composições!C51 -> 9.93 | H20: =+F20+G20 -> 44.87 | I20: =+K20-J20 -> 44.79 | J20: =+TRUNC((G20*(1+$L$12)),2) -> 12.73 | K20: =+Composições!F57 -> 57.52 | L20: =TRUNC((D20*K20),2) -> 0
A21: =CONCATENATE("SMAMUS ",Composições!A60) -> SMAMUS 25 | C21: REMOÇÃO DE PASSEIOS | E21: m² | F21: 0 | G21: =+Composições!C63 -> 7.64 | H21: 7.64 | I21: =+K21-J21 -> 0 | J21: =+TRUNC((G21*(1+$L$12)),2) -> 9.79 | K21: =+Composições!F69 -> 9.79 | L21: 0
A22: =CONCATENATE("SMAMUS ",Composições!A72) -> SMAMUS 50 | C22: DEMOLIÇÃO TELAMENTO h=5,50 m S/TUBOS E S/VIGA C/REMOÇÃO DE ENTULHO | E22: m | F22: =+Composições!C77 -> 5.36 | G22: =+Composições!C80 -> 17.7 | H22: 23.06 | I22: =+K22-J22 -> 6.87 | J22: 22.69 | K22: =+Composições!F86 -> 29.56 | L22: 0
A23: =CONCATENATE("SMAMUS ",Composições!A89) -> SMAMUS 55 | C23: DEMOLIÇÃO TELAMENTO h=3,00 m S/TUBOS E S/VIGA C/REMOÇÃO DE ENTULHO | E23: m | F23: =+Composições!C94 -> 3.38 | G23: =+Composições!C97 -> 9.65 | H23: 13.03 | I23: =+K23-J23 -> 4.33 | J23: 12.37 | K23: =+Composições!F103 -> 16.7 | L23: 0
A24: =CONCATENATE("SMAMUS ",Composições!A106) -> SMAMUS 57 | C24: DEMOLIÇÃO TELAMENTO h=1,00 m C/REMOÇÃO DE ENTULHO | E24: m | F24: =+Composições!C108 -> 0.54 | G24: =+Composições!C111 -> 3.22 | H24: 3.76 | I24: 0.7 | J24: 4.12 | K24: =+Composições!F117 -> 4.82 | L24: 0
A25: =CONCATENATE("SMAMUS ",Composições!A120) -> SMAMUS 60 | C25: DEMOLIÇÃO TUBOS TELAMENTO h=5,50 m C/REMOÇÃO DE ENTULHO | E25: m | F25: =+Composições!C130 -> 17.41 | G25: =+Composições!C133 -> 18.83 | H25: 36.24 | I25: 22.32 | J25: 24.14 | K25: =+Composições!F139 -> 46.46 | L25: 0
A26: =CONCATENATE("SMAMUS ",Composições!A142) -> SMAMUS 65 | C26: DEMOLIÇÃO TUBOS TELAMENTO h=3,00 m C/REMOÇÃO DE ENTULHO | E26: m | F26: =+Composições!C152 -> 17.28 | G26: =+Composições!C155 -> 12.4 | H26: 29.68 | I26: 22.16 | J26: 15.89 | K26: =+Composições!F161 -> 38.05 | L26: 0
A27: =CONCATENATE("SMAMUS ",Composições!A164) -> SMAMUS 70 | C27: DEMOLIÇÃO VIGA TELAMENTO C/REMOÇÃO DE ENTULHO | E27: m | F27: =+Composições!C171 -> 14.45 | G27: =+Composições!C174 -> 4.63 | H27: 19.08 | I27: 18.53 | J27: 5.93 | K27: =+Composições!F180 -> 24.46 | L27: 0
A28: =CONCATENATE("SMAMUS ",Composições!A183) -> SMAMUS 90 | C28: REMOÇÃO MEIO-FIO VIÁRIO C/REMOÇÃO DE ENTULHO | E28: m | F28: =+Composições!C185 -> 6.07 | G28: =+Composições!C187 -> 17.5 | H28: 23.57 | I28: 7.78 | J28: 22.43 | K28: =+Composições!F193 -> 30.21 | L28: 0
A29: =CONCATENATE("SMAMUS ",Composições!A196) -> SMAMUS 100 | C29: REMOÇÃO BANCO C/ ENCOSTO | E29: un | F29: =+Composições!C203 -> 71.46 | G29: =+Composições!C206 -> 49.11 | H29: 120.57 | I29: 91.62 | J29: 62.96 | K29: =+Composições!F212 -> 154.58 | L29: 0
A30: =CONCATENATE("SMAMUS ",Composições!A215) -> SMAMUS 101 | C30: REMOÇÃO BANCO S/ ENCOSTO | E30: un | F30: =+Composições!C222 -> 35.72 | G30: =+Composições!C225 -> 33.01 | H30: 68.73 | I30: 45.79 | J30: 42.32 | K30: =+Composições!F231 -> 88.11 | L30: 0
A31: =CONCATENATE("SMAMUS ",Composições!A234) -> SMAMUS 105 | C31: REMOÇÃO PARACICLO | E31: un | F31: =+Composições!C241 -> 17.84 | G31: =+Composições!C244 -> 17.77 | H31: 35.61 | I31: 22.87 | J31: 22.78 | K31: =+Composições!F250 -> 45.65 | L31: 0
A32: =CONCATENATE("SMAMUS ",Composições!A253) -> SMAMUS 108 | C32: DEMOLIÇÃO CAIXA DE AREIA C/REMOÇÃO DE ENTULHOS | E32: un | F32: =+Composições!C259 -> 740.53 | G32: =+Composições!C262 -> 135.16 | H32: 875.69 | I32: 949.44 | J32: 173.28 | K32: =+Composições!F268 -> 1122.72 | L32: 0
A33: =CONCATENATE("SMAMUS ",Composições!A271) -> SMAMUS 110 | C33: DEMOLIÇÃO CANCHA DE BOCHA C/REMOÇÃO DE ENTULHOS | E33: un | F33: =+Composições!C277 -> 2072.22 | G33: =+Composições!C281 -> 1687.11 | H33: 3759.33 | I33: 2656.79 | J33: 2163.04 | K33: =+Composições!F287 -> 4819.83 | L33: 0
A34: =CONCATENATE("SMAMUS ",Composições!A290) -> SMAMUS 111 | C34: DEMOLIÇÃO COBERTURA CANCHA DE BOCHA C/REMOÇÃO DE ENTULHOS | E34: un | F34: =+Composições!C301 -> 5718.01 | G34: =+Composições!C305 -> 3472.39 | H34: 9190.4 | I34: 7331.06 | J34: 4451.95 | K34: =+Composições!F311 -> 11783.01 | L34: 0
A35: =CONCATENATE("SMAMUS ",Composições!A314) -> SMAMUS 120 | C35: DEMOLIÇÃO CHURRASQUEIRA C/REMOÇÃO DE ENTULHOS | E35: un | F35: =+Composições!C317 -> 83.73 | G35: =+Composições!C320 -> 64.74 | H35: 148.47 | I35: 107.35 | J35: 83 | K35: =+Composições!F326 -> 190.35 | L35: 0
A36: =CONCATENATE("SMAMUS ",Composições!A329) -> SMAMUS 122 | C36: DEMOLIÇÃO MESA E BANCOS DE CONCRETO C/REMOÇÃO DE ENTULHOS | E36: cj | F36: =+Composições!C336 -> 216.15 | G36: =+Composições!C339 -> 83.92 | H36: 300.07 | I36: 277.12 | J36: 107.59 | K36: =+Composições!F345 -> 384.71 | L36: 0
A37: =CONCATENATE("SMAMUS ",Composições!A348) -> SMAMUS 133 | C37: DEMOLIÇÃO BEBEDOURO C/REMOÇÃO DE ENTULHOS | E37: un | F37: =+Composições!C351 -> 57.23 | G37: =+Composições!C354 -> 79.26 | H37: 136.49 | I37: 73.38 | J37: 101.61 | K37: =+Composições!F360 -> 174.99 | L37: 0
A38: =CONCATENATE("SMAMUS ",Composições!A363) -> SMAMUS 140 | C38: DEMOLIÇÃO FRADINHO BASE CIRCULAR C/REMOÇÃO DE ENTULHOS | E38: un | F38: =+Composições!C370 -> 27.13 | G38: =+Composições!C373 -> 13.49 | H38: 40.62 | I38: 34.78 | J38: 17.29 | K38: =+Composições!F379 -> 52.07 | L38: 0
A39: =CONCATENATE("SMAMUS ",Composições!A382) -> SMAMUS 142 | C39: DEMOLIÇÃO FRADINHO BASE OCTOGONAL C/REMOÇÃO DE ENTULHOS | E39: un | F39: =+Composições!C389 -> 31.71 | G39: =+Composições!C392 -> 15.9 | H39: 47.61 | I39: 40.66 | J39: 20.38 | K39: =+Composições!F398 -> 61.04 | L39: 0
A40: =CONCATENATE("SMAMUS ",Composições!A401) -> SMAMUS 150 | C40: REMOÇÃO MESA DE DAMAS | E40: un | F40: =+Composições!C408 -> 99.28 | G40: =+Composições!C411 -> 62.56 | H40: 161.84 | I40: 127.29 | J40: 80.2 | K40: =+Composições!F417 -> 207.49 | L40: 0
A41: =CONCATENATE("SMAMUS ",Composições!A420) -> SMAMUS 160 | C41: REMOÇÃO LIXEIRA | E41: un | F41: =+Composições!C427 -> 39.28 | G41: =+Composições!C430 -> 25.74 | H41: 65.02 | I41: 50.36 | J41: 33 | K41: =+Composições!F436 -> 83.36 | L41: 0
A42: =CONCATENATE("SMAMUS ",Composições!A439) -> SMAMUS 200 | C42: REMOÇÃO ESTRUTURA 1, 2, 3, 5 E 7 | E42: un | F42: =+Composições!C446 -> 71.46 | G42: =+Composições!C449 -> 44.88 | H42: 116.34 | I42: 91.61 | J42: 57.54 | K42: =+Composições!F455 -> 149.15 | L42: 0
A43: =CONCATENATE("SMAMUS ",Composições!A458) -> SMAMUS 205 | C43: REMOÇÃO ESTRUTURA 4 | E43: un | F43: =+Composições!C465 -> 158.86 | G43: =+Composições!C468 -> 82.35 | H43: 241.21 | I43: 203.67 | J43: 105.58 | K43: =+Composições!F474 -> 309.25 | L43: 0
A44: =CONCATENATE("SMAMUS ",Composições!A477) -> SMAMUS 210 | C44: REMOÇÃO ESTRUTURA 6 E 8 | E44: un | F44: =+Composições!C484 -> 178.72 | G44: =+Composições!C487 -> 93.18 | H44: 271.9 | I44: 229.14 | J44: 119.46 | K44: =+Composições!F493 -> 348.6 | L44: 0
A45: =CONCATENATE("SMAMUS ",Composições!A496) -> SMAMUS 215 | C45: REMOÇÃO ESTRUTURA 9 | E45: un | F45: =+Composições!C503 -> 89.35 | G45: =+Composições!C506 -> 50.81 | H45: 140.16 | I45: 114.55 | J45: 65.14 | K45: =+Composições!F512 -> 179.69 | L45: 0
A46: =CONCATENATE("SMAMUS ",Composições!A515) -> SMAMUS 250 | C46: REMOÇÃO GANGORRA | E46: un | F46: =+Composições!C522 -> 35.72 | G46: =+Composições!C525 -> 28.78 | H46: 64.5 | I46: 45.8 | J46: 36.89 | K46: =+Composições!F531 -> 82.69 | L46: 0
A47: =CONCATENATE("SMAMUS ",Composições!A534) -> SMAMUS 255 | C47: REMOÇÃO BARRA-BALANÇO | E47: un | F47: =+Composições!C541 -> 254.18 | G47: =+Composições!C544 -> 113.99 | H47: 368.17 | I47: 325.89 | J47: 146.14 | K47: =+Composições!F550 -> 472.03 | L47: 0
A48: =CONCATENATE("SMAMUS ",Composições!A553) -> SMAMUS 260 | C48: REMOÇÃO BALANÇO PADRÃO SMAM | E48: un | F48: =+Composições!C560 -> 190.63 | G48: =+Composições!C563 -> 92.9 | H48: 283.53 | I48: 244.41 | J48: 119.1 | K48: =+Composições!F569 -> 363.51 | L48: 0
A49: =CONCATENATE("SMAMUS ",Composições!A572) -> SMAMUS 261 | C49: REMOÇÃO 1/2 BALANÇO | E49: un | F49: =+Composições!C579 -> 127.08 | G49: =+Composições!C582 -> 63.34 | H49: 190.42 | I49: 162.93 | J49: 81.2 | K49: =+Composições!F588 -> 244.13 | L49: 0
A50: =CONCATENATE("SMAMUS ",Composições!A591) -> SMAMUS 265 | C50: REMOÇÃO ESCORREGADOR | E50: un | F50: =+Composições!C598 -> 180.76 | G50: =+Composições!C601 -> 83.39 | H50: 264.15 | I50: 231.75 | J50: 106.91 | K50: =+Composições!F607 -> 338.66 | L50: 0
A51: =CONCATENATE("SMAMUS ",Composições!A610) -> SMAMUS 300 | C51: REMOÇÃO BARRA ALONGAMENTO - 2 ALTURAS | E51: un | F51: =+Composições!C617 -> 35.72 | G51: =+Composições!C620 -> 28.78 | H51: 64.5 | I51: 45.8 | J51: 36.89 | K51: =+Composições!F626 -> 82.69 | L51: 0
A52: =CONCATENATE("SMAMUS ",Composições!A629) -> SMAMUS 305 | C52: REMOÇÃO BARRAS PARALELAS | E52: un | F52: =+Composições!C636 -> 71.46 | G52: =+Composições!C639 -> 44.88 | H52: 116.34 | I52: 91.61 | J52: 57.54 | K52: =+Composições!F645 -> 149.15 | L52: 0
A53: =CONCATENATE("SMAMUS ",Composições!A648) -> SMAMUS 307 | C53: REMOÇÃO APOIO P/ MEMBROS SUPERIORES | E53: un | F53: =+Composições!C655 -> 35.72 | G53: =+Composições!C658 -> 28.78 | H53: 64.5 | I53: 45.8 | J53: 36.89 | K53: =+Composições!F664 -> 82.69 | L53: 0
A54: =CONCATENATE("SMAMUS ",Composições!A667) -> SMAMUS 310 | C54: REMOÇÃO BARRA P/ ALONGAMENTO | E54: un | F54: =+Composições!C674 -> 35.72 | G54: =+Composições!C677 -> 28.78 | H54: 64.5 | I54: 45.8 | J54: 36.89 | K54: =+Composições!F683 -> 82.69 | L54: 0
A55: =CONCATENATE("SMAMUS ",Composições!A686) -> SMAMUS 312 | C55: REMOÇÃO BARRA HORIZONTAL 4 MÓDULOS | E55: un | F55: =+Composições!C693 -> 111.67 | G55: =+Composições!C696 -> 66.69 | H55: 178.36 | I55: 143.17 | J55: 85.5 | K55: =+Composições!F702 -> 228.67 | L55: 0
A56: =CONCATENATE("SMAMUS ",Composições!A705) -> SMAMUS 315 | C56: REMOÇÃO BARRA HORIZONTAL 3 MÓDULOS | E56: un | F56: =+Composições!C712 -> 89.35 | G56: =+Composições!C715 -> 55.04 | H56: 144.39 | I56: 114.56 | J56: 70.56 | K56: =+Composições!F721 -> 185.12 | L56: 0
A57: =CONCATENATE("SMAMUS ",Composições!A724) -> SMAMUS 318 | C57: REMOÇÃO BARRA HORIZONTAL 1 MÓDULO | E57: un | F57: =+Composições!C731 -> 44.69 | G57: =+Composições!C734 -> 35.98 | H57: 80.67 | I57: 57.3 | J57: 46.12 | K57: =+Composições!F740 -> 103.42 | L57: 0
A58: =CONCATENATE("SMAMUS ",Composições!A743) -> SMAMUS 320 | C58: REMOÇÃO ESPALDAR | E58: un | F58: =+Composições!C750 -> 44.69 | G58: =+Composições!C753 -> 35.98 | H58: 80.67 | I58: 57.3 | J58: 46.12 | K58: =+Composições!F759 -> 103.42 | L58: 0
A59: =CONCATENATE("SMAMUS ",Composições!A762) -> SMAMUS 325 | C59: REMOÇÃO PRANCHA ABDOMINAIS | E59: un | F59: =+Composições!C769 -> 44.69 | G59: =+Composições!C772 -> 31.75 | H59: 76.44 | I59: 57.3 | J59: 40.7 | K59: =+Composições!F778 -> 98 | L59: 0
A60: =CONCATENATE("SMAMUS ",Composições!A781) -> SMAMUS 340 | C60: REMOÇÃO GOLEIRA FUTEBOL DE SALÃO | E60: un | F60: =+Composições!C788 -> 44.69 | G60: =+Composições!C791 -> 35.98 | H60: 80.67 | I60: 57.3 | J60: 46.12 | K60: =+Composições!F797 -> 103.42 | L60: 0
A61: =CONCATENATE("SMAMUS ",Composições!A800) -> SMAMUS 342 | C61: REMOÇÃO GOLEIRA FUTEBOL SOCIETY | E61: un | F61: =+Composições!C807 -> 44.69 | G61: =+Composições!C810 -> 40.21 | H61: 84.9 | I61: 57.3 | J61: 51.55 | K61: =+Composições!F816 -> 108.85 | L61: 0
A62: =CONCATENATE("SMAMUS ",Composições!A819) -> SMAMUS 344 | C62: REMOÇÃO GOLEIRA FUTEBOL DE CAMPO | E62: un | F62: =+Composições!C826 -> 44.69 | G62: =+Composições!C829 -> 44.44 | H62: 89.13 | I62: 57.3 | J62: 56.97 | K62: =+Composições!F835 -> 114.27 | L62: 0
A63: =CONCATENATE("SMAMUS ",Composições!A838) -> SMAMUS 350 | C63: REMOÇÃO POSTE DE VÔLEI | E63: un | F63: =+Composições!C845 -> 39.69 | G63: =+Composições!C848 -> 30.1 | H63: 69.79 | I63: 50.88 | J63: 38.59 | K63: =+Composições!F854 -> 89.47 | L63: 0
A64: =CONCATENATE("SMAMUS ",Composições!A857) -> SMAMUS 355 | C64: REMOÇÃO TABELA DE BASQUETE | E64: un | F64: =+Composições!C864 -> 254.18 | G64: =+Composições!C867 -> 109.76 | H64: 363.94 | I64: 325.88 | J64: 140.72 | K64: =+Composições!F873 -> 466.6 | L64: =TRUNC((D64*K64),2) -> 0
A65: MERCADO 370 | C65: REMOÇÃO DE ÁRVORES | E65: cj | H65: 0 | I65: =+K65-J65 -> 0 | J65: 0 | L65: 0
A66: MERCADO 375 | C66: DESTOCAMENTO | E66: cj | H66: 0 | I66: 0 | J66: 0 | L66: 0
A67: MERCADO 378 | C67: TRANSPLANTE DE ÁRVORES | E67: cj | H67: 0 | I67: 0 | J67: 0 | L67: 0
A68: =CONCATENATE("SMAMUS ",Composições!A876) -> SMAMUS 390 | B68: 1.2 | C68: REMOÇÃO DE ENTULHO C/CAÇAMBA | D68: 6.5 | E68: m³ | F68: =+Composições!C878 -> 123.49 | G68: =+Composições!C880 -> 11.84 | H68: 135.33 | I68: 158.32 | J68: =+TRUNC((G68*(1+$L$12)),2) -> 15.18 | K68: =+Composições!F886 -> 173.5 | L68: 1127.75
A69: =CONCATENATE("SMAMUS ",Composições!A889) -> SMAMUS 400 | C69: PLOTAGENS | E69: m² | F69: 0 | G69: =+Composições!C891 -> 14.48 | H69: 14.48 | I69: 0 | J69: =+TRUNC((G69*(1+$L$12)),2) -> 18.56 | K69: =+Composições!F897 -> 18.56 | L69: 0
A70: =CONCATENATE("SMAMUS ",Composições!A900) -> SMAMUS 405 | C70: "AS BUILT" | E70: un | F70: 0 | G70: =+Composições!C902 -> 34.46 | H70: 34.46 | I70: 0 | J70: =+TRUNC((G70*(1+$L$12)),2) -> 44.18 | K70: =+Composições!F908 -> 44.18 | L70: 0
B71: TOTAL DE SERVIÇOS PRELIMINARES | L71: =SUM(L18:L70) -> 1633.05
B72: 2 | C72: DESPESAS LEGAIS, LICENÇAS, TAXAS, CONTRIBUIÇÕES
A73: =CONCATENATE("SMAMUS ",Composições!A911) -> SMAMUS 450 | B73: 2.1 | C73: ART (ANOTAÇÃO DE RESPONSABILIDADE TÉCNICA) | D73: 1 | E73: un | F73: =+Composições!C913 -> 233.94 | G73: 0 | H73: =+F73+G73 -> 233.94 | I73: =+K73-J73 -> 299.93 | J73: =+TRUNC((G73*(1+$L$12)),2) -> 0 | K73: =+Composições!F919 -> 299.93 | L73: =TRUNC((D73*K73),2) -> 299.93
A74: =CONCATENATE("SMAMUS ",Composições!A922) -> SMAMUS 453 | C74: CIP (CONTRIBUIÇÃO ILUMINAÇÃO PÚBLICA) | E74: % | F74: =+Composições!C924 -> 0.2832 | G74: 0 | H74: =+F74+G74 -> 0.2832 | I74: =+K74-J74 -> 0.363 | J74: =+TRUNC((G74*(1+$L$12)),2) -> 0 | K74: =+Composições!F930 -> 0.363 | L74: =TRUNC((D74*K74),2) -> 0
A75: =CONCATENATE("SMAMUS ",Composições!A933) -> SMAMUS 455 | C75: MTRCC (MANIFESTO DE TRANSPORTE DE RESÍDUOS DA CONSTRUÇÃO CIVIL) | E75: un | F75: =+Composições!C935 -> 535 | G75: 0 | H75: =+F75+G75 -> 535 | I75: =+K75-J75 -> 685.92 | J75: =+TRUNC((G75*(1+$L$12)),2) -> 0 | K75: =+Composições!F941 -> 685.92 | L75: =TRUNC((D75*K75),2) -> 0
A76: =CONCATENATE("SMAMUS ",Composições!A944) -> SMAMUS 463 | C76: PCMAT (PROGRAMA DE CONDIÇÕES E MEIO AMBIENTE DE TRABALHO NA INDÚSTRIA DA CONSTRUÇÃO) | E76: un | F76: =+Composições!C946 -> 2653.32 | G76: 0 | H76: =+F76+G76 -> 2653.32 | I76: =+K76-J76 -> 3401.82 | J76: =+TRUNC((G76*(1+$L$12)),2) -> 0 | K76: =+Composições!F952 -> 3401.82 | L76: =TRUNC((D76*K76),2) -> 0
B77: TOTAL DE DESPESAS LEGAIS, LICENÇAS, TAXAS, CONTRIBUIÇÕES | L77: =SUM(L73:L76) -> 299.93
B78: 3 | C78: INSTALAÇÕES PROVISÓRIAS
A79: =CONCATENATE("SMAMUS ",Composições!A955) -> SMAMUS 500 | B79: 3.1 | C79: TAPUME EM CHAPA DE COMPENSADO RESINADO | D79: 75 | E79: m² | F79: =+Composições!C964 -> 47.18 | G79: =+Composições!C969 -> 40.48 | H79: =+F79+G79 -> 87.66 | I79: =+K79-J79 -> 60.49 | J79: =+TRUNC((G79*(1+$L$12)),2) -> 51.89 | K79: =+Composições!F975 -> 112.38 | L79: =TRUNC((D79*K79),2) -> 8428.5
A80: =CONCATENATE("SMAMUS ",Composições!A978) -> SMAMUS 503 | C80: TAPUME EM TELA GALVANIZADA | E80: m² | F80: =+Composições!C982 -> 18 | G80: =+Composições!C985 -> 26.46 | H80: 44.46 | I80: 23.08 | J80: 33.92 | K80: =+Composições!F991 -> 57 | L80: 0
A81: =CONCATENATE("SMAMUS ",Composições!A994) -> SMAMUS 507 | B81: 3.2 | C81: DESMONTAGEM DE TAPUME | D81: 75 | E81: m² | F81: 0 | G81: =+Composições!C997 -> 2.17 | H81: 2.17 | I81: 0 | J81: 2.78 | K81: =+Composições!$F$1003 -> 2.78 | L81: 208.5
A82: =CONCATENATE("SINAPI ",Composições!A1006) -> SINAPI 93584 | C82: GALPÃO DE OBRA | E82: m² | F82: =+Composições!C1008*0.7 -> 582.148 | G82: =+Composições!$C$1008*0.3 -> 249.492 | H82: 831.64 | I82: 746.37 | J82: 319.87 | K82: =+Composições!F1014 -> 1066.24 | L82: 0
A83: =CONCATENATE("SMAMUS ",Composições!A1017) -> SMAMUS 507 | B83: 3.3 | C83: TELHEIRO | D83: 15 | E83: m² | F83: =+Composições!C1019*0.7 -> 297.339 | G83: =+Composições!C1019*0.3 -> 127.431 | H83: 424.77 | I83: 381.22 | J83: 163.37 | K83: =+Composições!F1025 -> 544.59 | L83: 8168.85
A84: =CONCATENATE("SMAMUS ",Composições!A1028) -> SMAMUS 510 | B84: 3.4 | C84: LOCAÇÃO DE SANITÁRIO QUÍMICO | D84: 1 | E84: un | F84: =+Composições!C1030 -> 1347.19 | G84: 0 | H84: 1347.19 | I84: 1727.23 | J84: =+TRUNC((G84*(1+$L$12)),2) -> 0 | K84: =+Composições!F1036 -> 1727.23 | L84: 1727.23
A85: =CONCATENATE("SMAMUS ",Composições!A1039) -> SMAMUS 515 | B85: 3.5 | C85: LOCAÇÃO DE CONTAINER ESCRITÓRIO S/FRETE | D85: 1 | E85: un | F85: =+Composições!C1041 -> 867.18 | G85: 0 | H85: 867.18 | I85: 1111.81 | J85: =+TRUNC((G85*(1+$L$12)),2) -> 0 | K85: =+Composições!F1047 -> 1111.81 | L85: 1111.81
A86: =CONCATENATE("SMAMUS ",Composições!A1050) -> SMAMUS 517 | C86: LOCAÇÃO CONTAINER SANITÁRIO S/FRETE | E86: % | F86: =+Composições!C1052 -> 8.402 | G86: 0 | H86: 8.402 | I86: 10.7722 | J86: =+TRUNC((G86*(1+$L$12)),4) -> 0 | K86: =+Composições!F1058 -> 10.7722 | L86: 0
A87: =CONCATENATE("SMAMUS ",Composições!A1061) -> SMAMUS 520 | B87: 3.6 | C87: FRETE P/ CONTAINER | D87: 1 | E87: cj | F87: =+Composições!C1063 -> 1056.35 | G87: 0 | H87: 1056.35 | I87: 1354.34 | J87: 0 | K87: =+Composições!F1069 -> 1354.34 | L87: 1354.34
A88: =CONCATENATE("SMAMUS ",Composições!A1072) -> SMAMUS 530 | C88: INSTALAÇÃO PROVISÓRIA DE ENERGIA | E88: pt | F88: =+Composições!C1094 -> 3372.79 | G88: =+Composições!C1097 -> 78.95 | H88: 3451.74 | I88: 4324.25 | J88: 101.22 | K88: =+Composições!F1103 -> 4425.47 | L88: 0
A89: =CONCATENATE("SMAMUS ",Composições!A1106) -> SMAMUS 535 | C89: INSTALAÇÃO PROVISÓRIA DE ÁGUA | E89: pt | F89: =0.7*Composições!C1112 -> 527.387 | G89: =0.3*Composições!C1112 -> 226.023 | H89: 753.41 | I89: 676.16 | J89: 289.78 | K89: =+Composições!F1118 -> 965.94 | L89: 0
A90: =CONCATENATE("SMAMUS ",Composições!A1121) -> SMAMUS 537 | C90: INSTALAÇÃO PROVISÓRIA DE ESGOTO | E90: pt | F90: =0.7*Composições!C1127 -> 714.938 | G90: =0.3*Composições!C1127 -> 306.402 | H90: 1021.34 | I90: 916.63 | J90: 392.83 | K90: =+Composições!F1133 -> 1309.46 | L90: 0
A91: =CONCATENATE("SMAMUS ",Composições!A1136) -> SMAMUS 542 | B91: 3.7 | C91: PLACA DE OBRA | D91: 6 | E91: m² | F91: =+Composições!C1144 -> 124.14 | G91: =+Composições!C1149 -> 21.3 | H91: 145.44 | I91: 159.16 | J91: 27.3 | K91: =+Composições!F1155 -> 186.46 | L91: 1118.76
A92: =CONCATENATE("SMAMUS ",Composições!A1158) -> SMAMUS 550 | C92: SINALIZAÇÃO COM FITA ZEBRADA FIXADA EM CONE PLÁSTICO | E92: m | F92: =+Composições!C1161 -> 2.62 | G92: =+Composições!C1164 -> 4.61 | H92: 7.23 | I92: 3.35 | J92: 5.91 | K92: =+Composições!F1170 -> 9.26 | L92: 0
A93: =CONCATENATE("SMAMUS ",Composições!A1173) -> SMAMUS 552 | B93: 3.8 | C93: SINALIZAÇÃO COM TELA PLÁSTICA LARANJA FIXADA EM CONE PLÁSTICO | D93: 93 | E93: m | F93: =+Composições!C1176 -> 5.73 | G93: =+Composições!C1179 -> 4.61 | H93: 10.34 | I93: 7.34 | J93: 5.91 | K93: =+Composições!F1185 -> 13.25 | L93: 1232.25
A94: =CONCATENATE("SMAMUS ",Composições!A1188) -> SMAMUS 554 | C94: SINALIZAÇÃO COM SINALIZADOR ELETRÔNICO PISCANTE FIXADO EM CONE PLÁSTICO | E94: m | F94: =+Composições!C1191 -> 24.89 | G94: =+Composições!C1194 -> 4.61 | H94: 29.5 | I94: 31.91 | J94: 5.91 | K94: =+Composições!F1200 -> 37.82 | L94: 0
A95: =CONCATENATE("SMAMUS ",Composições!A1203) -> SMAMUS 556 | C95: PROJETO DE SINALIZAÇÃO | E95: un | F95: 0 | G95: =+Composições!C1205 -> 792.72 | H95: =+F95+G95 -> 792.72 | I95: =+K95-J95 -> 0 | J95: =+TRUNC((G95*(1+$L$14)),2) -> 792.72 | K95: =+Composições!$F$1211 -> 792.72 | L95: 0
A96: =CONCATENATE("SINAPI ",Composições!A1214) -> SINAPI 99064 | B96: 3.9 | C96: LOCAÇÃO | D96: 99 | E96: m | F96: =+Composições!C1216*0.07 -> 0.0336 | G96: =+Composições!$C$1216*0.93 -> 0.4464 | H96: 0.48 | I96: 0.04 | J96: 0.57 | K96: =+Composições!F1222 -> 0.61 | L96: 60.39
A97: =CONCATENATE("SMAMUS ",Composições!A1225) -> SMAMUS 565 | B97: 3.10 | C97: NIVELAMENTO | D97: 163 | E97: m² | F97: =+Composições!C1228 -> 0.02 | G97: =+Composições!C1232 -> 0.22 | H97: 0.24 | I97: 0.02 | J97: 0.28 | K97: =+Composições!F1238 -> 0.3 | L97: 48.9
B98: TOTAL DE INSTALAÇÕES PROVISÓRIAS | L98: =SUM(L79:L97) -> 23459.53
B99: 4 | C99: ADMINISTRAÇÃO LOCAL
A100: =CONCATENATE("SINAPI ",Composições!A1241) -> SINAPI 90778 | B100: 4.1 | C100: ENGENHEIRO | D100: 1 | E100: un | F100: 0 | G100: =+Composições!C1243 -> 4904.95 | H100: =+F100+G100 -> 4904.95 | I100: =+K100-J100 -> 0 | J100: =+TRUNC((G100*(1+$L$12)),2) -> 6288.63 | K100: =+Composições!F1249 -> 6288.63 | L100: =TRUNC((D100*K100),2) -> 6288.63
A101: =CONCATENATE("SINAPI ",Composições!A1252) -> SINAPI 94295 | C101: MESTRE DE OBRAS | E101: % | F101: 0 | G101: =+Composições!C1254 -> 109.9784 | H101: 109.9784 | I101: 0 | J101: =+TRUNC((G101*(1+$L$12)),4) -> 141.0033 | K101: =+Composições!F1260 -> 141.0033 | L101: =TRUNC((D101*K101),2) -> 0
A102: =CONCATENATE("SINAPI ",Composições!A1263) -> SINAPI 93572 | B102: 4.2 | C102: ENCARREGADO | D102: 1 | E102: un | F102: 0 | G102: =+Composições!C1265 -> 11066.58 | H102: 11066.58 | I102: 0 | J102: =+TRUNC((G102*(1+$L$12)),2) -> 14188.46 | K102: =+Composições!F1271 -> 14188.46 | L102: 14188.46
A103: =CONCATENATE("SINAPI ",Composições!A1274) -> SINAPI 88326 | B103: 4.3 | C103: VIGIA NOTURNO | D103: 1 | E103: un | F103: 0 | G103: =+Composições!C1276 -> 7635.6 | H103: =+F103+G103 -> 7635.6 | I103: =+K103-J103 -> 0 | J103: =+TRUNC((G103*(1+$L$12)),2) -> 9789.6 | K103: =+Composições!F1282 -> 9789.6 | L103: 9789.6
A104: =CONCATENATE("SMAMUS ",Composições!A1285) -> SMAMUS 730 | C104: VIGIA NOTURNO (SINDICATO) | E104: % | F104: 0 | G104: =+Composições!C1288 -> 76.6593 | H104: 76.6593 | I104: 0 | J104: =+TRUNC((G104*(1+$L$12)),4) -> 98.2848 | K104: =+Composições!F1294 -> 98.2848 | L104: 0
A105: =CONCATENATE("SMAMUS ",Composições!A1297) -> SMAMUS 740 | B105: 4.4 | C105: VIGIA DIURNO SÁBADOS, DOMINGOS E FERIADOS | D105: 1 | E105: un | F105: 0 | G105: =+Composições!C1300 -> 3622.5 | H105: 3622.5 | I105: 0 | J105: =+TRUNC((G105*(1+$L$12)),2) -> 4644.4 | K105: =+Composições!F1306 -> 4644.4 | L105: 4644.4
A106: =CONCATENATE("SINAPI ",Composições!$A$1309) -> SINAPI 101908 | B106: 4.5 | C106: FORNECIMENTO E INSTALAÇÃO DE EXTINTOR DE PÓ QUÍMICO SECO (PQS), 4 kg | D106: 1 | E106: un | F106: =+Composições!C1312 -> 213.61 | G106: =+Composições!C1315 -> 16.11 | H106: =+F106+G106 -> 229.72 | I106: =+K106-J106 -> 273.87 | J106: =+TRUNC((G106*(1+$L$12)),2) -> 20.65 | K106: =+Composições!F1321 -> 294.52 | L106: =TRUNC((D106*K106),2) -> 294.52
A107: =CONCATENATE("SINAPI ",Composições!$A$1324) -> SINAPI 101905 | B107: 4.6 | C107: FORNECIMENTO E INSTALAÇÃO DE EXTINTOR DE ÁGUA PRESSURIZADA (AP), 10 l | D107: 1 | E107: un | F107: =+Composições!C1327 -> 220.85 | G107: =+Composições!C1330 -> 16.11 | H107: =+F107+G107 -> 236.96 | I107: =+K107-J107 -> 283.15 | J107: =+TRUNC((G107*(1+$L$12)),2) -> 20.65 | K107: =+Composições!F1336 -> 303.8 | L107: =TRUNC((D107*K107),2) -> 303.8
A108: =CONCATENATE("SMAMUS ",Composições!A1339) -> SMAMUS 750 | B108: 4.7 | C108: GERADOR DE ENERGIA ELÉTRICA | D108: 1 | E108: un | F108: =+Composições!C1342 -> 2046 | G108: 0 | H108: =+F108+G108 -> 2046 | I108: =+K108-J108 -> 2623.17 | J108: =+TRUNC((G108*(1+$L$12)),2) -> 0 | K108: =+Composições!F1348 -> 2623.17 | L108: =TRUNC((D108*K108),2) -> 2623.17
A109: =CONCATENATE("SMAMUS ",Composições!A1351) -> SMAMUS 753 | B109: 4.8 | C109: CONSUMO DE ÁGUA TRATADA | D109: 1 | E109: un | F109: =+Composições!C1354 -> 167.6 | G109: 0 | H109: =+F109+G109 -> 167.6 | I109: =+K109-J109 -> 214.87 | J109: =+TRUNC((G109*(1+$L$12)),2) -> 0 | K109: =+Composições!F1360 -> 214.87 | L109: =TRUNC((D109*K109),2) -> 214.87
B110: TOTAL DE ADMINISTRAÇÃO LOCAL | L110: =SUM(L100:L109) -> 38347.45
B111: 5 | C111: MOVIMENTO DE TERRA
A112: =CONCATENATE("SMAMUS ",Composições!A1363) -> SMAMUS 1002 | B112: 5.1 | C112: MODELAGEM | D112: 163 | E112: m² | F112: 0 | G112: =+Composições!C1369 -> 2.31 | H112: =+F112+G112 -> 2.31 | I112: =+K112-J112 -> 0.09 | J112: =+TRUNC((G112*(1+$L$12)),2) -> 2.96 | K112: =+Composições!F1375 -> 3.05 | L112: =TRUNC((D112*K112),2) -> 497.15
A113: =CONCATENATE("SMAMUS ",Composições!A1378) -> SMAMUS 1003 | C113: TERRAPLENAGEM | E113: dia | F113: =+Composições!C1380 -> 1007.68 | G113: 0 | H113: 1007.68 | I113: 1291.94 | J113: 0 | K113: =+Composições!F1386 -> 1291.94 | L113: 0
A114: =CONCATENATE("SMAMUS ",Composições!A1389) -> SMAMUS 1005 | C114: ATERRO MECÂNICO COM MATERIAL IMPORTADO COM COMPACTAÇÃO MECÂNICA | E114: m³ | F114: =+Composições!C1395 -> 74.07 | G114: =+Composições!C1397 -> 0.62 | H114: 74.69 | I114: 94.97 | J114: 0.79 | K114: =+Composições!F1403 -> 95.76 | L114: 0
A115: =CONCATENATE("SMAMUS ",Composições!A1406) -> SMAMUS 1006 | B115: 5.2 | C115: ATERRO MANUAL COM MATERIAL IMPORTADO COM COMPACTAÇÃO MECÂNICA | D115: 26 | E115: m³ | F115: =+Composições!C1410 -> 73.81 | G115: =+Composições!C1412 -> 11.15 | H115: 84.96 | I115: 94.63 | J115: 14.29 | K115: =+Composições!F1418 -> 108.92 | L115: 2831.92
A116: =CONCATENATE("SMAMUS ",Composições!A1421) -> SMAMUS 1010 | C116: ATERRO MANUAL COM MATERIAL IMPORTADO COM COMPACTAÇÃO MANUAL | E116: m³ | F116: =+Composições!C1423 -> 59.4 | G116: =+Composições!C1425 -> 40.58 | H116: =+F116+G116 -> 99.98 | I116: =+K116-J116 -> 76.16 | J116: 52.02 | K116: =+Composições!F1431 -> 128.18 | L116: 0
A117: =CONCATENATE("SINAPI ",Composições!A1434) -> SINAPI 93358 | C117: ESCAVAÇÃO MANUAL DE SOLO ATÉ 1,30 m | E117: m³ | F117: 0 | G117: =+Composições!C1436 -> 66.93 | H117: 66.93 | I117: 0 | J117: 85.81 | K117: =+Composições!F1442 -> 85.81 | L117: 0
A118: =CONCATENATE("SINAPI ",Composições!A1445) -> SINAPI 101114 | C118: ESCAVAÇÃO MECÂNICA DE SOLO | E118: m³ | F118: =+Composições!C1448 -> 3.28 | G118: 0 | H118: 3.28 | I118: 4.87 | J118: 0 | K118: =+Composições!F1456 -> 4.87 | L118: 0
A119: =CONCATENATE("SINAPI ",Composições!A1459) -> SINAPI 96995 | C119: REATERRO MANUAL C/COMPACTAÇÃO MANUAL | E119: m³ | F119: 0 | G119: =+Composições!C1461 -> 40.58 | H119: 40.58 | I119: 0 | J119: 52.02 | K119: =+Composições!F1467 -> 52.02 | L119: 0
B120: TOTAL DE MOVIMENTO DE TERRA | L120: =SUM(L112:L119) -> 3329.07
B121: 6 | C121: PAVIMENTAÇÃO
A122: =CONCATENATE("SMAMUS ",Composições!A1470) -> SMAMUS 1900 | C122: NIVELAMENTO CAIXA DE PASSAGEM | E122: un | F122: =+Composições!C1474 -> 11.22 | G122: =+Composições!C1477 -> 17.9 | H122: =+F122+G122 -> 29.12 | I122: =+K122-J122 -> 14.39 | J122: =+TRUNC((G122*(1+$L$12)),2) -> 22.94 | K122: =+Composições!F1483 -> 37.33 | L122: =TRUNC((D122*K122),2) -> 0
A123: =CONCATENATE("SINAPI ",Composições!A1486) -> SINAPI 101621 | C123: LASTRO DE BRITA | E123: m³ | F123: =+Composições!C1490 -> 79.26 | G123: =+Composições!C1493 -> 96.42 | H123: 175.68 | I123: 101.61 | J123: 123.62 | K123: =+Composições!F1499 -> 225.23 | L123: 0
A124: =CONCATENATE("SMAMUS ",Composições!A1502) -> SMAMUS 2010 | C124: SAIBRO ROSA - COMPACTAÇÃO MECÂNICA - 6 cm | E124: m² | F124: =+Composições!C1508 -> 6.72 | G124: =+Composições!C1511 -> 2.71 | H124: 9.43 | I124: 8.62 | J124: 3.47 | K124: =+Composições!F1517 -> 12.09 | L124: 0
A125: =CONCATENATE("SMAMUS ",Composições!A1520) -> SMAMUS 2011 | C125: SAIBRO ROSA - COMPACTAÇÃO MECÂNICA - 6 cm | E125: m³ | F125: =+Composições!C1526 -> 112.27 | G125: =+Composições!C1529 -> 45.29 | H125: 157.56 | I125: 143.94 | J125: 58.06 | K125: =+Composições!F1535 -> 202 | L125: 0
A126: =CONCATENATE("SMAMUS ",Composições!A1538) -> SMAMUS 2020 | C126: PISO CONCRETO ARMADO 8 cm - PASSEIO - S/PODOTÁTIL | E126: m² | F126: =+Composições!C1552 -> 70.55 | G126: =+Composições!C1557 -> 13.03 | H126: 83.58 | I126: 90.45 | J126: 16.7 | K126: =+Composições!F1563 -> 107.15 | L126: 0
A127: =CONCATENATE("SMAMUS ",Composições!A1566) -> SMAMUS 2021 | C127: PISO CONCRETO ARMADO 8 cm - PASSEIO - C/PODOTÁTIL | E127: m² | F127: =+Composições!C1581 -> 69.22 | G127: =+Composições!C1586 -> 16.66 | H127: =+F127+G127 -> 85.88 | I127: =+K127-J127 -> 88.75 | J127: 21.35 | K127: =+Composições!F1592 -> 110.1 | L127: 0
A128: =CONCATENATE("SMAMUS ",Composições!A1595) -> SMAMUS 2025 | C128: PISO CONCRETO ARMADO 8 cm - QUADRA (PANO ÚNICO) | E128: m² | F128: =+Composições!C1609 -> 85.501 | G128: =+Composições!C1616 -> 5.61 | H128: 91.111 | I128: 109.621 | J128: 7.19 | K128: =+Composições!F1622 -> 116.811 | L128: 0
A129: =CONCATENATE("SMAMUS ",Composições!A1625) -> SMAMUS 2027 | C129: PISO CONCRETO ARMADO 10 cm - ACADEMIA AO AR LIVRE | E129: m² | F129: =+Composições!C1644 -> 91.311 | G129: =+Composições!C1653 -> 7.91 | H129: 99.221 | I129: 117.071 | J129: 10.14 | K129: =+Composições!F1659 -> 127.211 | L129: 0
A130: =CONCATENATE("SMAMUS ",Composições!A1662) -> SMAMUS 2028 | C130: PISO CONCRETO ARMADO 20 cm - ARMADURA DUPLA | E130: m² | F130: =+Composições!C1679 -> 168.225 | G130: =+Composições!C1687 -> 16.46 | H130: 184.685 | I130: 215.675 | J130: 21.1 | K130: =+Composições!F1693 -> 236.775 | L130: 0
A131: =CONCATENATE("SINAPI ",Composições!A1696) -> SINAPI 92396 | C131: PAVIMENTAÇÃO BLOCOS RETANGULARES DE CONCRETO COR NATURAL - 6 cm - 35 MPa | E131: m² | F131: =+Composições!C1704 -> 49.09 | G131: =+Composições!C1707 -> 13.86 | H131: 62.95 | I131: 62.94 | J131: 17.76 | K131: =+Composições!F1713 -> 80.7 | L131: 0
A132: =CONCATENATE("SINAPI ",Composições!A1716) -> SINAPI 93679 | C132: PAVIMENTAÇÃO BLOCOS RETANGULARES DE CONCRETO COLORIDO - 6 cm - 35 MPa | E132: m² | F132: =+Composições!C1724 -> 56.06 | G132: =+Composições!C1727 -> 13.86 | H132: =+F132+G132 -> 69.92 | I132: =+K132-J132 -> 71.88 | J132: 17.76 | K132: =+Composições!F1733 -> 89.64 | L132: 0
A133: =CONCATENATE("SINAPI ",Composições!A1736) -> SINAPI 92398 | C133: PAVIMENTAÇÃO BLOCOS RETANGULARES DE CONCRETO COR NATURAL - 8 cm - 35 MPa | E133: m² | F133: =+Composições!C1744 -> 57.83 | G133: =+Composições!C1747 -> 8.83 | H133: 66.66 | I133: 74.14 | J133: 11.32 | K133: =+Composições!F1753 -> 85.46 | L133: 0
A134: =CONCATENATE("SMAMUS ",Composições!A1756) -> SMAMUS 2030 | C134: FAIXAS BLOCOS RETANGULARES DE CONCRETO COR NATURAL - 6 cm - 35 MPa (LARGURA 20 cm) | E134: m | F134: =+Composições!C1760 -> 11.27 | G134: =+Composições!C1763 -> 6.93 | H134: 18.2 | I134: 14.45 | J134: 8.88 | K134: =+Composições!F1769 -> 23.33 | L134: 0
A135: =CONCATENATE("SMAMUS ",Composições!A1772) -> SMAMUS 2035 | C135: PAVIMENTAÇÃO PARALELEPÍPEDO | E135: m² | F135: =+Composições!C1780 -> 108.89 | G135: =+Composições!C1783 -> 11.53 | H135: 120.42 | I135: 139.61 | J135: 14.78 | K135: =+Composições!F1789 -> 154.39 | L135: 0
A136: =CONCATENATE("SINAPI ",Composições!A1792) -> SINAPI 101090 | C136: PEDRA PORTUGUESA | E136: m² | F136: =+Composições!C1797 -> 276.98 | G136: =+Composições!C1800 -> 22.25 | H136: 299.23 | I136: 355.12 | J136: 28.52 | K136: =+Composições!F1806 -> 383.64 | L136: 0
A137: =CONCATENATE("SMAMUS ",Composições!A1809) -> SMAMUS 2040 | C137: LAJE DE GRÊS ASSENTADA NA AREIA | E137: m² | F137: =+Composições!C1813 -> 29.92 | G137: =+Composições!C1816 -> 27.25 | H137: 57.17 | I137: 38.36 | J137: 34.93 | K137: =+Composições!F1822 -> 73.29 | L137: 0
A138: =CONCATENATE("SMAMUS ",Composições!A1825) -> SMAMUS 2041 | C138: LAJE DE GRÊS ASSENTADA NA MASSA | E138: m² | F138: =+Composições!C1829 -> 36.6 | G138: =+Composições!C1832 -> 24.58 | H138: 61.18 | I138: 46.92 | J138: 31.51 | K138: =+Composições!F1838 -> 78.43 | L138: 0
A139: =CONCATENATE("SMAMUS ",Composições!A1841) -> SMAMUS 2042 | C139: LAJE DE GRÊS ASSENTADA NA ARGILA | E139: m² | F139: =+Composições!C1845 -> 25.1 | G139: =+Composições!C1848 -> 25.14 | H139: 50.24 | I139: 32.18 | J139: 32.23 | K139: =+Composições!F1854 -> 64.41 | L139: 0
A140: =CONCATENATE("SMAMUS ",Composições!A1857) -> SMAMUS 2050 | C140: BASALTO IRREGULAR - JUNTA BITOLADA | E140: m² | F140: =+Composições!C1861 -> 194.53 | G140: =+Composições!C1864 -> 44.7 | H140: 239.23 | I140: 249.41 | J140: 57.3 | K140: =+Composições!F1870 -> 306.71 | L140: 0
A141: =CONCATENATE("SMAMUS ",Composições!A1873) -> SMAMUS 2051 | C141: BASALTO IRREGULAR | E141: m² | F141: =+Composições!C1877 -> 68.12 | G141: =+Composições!C1880 -> 37.26 | H141: 105.38 | I141: 87.33 | J141: 47.77 | K141: =+Composições!F1886 -> 135.1 | L141: 0
A142: =CONCATENATE("SMAMUS ",Composições!A1889) -> SMAMUS 2052 | C142: BASALTO REGULAR TALHADO | E142: m² | F142: =+Composições!C1893 -> 111.5 | G142: =+Composições!C1896 -> 37.26 | H142: 148.76 | I142: 142.95 | J142: 47.77 | K142: =+Composições!F1902 -> 190.72 | L142: 0
A143: =CONCATENATE("SMAMUS ",Composições!A1905) -> SMAMUS 2053 | C143: BASALTO REGULAR SERRADO | E143: m² | F143: =+Composições!C1909 -> 138.37 | G143: =+Composições!C1912 -> 37.26 | H143: 175.63 | I143: 177.4 | J143: 47.77 | K143: =+Composições!F1918 -> 225.17 | L143: 0
A144: =CONCATENATE("SMAMUS ",Composições!A1921) -> SMAMUS 2057 | C144: AREIA MÉDIA PENEIRADA | E144: m³ | F144: =+Composições!C1927 -> 92.29 | G144: =+Composições!C1930 -> 27.19 | H144: =+F144+G144 -> 119.48 | I144: =+K144-J144 -> 118.32 | J144: =+TRUNC((G144*(1+$L$12)),2) -> 34.86 | K144: =+Composições!F1936 -> 153.18 | L144: 0
A145: =CONCATENATE("SMAMUS ",Composições!A1939) -> SMAMUS 2060 | C145: LAJOTA CONCRETO | E145: m² | F145: =+Composições!C1943 -> 51.11 | G145: =+Composições!C1946 -> 24.58 | H145: 75.69 | I145: 65.53 | J145: 31.51 | K145: =+Composições!F1952 -> 97.04 | L145: 0
A146: =CONCATENATE("SMAMUS ",Composições!A1955) -> SMAMUS 2070 | C146: PISO PODOTÁTIL 25x25 cm | E146: m | F146: =+Composições!C1960 -> 21.09 | G146: =+Composições!C1963 -> 6.14 | H146: 27.23 | I146: 27.04 | J146: 7.87 | K146: =+Composições!F1969 -> 34.91 | L146: 0
B147: TOTAL DE PAVIMENTAÇÃO | L147: =SUM(L122:L146) -> 0
B148: 7 | C148: MEIO-FIO
A149: =CONCATENATE("SMAMUS ",Composições!A1972) -> SMAMUS 2210 | C149: MEIO-FIO CONCRETO MOLDADO NO LOCAL - PADRÃO SMAM | E149: m | F149: =+Composições!C1985 -> 25.15 | G149: =+Composições!C1992 -> 23.92 | H149: =+F149+G149 -> 49.07 | I149: =+K149-J149 -> 32.25 | J149: =+TRUNC((G149*(1+$L$12)),2) -> 30.66 | K149: =+Composições!F1998 -> 62.91 | L149: =TRUNC((D149*K149),2) -> 0
A150: =CONCATENATE("SMAMUS ",Composições!A2001) -> SMAMUS 2215 | C150: MEIO-FIO CURVO CONCRETO MOLDADO NO LOCAL - PADRÃO SMAM | E150: m | F150: =+Composições!C2015 -> 49.19 | G150: =+Composições!C2022 -> 36.41 | H150: =+F150+G150 -> 85.6 | I150: =+K150-J150 -> 63.06 | J150: =+TRUNC((G150*(1+$L$12)),2) -> 46.68 | K150: =+Composições!F2028 -> 109.74 | L150: =TRUNC((D150*K150),2) -> 0
A151: =CONCATENATE("SINAPI ",Composições!A2031) -> SINAPI 94273 | C151: MEIO-FIO VIÁRIO DE CONCRETO PRÉ-MOLDADO | E151: m | F151: =+Composições!C2035 -> 33.67 | G151: =+Composições!C2038 -> 14.67 | H151: =+F151+G151 -> 48.34 | I151: =+K151-J151 -> 43.17 | J151: =+TRUNC((G151*(1+$L$12)),2) -> 18.8 | K151: =+Composições!F2044 -> 61.97 | L151: =TRUNC((D151*K151),2) -> 0
A152: =CONCATENATE("SMAMUS ",Composições!A2047) -> SMAMUS 2223 | C152: REPOSIÇÃO MEIO-FIO VIÁRIO | E152: m | F152: =+Composições!C2050 -> 1.59 | G152: =+Composições!C2053 -> 14.67 | H152: =+F152+G152 -> 16.26 | I152: =+K152-J152 -> 2.04 | J152: =+TRUNC((G152*(1+$L$12)),2) -> 18.8 | K152: =+Composições!F2059 -> 20.84 | L152: =TRUNC((D152*K152),2) -> 0
A153: =CONCATENATE("SMAMUS ",Composições!A2062) -> SMAMUS 2225 | C153: REALINHAMENTO MEIO-FIO VIÁRIO | E153: m | F153: =+Composições!C2065 -> 1.59 | G153: =+Composições!C2068 -> 15.79 | H153: =+F153+G153 -> 17.38 | I153: =+K153-J153 -> 2.04 | J153: =+TRUNC((G153*(1+$L$12)),2) -> 20.24 | K153: =+Composições!F2074 -> 22.28 | L153: =TRUNC((D153*K153),2) -> 0
B154: TOTAL DE MEIO-FIO | L154: =SUM(L149:L153) -> 0
B155: 8 | C155: DEGRAU
A156: =CONCATENATE("SMAMUS ",Composições!A2077) -> SMAMUS 2255 | C156: DEGRAU CONCRETO L=2,00 m - BASE GRANITO - PADRÃO SMAM | E156: un | F156: =+Composições!C2097 -> 340.07 | G156: =+Composições!C2105 -> 93.5 | H156: =+F156+G156 -> 433.57 | I156: =+K156-J156 -> 436.01 | J156: =+TRUNC((G156*(1+$L$12)),2) -> 119.87 | K156: =+Composições!F2111 -> 555.88 | L156: =TRUNC((D156*K156),2) -> 0
A157: =CONCATENATE("SMAMUS ",Composições!A2114) -> SMAMUS 2260 | C157: DEGRAU CONCRETO L=2,00 m - BASE GRÊS - PADRÃO SMAM | E157: un | F157: =+Composições!C2134 -> 222.09 | G157: =+Composições!C2142 -> 88.39 | H157: =+F157+G157 -> 310.48 | I157: =+K157-J157 -> 284.74 | J157: =+TRUNC((G157*(1+$L$12)),2) -> 113.32 | K157: =+Composições!F2148 -> 398.06 | L157: =TRUNC((D157*K157),2) -> 0
B158: TOTAL DE DEGRAU | L158: =SUM(L156:L157) -> 0
B159: 9 | C159: ACESSIBILIDADE
A160: =CONCATENATE("SMAMUS ",Composições!A2151) -> SMAMUS 2307 | C160: RAMPA PPNE'S TIPO 1 - 1,50 m (ABA 50 cm) | E160: un | F160: =+Composições!C2168 -> 384.77 | G160: =+Composições!C2174 -> 240.05 | H160: =+F160+G160 -> 624.82 | I160: =+K160-J160 -> 493.32 | J160: =+TRUNC((G160*(1+$L$12)),2) -> 307.76 | K160: =+Composições!F2180 -> 801.08 | L160: =TRUNC((D160*K160),2) -> 0
A161: =CONCATENATE("SMAMUS ",Composições!A2183) -> SMAMUS 2308 | C161: RAMPA PPNE'S TIPO 1 - 1,50 m (ABA 1,50 m) | E161: un | F161: =+Composições!C2200 -> 543.55 | G161: =+Composições!C2206 -> 358.31 | H161: 901.86 | I161: 696.89 | J161: 459.38 | K161: =+Composições!F2212 -> 1156.27 | L161: 0
A162: =CONCATENATE("SMAMUS ",Composições!A2215) -> SMAMUS 2309 | C162: RAMPA PPNE'S TIPO 1 - 1,50 m (SEM ABA) | E162: un | F162: =+Composições!C2232 -> 306.02 | G162: =+Composições!C2238 -> 183.3 | H162: =+F162+G162 -> 489.32 | I162: =+K162-J162 -> 392.35 | J162: =+TRUNC((G162*(1+$L$12)),2) -> 235 | K162: =+Composições!F2244 -> 627.35 | L162: 0
A163: =CONCATENATE("SMAMUS ",Composições!A2247) -> SMAMUS 2310 | C163: RAMPA PPNE'S TIPO 1 - 4,00 m | E163: un | F163: =+Composições!C2264 -> 869.23 | G163: =+Composições!C2270 -> 446.14 | H163: 1315.37 | I163: 1114.44 | J163: 571.99 | K163: =+Composições!F2276 -> 1686.43 | L163: 0
A164: =CONCATENATE("SMAMUS ",Composições!A2279) -> SMAMUS 2315 | C164: RAMPA PPNE'S TIPO 2 (CALÇADA ESTREITA) - 1,50 m | E164: un | F164: =+Composições!C2303 -> 865.7 | G164: =+Composições!C2310 -> 579.54 | H164: 1445.24 | I164: 1109.92 | J164: 743.02 | K164: =+Composições!F2316 -> 1852.94 | L164: 0
A165: =CONCATENATE("SMAMUS ",Composições!$A$2319) -> SMAMUS 2317 | C165: RAMPA PPNE'S TIPO 2 (CALÇADA ESTREITA) - 2,00 m | E165: un | F165: =+Composições!$C$2343 -> 1104.01 | G165: =+Composições!$C$2350 -> 681 | H165: =+F165+G165 -> 1785.01 | I165: =+K165-J165 -> 1415.45 | J165: =+TRUNC((G165*(1+$L$12)),2) -> 873.11 | K165: =+Composições!F2356 -> 2288.56 | L165: 0
A166: =CONCATENATE("SMAMUS ",Composições!A2359) -> SMAMUS 2320 | C166: CORRIMÃO PPNE'S | E166: m | F166: =+Composições!C2388 -> 284.71 | G166: =+Composições!C2398 -> 107.16 | H166: 391.87 | I166: 365.03 | J166: 137.38 | K166: =+Composições!F2404 -> 502.41 | L166: 0
B167: TOTAL DE ACESSIBILIDADE | L167: =SUM(L160:L166) -> 0
B168: 10 | C168: QUADRAS
A169: =CONCATENATE("SMAMUS ",Composições!A2407) -> SMAMUS 2405 | C169: TELAMENTO h=5,50 m - PADRÃO SMAM | E169: m | F169: =+Composições!C2440 -> 677.47 | G169: =+Composições!C2449 -> 274.05 | H169: =+F169+G169 -> 951.52 | I169: =+K169-J169 -> 868.59 | J169: =+TRUNC((G169*(1+$L$12)),2) -> 351.35 | K169: =+Composições!F2455 -> 1219.94 | L169: =TRUNC((D169*K169),2) -> 0
A170: =CONCATENATE("SMAMUS ",Composições!A2458) -> SMAMUS 2407 | C170: TELAMENTO h=3,00 m - PADRÃO SMAM | E170: m | F170: =+Composições!C2491 -> 532.02 | G170: =+Composições!C2500 -> 170.22 | H170: 702.24 | I170: 682.11 | J170: 218.23 | K170: =+Composições!F2506 -> 900.34 | L170: 0
A171: =CONCATENATE("SMAMUS ",Composições!A2509) -> SMAMUS 2410 | C171: TELAMENTO h=1,00 m - PADRÃO SMAM | E171: m | F171: =+Composições!C2514 -> 71.23 | G171: =+Composições!C2517 -> 18.14 | H171: 89.37 | I171: 91.33 | J171: 23.25 | K171: =+Composições!F2523 -> 114.58 | L171: 0
A172: =CONCATENATE("SMAMUS ",Composições!A2526) -> SMAMUS 2415 | C172: TELAMENTO h=3,00 m VÔLEI DE PRAIA - PADRÃO SMAM | E172: m | F172: =+Composições!C2560 -> 646.37 | G172: =+Composições!C2569 -> 238.67 | H172: 885.04 | I172: 828.71 | J172: 305.99 | K172: =+Composições!F2575 -> 1134.7 | L172: 0
A173: =CONCATENATE("SMAMUS ",Composições!A2578) -> SMAMUS 2430 | C173: GOLEIRA FUTSAL | E173: un | F173: =+Composições!C2590 -> 1175.66 | G173: =+Composições!C2596 -> 380.68 | H173: 1556.34 | I173: 1507.32 | J173: 488.06 | K173: =+Composições!F2602 -> 1995.38 | L173: 0
A174: =CONCATENATE("SMAMUS ",Composições!A2605) -> SMAMUS 2433 | C174: GOLEIRA FUTEBOL SOCIETY | E174: un | F174: =+Composições!C2618 -> 2754.27 | G174: =+Composições!C2624 -> 563.65 | H174: 3317.92 | I174: 3531.25 | J174: 722.65 | K174: =+Composições!F2630 -> 4253.9 | L174: 0
A175: =CONCATENATE("SMAMUS ",Composições!A2633) -> SMAMUS 2435 | C175: GOLEIRA FUTEBOL DE CAMPO | E175: un | F175: =+Composições!C2646 -> 3439.15 | G175: =+Composições!C2652 -> 716.82 | H175: 4155.97 | I175: 4409.33 | J175: 919.03 | K175: =+Composições!F2658 -> 5328.36 | L175: 0
A176: =CONCATENATE("SMAMUS ",Composições!A2661) -> SMAMUS 2440 | C176: POSTE DE VÔLEI | E176: un | F176: =+Composições!C2675 -> 564.61 | G176: =+Composições!C2681 -> 176.95 | H176: 741.56 | I176: 723.89 | J176: 226.86 | K176: =+Composições!F2687 -> 950.75 | L176: 0
A177: =CONCATENATE("SMAMUS ",Composições!A2690) -> SMAMUS 2445 | C177: POSTE DE VÔLEI QUADRA DE AREIA | E177: un | F177: =+Composições!C2704 -> 604.33 | G177: =+Composições!C2710 -> 189.99 | H177: 794.32 | I177: 774.81 | J177: 243.58 | K177: =+Composições!F2716 -> 1018.39 | L177: 0
A178: =CONCATENATE("SMAMUS ",Composições!A2719) -> SMAMUS 2447 | C178: POSTE DE TÊNIS QUADRA DE AREIA | E178: un | F178: =+Composições!C2733 -> 471.43 | G178: =+Composições!C2739 -> 142.54 | H178: 613.97 | I178: 604.42 | J178: 182.75 | K178: =+Composições!F2745 -> 787.17 | L178: 0
A179: =CONCATENATE("SMAMUS ",Composições!A2748) -> SMAMUS 2450 | C179: TABELA DE BASQUETE - PADRÃO SMAM | E179: un | F179: =+Composições!C2768 -> 3860.81 | G179: =+Composições!C2774 -> 1256.34 | H179: 5117.15 | I179: 4949.94 | J179: 1610.75 | K179: =+Composições!F2780 -> 6560.69 | L179: 0
A180: =CONCATENATE("SMAMUS ",Composições!A2783) -> SMAMUS 2470 | C180: DEMARCAÇÃO QUADRA ESPORTIVA FUTSAL | E180: m | F180: =+Composições!C2786 -> 1.21 | G180: =+Composições!C2789 -> 16.95 | H180: 18.16 | I180: 1.55 | J180: 21.73 | K180: =+Composições!F2795 -> 23.28 | L180: 0
A181: =CONCATENATE("SMAMUS ",Composições!A2798) -> SMAMUS 2473 | C181: DEMARCAÇÃO QUADRA ESPORTIVA BASQUETE E/OU VÔLEI | E181: m | F181: =+Composições!C2801 -> 0.88 | G181: =+Composições!C2804 -> 10.6 | H181: 11.48 | I181: 1.12 | J181: 13.59 | K181: =+Composições!F2810 -> 14.71 | L181: 0
A182: =CONCATENATE("SMAMUS ",Composições!A2813) -> SMAMUS 2480 | C182: DRENO QUADRA DE AREIA | E182: m | F182: =+Composições!C2820 -> 96.67 | G182: =+Composições!C2823 -> 35.01 | H182: 131.68 | I182: 123.94 | J182: 44.88 | K182: =+Composições!F2829 -> 168.82 | L182: 0
B183: TOTAL DE QUADRAS | L183: =SUM(L169:L182) -> 0
B184: 6 | C184: EQUIPAMENTOS/MOBILIÁRIO URBANO
A185: =CONCATENATE("SMAMUS ",Composições!A2832) -> SMAMUS 2601 | B185: 6.1 | C185: BANCO B (C/ ENCOSTO) - L=2,00 m - PADRÃO SMAM | D185: 4 | E185: un | F185: =+Composições!C2860 -> 1203.35 | G185: =+Composições!C2868 -> 274.44 | H185: =+F185+G185 -> 1477.79 | I185: =+K185-J185 -> 1542.82 | J185: =+TRUNC((G185*(1+$L$12)),2) -> 351.85 | K185: =+Composições!F2874 -> 1894.67 | L185: =TRUNC((D185*K185),2) -> 7578.68
A186: =CONCATENATE("SMAMUS ",Composições!A2877) -> SMAMUS 2602 | C186: BANCO A (S/ ENCOSTO) - L=1,80 m - PADRÃO SMAM | E186: un | F186: =+Composições!C2893 -> 693.87 | G186: =+Composições!C2900 -> 265.89 | H186: 959.76 | I186: 889.61 | J186: 340.89 | K186: =+Composições!F2906 -> 1230.5 | L186: 0
A187: =CONCATENATE("SMAMUS ",Composições!A2909) -> SMAMUS 2605 | C187: BANCO D (S/ ENCOSTO) - L=2,00 m - PADRÃO SMAM | E187: un | F187: =+Composições!C2937 -> 785.15 | G187: =+Composições!C2945 -> 219.79 | H187: 1004.94 | I187: 1006.64 | J187: 281.79 | K187: =+Composições!F2951 -> 1288.43 | L187: 0
A188: =CONCATENATE("SMAMUS ",Composições!A2954) -> SMAMUS 2610 | C188: PARACICLO | E188: un | F188: =+Composições!C2963 -> 370.3 | G188: =+Composições!C2969 -> 45.36 | H188: 415.66 | I188: 474.76 | J188: 58.15 | K188: =+Composições!F2975 -> 532.91 | L188: 0
A189: =CONCATENATE("SMAMUS ",Composições!A2978) -> SMAMUS 2615 | C189: CAIXA DE AREIA - PADRÃO SMAM | E189: un | F189: =+Composições!C2994 -> 1668.74 | G189: =+Composições!C3000 -> 1373.75 | H189: 3042.49 | I189: 2139.49 | J189: 1761.28 | K189: =+Composições!F3006 -> 3900.77 | L189: 0
A190: =CONCATENATE("SMAMUS ",Composições!A3009) -> SMAMUS 2620 | C190: CANCHA DE BOCHA - PADRÃO SMAM | E190: un | F190: =+Composições!C3047 -> 32482.89 | G190: =+Composições!C3054 -> 13561.75 | H190: 46044.64 | I190: 41646.32 | J190: 17387.51 | K190: =+Composições!F3060 -> 59033.83 | L190: 0
A191: =CONCATENATE("SMAMUS ",Composições!A3063) -> SMAMUS 2623 | C191: COBERTURA P/ CANCHA DE BOCHA | E191: un | F191: =+Composições!C3082 -> 30290.09 | G191: =+Composições!C3088 -> 16348.6 | H191: 46638.69 | I191: 38834.92 | J191: 20960.54 | K191: =+Composições!F3094 -> 59795.46 | L191: 0
A192: =CONCATENATE("SMAMUS ",Composições!A3097) -> SMAMUS 2630 | C192: CHURRASQUEIRA C/PISO DE CONCRETO - PADRÃO SMAM | E192: un | F192: =+Composições!C3118 -> 1757.67 | G192: =+Composições!C3124 -> 779.99 | H192: 2537.66 | I192: 2253.51 | J192: 1000.02 | K192: =+Composições!F3130 -> 3253.53 | L192: 0
A193: =CONCATENATE("SMAMUS ",Composições!A3133) -> SMAMUS 2633 | C193: CHURRASQUEIRA - PADRÃO SMAM | E193: un | F193: =+Composições!C3151 -> 780.77 | G193: =+Composições!C3157 -> 287.28 | H193: 1068.05 | I193: 1001.02 | J193: 368.32 | K193: =+Composições!F3163 -> 1369.34 | L193: 0
A194: =CONCATENATE("SMAMUS ",Composições!A3166) -> SMAMUS 2636 | C194: MESA E BANCOS DE CONCRETO P/ CHURRASQUEIRA - PADRÃO SMAM | E194: cj | F194: =+Composições!C3184 -> 801.85 | G194: =+Composições!C3190 -> 613.81 | H194: 1415.66 | I194: 1028.05 | J194: 786.96 | K194: =+Composições!F3196 -> 1815.01 | L194: 0
A195: =CONCATENATE("SMAMUS ",Composições!A3199) -> SMAMUS 2638 | C195: COBERTURA P/ CHURRASQUEIRA - PADRÃO SMAM | E195: un | F195: =+Composições!C3219 -> 853391.35 | G195: =+Composições!C3225 -> 2858.44 | H195: 856249.79 | I195: 1094133.05 | J195: 3664.8 | K195: =+Composições!F3231 -> 1097797.85 | L195: 0
A196: =CONCATENATE("SMAMUS ",Composições!A3234) -> SMAMUS 2653 | C196: BEBEDOURO C/ VÁLVULA ANTI-VANDALISMO - PADRÃO SMAM | E196: un | F196: =+Composições!C3260 -> 1789.68 | G196: =+Composições!C3266 -> 928.29 | H196: 2717.97 | I196: 2294.54 | J196: 1190.16 | K196: =+Composições!F3272 -> 3484.7 | L196: 0
A197: =CONCATENATE("SMAMUS ",Composições!A3275) -> SMAMUS 2660 | C197: FRADINHO CONCRETO BASE CIRCULAR - PADRÃO SMAM | E197: un | F197: =+Composições!C3285 -> 177.86 | G197: =+Composições!C3290 -> 29.04 | H197: 206.9 | I197: 228.03 | J197: 37.23 | K197: =+Composições!F3296 -> 265.26 | L197: 0
A198: =CONCATENATE("SMAMUS ",Composições!A3299) -> SMAMUS 2661 | C198: FRADINHO CONCRETO BASE OCTOGONAL - PADRÃO SMAM | E198: un | F198: =+Composições!C3313 -> 90.9 | G198: =+Composições!C3319 -> 160.11 | H198: 251.01 | I198: 116.54 | J198: 205.27 | K198: =+Composições!F3325 -> 321.81 | L198: 0
A199: =CONCATENATE("SMAMUS ",Composições!A3328) -> SMAMUS 2662 | C199: FRADINHO EM FERRO FUNDIDO | E199: un | F199: =+Composições!C3336 -> 292.11 | G199: =+Composições!C3339 -> 12.17 | H199: 304.28 | I199: 374.51 | J199: 15.6 | K199: =+Composições!F3345 -> 390.11 | L199: 0
A200: =CONCATENATE("SMAMUS ",Composições!A3348) -> SMAMUS 2665 | C200: MESA DE DAMAS - PADRÃO SMAM | E200: un | F200: =+Composições!C3375 -> 1552.03 | G200: =+Composições!C3382 -> 426.91 | H200: 1978.94 | I200: 1989.85 | J200: 547.34 | K200: =+Composições!F3388 -> 2537.19 | L200: 0
A201: =CONCATENATE("SMAMUS ",Composições!A3391) -> SMAMUS 2671 | C201: LIXEIRA METÁLICA | E201: un | F201: =+Composições!C3399 -> 744.87 | G201: =+Composições!C3402 -> 69.33 | H201: 814.2 | I201: 955 | J201: 88.88 | K201: =+Composições!F3408 -> 1043.88 | L201: 0
A202: =CONCATENATE("SMAMUS ",Composições!A3411) -> SMAMUS 2680 | C202: PISTA DE PATINAÇÃO | E202: un | F202: =+Composições!C3443 -> 12156.57 | G202: =+Composições!C3452 -> 3320.7 | H202: 15477.27 | I202: 15585.94 | J202: 4257.46 | K202: =+Composições!F3458 -> 19843.4 | L202: 0
A203: =CONCATENATE("SMAMUS ",Composições!A3461) -> SMAMUS 2682 | B203: 6.2 | C203: TELAMENTO CACHORRÓDROMO | D203: 93 | E203: m | F203: =+Composições!C3492 -> 369.51 | G203: =+Composições!C3501 -> 115.69 | H203: 485.2 | I203: 473.75 | J203: 148.32 | K203: =+Composições!F3507 -> 622.07 | L203: 57852.51
A204: =CONCATENATE("SMAMUS ",Composições!A3510) -> SMAMUS 2683 | B204: 6.3 | C204: PORTÃO DE ACESSO CACHORRÓDROMO | D204: 2 | E204: un | F204: =+Composições!C3538 -> 606.27 | G204: =+Composições!C3547 -> 200.41 | H204: =+F204+G204 -> 806.68 | I204: =+K204-J204 -> 777.3 | J204: 256.94 | K204: =+Composições!F3553 -> 1034.24 | L204: 2068.48
A205: =CONCATENATE("SMAMUS ",Composições!A3556) -> SMAMUS 2684 | B205: 6.4 | C205: PORTÃO DE ACESSO DE SERVIÇO CACHORRÓDROMO | D205: 1 | E205: un | F205: =+Composições!C3586 -> 1281.01 | G205: =+Composições!C3595 -> 526.25 | H205: =+F205+G205 -> 1807.26 | I205: =+K205-J205 -> 1642.38 | J205: 674.7 | K205: =+Composições!F3601 -> 2317.08 | L205: 2317.08
A206: =CONCATENATE("SMAMUS ",Composições!A3604) -> SMAMUS 2685 | C206: GUARDA-CORPO PARA RECANTO INFANTIL | E206: m | F206: =+Composições!C3634 -> 259.61 | G206: =+Composições!C3643 -> 87.39 | H206: 347 | I206: 332.84 | J206: 112.04 | K206: =+Composições!F3649 -> 444.88 | L206: 0
A207: =CONCATENATE("SMAMUS ",Composições!A3652) -> SMAMUS 2687 | C207: GRADIL DE FERRO | E207: m | F207: =+Composições!C3676 -> 255.04 | G207: =+Composições!C3686 -> 274.74 | H207: 529.78 | I207: 326.99 | J207: 352.24 | K207: =+Composições!F3692 -> 679.23 | L207: 0
A208: =CONCATENATE("SMAMUS ",Composições!A3695) -> SMAMUS 2690 | C208: CERCAMENTO COM MOURÃO DE CONCRETO S/VIGA DE FUNDAÇÃO | E208: m | F208: =+Composições!C3706 -> 114.37 | G208: =+Composições!C3709 -> 38.53 | H208: 152.9 | I208: 146.64 | J208: 49.39 | K208: =+Composições!F3715 -> 196.03 | L208: 0
A209: =CONCATENATE("SMAMUS ",Composições!A3718) -> SMAMUS 2692 | C209: CERCAMENTO COM MOURÃO DE CONCRETO C/VIGA DE FUNDAÇÃO | E209: m | F209: =+Composições!C3741 -> 164.3 | G209: =+Composições!C3748 -> 75.05 | H209: 239.35 | I209: 210.65 | J209: 96.22 | K209: =+Composições!F3754 -> 306.87 | L209: 0
... 93 more rows

Sheet Composições
A1: PLANILHA COMPOSIÇÕES SMAMUS
A3: =IF('Atualizações Cotações'!$B$4="NÃO",CONCATENATE("Data Base SINAPI: ",M.O.!$E$17," - Data das Cotações: ",Cotações!$N$3),CONCATENATE("Data Base SINAPI: ",M.O.!$E$17," - Data das Cotações: Janeiro/22 e ",Cotações!$N$3," (Atualizadas pelo INCC de ",'Atualizações Cotações'!A11:B11,"/",'Atualizações Cotações'!$C$11,")")) -> Data Base SINAPI: Janeiro/22 - Data das Cotações: Janeiro/22 e Abril/19 (Atualizadas pelo INCC de Janeiro/2022)
A5: OBJETO: | B5: =+PO!$B$10 -> REVITALIZAÇÃO DA PRAÇA A.R.I. - CACHORRÓDROMO - ÁREA 135/02 | C5: Leis Sociais Horistas (SINAPI): | F5: =+M.O.!$D$7 -> 0.8231
A6: DATA: | B6: =IF(PO!$B$11="","",PO!$B$11) -> 2022-03-02 | C6: Leis Sociais Mensalistas (SINAPI): | F6: =+M.O.!$D$8 -> 0.4598
A7: ART nº: | B7: =IF(PO!$B$12="","",PO!$B$12) -> 11751298 | C7: BDI: | F7: =+M.O.!$F$7 -> 28,21%
C8: BDI diferenciado: | F8: =IF($F$7="28,21%",19.35%,13.7%) -> 0.1935
C9: BDI de projeto: | F9: =+PO!$L$14 -> 0
A11: CÓDIGO | B11: DISCRIMINAÇÃO | C11: UN | D11: COEFIC. | E11: UNITÁRIO | F11: TOTAL
A12: 98524 | B12: LIMPEZA MANUAL DE VEGETAÇÃO EM TERRENO COM ENXADA | C12: m²
A13: =CONCATENATE("SINAPI C ",Insumos!$B$38) -> SINAPI C 88316 | B13: SERVENTE C/ ENCARGOS COMPLEMENTARES | C13: h | D13: 0.0718 | E13: =+Insumos!$G$38 -> 16.92 | F13: =TRUNC(D13*E13,2) -> 1.21
A14: SINAPI C 88441 | B14: JARDINEIRO C/ENCARGOS COMPLEMENTARES | C14: h | D14: 0.0718 | E14: =+Insumos!$G$27 -> 16.97 | F14: =TRUNC(D14*E14,2) -> 1.21
A15: SUB-TOTAL - MÃO-DE-OBRA: | C15: =SUM(F13:F14) -> 2.42
B17: CUSTO TOTAL: | F17: =C15 -> 2.42
B19: BDI: | C19: % | D19: =+$F$7 -> 28,21% | F19: =TRUNC(F17*D19,2) -> 0.68
B21: PREÇO: | F21: =+F17+F19 -> 3.1
A23: CÓDIGO | B23: DISCRIMINAÇÃO | C23: UN | D23: COEFIC. | E23: UNITÁRIO | F23: TOTAL
A24: 20 | B24: DEMOLIÇÃO DE CONCRETO ARMADO C/MARTELETE C/REMOÇÃO DE ENTULHO | C24: m³
A25: =CONCATENATE("SINAPI C ",'Composições Aux. SINAPI'!$A$63,) -> SINAPI C 5795 | B25: MARTELETE OU ROMPEDOR PNEUMÁTICO MANUAL, 28 KG, COM SILENCIADOR (chp) | C25: chp | D25: 3.2468 | E25: =+'Composições Aux. SINAPI'!$E$63:$F$63 -> 25.6 | F25: =TRUNC(D25*E25,2) -> 83.11
A26: =CONCATENATE("SINAPI C ",'Composições Aux. SINAPI'!$A$64,) -> SINAPI C 5952 | B26: MARTELETE OU ROMPEDOR PNEUMÁTICO MANUAL, 28 KG, COM SILENCIADOR (chi) | C26: chi | D26: 0.9202 | E26: =+'Composições Aux. SINAPI'!$E$64:$F$64 -> 23.43 | F26: =TRUNC(D26*E26,2) -> 21.56
A27: =CONCATENATE("SINAPI C ",'Composições Aux. SINAPI'!$A$31,) -> SINAPI C 5953 | B27: COMPRESSOR DE AR REBOCÁVEL, VAZÃO 189 PCM, MOTOR DIESEL, POTÊNCIA 63 CV (chp) | C27: chp | D27: 3.2468 | E27: =+'Composições Aux. SINAPI'!$E$31:$F$31 -> 51.7 | F27: =TRUNC(D27*E27,2) -> 167.85
A28: =CONCATENATE("SINAPI C ",'Composições Aux. SINAPI'!$A$32,) -> SINAPI C 5954 | B28: COMPRESSOR DE AR REBOCÁVEL, VAZÃO 189 PCM, MOTOR DIESEL, POTÊNCIA 63 CV (chi) | C28: chi | D28: 0.9202 | E28: =+'Composições Aux. SINAPI'!$E$32:$F$32 -> 4.39 | F28: =TRUNC(D28*E28,2) -> 4.03
A29: =CONCATENATE("COTAÇÃO ",Insumos!$B$135) -> COTAÇÃO 114 | B29: CAÇAMBA 4,00 m³ | C29: un | D29: 0.325 | E29: =+Insumos!$G$135 -> 493.97 | F29: =TRUNC(D29*E29,2) -> 160.54
A30: SUB-TOTAL - MATERIAL / EQUIPAMENTOS: | C30: =SUM(F25:F29) -> 437.09
A31: =CONCATENATE("SINAPI C ",Insumos!$B$35) -> SINAPI C 88309 | B31: PEDREIRO C/ENCARGOS COMPLEMENTARES | C31: h | D31: 0.6366 | E31: =+Insumos!$G$35 -> 20.34 | F31: =TRUNC(D31*E31,2) -> 12.94
A32: =CONCATENATE("SINAPI C ",Insumos!$B$38) -> SINAPI C 88316 | B32: SERVENTE C/ ENCARGOS COMPLEMENTARES | C32: h | D32: 6.5785 | E32: =+Insumos!$G$38 -> 16.92 | F32: =TRUNC(D32*E32,2) -> 111.3
A33: SUB-TOTAL - MÃO-DE-OBRA: | C33: =SUM(F31:F32) -> 124.24
B35: CUSTO TOTAL: | F35: =+C30+C33 -> 561.33
B37: BDI: | C37: % | D37: =+$F$7 -> 28,21% | F37: =TRUNC(F35*D37,2) -> 158.35
B39: PREÇO: | F39: =+F35+F37 -> 719.68
A41: CÓDIGO | B41: DISCRIMINAÇÃO | C41: UN | D41: COEFIC. | E41: UNITÁRIO | F41: TOTAL
A42: 21 | B42: DEMOLIÇÃO PISO CONC. ARMADO C/MARTELETE ESP. = 8 cm C/REM. DE ENTULHO | C42: m²
A43: =CONCATENATE("SINAPI C ",'Composições Aux. SINAPI'!$A$63,) -> SINAPI C 5795 | B43: MARTELETE OU ROMPEDOR PNEUMÁTICO MANUAL, 28 KG, COM SILENCIADOR (chp) | C43: chp | D43: 0.2597 | E43: =+'Composições Aux. SINAPI'!$E$63:$F$63 -> 25.6 | F43: =TRUNC(D43*E43,2) -> 6.64
A44: =CONCATENATE("SINAPI C ",'Composições Aux. SINAPI'!$A$64,) -> SINAPI C 5952 | B44: MARTELETE OU ROMPEDOR PNEUMÁTICO MANUAL, 28 KG, COM SILENCIADOR (chi) | C44: chi | D44: 0.0736 | E44: =+'Composições Aux. SINAPI'!$E$64:$F$64 -> 23.43 | F44: =TRUNC(D44*E44,2) -> 1.72
A45: =CONCATENATE("SINAPI C ",'Composições Aux. SINAPI'!$A$31,) -> SINAPI C 5953 | B45: COMPRESSOR DE AR REBOCÁVEL, VAZÃO 189 PCM, MOTOR DIESEL, POTÊNCIA 63 CV (chp) | C45: chp | D45: 0.2597 | E45: =+'Composições Aux. SINAPI'!$E$31:$F$31 -> 51.7 | F45: =TRUNC(D45*E45,2) -> 13.42
A46: =CONCATENATE("SINAPI C ",'Composições Aux. SINAPI'!$A$32,) -> SINAPI C 5954 | B46: COMPRESSOR DE AR REBOCÁVEL, VAZÃO 189 PCM, MOTOR DIESEL, POTÊNCIA 63 CV (chi) | C46: chi | D46: 0.0736 | E46: =+'Composições Aux. SINAPI'!$E$32:$F$32 -> 4.39 | F46: =TRUNC(D46*E46,2) -> 0.32
A47: =CONCATENATE("COTAÇÃO ",Insumos!$B$135) -> COTAÇÃO 114 | B47: CAÇAMBA 4,00 m³ | C47: un | D47: 0.026 | E47: =+Insumos!$G$135 -> 493.97 | F47: =TRUNC(D47*E47,2) -> 12.84
A48: SUB-TOTAL - MATERIAL / EQUIPAMENTOS: | C48: =SUM(F43:F47) -> 34.94
A49: =CONCATENATE("SINAPI C ",Insumos!$B$35) -> SINAPI C 88309 | B49: PEDREIRO C/ENCARGOS COMPLEMENTARES | C49: h | D49: 0.0509 | E49: =+Insumos!$G$35 -> 20.34 | F49: =TRUNC(D49*E49,2) -> 1.03
A50: =CONCATENATE("SINAPI C ",Insumos!$B$38) -> SINAPI C 88316 | B50: SERVENTE C/ ENCARGOS COMPLEMENTARES | C50: h | D50: 0.5263 | E50: =+Insumos!$G$38 -> 16.92 | F50: =TRUNC(D50*E50,2) -> 8.9
A51: SUB-TOTAL - MÃO-DE-OBRA: | C51: =SUM(F49:F50) -> 9.93
B53: CUSTO TOTAL: | F53: =+C48+C51 -> 44.87
B55: BDI: | C55: % | D55: =+$F$7 -> 28,21% | F55: =TRUNC(F53*D55,2) -> 12.65
B57: PREÇO: | F57: =+F53+F55 -> 57.52
A59: CÓDIGO | B59: DISCRIMINAÇÃO | C59: UN | D59: QUANT. | E59: UNITÁRIO | F59: TOTAL
A60: 25 | B60: REMOÇÃO DE PASSEIOS | C60: m²
A61: SINAPI C 88260 | B61: CALCETEIRO C/ENCARGOS COMPLEMENTARES | C61: h | D61: 0.3214 | E61: =+Insumos!$G$20 -> 17.98 | F61: =TRUNC(D61*E61,2) -> 5.77
A62: =CONCATENATE("SINAPI C ",Insumos!$B$38) -> SINAPI C 88316 | B62: SERVENTE C/ ENCARGOS COMPLEMENTARES | C62: h | D62: 0.1107 | E62: =+Insumos!$G$38 -> 16.92 | F62: =TRUNC(D62*E62,2) -> 1.87
A63: SUB-TOTAL - MÃO-DE-OBRA: | C63: =SUM(F61:F62) -> 7.64
B65: CUSTO TOTAL: | F65: =+C63 -> 7.64
B67: BDI: | C67: % | D67: =+$F$7 -> 28,21% | F67: =TRUNC(F65*D67,2) -> 2.15
B69: PREÇO: | F69: =+F65+F67 -> 9.79
A71: CÓDIGO | B71: DISCRIMINAÇÃO | C71: UN | D71: COEFIC. | E71: UNITÁRIO | F71: TOTAL
A72: 50 | B72: DEMOLIÇÃO TELAMENTO H=5,50 m S/TUBOS E S/VIGA C/REMOÇÃO DE ENTULHO | C72: m
A73: =CONCATENATE("SINAPI I ",Insumos!$B$79) -> SINAPI I 10527 | B73: ANDAIME METÁLICO, TIPO TORRE, LARGURA DE 1 A 1,5 m E ALTURA DE 1 m LOCAÇÃO | C73: mxmês | D73: 0.0624 | E73: =+Insumos!$G$79 -> 25 | F73: =TRUNC(D73*E73,2) -> 1.56
A74: =CONCATENATE("SINAPI I ",Insumos!$B$322) -> SINAPI I 6189 | B74: TÁBUA MADEIRA NÃO APARELHADA CEDRINHO 2,5 x 30 cm | C74: m | D74: 0.0229 | E74: =+Insumos!$G$322 -> 16.39 | F74: =TRUNC(D74*E74,2) -> 0.37
A75: =CONCATENATE("SINAPI C ",'Composições Aux. SINAPI'!$A$65) -> SINAPI C 97064 | B75: MONTAGEM E DESMONTAGEM DE ANDAIME TUBULAR TIPO TORRE | C75: m | D75: 0.0624 | E75: =+'Composições Aux. SINAPI'!$E$65:$F$65 -> 15.61 | F75: =TRUNC(D75*E75,2) -> 0.97
A76: =CONCATENATE("COTAÇÃO ",Insumos!$B$135) -> COTAÇÃO 114 | B76: CAÇAMBA 4,00 m³ | C76: un | D76: 0.005 | E76: =+Insumos!$G$135 -> 493.97 | F76: =TRUNC(D76*E76,2) -> 2.46
A77: SUB-TOTAL - MATERIAL / EQUIPAMENTOS: | C77: =SUM(F73:F76) -> 5.36
A78: =CONCATENATE("SINAPI C ",Insumos!$B$35) -> SINAPI C 88309 | B78: PEDREIRO C/ENCARGOS COMPLEMENTARES | C78: h | D78: 0.3262 | E78: =+Insumos!$G$35 -> 20.34 | F78: =TRUNC(D78*E78,2) -> 6.63
A79: =CONCATENATE("SINAPI C ",Insumos!$B$38) -> SINAPI C 88316 | B79: SERVENTE C/ ENCARGOS COMPLEMENTARES | C79: h | D79: 0.6544 | E79: =+Insumos!$G$38 -> 16.92 | F79: =TRUNC(D79*E79,2) -> 11.07
A80: SUB-TOTAL - MÃO-DE-OBRA: | C80: =SUM(F78:F79) -> 17.7
B82: CUSTO TOTAL: | F82: =+C77+C80 -> 23.06
B84: BDI: | C84: % | D84: =+$F$7 -> 28,21% | F84: =TRUNC(F82*D84,2) -> 6.5
B86: PREÇO: | F86: =+F82+F84 -> 29.56
A88: CÓDIGO | B88: DISCRIMINAÇÃO | C88: UN | D88: COEFIC. | E88: UNITÁRIO | F88: TOTAL
A89: 55 | B89: DEMOLIÇÃO TELAMENTO H=3,00 m S/TUBOS E S/VIGA C/REMOÇÃO DE ENTULHO | C89: m
A90: =CONCATENATE("SINAPI I ",Insumos!$B$79) -> SINAPI I 10527 | B90: ANDAIME METÁLICO, TIPO TORRE, LARGURA DE 1 A 1,5 m E ALTURA DE 1 m LOCAÇÃO | C90: mxmês | D90: 0.0416 | E90: =+Insumos!$G$79 -> 25 | F90: =TRUNC(D90*E90,2) -> 1.04
A91: =CONCATENATE("SINAPI I ",Insumos!$B$322) -> SINAPI I 6189 | B91: TÁBUA MADEIRA NÃO APARELHADA CEDRINHO 2,5 x 30 cm | C91: m | D91: 0.0229 | E91: =+Insumos!$G$322 -> 16.39 | F91: =TRUNC(D91*E91,2) -> 0.37
A92: =CONCATENATE("SINAPI C ",'Composições Aux. SINAPI'!$A$65) -> SINAPI C 97064 | B92: MONTAGEM E DESMONTAGEM DE ANDAIME TUBULAR TIPO TORRE | C92: m | D92: 0.0416 | E92: =+'Composições Aux. SINAPI'!$E$65:$F$65 -> 15.61 | F92: =TRUNC(D92*E92,2) -> 0.64
A93: =CONCATENATE("COTAÇÃO ",Insumos!$B$135) -> COTAÇÃO 114 | B93: CAÇAMBA 4,00 m³ | C93: un | D93: 0.0027 | E93: =+Insumos!$G$135 -> 493.97 | F93: =TRUNC(D93*E93,2) -> 1.33
A94: SUB-TOTAL - MATERIAL / EQUIPAMENTOS: | C94: =SUM(F90:F93) -> 3.38
A95: =CONCATENATE("SINAPI C ",Insumos!$B$35) -> SINAPI C 88309 | B95: PEDREIRO C/ENCARGOS COMPLEMENTARES | C95: h | D95: 0.1779 | E95: =+Insumos!$G$35 -> 20.34 | F95: =TRUNC(D95*E95,2) -> 3.61
A96: =CONCATENATE("SINAPI C ",Insumos!$B$38) -> SINAPI C 88316 | B96: SERVENTE C/ ENCARGOS COMPLEMENTARES | C96: h | D96: 0.357 | E96: =+Insumos!$G$38 -> 16.92 | F96: =TRUNC(D96*E96,2) -> 6.04
A97: SUB-TOTAL - MÃO-DE-OBRA: | C97: =SUM(F95:F96) -> 9.65
B99: CUSTO TOTAL: | F99: =+C94+C97 -> 13.03
B101: BDI: | C101: % | D101: =+$F$7 -> 28,21% | F101: =TRUNC(F99*D101,2) -> 3.67
B103: PREÇO: | F103: =+F99+F101 -> 16.7
A105: CÓDIGO | B105: DISCRIMINAÇÃO | C105: UN | D105: COEFIC. | E105: UNITÁRIO | F105: TOTAL
A106: 57 | B106: DEMOLIÇÃO TELAMENTO H=1,00 m C/REMOÇÃO DE ENTULHO | C106: m
A107: =CONCATENATE("COTAÇÃO ",Insumos!$B$135) -> COTAÇÃO 114 | B107: CAÇAMBA 4,00 m³ | C107: un | D107: 0.0011 | E107: =+Insumos!$G$135 -> 493.97 | F107: =TRUNC(D107*E107,2) -> 0.54
A108: SUB-TOTAL - MATERIAL / EQUIPAMENTOS: | C108: =SUM(F107) -> 0.54
A109: =CONCATENATE("SINAPI C ",Insumos!$B$35) -> SINAPI C 88309 | B109: PEDREIRO C/ENCARGOS COMPLEMENTARES | C109: h | D109: 0.0593 | E109: =+Insumos!$G$35 -> 20.34 | F109: =TRUNC(D109*E109,2) -> 1.2
A110: =CONCATENATE("SINAPI C ",Insumos!$B$38) -> SINAPI C 88316 | B110: SERVENTE C/ ENCARGOS COMPLEMENTARES | C110: h | D110: 0.1195 | E110: =+Insumos!$G$38 -> 16.92 | F110: =TRUNC(D110*E110,2) -> 2.02
A111: SUB-TOTAL - MÃO-DE-OBRA: | C111: =SUM(F109:F110) -> 3.22
B113: CUSTO TOTAL: | F113: =+C108+C111 -> 3.76
B115: BDI: | C115: % | D115: =+$F$7 -> 28,21% | F115: =TRUNC(F113*D115,2) -> 1.06
B117: PREÇO: | F117: =+F113+F115 -> 4.82
A119: CÓDIGO | B119: DISCRIMINAÇÃO | C119: UN | D119: COEFIC. | E119: UNITÁRIO | F119: TOTAL
A120: 60 | B120: DEMOLIÇÃO TUBOS TELAMENTO H=5,50 m C/REMOÇÃO DE ENTULHO | C120: m
A121: =CONCATENATE("SINAPI C ",'Composições Aux. SINAPI'!$A$63,) -> SINAPI C 5795 | B121: MARTELETE OU ROMPEDOR PNEUMÁTICO MANUAL, 28 KG, COM SILENCIADOR (chp) | C121: chp | D121: 0.092 | E121: =+'Composições Aux. SINAPI'!$E$63:$F$63 -> 25.6 | F121: =TRUNC(D121*E121,2) -> 2.35
A122: =CONCATENATE("SINAPI C ",'Composições Aux. SINAPI'!$A$64,) -> SINAPI C 5952 | B122: MARTELETE OU ROMPEDOR PNEUMÁTICO MANUAL, 28 KG, COM SILENCIADOR (chi) | C122: chi | D122: 0.0261 | E122: =+'Composições Aux. SINAPI'!$E$64:$F$64 -> 23.43 | F122: 0.61
A123: =CONCATENATE("SINAPI C ",'Composições Aux. SINAPI'!$A$31,) -> SINAPI C 5953 | B123: COMPRESSOR DE AR REBOCÁVEL, VAZÃO 189 PCM, MOTOR DIESEL, POTÊNCIA 63 CV (chp) | C123: chp | D123: 0.062 | E123: =+'Composições Aux. SINAPI'!$E$31:$F$31 -> 51.7 | F123: 3.2
A124: =CONCATENATE("SINAPI C ",'Composições Aux. SINAPI'!$A$32,) -> SINAPI C 5954 | B124: COMPRESSOR DE AR REBOCÁVEL, VAZÃO 189 PCM, MOTOR DIESEL, POTÊNCIA 63 CV (chi) | C124: chi | D124: 0.0261 | E124: =+'Composições Aux. SINAPI'!$E$32:$F$32 -> 4.39 | F124: 0.11
A125: =CONCATENATE("COTAÇÃO ",Insumos!$B$135) -> COTAÇÃO 114 | B125: CAÇAMBA 4,00 m³ | C125: un | D125: 0.0133 | E125: =+Insumos!$G$135 -> 493.97 | F125: 6.56
A126: =CONCATENATE("SINAPI I ",Insumos!$B$79) -> SINAPI I 10527 | B126: ANDAIME METÁLICO, TIPO TORRE, LARGURA DE 1 A 1,5 m E ALTURA DE 1 m LOCAÇÃO | C126: mxmês | D126: 0.0624 | E126: =+Insumos!$G$79 -> 25 | F126: 1.56
A127: =CONCATENATE("SINAPI I ",Insumos!$B$322) -> SINAPI I 6189 | B127: TÁBUA MADEIRA NÃO APARELHADA CEDRINHO 2,5 x 30 cm | C127: m | D127: 0.0229 | E127: =+Insumos!$G$322 -> 16.39 | F127: 0.37
A128: =CONCATENATE("SINAPI C ",'Composições Aux. SINAPI'!$A$65) -> SINAPI C 97064 | B128: MONTAGEM E DESMONTAGEM DE ANDAIME TUBULAR TIPO TORRE | C128: m | D128: 0.0624 | E128: =+'Composições Aux. SINAPI'!$E$65:$F$65 -> 15.61 | F128: 0.97
A129: =CONCATENATE("SINAPI I ",Insumos!$B$90) -> SINAPI I 6081 | B129: ARGILA OU BARRO PARA ATERRO OU REATERRO | C129: m³ | D129: 0.0354 | E129: =+Insumos!$G$90 -> 47.52 | F129: 1.68
A130: SUB-TOTAL - MATERIAL / EQUIPAMENTOS: | C130: =SUM(F121:F129) -> 17.41
A131: =CONCATENATE("SINAPI C ",Insumos!$B$35) -> SINAPI C 88309 | B131: PEDREIRO C/ENCARGOS COMPLEMENTARES | C131: h | D131: 0.2789 | E131: =+Insumos!$G$35 -> 20.34 | F131: =TRUNC(D131*E131,2) -> 5.67
A132: =CONCATENATE("SINAPI C ",Insumos!$B$38) -> SINAPI C 88316 | B132: SERVENTE C/ ENCARGOS COMPLEMENTARES | C132: h | D132: 0.7782 | E132: =+Insumos!$G$38 -> 16.92 | F132: =TRUNC(D132*E132,2) -> 13.16
A133: SUB-TOTAL - MÃO-DE-OBRA: | C133: =SUM(F131:F132) -> 18.83
B135: CUSTO TOTAL: | F135: =+C130+C133 -> 36.24
B137: BDI: | C137: % | D137: =+$F$7 -> 28,21% | F137: =TRUNC(F135*D137,2) -> 10.22
B139: PREÇO: | F139: =+F135+F137 -> 46.46
A141: CÓDIGO | B141: DISCRIMINAÇÃO | C141: UN | D141: COEFIC. | E141: UNITÁRIO | F141: TOTAL
A142: 65 | B142: DEMOLIÇÃO TUBOS TELAMENTO H=3,00 m C/REMOÇÃO DE ENTULHO | C142: m
A143: =CONCATENATE("SINAPI C ",'Composições Aux. SINAPI'!$A$63,) -> SINAPI C 5795 | B143: MARTELETE OU ROMPEDOR PNEUMÁTICO MANUAL, 28 KG, COM SILENCIADOR (chp) | C143: chp | D143: 0.092 | E143: =+'Composições Aux. SINAPI'!$E$63:$F$63 -> 25.6 | F143: =TRUNC(D143*E143,2) -> 2.35
A144: =CONCATENATE("SINAPI C ",'Composições Aux. SINAPI'!$A$64,) -> SINAPI C 5952 | B144: MARTELETE OU ROMPEDOR PNEUMÁTICO MANUAL, 28 KG, COM SILENCIADOR (chi) | C144: chi | D144: 0.0261 | E144: =+'Composições Aux. SINAPI'!$E$64:$F$64 -> 23.43 | F144: 0.61
A145: =CONCATENATE("SINAPI C ",'Composições Aux. SINAPI'!$A$31,) -> SINAPI C 5953 | B145: COMPRESSOR DE AR REBOCÁVEL, VAZÃO 189 PCM, MOTOR DIESEL, POTÊNCIA 63 CV (chp) | C145: chp | D145: 0.092 | E145: =+'Composições Aux. SINAPI'!$E$31:$F$31 -> 51.7 | F145: 4.75
A146: =CONCATENATE("SINAPI C ",'Composições Aux. SINAPI'!$A$32,) -> SINAPI C 5954 | B146: COMPRESSOR DE AR REBOCÁVEL, VAZÃO 189 PCM, MOTOR DIESEL, POTÊNCIA 63 CV (chi) | C146: chi | D146: 0.0261 | E146: =+'Composições Aux. SINAPI'!$E$32:$F$32 -> 4.39 | F146: 0.11
A147: =CONCATENATE("COTAÇÃO ",Insumos!$B$135) -> COTAÇÃO 114 | B147: CAÇAMBA 4,00 m³ | C147: un | D147: 0.0116 | E147: =+Insumos!$G$135 -> 493.97 | F147: 5.73
A148: =CONCATENATE("SINAPI I ",Insumos!$B$79) -> SINAPI I 10527 | B148: ANDAIME METÁLICO, TIPO TORRE, LARGURA DE 1 A 1,5 m E ALTURA DE 1 m LOCAÇÃO | C148: mxmês | D148: 0.0416 | E148: =+Insumos!$G$79 -> 25 | F148: 1.04
A149: =CONCATENATE("SINAPI I ",Insumos!$B$322) -> SINAPI I 6189 | B149: TÁBUA MADEIRA NÃO APARELHADA CEDRINHO 2,5 x 30 cm | C149: m | D149: 0.0229 | E149: =+Insumos!$G$322 -> 16.39 | F149: 0.37
A150: =CONCATENATE("SINAPI C ",'Composições Aux. SINAPI'!$A$65) -> SINAPI C 97064 | B150: MONTAGEM E DESMONTAGEM DE ANDAIME TUBULAR TIPO TORRE | C150: m | D150: 0.0416 | E150: =+'Composições Aux. SINAPI'!$E$65:$F$65 -> 15.61 | F150: 0.64
A151: =CONCATENATE("SINAPI I ",Insumos!$B$90) -> SINAPI I 6081 | B151: ARGILA OU BARRO PARA ATERRO OU REATERRO | C151: m³ | D151: 0.0354 | E151: =+Insumos!$G$90 -> 47.52 | F151: 1.68
A152: SUB-TOTAL - MATERIAL / EQUIPAMENTOS: | C152: =SUM(F143:F151) -> 17.28
A153: =CONCATENATE("SINAPI C ",Insumos!$B$35) -> SINAPI C 88309 | B153: PEDREIRO C/ENCARGOS COMPLEMENTARES | C153: h | D153: 0.1603 | E153: =+Insumos!$G$35 -> 20.34 | F153: =TRUNC(D153*E153,2) -> 3.26
A154: =CONCATENATE("SINAPI C ",Insumos!$B$38) -> SINAPI C 88316 | B154: SERVENTE C/ ENCARGOS COMPLEMENTARES | C154: h | D154: 0.5406 | E154: =+Insumos!$G$38 -> 16.92 | F154: =TRUNC(D154*E154,2) -> 9.14
A155: SUB-TOTAL - MÃO-DE-OBRA: | C155: =SUM(F153:F154) -> 12.4
B157: CUSTO TOTAL: | F157: =+C152+C155 -> 29.68
B159: BDI: | C159: % | D159: =+$F$7 -> 28,21% | F159: =TRUNC(F157*D159,2) -> 8.37
B161: PREÇO: | F161: =+F157+F159 -> 38.05
A163: CÓDIGO | B163: DISCRIMINAÇÃO | C163: UN | D163: COEFIC. | E163: UNITÁRIO | F163: TOTAL
A164: 70 | B164: DEMOLIÇÃO VIGA TELAMENTO C/REMOÇÃO DE ENTULHO | C164: m
A165: =CONCATENATE("SINAPI C ",'Composições Aux. SINAPI'!$A$63,) -> SINAPI C 5795 | B165: MARTELETE OU ROMPEDOR PNEUMÁTICO MANUAL, 28 KG, COM SILENCIADOR (chp) | C165: chp | D165: 0.0974 | E165: =+'Composições Aux. SINAPI'!$E$63:$F$63 -> 25.6 | F165: =TRUNC(D165*E165,2) -> 2.49
A166: =CONCATENATE("SINAPI C ",'Composições Aux. SINAPI'!$A$64,) -> SINAPI C 5952 | B166: MARTELETE OU ROMPEDOR PNEUMÁTICO MANUAL, 28 KG, COM SILENCIADOR (chi) | C166: chi | D166: 0.0276 | E166: =+'Composições Aux. SINAPI'!$E$64:$F$64 -> 23.43 | F166: 0.64
A167: =CONCATENATE("SINAPI C ",'Composições Aux. SINAPI'!$A$31,) -> SINAPI C 5953 | B167: COMPRESSOR DE AR REBOCÁVEL, VAZÃO 189 PCM, MOTOR DIESEL, POTÊNCIA 63 CV (chp) | C167: chp | D167: 0.0974 | E167: =+'Composições Aux. SINAPI'!$E$31:$F$31 -> 51.7 | F167: 5.03
A168: =CONCATENATE("SINAPI C ",'Composições Aux. SINAPI'!$A$32,) -> SINAPI C 5954 | B168: COMPRESSOR DE AR REBOCÁVEL, VAZÃO 189 PCM, MOTOR DIESEL, POTÊNCIA 63 CV (chi) | C168: chi | D168: 0.0276 | E168: =+'Composições Aux. SINAPI'!$E$32:$F$32 -> 4.39 | F168: 0.12
A169: =CONCATENATE("COTAÇÃO ",Insumos!$B$135) -> COTAÇÃO 114 | B169: CAÇAMBA 4,00 m³ | C169: un | D169: 0.0098 | E169: =+Insumos!$G$135 -> 493.97 | F169: 4.84
A170: =CONCATENATE("SINAPI I ",Insumos!$B$90) -> SINAPI I 6081 | B170: ARGILA OU BARRO PARA ATERRO OU REATERRO | C170: m³ | D170: 0.0281 | E170: =+Insumos!$G$90 -> 47.52 | F170: 1.33
A171: SUB-TOTAL - MATERIAL / EQUIPAMENTOS: | C171: =SUM(F165:F170) -> 14.45
A172: =CONCATENATE("SINAPI C ",Insumos!$B$35) -> SINAPI C 88309 | B172: PEDREIRO C/ENCARGOS COMPLEMENTARES | C172: h | D172: 0.0191 | E172: =+Insumos!$G$35 -> 20.34 | F172: =TRUNC(D172*E172,2) -> 0.38
A173: =CONCATENATE("SINAPI C ",Insumos!$B$38) -> SINAPI C 88316 | B173: SERVENTE C/ ENCARGOS COMPLEMENTARES | C173: h | D173: 0.2514 | E173: =+Insumos!$G$38 -> 16.92 | F173: =TRUNC(D173*E173,2) -> 4.25
A174: SUB-TOTAL - MÃO-DE-OBRA: | C174: =SUM(F172:F173) -> 4.63
B176: CUSTO TOTAL: | F176: =+C171+C174 -> 19.08
B178: BDI: | C178: % | D178: =+$F$7 -> 28,21% | F178: =TRUNC(F176*D178,2) -> 5.38
B180: PREÇO: | F180: =+F176+F178 -> 24.46
A182: CÓDIGO | B182: DISCRIMINAÇÃO | C182: UN | D182: COEFIC. | E182: UNITÁRIO | F182: TOTAL
A183: 90 | B183: REMOÇÃO MEIO-FIO VIÁRIO C/REMOÇÃO DE ENTULHO | C183: m
A184: =CONCATENATE("COTAÇÃO ",Insumos!$B$135) -> COTAÇÃO 114 | B184: CAÇAMBA 4,00 m³ | C184: un | D184: 0.0123 | E184: =+Insumos!$G$135 -> 493.97 | F184: =TRUNC(D184*E184,2) -> 6.07
A185: SUB-TOTAL - MATERIAL / EQUIPAMENTOS: | C185: =SUM(F184:F184) -> 6.07
A186: =CONCATENATE("SINAPI C ",Insumos!$B$38) -> SINAPI C 88316 | B186: SERVENTE C/ ENCARGOS COMPLEMENTARES | C186: h | D186: 1.0344 | E186: =+Insumos!$G$38 -> 16.92 | F186: =TRUNC(D186*E186,2) -> 17.5
A187: SUB-TOTAL - MÃO-DE-OBRA: | C187: =SUM(F186:F186) -> 17.5
B189: CUSTO TOTAL: | F189: =+C185+C187 -> 23.57
B191: BDI: | C191: % | D191: =+$F$7 -> 28,21% | F191: =TRUNC(F189*D191,2) -> 6.64
B193: PREÇO: | F193: =+F189+F191 -> 30.21
A195: CÓDIGO | B195: DISCRIMINAÇÃO | C195: UN | D195: COEFIC. | E195: UNITÁRIO | F195: TOTAL
A196: 100 | B196: REMOÇÃO BANCO C/ENCOSTO | C196: un
A197: =CONCATENATE("SINAPI C ",'Composições Aux. SINAPI'!$A$63,) -> SINAPI C 5795 | B197: MARTELETE OU ROMPEDOR PNEUMÁTICO MANUAL, 28 KG, COM SILENCIADOR (chp) | C197: chp | D197: 0.4675 | E197: =+'Composições Aux. SINAPI'!$E$63:$F$63 -> 25.6 | F197: =TRUNC(D197*E197,2) -> 11.96
A198: =CONCATENATE("SINAPI C ",'Composições Aux. SINAPI'!$A$64,) -> SINAPI C 5952 | B198: MARTELETE OU ROMPEDOR PNEUMÁTICO MANUAL, 28 KG, COM SILENCIADOR (chi) | C198: chi | D198: 0.1325 | E198: =+'Composições Aux. SINAPI'!$E$64:$F$64 -> 23.43 | F198: 3.1
A199: =CONCATENATE("SINAPI C ",'Composições Aux. SINAPI'!$A$31,) -> SINAPI C 5953 | B199: COMPRESSOR DE AR REBOCÁVEL, VAZÃO 189 PCM, MOTOR DIESEL, POTÊNCIA 63 CV (chp) | C199: chp | D199: 0.4675 | E199: =+'Composições Aux. SINAPI'!$E$31:$F$31 -> 51.7 | F199: 24.16
A200: =CONCATENATE("SINAPI C ",'Composições Aux. SINAPI'!$A$32,) -> SINAPI C 5954 | B200: COMPRESSOR DE AR REBOCÁVEL, VAZÃO 189 PCM, MOTOR DIESEL, POTÊNCIA 63 CV (chi) | C200: chi | D200: 0.1325 | E200: =+'Composições Aux. SINAPI'!$E$32:$F$32 -> 4.39 | F200: 0.58
A201: =CONCATENATE("COTAÇÃO ",Insumos!$B$135) -> COTAÇÃO 114 | B201: CAÇAMBA 4,00 m³ | C201: un | D201: 0.0468 | E201: =+Insumos!$G$135 -> 493.97 | F201: 23.11
A202: =CONCATENATE("SINAPI I ",Insumos!$B$90) -> SINAPI I 6081 | B202: ARGILA OU BARRO PARA ATERRO OU REATERRO | C202: m³ | D202: 0.18 | E202: =+Insumos!$G$90 -> 47.52 | F202: 8.55
A203: SUB-TOTAL - MATERIAL / EQUIPAMENTOS: | C203: =SUM(F197:F202) -> 71.46
A204: =CONCATENATE("SINAPI C ",Insumos!$B$35) -> SINAPI C 88309 | B204: PEDREIRO C/ENCARGOS COMPLEMENTARES | C204: h | D204: 0.0917 | E204: =+Insumos!$G$35 -> 20.34 | F204: =TRUNC(D204*E204,2) -> 1.86
A205: =CONCATENATE("SINAPI C ",Insumos!$B$38) -> SINAPI C 88316 | B205: SERVENTE C/ ENCARGOS COMPLEMENTARES | C205: h | D205: 2.7927 | E205: =+Insumos!$G$38 -> 16.92 | F205: =TRUNC(D205*E205,2) -> 47.25
A206: SUB-TOTAL - MÃO-DE-OBRA: | C206: =SUM(F204:F205) -> 49.11
B208: CUSTO TOTAL: | F208: =+C203+C206 -> 120.57
B210: BDI: | C210: % | D210: =+$F$7 -> 28,21% | F210: =TRUNC(F208*D210,2) -> 34.01
B212: PREÇO: | F212: =+F208+F210 -> 154.58
A214: CÓDIGO | B214: DISCRIMINAÇÃO | C214: UN | D214: COEFIC. | E214: UNITÁRIO | F214: TOTAL
A215: 101 | B215: REMOÇÃO BANCO S/ENCOSTO | C215: un
A216: =CONCATENATE("SINAPI C ",'Composições Aux. SINAPI'!$A$63,) -> SINAPI C 5795 | B216: MARTELETE OU ROMPEDOR PNEUMÁTICO MANUAL, 28 KG, COM SILENCIADOR (chp) | C216: chp | D216: 0.2338 | E216: =+'Composições Aux. SINAPI'!$E$63:$F$63 -> 25.6 | F216: =TRUNC(D216*E216,2) -> 5.98
A217: =CONCATENATE("SINAPI C ",'Composições Aux. SINAPI'!$A$64,) -> SINAPI C 5952 | B217: MARTELETE OU ROMPEDOR PNEUMÁTICO MANUAL, 28 KG, COM SILENCIADOR (chi) | C217: chi | D217: 0.0663 | E217: =+'Composições Aux. SINAPI'!$E$64:$F$64 -> 23.43 | F217: 1.55
A218: =CONCATENATE("SINAPI C ",'Composições Aux. SINAPI'!$A$31,) -> SINAPI C 5953 | B218: COMPRESSOR DE AR REBOCÁVEL, VAZÃO 189 PCM, MOTOR DIESEL, POTÊNCIA 63 CV (chp) | C218: chp | D218: 0.2338 | E218: =+'Composições Aux. SINAPI'!$E$31:$F$31 -> 51.7 | F218: 12.08
A219: =CONCATENATE("SINAPI C ",'Composições Aux. SINAPI'!$A$32,) -> SINAPI C 5954 | B219: COMPRESSOR DE AR REBOCÁVEL, VAZÃO 189 PCM, MOTOR DIESEL, POTÊNCIA 63 CV (chi) | C219: chi | D219: 0.0663 | E219: =+'Composições Aux. SINAPI'!$E$32:$F$32 -> 4.39 | F219: 0.29
A220: =CONCATENATE("COTAÇÃO ",Insumos!$B$135) -> COTAÇÃO 114 | B220: CAÇAMBA 4,00 m³ | C220: un | D220: 0.0234 | E220: =+Insumos!$G$135 -> 493.97 | F220: 11.55
A221: =CONCATENATE("SINAPI I ",Insumos!$B$90) -> SINAPI I 6081 | B221: ARGILA OU BARRO PARA ATERRO OU REATERRO | C221: m³ | D221: 0.09 | E221: =+Insumos!$G$90 -> 47.52 | F221: 4.27
A222: SUB-TOTAL - MATERIAL / EQUIPAMENTOS: | C222: =SUM(F216:F221) -> 35.72
A223: =CONCATENATE("SINAPI C ",Insumos!$B$35) -> SINAPI C 88309 | B223: PEDREIRO C/ENCARGOS COMPLEMENTARES | C223: h | D223: 0.0458 | E223: =+Insumos!$G$35 -> 20.34 | F223: =TRUNC(D223*E223,2) -> 0.93
A224: =CONCATENATE("SINAPI C ",Insumos!$B$38) -> SINAPI C 88316 | B224: SERVENTE C/ ENCARGOS COMPLEMENTARES | C224: h | D224: 1.8964 | E224: =+Insumos!$G$38 -> 16.92 | F224: =TRUNC(D224*E224,2) -> 32.08
A225: SUB-TOTAL - MÃO-DE-OBRA: | C225: =SUM(F223:F224) -> 33.01
B227: CUSTO TOTAL: | F227: =+C222+C225 -> 68.73
B229: BDI: | C229: % | D229: =+$F$7 -> 28,21% | F229: =TRUNC(F227*D229,2) -> 19.38
B231: PREÇO: | F231: =+F227+F229 -> 88.11
A233: CÓDIGO | B233: DISCRIMINAÇÃO | C233: UN | D233: COEFIC. | E233: UNITÁRIO | F233: TOTAL
A234: 105 | B234: REMOÇÃO PARACICLO | C234: un
A235: =CONCATENATE("SINAPI C ",'Composições Aux. SINAPI'!$A$63,) -> SINAPI C 5795 | B235: MARTELETE OU ROMPEDOR PNEUMÁTICO MANUAL, 28 KG, COM SILENCIADOR (chp) | C235: chp | D235: 0.1169 | E235: =+'Composições Aux. SINAPI'!$E$63:$F$63 -> 25.6 | F235: =TRUNC(D235*E235,2) -> 2.99
A236: =CONCATENATE("SINAPI C ",'Composições Aux. SINAPI'!$A$64,) -> SINAPI C 5952 | B236: MARTELETE OU ROMPEDOR PNEUMÁTICO MANUAL, 28 KG, COM SILENCIADOR (chi) | C236: chi | D236: 0.0331 | E236: =+'Composições Aux. SINAPI'!$E$64:$F$64 -> 23.43 | F236: 0.77
A237: =CONCATENATE("SINAPI C ",'Composições Aux. SINAPI'!$A$31,) -> SINAPI C 5953 | B237: COMPRESSOR DE AR REBOCÁVEL, VAZÃO 189 PCM, MOTOR DIESEL, POTÊNCIA 63 CV (chp) | C237: chp | D237: 0.1169 | E237: =+'Composições Aux. SINAPI'!$E$31:$F$31 -> 51.7 | F237: 6.04
A238: =CONCATENATE("SINAPI C ",'Composições Aux. SINAPI'!$A$32,) -> SINAPI C 5954 | B238: COMPRESSOR DE AR REBOCÁVEL, VAZÃO 189 PCM, MOTOR DIESEL, POTÊNCIA 63 CV (chi) | C238: chi | D238: 0.0331 | E238: =+'Composições Aux. SINAPI'!$E$32:$F$32 -> 4.39 | F238: 0.14
A239: =CONCATENATE("COTAÇÃO ",Insumos!$B$135) -> COTAÇÃO 114 | B239: CAÇAMBA 4,00 m³ | C239: un | D239: 0.0117 | E239: =+Insumos!$G$135 -> 493.97 | F239: 5.77
A240: =CONCATENATE("SINAPI I ",Insumos!$B$90) -> SINAPI I 6081 | B240: ARGILA OU BARRO PARA ATERRO OU REATERRO | C240: m³ | D240: 0.045 | E240: =+Insumos!$G$90 -> 47.52 | F240: 2.13
A241: SUB-TOTAL - MATERIAL / EQUIPAMENTOS: | C241: =SUM(F235:F240) -> 17.84
A242: =CONCATENATE("SINAPI C ",Insumos!$B$35) -> SINAPI C 88309 | B242: PEDREIRO C/ENCARGOS COMPLEMENTARES | C242: h | D242: 0.0229 | E242: =+Insumos!$G$35 -> 20.34 | F242: =TRUNC(D242*E242,2) -> 0.46
A243: =CONCATENATE("SINAPI C ",Insumos!$B$38) -> SINAPI C 88316 | B243: SERVENTE C/ ENCARGOS COMPLEMENTARES | C243: h | D243: 1.0231 | E243: =+Insumos!$G$38 -> 16.92 | F243: =TRUNC(D243*E243,2) -> 17.31
A244: SUB-TOTAL - MÃO-DE-OBRA: | C244: =SUM(F242:F243) -> 17.77
B246: CUSTO TOTAL: | F246: =+C241+C244 -> 35.61
B248: BDI: | C248: % | D248: =+$F$7 -> 28,21% | F248: =TRUNC(F246*D248,2) -> 10.04
B250: PREÇO: | F250: =+F246+F248 -> 45.65
A252: CÓDIGO | B252: DISCRIMINAÇÃO | C252: UN | D252: COEFIC. | E252: UNITÁRIO | F252: TOTAL
A253: 108 | B253: DEMOLIÇÃO CAIXA DE AREIA C/REMOÇÃO DE ENTULHOS | C253: un
A254: =CONCATENATE("SINAPI C ",'Composições Aux. SINAPI'!$A$63,) -> SINAPI C 5795 | B254: MARTELETE OU ROMPEDOR PNEUMÁTICO MANUAL, 28 KG, COM SILENCIADOR (chp) | C254: chp | D254: 2.5325 | E254: =+'Composições Aux. SINAPI'!$E$63:$F$63 -> 25.6 | F254: =TRUNC(D254*E254,2) -> 64.83
A255: =CONCATENATE("SINAPI C ",'Composições Aux. SINAPI'!$A$64,) -> SINAPI C 5952 | B255: MARTELETE OU ROMPEDOR PNEUMÁTICO MANUAL, 28 KG, COM SILENCIADOR (chi) | C255: chi | D255: 0.7478 | E255: =+'Composições Aux. SINAPI'!$E$64:$F$64 -> 23.43 | F255: =TRUNC(D255*E255,2) -> 17.52
A256: =CONCATENATE("SINAPI C ",'Composições Aux. SINAPI'!$A$31,) -> SINAPI C 5953 | B256: COMPRESSOR DE AR REBOCÁVEL, VAZÃO 189 PCM, MOTOR DIESEL, POTÊNCIA 63 CV (chp) | C256: chp | D256: 2.5325 | E256: =+'Composições Aux. SINAPI'!$E$31:$F$31 -> 51.7 | F256: =TRUNC(D256*E256,2) -> 130.93
A257: =CONCATENATE("SINAPI C ",'Composições Aux. SINAPI'!$A$32,) -> SINAPI C 5954 | B257: COMPRESSOR DE AR REBOCÁVEL, VAZÃO 189 PCM, MOTOR DIESEL, POTÊNCIA 63 CV (chi) | C257: chi | D257: 0.7178 | E257: =+'Composições Aux. SINAPI'!$E$32:$F$32 -> 4.39 | F257: =TRUNC(D257*E257,2) -> 3.15
A258: =CONCATENATE("COTAÇÃO ",Insumos!$B$135) -> COTAÇÃO 114 | B258: CAÇAMBA 4,00 m³ | C258: un | D258: 1.061 | E258: =+Insumos!$G$135 -> 493.97 | F258: =TRUNC(D258*E258,2) -> 524.1
A259: SUB-TOTAL - MATERIAL / EQUIPAMENTOS: | C259: =SUM(F254:F258) -> 740.53
... 4288 more rows

Sheet Composições Aux. SINAPI (hidden)
A1: COMPOSIÇÕES AUXILIARES
A3: =IF('Atualizações Cotações'!$B$4="NÃO",CONCATENATE("Data Base SINAPI: ",M.O.!$E$17,),CONCATENATE("Data Base SINAPI: ",M.O.!$E$17,)) -> Data Base SINAPI: Janeiro/22
A6: =+M.O.!$D$5 -> c/desoneração | C6: Leis Sociais Horistas: | D6: =+M.O.!$D$7 -> 0.8231 | E6: BDI= | F6: =+M.O.!$F$7 -> 28,21%
C7: Leis Sociais Mensalistas: | D7: =+M.O.!$D$8 -> 0.4598
A9: =+E16 -> Janeiro/22 | C9: Vem da aba Comp.SINAPI c_des. | D9: Vem da aba Comp.SINAPI s_des. | E9: Valor utilizado na composição
A16: Código SINAPI | B16: Composição | C16: Custo (c/desoneração) | D16: Custo (s/desoneração) | E16: =+M.O.!$E$17 -> Janeiro/22
A17: 87335 | B17: ARGAMASSA TRAÇO 1:2:8 (CIMENTO, CAL E AREIA MÉDIA) PARA EMBOÇO/MASSA ÚNICA/ASSENTAMENTO DE ALVENARIA DE VEDAÇÃO, PREPARO MECÂNICO | C17: =VLOOKUP(A17,'Comp.SINAPI c_des.'!$G$8:$K$50000,5,FALSE) -> 426.23 | D17: =VLOOKUP(A17,'Comp.SINAPI s_des.'!$G$8:$K$50000,5,FALSE) -> 438.77 | E17: =IF(M.O.!$D$5="c/desoneração",C17,(IF(M.O.!$D$5="s/desoneração",D17))) -> 426.23
A18: 87292 | B18: ARGAMASSA TRAÇO 1:2:8 (EM VOLUME DE CIMENTO, CAL E AREIA MÉDIA ÚMIDA) PARA EMBOÇO/MASSA ÚNICA/ASSENTAMENTO DE ALVENARIA DE VEDAÇÃO, PREPARO MECÂNICO COM BETONEIRA 400 L | C18: =VLOOKUP(A18,'Comp.SINAPI c_des.'!$G$8:$K$50000,5,FALSE) -> 429.34 | D18: =VLOOKUP(A18,'Comp.SINAPI s_des.'!$G$8:$K$50000,5,FALSE) -> 440.72 | E18: =IF(M.O.!$D$5="c/desoneração",C18,(IF(M.O.!$D$5="s/desoneração",D18))) -> 429.34
A19: 88629 | B19: ARGAMASSA TRAÇO 1:3 (EM VOLUME DE CIMENTO E AREIA MÉDIA ÚMIDA), PREPARO MANUAL | C19: =VLOOKUP(A19,'Comp.SINAPI c_des.'!$G$8:$K$50000,5,FALSE) -> 556.9 | D19: =VLOOKUP(A19,'Comp.SINAPI s_des.'!$G$8:$K$50000,5,FALSE) -> 573.35 | E19: =IF(M.O.!$D$5="c/desoneração",C19,(IF(M.O.!$D$5="s/desoneração",D19))) -> 556.9
A20: 88628 | B20: ARGAMASSA TRAÇO 1:3 (EM VOLUME DE CIMENTO E AREIA MÉDIA ÚMIDA), PREPARO MECÂNICO COM BETONEIRA 400 L | C20: =VLOOKUP(A20,'Comp.SINAPI c_des.'!$G$8:$K$50000,5,FALSE) -> 482.41 | D20: =VLOOKUP(A20,'Comp.SINAPI s_des.'!$G$8:$K$50000,5,FALSE) -> 491.06 | E20: =IF(M.O.!$D$5="c/desoneração",C20,(IF(M.O.!$D$5="s/desoneração",D20))) -> 482.41
A21: 88630 | B21: ARGAMASSA TRAÇO 1:4 (CIMENTO E AREIA MÉDIA), PREPARO MECÂNICO COM BETONEIRA 400 L | C21: =VLOOKUP(A21,'Comp.SINAPI c_des.'!$G$8:$K$50000,5,FALSE) -> 402.13 | D21: =VLOOKUP(A21,'Comp.SINAPI s_des.'!$G$8:$K$50000,5,FALSE) -> 410.63 | E21: =IF(M.O.!$D$5="c/desoneração",C21,(IF(M.O.!$D$5="s/desoneração",D21))) -> 402.13
A22: 88631 | B22: ARGAMASSA TRAÇO 1:4 (EM VOLUME DE CIMENTO E AREIA MÉDIA ÚMIDA), PREPARO MANUAL | C22: =VLOOKUP(A22,'Comp.SINAPI c_des.'!$G$8:$K$50000,5,FALSE) -> 492.28 | D22: =VLOOKUP(A22,'Comp.SINAPI s_des.'!$G$8:$K$50000,5,FALSE) -> 508.2 | E22: =IF(M.O.!$D$5="c/desoneração",C22,(IF(M.O.!$D$5="s/desoneração",D22))) -> 492.28
A23: 100578 | B23: ASSENTAMENTO DE POSTE DE CONCRETO COM COMPRIMENTO NOMINAL DE 9 M, CARGA NOMINAL MENOR OU IGUAL A 1000 DAN, ENGASTAMENTO SIMPLES COM 1,5 M DE SOLO (NÃO INCLUI FORNECIMENTO) | C23: =VLOOKUP(A23,'Comp.SINAPI c_des.'!$G$8:$K$50000,5,FALSE) -> 436.09 | D23: =VLOOKUP(A23,'Comp.SINAPI s_des.'!$G$8:$K$50000,5,FALSE) -> 448.51 | E23: =IF(M.O.!$D$5="c/desoneração",C23,(IF(M.O.!$D$5="s/desoneração",D23))) -> 436.09
A24: 88830 | B24: BETONEIRA CAPACIDADE NOMINAL DE 400 L, CAPACIDADE DE MISTURA 280 L, MOTOR ELÉTRICO TRIFÁSICO POTÊNCIA DE 2 CV, SEM CARREGADOR - CHP DIURNO | C24: =VLOOKUP(A24,'Comp.SINAPI c_des.'!$G$8:$K$50000,5,FALSE) -> 1.99 | D24: =VLOOKUP(A24,'Comp.SINAPI s_des.'!$G$8:$K$50000,5,FALSE) -> 1.99 | E24: =IF(M.O.!$D$5="c/desoneração",C24,(IF(M.O.!$D$5="s/desoneração",D24))) -> 1.99
A25: 88831 | B25: BETONEIRA CAPACIDADE NOMINAL DE 400 L, CAPACIDADE DE MISTURA 280 L, MOTOR ELÉTRICO TRIFÁSICO POTÊNCIA DE 2 CV, SEM CARREGADOR - CHI DIURNO | C25: =VLOOKUP(A25,'Comp.SINAPI c_des.'!$G$8:$K$50000,5,FALSE) -> 0.34 | D25: =VLOOKUP(A25,'Comp.SINAPI s_des.'!$G$8:$K$50000,5,FALSE) -> 0.34 | E25: =IF(M.O.!$D$5="c/desoneração",C25,(IF(M.O.!$D$5="s/desoneração",D25))) -> 0.34
A26: 91933 | B26: CABO DE COBRE FLEXÍVEL ISOLADO, 10 MM², ANTI-CHAMA 0,6/1,0 KV, PARA CIRCUITOS TERMINAIS - FORNECIMENTO E INSTALAÇÃO | C26: =VLOOKUP(A26,'Comp.SINAPI c_des.'!$G$8:$K$50000,5,FALSE) -> 16.23 | D26: =VLOOKUP(A26,'Comp.SINAPI s_des.'!$G$8:$K$50000,5,FALSE) -> 16.55 | E26: =IF(M.O.!$D$5="c/desoneração",C26,(IF(M.O.!$D$5="s/desoneração",D26))) -> 16.23
A27: 95676 | B27: CAIXA EM CONCRETO PRÉ-MOLDADO PARA ABRIGO DE HIDRÔMETRO COM DN 20 (½) | C27: =VLOOKUP(A27,'Comp.SINAPI c_des.'!$G$8:$K$50000,5,FALSE) -> 102.46 | D27: =VLOOKUP(A27,'Comp.SINAPI s_des.'!$G$8:$K$50000,5,FALSE) -> 103.37 | E27: =IF(M.O.!$D$5="c/desoneração",C27,(IF(M.O.!$D$5="s/desoneração",D27))) -> 102.46
A28: 97896 | B28: CAIXA ENTERRADA HIDRÁULICA RETANGULAR, EM CONCRETO PRÉ-MOLDADO, DIMENSÕES INTERNAS: 0,4X0,4X0,4 M | C28: =VLOOKUP(A28,'Comp.SINAPI c_des.'!$G$8:$K$50000,5,FALSE) -> 276.32 | D28: =VLOOKUP(A28,'Comp.SINAPI s_des.'!$G$8:$K$50000,5,FALSE) -> 277.12 | E28: =IF(M.O.!$D$5="c/desoneração",C28,(IF(M.O.!$D$5="s/desoneração",D28))) -> 276.32
A29: 91533 | B29: COMPACTADOR DE SOLOS DE PERCUSSÃO (SOQUETE) COM MOTOR A GASOLINA 4 TEMPOS, POTÊNCIA 4 CV - CHP DIURNO | C29: =VLOOKUP(A29,'Comp.SINAPI c_des.'!$G$8:$K$50000,5,FALSE) -> 30.98 | D29: =VLOOKUP(A29,'Comp.SINAPI s_des.'!$G$8:$K$50000,5,FALSE) -> 33.96 | E29: =IF(M.O.!$D$5="c/desoneração",C29,(IF(M.O.!$D$5="s/desoneração",D29))) -> 30.98
A30: 91534 | B30: COMPACTADOR DE SOLOS DE PERCUSSÃO (SOQUETE) COM MOTOR A GASOLINA 4 TEMPOS, POTÊNCIA 4 CV - CHI DIURNO | C30: =VLOOKUP(A30,'Comp.SINAPI c_des.'!$G$8:$K$50000,5,FALSE) -> 23.36 | D30: =VLOOKUP(A30,'Comp.SINAPI s_des.'!$G$8:$K$50000,5,FALSE) -> 26.34 | E30: =IF(M.O.!$D$5="c/desoneração",C30,(IF(M.O.!$D$5="s/desoneração",D30))) -> 23.36
A31: 5953 | B31: COMPRESSOR DE AR REBOCÁVEL, VAZÃO 189 PCM, PRESSÃO EFETIVA DE TRABALHO 102 PSI, MOTOR DIESEL, POTÊNCIA 63 CV - CHP DIURNO | C31: =VLOOKUP(A31,'Comp.SINAPI c_des.'!$G$8:$K$50000,5,FALSE) -> 51.7 | D31: =VLOOKUP(A31,'Comp.SINAPI s_des.'!$G$8:$K$50000,5,FALSE) -> 51.7 | E31: =IF(M.O.!$D$5="c/desoneração",C31,(IF(M.O.!$D$5="s/desoneração",D31))) -> 51.7
A32: 5954 | B32: COMPRESSOR DE AR REBOCÁVEL, VAZÃO 189 PCM, PRESSÃO EFETIVA DE TRABALHO 102 PSI, MOTOR DIESEL, POTÊNCIA 63 CV - CHI DIURNO | C32: =VLOOKUP(A32,'Comp.SINAPI c_des.'!$G$8:$K$50000,5,FALSE) -> 4.39 | D32: =VLOOKUP(A32,'Comp.SINAPI s_des.'!$G$8:$K$50000,5,FALSE) -> 4.39 | E32: =IF(M.O.!$D$5="c/desoneração",C32,(IF(M.O.!$D$5="s/desoneração",D32))) -> 4.39
A33: 94963 | B33: CONCRETO FCK = 15MPA, TRAÇO 1:3,4:3,5 (EM MASSA SECA DE CIMENTO/ AREIA MÉDIA/ BRITA 1) - PREPARO MECÂNICO COM BETONEIRA 400 L | C33: =VLOOKUP(A33,'Comp.SINAPI c_des.'!$G$8:$K$50000,5,FALSE) -> 352.14 | D33: =VLOOKUP(A33,'Comp.SINAPI s_des.'!$G$8:$K$50000,5,FALSE) -> 360.33 | E33: =IF(M.O.!$D$5="c/desoneração",C33,(IF(M.O.!$D$5="s/desoneração",D33))) -> 352.14
A34: 94974 | B34: CONCRETO MAGRO PARA LASTRO, TRAÇO 1:4,5:4,5 (CIMENTO/ AREIA MÉDIA/ BRITA 1) - PREPARO MANUAL | C34: =VLOOKUP(A34,'Comp.SINAPI c_des.'!$G$8:$K$50000,5,FALSE) -> 354.97 | D34: =VLOOKUP(A34,'Comp.SINAPI s_des.'!$G$8:$K$50000,5,FALSE) -> 367.04 | E34: =IF(M.O.!$D$5="c/desoneração",C34,(IF(M.O.!$D$5="s/desoneração",D34))) -> 354.97
A35: 94962 | B35: CONCRETO MAGRO PARA LASTRO, TRAÇO 1:4,5:4,5 (EM MASSA SECA DE CIMENTO/ AREIA MÉDIA/ BRITA 1) - PREPARO MECÂNICO COM BETONEIRA 400 L | C35: =VLOOKUP(A35,'Comp.SINAPI c_des.'!$G$8:$K$50000,5,FALSE) -> 311.39 | D35: =VLOOKUP(A35,'Comp.SINAPI s_des.'!$G$8:$K$50000,5,FALSE) -> 319.64 | E35: =IF(M.O.!$D$5="c/desoneração",C35,(IF(M.O.!$D$5="s/desoneração",D35))) -> 311.39
A36: 96977 | B36: CORDOALHA DE COBRE NU 50 MM², ENTERRADA, SEM ISOLADOR - FORNECIMENTO E INSTALAÇÃO | C36: =VLOOKUP(A36,'Comp.SINAPI c_des.'!$G$8:$K$50000,5,FALSE) -> 55.13 | D36: =VLOOKUP(A36,'Comp.SINAPI s_des.'!$G$8:$K$50000,5,FALSE) -> 55.27 | E36: =IF(M.O.!$D$5="c/desoneração",C36,(IF(M.O.!$D$5="s/desoneração",D36))) -> 55.13
A37: 91283 | B37: CORTADORA DE PISO, POTÊNCIA 13 hp, C/DISCO DE CORTE DIAMANTADO 350 mm (chp) | C37: =VLOOKUP(A37,'Comp.SINAPI c_des.'!$G$8:$K$50000,5,FALSE) -> 11.42 | D37: =VLOOKUP(A37,'Comp.SINAPI s_des.'!$G$8:$K$50000,5,FALSE) -> 11.42 | E37: =IF(M.O.!$D$5="c/desoneração",C37,(IF(M.O.!$D$5="s/desoneração",D37))) -> 11.42
A38: 91285 | B38: CORTADORA DE PISO, POTÊNCIA 13 hp, C/DISCO DE CORTE DIAMANTADO 350 mm (chi) | C38: =VLOOKUP(A38,'Comp.SINAPI c_des.'!$G$8:$K$50000,5,FALSE) -> 0.92 | D38: =VLOOKUP(A38,'Comp.SINAPI s_des.'!$G$8:$K$50000,5,FALSE) -> 0.92 | E38: =IF(M.O.!$D$5="c/desoneração",C38,(IF(M.O.!$D$5="s/desoneração",D38))) -> 0.92
A39: 92792 | B39: CORTE E DOBRA DE AÇO CA-50, DIÂMETRO DE 6,3 MM, UTILIZADO EM ESTRUTURAS DIVERSAS, EXCETO LAJES | C39: =VLOOKUP(A39,'Comp.SINAPI c_des.'!$G$8:$K$50000,5,FALSE) -> 11.46 | D39: =VLOOKUP(A39,'Comp.SINAPI s_des.'!$G$8:$K$50000,5,FALSE) -> 11.58 | E39: =IF(M.O.!$D$5="c/desoneração",C39,(IF(M.O.!$D$5="s/desoneração",D39))) -> 11.46
A40: 92791 | B40: CORTE E DOBRA DE AÇO CA-60, DIÂMETRO DE 5,0 MM, UTILIZADO EM ESTRUTURAS DIVERSAS, EXCETO LAJES | C40: =VLOOKUP(A40,'Comp.SINAPI c_des.'!$G$8:$K$50000,5,FALSE) -> 11.17 | D40: =VLOOKUP(A40,'Comp.SINAPI s_des.'!$G$8:$K$50000,5,FALSE) -> 11.38 | E40: =IF(M.O.!$D$5="c/desoneração",C40,(IF(M.O.!$D$5="s/desoneração",D40))) -> 11.17
A41: 92794 | B41: CORTE E DOBRA DE AÇO CA-50, DIÂMETRO DE 10,0 MM, UTILIZADO EM ESTRUTURAS DIVERSAS, EXCETO LAJES | C41: =VLOOKUP(A41,'Comp.SINAPI c_des.'!$G$8:$K$50000,5,FALSE) -> 10.63 | D41: =VLOOKUP(A41,'Comp.SINAPI s_des.'!$G$8:$K$50000,5,FALSE) -> 10.66 | E41: =IF(M.O.!$D$5="c/desoneração",C41,(IF(M.O.!$D$5="s/desoneração",D41))) -> 10.63
A42: 91917 | B42: CURVA 90 GRAUS PARA ELETRODUTO, PVC, ROSCÁVEL, DN 32 MM (1"), PARA CIRCUITOS TERMINAIS, INSTALADA EM PAREDE - FORNECIMENTO E INSTALAÇÃO | C42: =VLOOKUP(A42,'Comp.SINAPI c_des.'!$G$8:$K$50000,5,FALSE) -> 15.3 | D42: =VLOOKUP(A42,'Comp.SINAPI s_des.'!$G$8:$K$50000,5,FALSE) -> 16.47 | E42: =IF(M.O.!$D$5="c/desoneração",C42,(IF(M.O.!$D$5="s/desoneração",D42))) -> 15.3
A43: 91919 | B43: CURVA 180 GRAUS PARA ELETRODUTO, PVC, ROSCÁVEL, DN 32 MM (1), PARA CIRCUITOS TERMINAIS, INSTALADA EM PAREDE - FORNECIMENTO E INSTALAÇÃO | C43: =VLOOKUP(A43,'Comp.SINAPI c_des.'!$G$8:$K$50000,5,FALSE) -> 17.83 | D43: =VLOOKUP(A43,'Comp.SINAPI s_des.'!$G$8:$K$50000,5,FALSE) -> 19 | E43: =IF(M.O.!$D$5="c/desoneração",C43,(IF(M.O.!$D$5="s/desoneração",D43))) -> 17.83
A44: 95282 | B44: DESEMPENADEIRA DE CONCRETO, PESO DE 75KG, 4 PÁS, MOTOR A GASOLINA, POTÊNCIA 5,5 HP - CHP DIURNO | C44: =VLOOKUP(A44,'Comp.SINAPI c_des.'!$G$8:$K$50000,5,FALSE) -> 10.48 | D44: =VLOOKUP(A44,'Comp.SINAPI s_des.'!$G$8:$K$50000,5,FALSE) -> 10.48 | E44: =IF(M.O.!$D$5="c/desoneração",C44,(IF(M.O.!$D$5="s/desoneração",D44))) -> 10.48
A45: 95283 | B45: DESEMPENADEIRA DE CONCRETO, PESO DE 75KG, 4 PÁS, MOTOR A GASOLINA, POTÊNCIA 5,5 HP - CHI DIURNO | C45: =VLOOKUP(A45,'Comp.SINAPI c_des.'!$G$8:$K$50000,5,FALSE) -> 0.57 | D45: =VLOOKUP(A45,'Comp.SINAPI s_des.'!$G$8:$K$50000,5,FALSE) -> 0.57 | E45: =IF(M.O.!$D$5="c/desoneração",C45,(IF(M.O.!$D$5="s/desoneração",D45))) -> 0.57
A46: 93673 | B46: DISJUNTOR TRIPOLAR TIPO DIN, CORRENTE NOMINAL DE 50A - FORNECIMENTO E INSTALAÇÃO | C46: =VLOOKUP(A46,'Comp.SINAPI c_des.'!$G$8:$K$50000,5,FALSE) -> 91.92 | D46: =VLOOKUP(A46,'Comp.SINAPI s_des.'!$G$8:$K$50000,5,FALSE) -> 94.33 | E46: =IF(M.O.!$D$5="c/desoneração",C46,(IF(M.O.!$D$5="s/desoneração",D46))) -> 91.92
A47: 91872 | B47: ELETRODUTO RÍGIDO ROSCÁVEL, PVC, DN 32 MM (1"), PARA CIRCUITOS TERMINAIS, INSTALADO EM PAREDE - FORNECIMENTO E INSTALAÇÃO | C47: =VLOOKUP(A47,'Comp.SINAPI c_des.'!$G$8:$K$50000,5,FALSE) -> 14.53 | D47: =VLOOKUP(A47,'Comp.SINAPI s_des.'!$G$8:$K$50000,5,FALSE) -> 15.36 | E47: =IF(M.O.!$D$5="c/desoneração",C47,(IF(M.O.!$D$5="s/desoneração",D47))) -> 14.53
A48: 93358 | B48: ESCAVAÇÃO MANUAL DE VALA COM PROFUNDIDADE MENOR OU IGUAL A 1,30 M | C48: =VLOOKUP(A48,'Comp.SINAPI c_des.'!$G$8:$K$50000,5,FALSE) -> 66.93 | D48: =VLOOKUP(A48,'Comp.SINAPI s_des.'!$G$8:$K$50000,5,FALSE) -> 74.53 | E48: =IF(M.O.!$D$5="c/desoneração",C48,(IF(M.O.!$D$5="s/desoneração",D48))) -> 66.93
A49: 5631 | B49: ESCAVADEIRA HIDRÁULICA SOBRE ESTEIRAS, POTÊNCIA 111 hp (chp) | C49: =VLOOKUP(A49,'Comp.SINAPI c_des.'!$G$8:$K$50000,5,FALSE) -> 191.27 | D49: =VLOOKUP(A49,'Comp.SINAPI s_des.'!$G$8:$K$50000,5,FALSE) -> 194.81 | E49: =IF(M.O.!$D$5="c/desoneração",C49,(IF(M.O.!$D$5="s/desoneração",D49))) -> 191.27
A50: 5632 | B50: ESCAVADEIRA HIDRÁULICA SOBRE ESTEIRAS, POTÊNCIA 111 hp (chi) | C50: =VLOOKUP(A50,'Comp.SINAPI c_des.'!$G$8:$K$50000,5,FALSE) -> 77.11 | D50: =VLOOKUP(A50,'Comp.SINAPI s_des.'!$G$8:$K$50000,5,FALSE) -> 80.65 | E50: =IF(M.O.!$D$5="c/desoneração",C50,(IF(M.O.!$D$5="s/desoneração",D50))) -> 77.11
A51: 93583 | B51: EXECUÇÃO DE CENTRAL DE FÔRMAS, PRODUÇÃO DE ARGAMASSA OU CONCRETO EM CANTEIRO DE OBRA, NÃO INCLUSO MOBILIÁRIO E EQUIPAMENTOS | C51: =VLOOKUP(A51,'Comp.SINAPI c_des.'!$G$8:$K$50000,5,FALSE) -> 424.77 | D51: =VLOOKUP(A51,'Comp.SINAPI s_des.'!$G$8:$K$50000,5,FALSE) -> 435.37 | E51: =IF(M.O.!$D$5="c/desoneração",C51,(IF(M.O.!$D$5="s/desoneração",D51))) -> 424.77
A52: 93584 | B52: EXECUÇÃO DE DEPÓSITO EM CANTEIRO DE OBRA EM CHAPA DE MADEIRA COMPENSADA, NÃO INCLUSO MOBILIÁRIO | C52: =VLOOKUP(A52,'Comp.SINAPI c_des.'!$G$8:$K$50000,5,FALSE) -> 831.64 | D52: =VLOOKUP(A52,'Comp.SINAPI s_des.'!$G$8:$K$50000,5,FALSE) -> 851.63 | E52: =IF(M.O.!$D$5="c/desoneração",C52,(IF(M.O.!$D$5="s/desoneração",D52))) -> 831.64
A53: 93416 | B53: GERADOR PORTÁTIL MONOFÁSICO, POTÊNCIA 5500 VA, MOTOR A GASOLINA, POTÊNCIA DO MOTOR 13 CV - CHI DIURNO | C53: =VLOOKUP(A53,'Comp.SINAPI c_des.'!$G$8:$K$50000,5,FALSE) -> 0.29 | D53: =VLOOKUP(A53,'Comp.SINAPI s_des.'!$G$8:$K$50000,5,FALSE) -> 0.29 | E53: =IF(M.O.!$D$5="c/desoneração",C53,(IF(M.O.!$D$5="s/desoneração",D53))) -> 0.29
A54: 93415 | B54: GERADOR PORTÁTIL MONOFÁSICO, POTÊNCIA 5500 VA, MOTOR A GASOLINA, POTÊNCIA DO MOTOR 13 CV - CHP DIURNO | C54: =VLOOKUP(A54,'Comp.SINAPI c_des.'!$G$8:$K$50000,5,FALSE) -> 16.76 | D54: =VLOOKUP(A54,'Comp.SINAPI s_des.'!$G$8:$K$50000,5,FALSE) -> 16.76 | E54: =IF(M.O.!$D$5="c/desoneração",C54,(IF(M.O.!$D$5="s/desoneração",D54))) -> 16.76
A55: 93402 | B55: GUINDAUTO HIDRÁULICO, CAPACIDADE MÁXIMA DE CARGA 3300 KG, MOMENTO MÁXIMO DE CARGA 5,8 TM, ALCANCE MÁXIMO HORIZONTAL 7,60 M, INCLUSIVE CAMINHÃO TOCO PBT 16.000 KG, POTÊNCIA DE 189 CV - CHP DIURNO | C55: =VLOOKUP(A55,'Comp.SINAPI c_des.'!$G$8:$K$50000,5,FALSE) -> 211.27 | D55: =VLOOKUP(A55,'Comp.SINAPI s_des.'!$G$8:$K$50000,5,FALSE) -> 214.26 | E55: =IF(M.O.!$D$5="c/desoneração",C55,(IF(M.O.!$D$5="s/desoneração",D55))) -> 211.27
A56: 96986 | B56: HASTE DE ATERRAMENTO 3/4 PARA SPDA - FORNECIMENTO E INSTALAÇÃO | C56: =VLOOKUP(A56,'Comp.SINAPI c_des.'!$G$8:$K$50000,5,FALSE) -> 138.8 | D56: =VLOOKUP(A56,'Comp.SINAPI s_des.'!$G$8:$K$50000,5,FALSE) -> 140.49 | E56: =IF(M.O.!$D$5="c/desoneração",C56,(IF(M.O.!$D$5="s/desoneração",D56))) -> 138.8
A57: 89744 | B57: JOELHO 90 GRAUS, PVC, SERIE NORMAL, ESGOTO PREDIAL, DN 100 MM, FORNECIDO E INSTALADO | C57: =VLOOKUP(A57,'Comp.SINAPI c_des.'!$G$8:$K$50000,5,FALSE) -> 24.82 | D57: =VLOOKUP(A57,'Comp.SINAPI s_des.'!$G$8:$K$50000,5,FALSE) -> 25.88 | E57: =IF(M.O.!$D$5="c/desoneração",C57,(IF(M.O.!$D$5="s/desoneração",D57))) -> 24.82
A58: 89358 | B58: JOELHO 90 GRAUS, PVC, SOLDÁVEL, DN 20MM - FORNECIMENTO E INSTALAÇÃO | C58: =VLOOKUP(A58,'Comp.SINAPI c_des.'!$G$8:$K$50000,5,FALSE) -> 6.51 | D58: =VLOOKUP(A58,'Comp.SINAPI s_des.'!$G$8:$K$50000,5,FALSE) -> 7.06 | E58: =IF(M.O.!$D$5="c/desoneração",C58,(IF(M.O.!$D$5="s/desoneração",D58))) -> 6.51
A59: 89971 | B59: KIT DE REGISTRO DE GAVETA BRUTO DE LATÃO ½", INCLUSIVE CONEXÕES, ROSCÁVEL | C59: =VLOOKUP(A59,'Comp.SINAPI c_des.'!$G$8:$K$50000,5,FALSE) -> 52.84 | D59: =VLOOKUP(A59,'Comp.SINAPI s_des.'!$G$8:$K$50000,5,FALSE) -> 53.85 | E59: =IF(M.O.!$D$5="c/desoneração",C59,(IF(M.O.!$D$5="s/desoneração",D59))) -> 52.84
A60: 92873 | B60: LANÇAMENTO COM USO DE BALDES, ADENSAMENTO E ACABAMENTO DE CONCRETO EM ESTRUTURAS | C60: =VLOOKUP(A60,'Comp.SINAPI c_des.'!$G$8:$K$50000,5,FALSE) -> 169.51 | D60: =VLOOKUP(A60,'Comp.SINAPI s_des.'!$G$8:$K$50000,5,FALSE) -> 189.16 | E60: =IF(M.O.!$D$5="c/desoneração",C60,(IF(M.O.!$D$5="s/desoneração",D60))) -> 169.51
A61: 99058 | B61: LOCAÇÃO DE PONTO PARA REFERÊNCIA TOPOGRÁFICA | C61: =VLOOKUP(A61,'Comp.SINAPI c_des.'!$G$8:$K$50000,5,FALSE) -> 9.62 | D61: =VLOOKUP(A61,'Comp.SINAPI s_des.'!$G$8:$K$50000,5,FALSE) -> 10.88 | E61: =IF(M.O.!$D$5="c/desoneração",C61,(IF(M.O.!$D$5="s/desoneração",D61))) -> 9.62
A62: 91885 | B62: LUVA PARA ELETRODUTO, PVC, ROSCÁVEL, DN 32 MM (1"), PARA CIRCUITOS TERMINAIS, INSTALADA EM PAREDE - FORNECIMENTO E INSTALAÇÃO | C62: =VLOOKUP(A62,'Comp.SINAPI c_des.'!$G$8:$K$50000,5,FALSE) -> 8.79 | D62: =VLOOKUP(A62,'Comp.SINAPI s_des.'!$G$8:$K$50000,5,FALSE) -> 9.56 | E62: =IF(M.O.!$D$5="c/desoneração",C62,(IF(M.O.!$D$5="s/desoneração",D62))) -> 8.79
A63: 5795 | B63: MARTELETE OU ROMPEDOR PNEUMÁTICO MANUAL, 28 KG, COM SILENCIADOR - CHP DIURNO | C63: =VLOOKUP(A63,'Comp.SINAPI c_des.'!$G$8:$K$50000,5,FALSE) -> 25.6 | D63: =VLOOKUP(A63,'Comp.SINAPI s_des.'!$G$8:$K$50000,5,FALSE) -> 28.41 | E63: =IF(M.O.!$D$5="c/desoneração",C63,(IF(M.O.!$D$5="s/desoneração",D63))) -> 25.6
A64: 5952 | B64: MARTELETE OU ROMPEDOR PNEUMÁTICO MANUAL, 28 KG, COM SILENCIADOR - CHI DIURNO | C64: =VLOOKUP(A64,'Comp.SINAPI c_des.'!$G$8:$K$50000,5,FALSE) -> 23.43 | D64: =VLOOKUP(A64,'Comp.SINAPI s_des.'!$G$8:$K$50000,5,FALSE) -> 26.24 | E64: =IF(M.O.!$D$5="c/desoneração",C64,(IF(M.O.!$D$5="s/desoneração",D64))) -> 23.43
A65: 97064 | B65: MONTAGEM E DESMONTAGEM DE ANDAIME TUBULAR TIPO TORRE (EXCLUSIVE ANDAIME E LIMPEZA) | C65: =VLOOKUP(A65,'Comp.SINAPI c_des.'!$G$8:$K$50000,5,FALSE) -> 15.61 | D65: =VLOOKUP(A65,'Comp.SINAPI s_des.'!$G$8:$K$50000,5,FALSE) -> 17.51 | E65: =IF(M.O.!$D$5="c/desoneração",C65,(IF(M.O.!$D$5="s/desoneração",D65))) -> 15.61
A66: 92112 | B66: PENEIRA ROTATIVA COM MOTOR ELÉTRICO TRIFÁSICO DE 2 CV, CILINDRO DE 1 M X 0,60 M, COM FUROS DE 3,17 MM - CHP DIURNO | C66: =VLOOKUP(A66,'Comp.SINAPI c_des.'!$G$8:$K$50000,5,FALSE) -> 3.07 | D66: =VLOOKUP(A66,'Comp.SINAPI s_des.'!$G$8:$K$50000,5,FALSE) -> 3.07 | E66: =IF(M.O.!$D$5="c/desoneração",C66,(IF(M.O.!$D$5="s/desoneração",D66))) -> 3.07
A67: 92113 | B67: PENEIRA ROTATIVA COM MOTOR ELÉTRICO TRIFÁSICO DE 2 CV, CILINDRO DE 1 M X 0,60 M, COM FUROS DE 3,17 MM - CHI DIURNO | C67: =VLOOKUP(A67,'Comp.SINAPI c_des.'!$G$8:$K$50000,5,FALSE) -> 1.04 | D67: =VLOOKUP(A67,'Comp.SINAPI s_des.'!$G$8:$K$50000,5,FALSE) -> 1.04 | E67: =IF(M.O.!$D$5="c/desoneração",C67,(IF(M.O.!$D$5="s/desoneração",D67))) -> 1.04
A68: 91277 | B68: PLACA VIBRATÓRIA REVERSÍVEL COM MOTOR 4 TEMPOS A GASOLINA, FORÇA CENTRÍFUGA DE 25 KN (2500 KGF), POTÊNCIA 5,5 CV - CHP DIURNO | C68: =VLOOKUP(A68,'Comp.SINAPI c_des.'!$G$8:$K$50000,5,FALSE) -> 10.55 | D68: =VLOOKUP(A68,'Comp.SINAPI s_des.'!$G$8:$K$50000,5,FALSE) -> 10.55 | E68: =IF(M.O.!$D$5="c/desoneração",C68,(IF(M.O.!$D$5="s/desoneração",D68))) -> 10.55
A69: 91278 | B69: PLACA VIBRATÓRIA REVERSÍVEL COM MOTOR 4 TEMPOS A GASOLINA, FORÇA CENTRÍFUGA DE 25 KN (2500 KGF), POTÊNCIA 5,5 CV - CHI DIURNO | C69: =VLOOKUP(A69,'Comp.SINAPI c_des.'!$G$8:$K$50000,5,FALSE) -> 0.54 | D69: =VLOOKUP(A69,'Comp.SINAPI s_des.'!$G$8:$K$50000,5,FALSE) -> 0.54 | E69: =IF(M.O.!$D$5="c/desoneração",C69,(IF(M.O.!$D$5="s/desoneração",D69))) -> 0.54
A70: 5678 | B70: RETROESCAVADEIRA SOBRE RODAS COM CARREGADEIRA, TRAÇÃO 4X4, POTÊNCIA LÍQ. 88 HP, CAÇAMBA CARREG. CAP. MÍN. 1 M3, CAÇAMBA RETRO CAP. 0,26 M3, PESO OPERACIONAL MÍN. 6.674 KG, PROFUNDIDADE ESCAVAÇÃO MÁX. 4,37 M - CHP DIURNO | C70: =VLOOKUP(A70,'Comp.SINAPI c_des.'!$G$8:$K$50000,5,FALSE) -> 125.96 | D70: =VLOOKUP(A70,'Comp.SINAPI s_des.'!$G$8:$K$50000,5,FALSE) -> 129.5 | E70: =IF(M.O.!$D$5="c/desoneração",C70,(IF(M.O.!$D$5="s/desoneração",D70))) -> 125.96
A71: 5679 | B71: RETROESCAVADEIRA SOBRE RODAS COM CARREGADEIRA, TRAÇÃO 4X4, POTÊNCIA LÍQ. 88 HP, CAÇAMBA CARREG. CAP. MÍN. 1 M3, CAÇAMBA RETRO CAP. 0,26 M3, PESO OPERACIONAL MÍN. 6.674 KG, PROFUNDIDADE ESCAVAÇÃO MÁX. 4,37 M - CHI DIURNO | C71: =VLOOKUP(A71,'Comp.SINAPI c_des.'!$G$8:$K$50000,5,FALSE) -> 51.77 | D71: =VLOOKUP(A71,'Comp.SINAPI s_des.'!$G$8:$K$50000,5,FALSE) -> 55.31 | E71: =IF(M.O.!$D$5="c/desoneração",C71,(IF(M.O.!$D$5="s/desoneração",D71))) -> 51.77
A72: 5684 | B72: ROLO COMPACTADOR VIBRATÓRIO DE UM CILINDRO AÇO LISO, POTÊNCIA 80 hp, PESO OPERACIONAL MÁXIMO 8,1 T, LARGURA DE TRABALHO 1,68 m (chp) | C72: =VLOOKUP(A72,'Comp.SINAPI c_des.'!$G$8:$K$50000,5,FALSE) -> 132.08 | D72: =VLOOKUP(A72,'Comp.SINAPI s_des.'!$G$8:$K$50000,5,FALSE) -> 134.59 | E72: =IF(M.O.!$D$5="c/desoneração",C72,(IF(M.O.!$D$5="s/desoneração",D72))) -> 132.08
A73: 5685 | B73: ROLO COMPACTADOR VIBRATÓRIO DE UM CILINDRO AÇO LISO, POTÊNCIA 80 hp, PESO OPERACIONAL MÁXIMO 8,1 T, LARGURA DE TRABALHO 1,68 m (chi) | C73: =VLOOKUP(A73,'Comp.SINAPI c_des.'!$G$8:$K$50000,5,FALSE) -> 48.71 | D73: =VLOOKUP(A73,'Comp.SINAPI s_des.'!$G$8:$K$50000,5,FALSE) -> 51.22 | E73: =IF(M.O.!$D$5="c/desoneração",C73,(IF(M.O.!$D$5="s/desoneração",D73))) -> 48.71
A74: 5867 | B74: ROLO COMPACTADOR VIBRATÓRIO TANDEM AÇO LISO, POTÊNCIA 58 HP, PESO SEM/COM LASTRO 6,5 / 9,4 T, LARGURA DE TRABALHO 1,2 M - CHP DIURNO | C74: =VLOOKUP(A74,'Comp.SINAPI c_des.'!$G$8:$K$50000,5,FALSE) -> 131.31 | D74: =VLOOKUP(A74,'Comp.SINAPI s_des.'!$G$8:$K$50000,5,FALSE) -> 133.82 | E74: =IF(M.O.!$D$5="c/desoneração",C74,(IF(M.O.!$D$5="s/desoneração",D74))) -> 131.31
A75: 5869 | B75: ROLO COMPACTADOR VIBRATÓRIO TANDEM AÇO LISO, POTÊNCIA 58 HP, PESO SEM/COM LASTRO 6,5 / 9,4 T, LARGURA DE TRABALHO 1,2 M - CHI DIURNO | C75: =VLOOKUP(A75,'Comp.SINAPI c_des.'!$G$8:$K$50000,5,FALSE) -> 55.33 | D75: =VLOOKUP(A75,'Comp.SINAPI s_des.'!$G$8:$K$50000,5,FALSE) -> 57.84 | E75: =IF(M.O.!$D$5="c/desoneração",C75,(IF(M.O.!$D$5="s/desoneração",D75))) -> 55.33
A76: 91692 | B76: SERRA CIRCULAR DE BANCADA COM MOTOR ELÉTRICO POTÊNCIA DE 5HP, COM COIFA PARA DISCO 10" - CHP DIURNO | C76: =VLOOKUP(A76,'Comp.SINAPI c_des.'!$G$8:$K$50000,5,FALSE) -> 24.14 | D76: =VLOOKUP(A76,'Comp.SINAPI s_des.'!$G$8:$K$50000,5,FALSE) -> 27.12 | E76: =IF(M.O.!$D$5="c/desoneração",C76,(IF(M.O.!$D$5="s/desoneração",D76))) -> 24.14
A77: 91693 | B77: SERRA CIRCULAR DE BANCADA COM MOTOR ELÉTRICO POTÊNCIA DE 5HP, COM COIFA PARA DISCO 10" - CHI DIURNO | C77: =VLOOKUP(A77,'Comp.SINAPI c_des.'!$G$8:$K$50000,5,FALSE) -> 22.66 | D77: =VLOOKUP(A77,'Comp.SINAPI s_des.'!$G$8:$K$50000,5,FALSE) -> 25.64 | E77: =IF(M.O.!$D$5="c/desoneração",C77,(IF(M.O.!$D$5="s/desoneração",D77))) -> 22.66
A78: 86913 | B78: TORNEIRA CROMADA 1/2" OU 3/4" PARA TANQUE, PADRÃO POPULAR | C78: =VLOOKUP(A78,'Comp.SINAPI c_des.'!$G$8:$K$50000,5,FALSE) -> 77.11 | D78: =VLOOKUP(A78,'Comp.SINAPI s_des.'!$G$8:$K$50000,5,FALSE) -> 77.57 | E78: =IF(M.O.!$D$5="c/desoneração",C78,(IF(M.O.!$D$5="s/desoneração",D78))) -> 77.11
A79: 95875 | B79: TRANSPORTE COM CAMINHÃO BASCULANTE DE 10 M³, EM VIA URBANA PAVIMENTADA, DMT ATÉ 30 KM (UNIDADE: M3XKM) | C79: =VLOOKUP(A79,'Comp.SINAPI c_des.'!$G$8:$K$50000,5,FALSE) -> 1.6 | D79: =VLOOKUP(A79,'Comp.SINAPI s_des.'!$G$8:$K$50000,5,FALSE) -> 1.64 | E79: =IF(M.O.!$D$5="c/desoneração",C79,(IF(M.O.!$D$5="s/desoneração",D79))) -> 1.6
A80: 100947 | B80: TRANSPORTE COM CAMINHÃO CARROCERIA 9T, EM VIA URBANA PAVIMENTADA, DMT ATÉ 30KM (UNIDADE: TXKM) | C80: =VLOOKUP(A80,'Comp.SINAPI c_des.'!$G$8:$K$50000,5,FALSE) -> 1.69 | D80: =VLOOKUP(A80,'Comp.SINAPI s_des.'!$G$8:$K$50000,5,FALSE) -> 1.73 | E80: =IF(M.O.!$D$5="c/desoneração",C80,(IF(M.O.!$D$5="s/desoneração",D80))) -> 1.69
A81: 100948 | B81: TRANSPORTE COM CAMINHÃO CARROCERIA 9T, EM VIA URBANA PAVIMENTADA, ADICIONAL PARA DMT EXCEDENTE A 30 KM (UNIDADE: TXKM) | C81: =VLOOKUP(A81,'Comp.SINAPI c_des.'!$G$8:$K$50000,5,FALSE) -> 0.67 | D81: =VLOOKUP(A81,'Comp.SINAPI s_des.'!$G$8:$K$50000,5,FALSE) -> 0.68 | E81: =IF(M.O.!$D$5="c/desoneração",C81,(IF(M.O.!$D$5="s/desoneração",D81))) -> 0.67
A82: 91120 | B82: TRANSPORTE HORIZONTAL, TUBOS AÇO CARBONO LEVE/MÉDIO, PRETO/GALVANIZADO, COM DIÂM. MAIOR QUE 40 MM E MENOR OU IGUAL A 65 MM, MANUAL, 30 M | C82: =VLOOKUP(A82,'Comp.SINAPI c_des.'!$G$8:$K$50000,5,FALSE) ->  | D82: =VLOOKUP(A82,'Comp.SINAPI s_des.'!$G$8:$K$50000,5,FALSE) ->  | E82: =IF(M.O.!$D$5="c/desoneração",C82,(IF(M.O.!$D$5="s/desoneração",D82))) -> 
A83: 89032 | B83: TRATOR DE ESTEIRAS, POTÊNCIA 100 HP, PESO OPERACIONAL 9,4 T, COM LÂMINA 2,19 M3 - CHP DIURNO | C83: =VLOOKUP(A83,'Comp.SINAPI c_des.'!$G$8:$K$50000,5,FALSE) -> 176.1 | D83: =VLOOKUP(A83,'Comp.SINAPI s_des.'!$G$8:$K$50000,5,FALSE) -> 179.79 | E83: =IF(M.O.!$D$5="c/desoneração",C83,(IF(M.O.!$D$5="s/desoneração",D83))) -> 176.1
A84: 89031 | B84: TRATOR DE ESTEIRAS, POTÊNCIA 100 HP, PESO OPERACIONAL 9,4 T, COM LÂMINA 2,19 M3 - CHI DIURNO | C84: =VLOOKUP(A84,'Comp.SINAPI c_des.'!$G$8:$K$50000,5,FALSE) -> 64.79 | D84: =VLOOKUP(A84,'Comp.SINAPI s_des.'!$G$8:$K$50000,5,FALSE) -> 68.48 | E84: =IF(M.O.!$D$5="c/desoneração",C84,(IF(M.O.!$D$5="s/desoneração",D84))) -> 64.79
A85: 5851 | B85: TRATOR DE ESTEIRAS, POTÊNCIA 150 HP, COM LÂMINA (chp) | C85: =VLOOKUP(A85,'Comp.SINAPI c_des.'!$G$8:$K$50000,5,FALSE) -> 231.78 | D85: =VLOOKUP(A85,'Comp.SINAPI s_des.'!$G$8:$K$50000,5,FALSE) -> 235.47 | E85: =IF(M.O.!$D$5="c/desoneração",C85,(IF(M.O.!$D$5="s/desoneração",D85))) -> 231.78
A86: 5853 | B86: TRATOR DE ESTEIRAS, POTÊNCIA 150 HP, COM LÂMINA (chi) | C86: =VLOOKUP(A86,'Comp.SINAPI c_des.'!$G$8:$K$50000,5,FALSE) -> 75.96 | D86: =VLOOKUP(A86,'Comp.SINAPI s_des.'!$G$8:$K$50000,5,FALSE) -> 79.65 | E86: =IF(M.O.!$D$5="c/desoneração",C86,(IF(M.O.!$D$5="s/desoneração",D86))) -> 75.96
A87: 89714 | B87: TUBO PVC, SERIE NORMAL, ESGOTO PREDIAL, DN 100 MM, FORNECIDO E INSTALADO | C87: =VLOOKUP(A87,'Comp.SINAPI c_des.'!$G$8:$K$50000,5,FALSE) -> 55.16 | D87: =VLOOKUP(A87,'Comp.SINAPI s_des.'!$G$8:$K$50000,5,FALSE) -> 58.27 | E87: =IF(M.O.!$D$5="c/desoneração",C87,(IF(M.O.!$D$5="s/desoneração",D87))) -> 55.16
A88: 89401 | B88: TUBO, PVC, SOLDÁVEL, DN 20MM - FORNECIMENTO E INSTALAÇÃO | C88: =VLOOKUP(A88,'Comp.SINAPI c_des.'!$G$8:$K$50000,5,FALSE) -> 8.63 | D88: =VLOOKUP(A88,'Comp.SINAPI s_des.'!$G$8:$K$50000,5,FALSE) -> 9.03 | E88: =IF(M.O.!$D$5="c/desoneração",C88,(IF(M.O.!$D$5="s/desoneração",D88))) -> 8.63
A89: 90586 | B89: VIBRADOR DE IMERSÃO, DIÂMETRO DE PONTEIRA 45 mm, MOTOR ELÉTRICO TRIFÁSICO POTÊNCIA DE 2 CV - CHP DIURNO | C89: =VLOOKUP(A89,'Comp.SINAPI c_des.'!$G$8:$K$50000,5,FALSE) -> 1.14 | D89: =VLOOKUP(A89,'Comp.SINAPI s_des.'!$G$8:$K$50000,5,FALSE) -> 1.14 | E89: =IF(M.O.!$D$5="c/desoneração",C89,(IF(M.O.!$D$5="s/desoneração",D89))) -> 1.14
A90: 90587 | B90: VIBRADOR DE IMERSÃO, DIÂMETRO DE PONTEIRA 45 mm MOTOR ELÉTRICO TRIFÁSICO POTÊNCIA DE 2 CV - CHI DIURNO | C90: =VLOOKUP(A90,'Comp.SINAPI c_des.'!$G$8:$K$50000,5,FALSE) -> 0.35 | D90: =VLOOKUP(A90,'Comp.SINAPI s_des.'!$G$8:$K$50000,5,FALSE) -> 0.35 | E90: =IF(M.O.!$D$5="c/desoneração",C90,(IF(M.O.!$D$5="s/desoneração",D90))) -> 0.35

Sheet Insumos
A1: INSUMOS
A3: =IF('Atualizações Cotações'!$B$4="NÃO",CONCATENATE("Data Base SINAPI: ",M.O.!$E$17," - Data das Cotações: ",Cotações!$N$3),CONCATENATE("Data Base SINAPI: ",M.O.!$E$17," - Data das Cotações: Janeiro/22 e ",Cotações!$N$3," (Atualizadas pelo INCC de ",'Atualizações Cotações'!A11:B11,"/",'Atualizações Cotações'!$C$11,")")) -> Data Base SINAPI: Janeiro/22 - Data das Cotações: Janeiro/22 e Abril/19 (Atualizadas pelo INCC de Janeiro/2022)
C6: Mão-de-obra
C7: Equipamento
C8: Material
A9: L. S. Horistas: | C9: =+M.O.!$D$7 -> 0.8231
A10: L. S. Mensalistas: | C10: =+M.O.!$D$8 -> 0.4598
A12: Item | B12: Código | C12: Insumo | D12: Un | E12: Tipo | F12: Origem | G12: Valor | H12: Observações
A13: 1 | B13: =+M.O.!A19 -> 88238 | C13: Ajudante de armador c/encargos complementares | D13: h | E13: MO | F13: SINAPI | G13: =+M.O.!$E$19 -> 16.95 | H13: Composição
A14: =+A13+1 -> 2 | B14: =+M.O.!A20 -> 88239 | C14: Ajudante de carpinteiro c/encargos complementares | D14: h | E14: MO | F14: SINAPI | G14: =+M.O.!$E$20 -> 16.87 | H14: Composição
A15: 3 | B15: =+M.O.!A31 -> 88245 | C15: Armador c/encargos complementares | D15: h | E15: MO | F15: SINAPI | G15: =+M.O.!$E$31 -> 20.22 | H15: Composição
A16: 4 | B16: =+M.O.!A21 -> 88247 | C16: Auxiliar de eletricista c/encargos complementares | D16: h | E16: MO | F16: SINAPI | G16: =+M.O.!$E$21 -> 16.03 | H16: Composição
A17: 5 | B17: =+M.O.!A23 -> 88248 | C17: Auxiliar de encanador c/encargos complementares | D17: h | E17: MO | F17: SINAPI | G17: =+M.O.!$E$23 -> 15.34 | H17: Composição
A18: 6 | B18: =+M.O.!A24 -> 88251 | C18: Auxiliar de serralheiro c/encargos complementares | D18: h | E18: MO | F18: SINAPI | G18: =+M.O.!$E$24 -> 17.87 | H18: Composição
A19: 7 | B19: =+M.O.!A22 -> 88253 | C19: Auxiliar de topógrafo c/encargos complemetares | D19: h | E19: MO | F19: SINAPI | G19: =+M.O.!$E$22 -> 13.02 | H19: Composição
A20: 8 | B20: =+M.O.!A28 -> 88260 | C20: Calceteiro c/encargos complementares | D20: h | E20: MO | F20: SINAPI | G20: =+M.O.!$E$28 -> 17.98 | H20: Composição
A21: 9 | B21: =+M.O.!A27 -> 88262 | C21: Carpinteiro c/encargos complementares | D21: h | E21: MO | F21: SINAPI | G21: =+M.O.!$E$27 -> 20.1 | H21: Composição
A22: 10 | B22: =+M.O.!A47 -> 88597 | C22: Desenhista detalhista c/encargos complementares | D22: h | E22: MO | F22: SINAPI | G22: =+M.O.!$E$47 -> 34.46 | H22: Composição
A23: 11 | B23: =+M.O.!A34 -> 88264 | C23: Eletricista c/encargos complementares | D23: h | E23: MO | F23: SINAPI | G23: =+M.O.!$E$34 -> 20.73 | H23: Composição
A24: 12 | B24: =+M.O.!A35 -> 88267 | C24: Encanador c/encargos complementares | D24: h | E24: MO | F24: SINAPI | G24: =+M.O.!$E$35 -> 19.9 | H24: Composição
A25: 13 | B25: =+M.O.!A44 -> 93572 | C25: Encarregado c/encargos complementares | D25: ms | E25: MO | F25: SINAPI | G25: =+M.O.!$E$44 -> 7377.72 | H25: Composição
A26: 14 | B26: =+M.O.!A48 -> 90778 | C26: Engenheiro Civil de Obra c/encargos complementares | D26: h | E26: MO | F26: SINAPI | G26: =+M.O.!$E$48 -> 99.09 | H26: Composição
A27: 15 | B27: =+M.O.!A33 -> 88441 | C27: Jardineiro c/encargos complementares | D27: h | E27: MO | F27: SINAPI | G27: =+M.O.!$E$33 -> 16.97 | H27: Composição
A28: 16 | B28: =+M.O.!A29 -> 88256 | C28: Ladrilhista c/encargos complementares | D28: h | E28: MO | F28: SINAPI | G28: =+M.O.!$E$29 -> 20.26 | H28: Composição
A29: 17 | B29: =+M.O.!A45 -> 94295 | C29: Mestre de Obras c/encargos complementares | D29: ms | E29: MO | F29: SINAPI | G29: =+M.O.!$E$45 -> 10997.84 | H29: Composição
A30: 18 | B30: =+M.O.!A37 -> 88281 | C30: Motorista de caminhão c/encargos complementares | D30: h | E30: MO | F30: SINAPI | G30: =+M.O.!$E$37 -> 21.04 | H30: Composição
A31: 19 | B31: =+M.O.!A38 -> 88286 | C31: Motorista Operador de Munck c/encargos complementares | D31: h | E31: MO | F31: SINAPI | G31: =+M.O.!$E$38 -> 22.65 | H31: Composição
A32: 20 | B32: =+M.O.!A39 -> 88377 | C32: Operador de betoneira c/encargos complementares | D32: h | E32: MO | F32: SINAPI | G32: =+M.O.!$E$39 -> 19.74 | H32: Composição
A33: 21 | B33: =+M.O.!A40 -> 88294 | C33: Operador de escavadeira c/encargos complementares | D33: h | E33: MO | F33: SINAPI | G33: =+M.O.!$E$40 -> 26.13 | H33: Composição
A34: 22 | B34: =+M.O.!A41 -> 88297 | C34: Operador de máquinas e equipamentos c/encargos complementares | D34: h | E34: MO | F34: SINAPI | G34: =+M.O.!$E$41 -> 22.56 | H34: Composição
A35: 23 | B35: =+M.O.!A25 -> 88309 | C35: Pedreiro c/encargos complementares | D35: h | E35: MO | F35: SINAPI | G35: =+M.O.!$E$25 -> 20.34 | H35: Composição
A36: 24 | B36: =+M.O.!A26 -> 88310 | C36: Pintor c/encargos complementares | D36: h | E36: MO | F36: SINAPI | G36: =+M.O.!$E$26 -> 21.41 | H36: Composição
A37: 25 | B37: =+M.O.!A32 -> 88315 | C37: Serralheiro c/encargos complementares | D37: h | E37: MO | F37: SINAPI | G37: =+M.O.!$E$32 -> 20.22 | H37: Composição
A38: 26 | B38: =+M.O.!A18 -> 88316 | C38: Servente c/encargos complementares | D38: h | E38: MO | F38: SINAPI | G38: =+M.O.!$E$18 -> 16.92 | H38: Composição
A39: 27 | B39: =+M.O.!A36 -> 88317 | C39: Soldador | D39: h | E39: MO | F39: SINAPI | G39: =+M.O.!$E$36 -> 24.39 | H39: Composição
A40: 28 | B40: =+M.O.!A30 -> 88323 | C40: Telhadista c/encargos complementares | D40: h | E40: MO | F40: SINAPI | G40: =+M.O.!$E$30 -> 20.48 | H40: Composição
A41: 29 | B41: =+M.O.!A46 -> 90781 | C41: Topógrafo c/encargos complementares | D41: h | E41: MO | F41: SINAPI | G41: =+M.O.!$E$46 -> 29.66 | H41: Composição
A42: 30 | B42: =+M.O.!A42 -> 88324 | C42: Tratorista c/encargos complementares | D42: h | E42: MO | F42: SINAPI | G42: =+M.O.!$E$42 -> 27.07 | H42: Composição
A43: 31 | B43: =+M.O.!A43 -> 88326 | C43: Vigia (SINAPI) | D43: h | E43: MO | F43: SINAPI | G43: =+M.O.!$E$43 -> 21.21 | H43: Composição
A44: 32 | B44: - | C44: Vigia domingos e feriados c/encargos complementares | D44: h | E44: MO | F44: Sindicato | G44: =IF(M.O.!$D$5="c/desoneração",Vigia!AM52,Vigia!AM54) -> 27.37 | H44: Vem da planilha "Vigia"
A45: 33 | B45: - | C45: Vigia horas diurnas c/encargos complementares | D45: h | E45: MO | F45: Sindicato | G45: =IF(M.O.!$D$5="c/desoneração",Vigia!AM46,Vigia!AM48) -> 16.1
A46: 34 | B46: - | C46: Vigia horas noturnas regime 12x36 c/encargos complementares | D46: ms | E46: MO | F46: Sindicato | G46: =IF(M.O.!$D$5="c/desoneração",Vigia!AL36,Vigia!AL37) -> 3246.69
A47: =+A46+1 -> 35 | B47: =+Cotações!A10 -> 2 | C47: Betoneira 400 l Locação | D47: d | E47: EQ | F47: Cotação | G47: =TRUNC(SMALL(Cotações!M10:N10,1)*(1+'Atualizações Cotações'!$J$9),2) -> 64.15
A48: =+A47+1 -> 36 | B48: =+Cotações!A18 -> 9 | C48: Compressor de ar 175 PCM c/martelete pneumático Locação | D48: h | E48: EQ | F48: Cotação | G48: =TRUNC(SMALL(Cotações!M18:N18,1)*(1+'Atualizações Cotações'!$J$9),2) -> 609.45 | H48: Dividir por 8 h
A49: 37 | B49: =+Cotações!A12 -> 4 | C49: Acabadora de superfície (helicóptero) + pás | D49: h | E49: EQ | F49: Cotação | G49: =TRUNC(SMALL(Cotações!M12:N12,1)*(1+'Atualizações Cotações'!$J$9),2) -> 327.17
A50: 38 | B50: =+Cotações!A15 -> 7 | C50: Cortadora de piso Locação | D50: d | E50: EQ | F50: Cotação | G50: =TRUNC(SMALL(Cotações!M15:N15,1)*(1+'Atualizações Cotações'!$J$9),2) -> 76.98
A51: 39 | B51: =+Cotações!A16 -> 8 | C51: Esmerilhadeira | D51: d | E51: EQ | F51: Cotação | G51: =TRUNC(SMALL(Cotações!M16:N16,1)*(1+'Atualizações Cotações'!$J$9),2) -> 25.66
A52: 40 | B52: =+Cotações!A11 -> 3 | C52: Motor elétrico p/vibrador Locação | D52: d | E52: EQ | F52: Cotação | G52: =TRUNC(SMALL(Cotações!M11:N11,1)*(1+'Atualizações Cotações'!$J$9),2) -> 32.07
A53: 41 | B53: =+Cotações!A8 -> 1 | C53: Nível a laser | D53: d | E53: EQ | F53: Cotação | G53: =TRUNC(SMALL(Cotações!M8:N8,1)*(1+'Atualizações Cotações'!$J$9),2) -> 136.85
A54: 42 | B54: 7252 | C54: Locação Nível ótico | D54: h | E54: EQ | F54: SINAPI | G54: =VLOOKUP(B54,'Insumos SINAPI'!$A$8:$E$5279,5,FALSE) -> 2.48
A55: 43 | B55: =+Cotações!A14 -> 6 | C55: Placa Vibratória Reversível Locação | D55: d | E55: EQ | F55: Cotação | G55: =TRUNC(SMALL(Cotações!M14:N14,1)*(1+'Atualizações Cotações'!$J$9),2) -> 115.47
A56: 44 | B56: =+Cotações!A22 -> 11 | C56: Retroescavadeira c/operador Locação | D56: h | E56: EQ | F56: Cotação | G56: =TRUNC(SMALL(Cotações!M22:N22,1)*(1+'Atualizações Cotações'!$J$9),2) -> 153.96
A57: 45 | B57: =+Cotações!A13 -> 5 | C57: Rolo compactador liso | D57: h | E57: EQ | F57: Cotação | G57: =TRUNC(SMALL(Cotações!M13:N13,1)*(1+'Atualizações Cotações'!$J$9),2) -> 69.49
A58: 46 | B58: 7247 | C58: Teodolito | D58: h | E58: EQ | F58: SINAPI | G58: =VLOOKUP(B58,'Insumos SINAPI'!$A$8:$E$5279,5,FALSE) -> 2.48
A59: 47 | B59: 43053 | C59: Aço CA-25 8,0 mm - 0,395 kg/m | D59: kg | E59: MAT | F59: SINAPI | G59: =VLOOKUP(B59,'Insumos SINAPI'!$A$8:$E$5279,5,FALSE) -> 8.95
A60: 48 | B60: 43054 | C60: Aço CA-25 10,0 mm - 0,617 kg/m | D60: kg | E60: MAT | F60: SINAPI | G60: =VLOOKUP(B60,'Insumos SINAPI'!$A$8:$E$5279,5,FALSE) -> 10.02
A61: 49 | B61: 43054 | C61: Aço CA-25 12,5 mm - 0,963 kg/m | D61: kg | E61: MAT | F61: SINAPI | G61: =VLOOKUP(B61,'Insumos SINAPI'!$A$8:$E$5279,5,FALSE) -> 10.02
A62: 50 | B62: 43054 | C62: Aço CA-25 16,0 mm - 1,578 kg/m | D62: kg | E62: MAT | F62: SINAPI | G62: =VLOOKUP(B62,'Insumos SINAPI'!$A$8:$E$5279,5,FALSE) -> 10.02
A63: 51 | B63: 43054 | C63: Aço CA-25 20,0 mm - 2,466 kg/m | D63: kg | E63: MAT | F63: SINAPI | G63: =VLOOKUP(B63,'Insumos SINAPI'!$A$8:$E$5279,5,FALSE) -> 10.02
A64: 52 | B64: 34449 | C64: Aço CA-50 6,3 mm (1/4") - 0,248 kg/m | D64: kg | E64: MAT | F64: SINAPI | G64: =VLOOKUP(B64,'Insumos SINAPI'!$A$8:$E$5279,5,FALSE) -> 10.94
A65: 53 | B65: 32 | C65: Aço CA-50 1/4" (6,3 mm) - 0,248 kg/m - Vergalhão | D65: kg | E65: MAT | F65: SINAPI | G65: =VLOOKUP(B65,'Insumos SINAPI'!$A$8:$E$5279,5,FALSE) -> 9.84
A66: 54 | B66: 33 | C66: Aço CA-50 5/16" (8,0 mm) - 0,393 kg/m - Vergalhão | D66: kg | E66: MAT | F66: SINAPI | G66: =VLOOKUP(B66,'Insumos SINAPI'!$A$8:$E$5279,5,FALSE) -> 9.9
A67: =+A66+1 -> 55 | B67: 43058 | C67: Aço CA-50 10,0 mm (3/8") dobrado e cortado - 0,624 kg/m | D67: kg | E67: MAT | F67: SINAPI | G67: =VLOOKUP(B67,'Insumos SINAPI'!$A$8:$E$5279,5,FALSE) -> 9.28
A68: 56 | B68: 43058 | C68: Aço CA-50 12,5 mm (1/2") dobrado e cortado - 0,963 kg/m | D68: kg | E68: MAT | F68: SINAPI | G68: =VLOOKUP(B68,'Insumos SINAPI'!$A$8:$E$5279,5,FALSE) -> 9.28
A69: 57 | B69: 43058 | C69: Aço CA-50 16,0 mm (5/8") dobrado e cortado - 1,570 kg/m | D69: kg | E69: MAT | F69: SINAPI | G69: =VLOOKUP(B69,'Insumos SINAPI'!$A$8:$E$5279,5,FALSE) -> 9.28
A70: 58 | B70: 43058 | C70: Aço CA-50 20,0 mm (3/4") dobrado e cortado- 2,480 kg/m | D70: kg | E70: MAT | F70: SINAPI | G70: =VLOOKUP(B70,'Insumos SINAPI'!$A$8:$E$5279,5,FALSE) -> 9.28
A71: 59 | B71: 43061 | C71: Aço CA-60 4,2mm dobrado e cortado - 0,109 kg/m | D71: kg | E71: MAT | F71: SINAPI | G71: =VLOOKUP(B71,'Insumos SINAPI'!$A$8:$E$5279,5,FALSE) -> 9.25
A72: 60 | B72: 36 | C72: Aço CA-60 4,2mm - 0,109 kg/m - Vergalhão | D72: kg | E72: MAT | F72: SINAPI | G72: =VLOOKUP(B72,'Insumos SINAPI'!$A$8:$E$5279,5,FALSE) -> 
A73: 61 | B73: 43061 | C73: Aço CA-60 5,0 mm dobrado e cortado - 0,157 kg/m | D73: kg | E73: MAT | F73: SINAPI | G73: =VLOOKUP(B73,'Insumos SINAPI'!$A$8:$E$5279,5,FALSE) -> 9.25
A74: 62 | B74: 39 | C74: Aço CA-60 5,0 mm - 0,157 kg/m - Vergalhão | D74: kg | E74: MAT | F74: SINAPI | G74: =VLOOKUP(B74,'Insumos SINAPI'!$A$8:$E$5279,5,FALSE) -> 
A75: 63 | B75: 43062 | C75: Aço CA-60 6,0 mm dobrado e cortado - 0,222 kg/m | D75: kg | E75: MAT | F75: SINAPI | G75: =VLOOKUP(B75,'Insumos SINAPI'!$A$8:$E$5279,5,FALSE) -> 9.78
A76: 64 | B76: 40 | C76: Aço CA-60 6,0 mm - 0,222 kg/m - Vergalhão | D76: kg | E76: MAT | F76: SINAPI | G76: =VLOOKUP(B76,'Insumos SINAPI'!$A$8:$E$5279,5,FALSE) -> 
A77: 65 | B77: 122 | C77: Adesivo Plástico para PVC, frasco com 850 g | D77: un | E77: MAT | F77: SINAPI | G77: =VLOOKUP(B77,'Insumos SINAPI'!$A$8:$E$5279,5,FALSE) -> 79.94
A78: 66 | B78: =+Cotações!A162 -> 119 | C78: Água tratada | D78: m³ | E78: MAT | F78: Cotação | G78: =TRUNC(SMALL(Cotações!M162:N162,1),2) -> 4.66 | H78: Atualizado
A79: 67 | B79: 10527 | C79: Andaime metálico, tipo torre, largura de 1 a 1,5 m e altura de 1 m locação | D79: mxmês | E79: MAT | F79: SINAPI | G79: =VLOOKUP(B79,'Insumos SINAPI'!$A$8:$E$5279,5,FALSE) -> 25
A80: 68 | B80: 43131 | C80: Arame Galvanizado 8 BWG (0,101 kg/m) | D80: kg | E80: MAT | F80: SINAPI | G80: =VLOOKUP(B80,'Insumos SINAPI'!$A$8:$E$5279,5,FALSE) -> 29.21
A81: 69 | B81: 43131 | C81: Arame Galvanizado 10 BWG (0,0713 kg/m) | D81: kg | E81: MAT | F81: SINAPI | G81: =VLOOKUP(B81,'Insumos SINAPI'!$A$8:$E$5279,5,FALSE) -> 29.21
A82: 70 | B82: 43130 | C82: Arame Galvanizado 12 BWG (0,048 kg / m) | D82: kg | E82: MAT | F82: SINAPI | G82: =VLOOKUP(B82,'Insumos SINAPI'!$A$8:$E$5279,5,FALSE) -> 25.15
A83: 71 | B83: 43130 | C83: Arame galvanizado 14 BWG (0,026 kg/m) | D83: kg | E83: MAT | F83: SINAPI | G83: =VLOOKUP(B83,'Insumos SINAPI'!$A$8:$E$5279,5,FALSE) -> 25.15
A84: 72 | B84: 43132 | C84: Arame Recozido 18 BWG | D84: kg | E84: MAT | F84: SINAPI | G84: =VLOOKUP(B84,'Insumos SINAPI'!$A$8:$E$5279,5,FALSE) -> 25.15
A85: 73 | B85: 366 | C85: Areia fina | D85: m³ | E85: MAT | F85: SINAPI | G85: =VLOOKUP(B85,'Insumos SINAPI'!$A$8:$E$5279,5,FALSE) -> 69
A86: 74 | B86: 367 | C86: Areia grossa | D86: m³ | E86: MAT | F86: SINAPI | G86: =VLOOKUP(B86,'Insumos SINAPI'!$A$8:$E$5279,5,FALSE) -> 69.9
A87: 75 | B87: 370 | C87: Areia média | D87: m³ | E87: MAT | F87: SINAPI | G87: =VLOOKUP(B87,'Insumos SINAPI'!$A$8:$E$5279,5,FALSE) -> 69
A88: 76 | B88: =+Cotações!A157 -> 115 | C88: Areia Peneirada - posto obra | D88: m³ | E88: MAT | F88: Cotação | G88: =TRUNC(SMALL(Cotações!M157:N157,1)*(1+'Atualizações Cotações'!$J$9),2) -> 86.6
A89: 77 | B89: 1381 | C89: Argamassa Colante AC-I | D89: kg | E89: MAT | F89: SINAPI | G89: =VLOOKUP(B89,'Insumos SINAPI'!$A$8:$E$5279,5,FALSE) -> 0.6
A90: 78 | B90: 6081 | C90: Argila ou Barro para aterro ou reaterro | D90: m³ | E90: MAT | F90: SINAPI | G90: =VLOOKUP(B90,'Insumos SINAPI'!$A$8:$E$5279,5,FALSE) -> 47.52
A91: 79 | B91: 1094 | C91: Armação vertical com haste e contra-pino, em chapa de FG 3/16", com 1 estribo, sem isolador | D91: un | E91: MAT | F91: SINAPI | G91: =VLOOKUP(B91,'Insumos SINAPI'!$A$8:$E$5279,5,FALSE) -> 23.96
A92: 80 | B92: 1096 | C92: Armação vertical com haste e contra-pino, em chapa de FG 3/16", com 4 estribos e 4 isoladores | D92: un | E92: MAT | F92: SINAPI | G92: 59.34
A93: 81 | B93: 39210 | C93: Arruela em alumínio, com rosca, de 1", para eletroduto | D93: un | E93: MAT | F93: SINAPI | G93: =VLOOKUP(B93,'Insumos SINAPI'!$A$8:$E$5279,5,FALSE) -> 0.84
A94: 82 | B94: 11267 | C94: Arruela redonda de latão, diâmetro externo = 34 mm, espessura = 2,5 mm, diâmetro do furo = 17 mm | D94: un | E94: MAT | F94: SINAPI | G94: =VLOOKUP(B94,'Insumos SINAPI'!$A$8:$E$5279,5,FALSE) -> 0.8
A95: 83 | B95: =+Cotações!A180 -> 129 | C95: ART | D95: un | E95: MAT | F95: Cotação | G95: =TRUNC(SMALL(Cotações!M180:N180,1),2) -> 233.94 | H95: Atualizado
A96: 84 | B96: =+Cotações!A111 -> 83 | C96: (ATI) Abdominal | D96: un | E96: MAT | F96: Cotação | G96: =TRUNC(SMALL(Cotações!M111:N111,1)*(1+'Atualizações Cotações'!$J$9),2) -> 3432.16
A97: 85 | B97: =+Cotações!A112 -> 84 | C97: (ATI) Adução e abdução de pernas duplo | D97: un | E97: MAT | F97: Cotação | G97: =TRUNC(SMALL(Cotações!M112:N112,1)*(1+'Atualizações Cotações'!$J$9),2) -> 6114.39
A98: 86 | B98: =+Cotações!A113 -> 85 | C98: (ATI) Esqui triplo conjugado | D98: un | E98: MAT | F98: Cotação | G98: =TRUNC(SMALL(Cotações!M113:N113,1)*(1+'Atualizações Cotações'!$J$9),2) -> 7737.45
A99: 87 | B99: =+Cotações!A114 -> 86 | C99: (ATI) Jogo de barras | D99: un | E99: MAT | F99: Cotação | G99: =TRUNC(SMALL(Cotações!M114:N114,1)*(1+'Atualizações Cotações'!$J$9),2) -> 5132.21
A100: 88 | B100: =+Cotações!A115 -> 87 | C100: (ATI) Multiexercitador conjugado 6 funções | D100: un | E100: MAT | F100: Cotação | G100: =TRUNC(SMALL(Cotações!M115:N115,1)*(1+'Atualizações Cotações'!$J$9),2) -> 8021
A101: 89 | B101: =+Cotações!A116 -> 88 | C101: (ATI) Peitoral duplo | D101: un | E101: MAT | F101: Cotação | G101: =TRUNC(SMALL(Cotações!M116:N116,1)*(1+'Atualizações Cotações'!$J$9),2) -> 6495.45
A102: 90 | B102: =+Cotações!A117 -> 89 | C102: (ATI) Placa orientativa | D102: un | E102: MAT | F102: Cotação | G102: =TRUNC(SMALL(Cotações!M117:N117,1)*(1+'Atualizações Cotações'!$J$9),2) -> 3919.72
A103: 91 | B103: =+Cotações!A118 -> 90 | C103: (ATI) Pressão de pernas triplo conjugado | D103: un | E103: MAT | F103: Cotação | G103: =TRUNC(SMALL(Cotações!M118:N118,1)*(1+'Atualizações Cotações'!$J$9),2) -> 5471.58
A104: 92 | B104: =+Cotações!A119 -> 91 | C104: (ATI) Puxador duplo | D104: un | E104: MAT | F104: Cotação | G104: =TRUNC(SMALL(Cotações!M119:N119,1)*(1+'Atualizações Cotações'!$J$9),2) -> 6518.55
A105: 93 | B105: =+Cotações!A120 -> 92 | C105: (APC) Remada | D105: un | E105: MAT | F105: Cotação | G105: =TRUNC(SMALL(Cotações!M120:N120,1)*(1+'Atualizações Cotações'!$J$9),2) -> 3448.2
A106: 94 | B106: =+Cotações!A121 -> 93 | C106: (ATI) Simulador de caminhada triplo conjugado | D106: un | E106: MAT | F106: Cotação | G106: =TRUNC(SMALL(Cotações!M121:N121,1)*(1+'Atualizações Cotações'!$J$9),2) -> 7255.66
A107: 95 | B107: =+Cotações!A122 -> 94 | C107: (ATI) Simulador de remo | D107: un | E107: MAT | F107: Cotação | G107: =TRUNC(SMALL(Cotações!M122:N122,1)*(1+'Atualizações Cotações'!$J$9),2) -> 4131.43
A108: 96 | B108: =+Cotações!A123 -> 95 | C108: (APC) Voador peitoral e voador dorsal | D108: un | E108: MAT | F108: Cotação | G108: =TRUNC(SMALL(Cotações!M123:N123,1)*(1+'Atualizações Cotações'!$J$9),2) -> 4372
A109: 97 | B109: =+Cotações!A25 -> 13 | C109: Balizador h=1,05 m | D109: ms | E109: MAT | F109: Cotação | G109: =TRUNC(SMALL(Cotações!M25:N25,1)*(1+'Atualizações Cotações'!$J$9),2) -> 71.59
A110: 98 | B110: 546 | C110: Barra de ferro chata, retangular (qualquer bitola) | D110: kg | E110: MAT | F110: SINAPI | G110: =VLOOKUP(B110,'Insumos SINAPI'!$A$8:$E$5279,5,FALSE) -> 10.29
A111: 99 | B111: 563 | C111: Barra ferro chato 38,1 mm x 9,53 mm | D111: kg | E111: MAT | F111: SINAPI | G111: =VLOOKUP(B111,'Insumos SINAPI'!$A$8:$E$5279,5,FALSE) -> 29.52
A112: 100 | B112: =+Cotações!A80 -> 61 | C112: Barra ferro chato 7/8" X 1/8" | D112: kg | E112: MAT | F112: Cotação | G112: =TRUNC(SMALL(Cotações!M80:N80,1)*(1+'Atualizações Cotações'!$J$9),2) -> 5.86
A113: 101 | B113: =+Cotações!A81 -> 62 | C113: Barra ferro chato 7/8" x 1/4" | D113: kg | E113: MAT | F113: Cotação | G113: =TRUNC(SMALL(Cotações!M81:N81,1)*(1+'Atualizações Cotações'!$J$9),2) -> 5.97
A114: 102 | B114: 546 | C114: Barra ferro chato 1" x 1/8" | D114: kg | E114: MAT | F114: SINAPI | G114: =VLOOKUP(B114,'Insumos SINAPI'!$A$8:$E$5279,5,FALSE) -> 10.29
A115: 103 | B115: =+Cotações!A82 -> 63 | C115: Barra ferro chato 1 1/4" x 1/4" | D115: kg | E115: MAT | F115: Cotação | G115: =TRUNC(SMALL(Cotações!M82:N82,1)*(1+'Atualizações Cotações'!$J$9),2) -> 5.88
A116: 104 | B116: 563 | C116: Barra ferro chato 1 1/2" x 3/8" | D116: kg | E116: MAT | F116: SINAPI | G116: =VLOOKUP(B116,'Insumos SINAPI'!$A$8:$E$5279,5,FALSE) -> 29.52 | H116: Dividir por 2,84
A117: 105 | B117: =+Cotações!A83 -> 64 | C117: Barra ferro chato 2" x 1/8" | D117: kg | E117: MAT | F117: Cotação | G117: =TRUNC(SMALL(Cotações!M83:N83,1)*(1+'Atualizações Cotações'!$J$9),2) -> 6.36
A118: 106 | B118: 547 | C118: Barra ferro chato 50 mm x 9,53 mm | D118: m | E118: MAT | F118: SINAPI | G118: =VLOOKUP(B118,'Insumos SINAPI'!$A$8:$E$5279,5,FALSE) -> 39.39
A119: 107 | B119: =+Cotações!A125 -> 96 | C119: Basalto irregular | D119: m² | E119: MAT | F119: Cotação | G119: =TRUNC(SMALL(Cotações!M125:N125,1)*(1+'Atualizações Cotações'!$J$9),2) -> 42.76
A120: 108 | B120: =+Cotações!A126 -> 97 | C120: Basalto irregular meio retalhão | D120: m² | E120: MAT | F120: Cotação | G120: =TRUNC(SMALL(Cotações!M126:N126,1)*(1+'Atualizações Cotações'!$J$9),2) -> 134.72
A121: 109 | B121: =+Cotações!A127 -> 98 | C121: Basalto regular talhado | D121: m² | E121: MAT | F121: Cotação | G121: =TRUNC(SMALL(Cotações!M127:N127,1)*(1+'Atualizações Cotações'!$J$9),2) -> 89.37
A122: 110 | B122: =+Cotações!A128 -> 99 | C122: Basalto regular serrado | D122: m² | E122: MAT | F122: Cotação | G122: =TRUNC(SMALL(Cotações!M128:N128,1)*(1+'Atualizações Cotações'!$J$9),2) -> 115.79
A123: 111 | B123: 36155 | C123: Bloco concreto tipo holandês cor natural - 6 cm - 35 MPa | D123: m² | E123: MAT | F123: SINAPI | G123: =VLOOKUP(B123,'Insumos SINAPI'!$A$8:$E$5279,5,FALSE) -> 41.95
A124: 112 | B124: 36156 | C124: Bloco concreto tipo holandês colorido - 6 cm - 35 MPa | D124: m² | E124: MAT | F124: SINAPI | G124: =VLOOKUP(B124,'Insumos SINAPI'!$A$8:$E$5279,5,FALSE) -> 48.6
A125: 113 | B125: 36170 | C125: Bloco concreto tipo holandês cor natural - 8 cm - 35 MPa | D125: m² | E125: MAT | F125: SINAPI | G125: =VLOOKUP(B125,'Insumos SINAPI'!$A$8:$E$5279,5,FALSE) -> 53
A126: 114 | B126: =+Cotações!A158 -> 116 | C126: Brita 1 ou 2 - posto obra | D126: m³ | E126: MAT | F126: Cotação | G126: =TRUNC(SMALL(Cotações!M158:N158,1)*(1+'Atualizações Cotações'!$J$9),2) -> 83.39
A127: 115 | B127: 4350 | C127: Bucha de nylon 8 mm, L=40 mm, c/parafuso rosca soberba 4,8 x 50 mm | D127: un | E127: MAT | F127: SINAPI | G127: =VLOOKUP(B127,'Insumos SINAPI'!$A$8:$E$5279,5,FALSE) -> 0.66
A128: 116 | B128: 11950 | C128: Bucha de nylon sem aba S6. com parafuso de 4,2 mm x 4,2 mm em aço zincado com rosca soberba | D128: un | E128: MAT | F128: SINAPI | G128: =VLOOKUP(B128,'Insumos SINAPI'!$A$8:$E$5279,5,FALSE) -> 0.39
A129: 117 | B129: 20086 | C129: Bucha de redução de PVC, longa 50 x 40 mm, esgoto predial | D129: un | E129: MAT | F129: SINAPI | G129: =VLOOKUP(B129,'Insumos SINAPI'!$A$8:$E$5279,5,FALSE) -> 3.06
A130: 118 | B130: 39176 | C130: Bucha em alumínio, com rosca, de 1", para eletroduto | D130: cj | E130: MAT | F130: SINAPI | G130: =VLOOKUP(B130,'Insumos SINAPI'!$A$8:$E$5279,5,FALSE) -> 1.13
A131: 119 | B131: 4375 | C131: Bucha nylon S-6 4,2 x 38 | D131: un | E131: MAT | F131: SINAPI | G131: =VLOOKUP(B131,'Insumos SINAPI'!$A$8:$E$5279,5,FALSE) -> 0.19
A132: 120 | B132: 4376 | C132: Bucha nylon S-8 4,8 x 45 | D132: un | E132: MAT | F132: SINAPI | G132: =VLOOKUP(B132,'Insumos SINAPI'!$A$8:$E$5279,5,FALSE) -> 0.37
A133: 121 | B133: 41954 | C133: Cabo de aço galvanizado, diâmetro 9,53 mm | D133: kg | E133: MAT | F133: SINAPI | G133: =VLOOKUP(B133,'Insumos SINAPI'!$A$8:$E$5279,5,FALSE) -> 79.56
A134: 122 | B134: 857 | C134: Cabo de cobre nu 16 mm² meio duro | D134: m | E134: MAT | F134: SINAPI | G134: =VLOOKUP(B134,'Insumos SINAPI'!$A$8:$E$5279,5,FALSE) -> 16.49
A135: 123 | B135: =+Cotações!A155 -> 114 | C135: Caçamba 4,00 m³ | D135: un | E135: MAT | F135: Cotação | G135: =TRUNC(SMALL(Cotações!M155:N155,1)*(1+'Atualizações Cotações'!$J$9),2) -> 493.97 | H135: =IF('Atualizações Cotações'!$B$4="SIM","Ajustado pelo INCC","") -> Ajustado pelo INCC
A136: =+A135+1 -> 124 | B136: 4496 | C136: Caibro cedrinho 5 x 5 cm | D136: m | E136: MAT | F136: SINAPI | G136: =VLOOKUP(B136,'Insumos SINAPI'!$A$8:$E$5279,5,FALSE) -> 
A137: 125 | B137: =+Cotações!A31 -> 17 | C137: Caibro cedrinho 5 x 7 cm | D137: m | E137: MAT | F137: Cotação | G137: =TRUNC(SMALL(Cotações!M31:N31,1)*(1+'Atualizações Cotações'!$J$9),2) -> 12.5 | H137: =IF('Atualizações Cotações'!$B$4="SIM","Ajustado pelo INCC","") -> Ajustado pelo INCC
A138: 126 | B138: =+Cotações!A32 -> 18 | C138: Caibro cedrinho 5 x 10 cm | D138: m | E138: MAT | F138: Cotação | G138: =TRUNC(SMALL(Cotações!M32:N32,1)*(1+'Atualizações Cotações'!$J$9),2) -> 17.2
A139: 127 | B139: =+Cotações!A33 -> 19 | C139: Caibro cedrinho 5 x 15 cm | D139: m | E139: MAT | F139: Cotação | G139: =TRUNC(SMALL(Cotações!M33:N33,1)*(1+'Atualizações Cotações'!$J$9),2) -> 25.8
A140: 128 | B140: =+Cotações!A34 -> 20 | C140: Caibro cedrinho 8 x 8 cm | D140: m | E140: MAT | F140: Cotação | G140: =TRUNC(SMALL(Cotações!M34:N34,1)*(1+'Atualizações Cotações'!$J$9),2) -> 21.73
A141: 129 | B141: 4430 | C141: Caibro de madeira não aparelhada 5 x 6 cm | D141: m | E141: MAT | F141: SINAPI | G141: =VLOOKUP(B141,'Insumos SINAPI'!$A$8:$E$5279,5,FALSE) -> 7.95
A142: 130 | B142: =+Cotações!A54 -> 39 | C142: Caibro itaúba 5 x 5 cm | D142: m | E142: MAT | F142: Cotação | G142: =TRUNC(SMALL(Cotações!M54:N54,1)*(1+'Atualizações Cotações'!$J$9),2) -> 13.92
A143: 131 | B143: =+Cotações!A55 -> 40 | C143: Caibro itaúba 5 x 7 cm | D143: m | E143: MAT | F143: Cotação | G143: =TRUNC(SMALL(Cotações!M55:N55,1)*(1+'Atualizações Cotações'!$J$9),2) -> 20.93
A144: 132 | B144: =+Cotações!A56 -> 41 | C144: Caibro itaúba 5 x 10 cm | D144: m | E144: MAT | F144: Cotação | G144: =TRUNC(SMALL(Cotações!M56:N56,1)*(1+'Atualizações Cotações'!$J$9),2) -> 27.9
A145: 133 | B145: 4513 | C145: Caibro pinus 5 x 5 cm | D145: m | E145: MAT | F145: SINAPI | G145: =VLOOKUP(B145,'Insumos SINAPI'!$A$8:$E$5279,5,FALSE) -> 4.4
A146: 134 | B146: 34643 | C146: Caixa de inspeção em polietileno para aterramento e para raios, diâmetro = 300 mm | D146: un | E146: MAT | F146: SINAPI | G146: =VLOOKUP(B146,'Insumos SINAPI'!$A$8:$E$5279,5,FALSE) -> 51.53
A147: 135 | B147: 1062 | C147: Caixa de medição com visor, para 1 medidor trifásico, em chapa de aço galvanizado 18 USG | D147: un | E147: MAT | F147: SINAPI | G147: =VLOOKUP(B147,'Insumos SINAPI'!$A$8:$E$5279,5,FALSE) -> 337.18
A148: 136 | B148: 39809 | C148: Caixa para medidor polifásico, em policarbonato/termoplástico, para alojar 1 disjuntor | D148: un | E148: MAT | F148: SINAPI | G148: =VLOOKUP(B148,'Insumos SINAPI'!$A$8:$E$5279,5,FALSE) -> 177.16
A149: 137 | B149: 4777 | C149: Cantoneira aço (abas iguais) qualquer bitola, espessura entre 1/8" e 1/4" | D149: kg | E149: MAT | F149: SINAPI | G149: =VLOOKUP(B149,'Insumos SINAPI'!$A$8:$E$5279,5,FALSE) -> 12.7
A150: 138 | B150: 4777 | C150: Cantoneira ferro 1 1/4" x 3/16" | D150: kg | E150: MAT | F150: SINAPI | G150: =VLOOKUP(B150,'Insumos SINAPI'!$A$8:$E$5279,5,FALSE) -> 12.7
A151: 139 | B151: 4777 | C151: Cantoneira ferro 1 1/2" x 1/4" | D151: kg | E151: MAT | F151: SINAPI | G151: =VLOOKUP(B151,'Insumos SINAPI'!$A$8:$E$5279,5,FALSE) -> 12.7
A152: 140 | B152: 4777 | C152: Cantoneira ferro 3" x 3/16" | D152: kg | E152: MAT | F152: SINAPI | G152: =VLOOKUP(B152,'Insumos SINAPI'!$A$8:$E$5279,5,FALSE) -> 12.7
A153: 141 | B153: =+Cotações!A88 -> 68 | C153: Chapa aço inox e=1,00 mm | D153: m² | E153: MAT | F153: Cotação | G153: =TRUNC(SMALL(Cotações!M88:N88,1)*(1+'Atualizações Cotações'!$J$9),2) -> 211.06
A154: 142 | B154: 1357 | C154: Chapa compensado resinado 12 mm | D154: m² | E154: MAT | F154: SINAPI | G154: =VLOOKUP(B154,'Insumos SINAPI'!$A$8:$E$5279,5,FALSE) ->  | H154: Dividir por 2,42 m²
A155: 143 | B155: 1347 | C155: Chapa de madeira compensada plastificada 12 mm | D155: m² | E155: MAT | F155: SINAPI | G155: =VLOOKUP(B155,'Insumos SINAPI'!$A$8:$E$5279,5,FALSE) -> 104.07
A156: 144 | B156: 43678 | C156: Chapa de madeira compensada plastificada 14 mm | D156: m² | E156: MAT | F156: SINAPI | G156: =VLOOKUP(B156,'Insumos SINAPI'!$A$8:$E$5279,5,FALSE) -> 120.72
A157: 145 | B157: 1355 | C157: Chapa de madeira compensada resinada 14 mm | D157: m² | E157: MAT | F157: SINAPI | G157: =VLOOKUP(B157,'Insumos SINAPI'!$A$8:$E$5279,5,FALSE) -> 69.45
A158: 146 | B158: 1333 | C158: Chapa de aço 1/2" | D158: kg | E158: MAT | F158: SINAPI | G158: =VLOOKUP(B158,'Insumos SINAPI'!$A$8:$E$5279,5,FALSE) -> 11.83
A159: 147 | B159: 1330 | C159: Chapa de aço 1/4" | D159: kg | E159: MAT | F159: SINAPI | G159: =VLOOKUP(B159,'Insumos SINAPI'!$A$8:$E$5279,5,FALSE) -> 11.72
A160: 148 | B160: 11026 | C160: Chapa galvanizada e=1,95 mm | D160: kg | E160: MAT | F160: SINAPI | G160: =VLOOKUP(B160,'Insumos SINAPI'!$A$8:$E$5279,5,FALSE) -> 14.93
A161: 149 | B161: =+Cotações!A86 -> 67 | C161: Chapa aço 3/16" | D161: kg | E161: MAT | F161: Cotação | G161: =TRUNC(SMALL(Cotações!M86:N86,1)*(1+'Atualizações Cotações'!$J$9),2) -> 6.05
A162: 150 | B162: =+Cotações!A90 -> 69 | C162: Chapa galvanizada 1/2" | D162: kg | E162: MAT | F162: Cotação | G162: =TRUNC(SMALL(Cotações!M90:N90,1)*(1+'Atualizações Cotações'!$J$9),2) -> 9.13
A163: 151 | B163: =+Cotações!A91 -> 70 | C163: Chapa galvanizada 1/4" | D163: kg | E163: MAT | F163: Cotação | G163: =TRUNC(SMALL(Cotações!M91:N91,1)*(1+'Atualizações Cotações'!$J$9),2) -> 9.13
A164: 152 | B164: =+Cotações!A92 -> 71 | C164: Chapa galvanizada 3/16" | D164: kg | E164: MAT | F164: Cotação | G164: =TRUNC(SMALL(Cotações!M92:N92,1)*(1+'Atualizações Cotações'!$J$9),2) -> 9.13
A165: 153 | B165: 34353 | C165: Cimento cola AC-2 | D165: kg | E165: MAT | F165: SINAPI | G165: =VLOOKUP(B165,'Insumos SINAPI'!$A$8:$E$5279,5,FALSE) -> 1.11
A166: 154 | B166: 1379 | C166: Cimento Portland CP-II 32 | D166: kg | E166: MAT | F166: SINAPI | G166: =VLOOKUP(B166,'Insumos SINAPI'!$A$8:$E$5279,5,FALSE) -> 0.7
A167: 155 | B167: 420 | C167: Cinta circular em aço galvanizado de 150 mm de diâmetro para fixação de caixa de medição | D167: un | E167: MAT | F167: SINAPI | G167: =VLOOKUP(B167,'Insumos SINAPI'!$A$8:$E$5279,5,FALSE) -> 35.73
A168: 156 | B168: =+Cotações!A165 -> 121 | C168: CIP | D168: un | E168: MAT | F168: Cotação | G168: =TRUNC(SMALL(Cotações!M165:N165,1)*(1+'Atualizações Cotações'!$J$9),2) -> 28.32
A169: 157 | B169: =+Cotações!A135 -> 103 | C169: Composto orgânico | D169: m³ | E169: MAT | F169: Cotação | G169: =TRUNC(SMALL(Cotações!M135:N135,1)*(1+'Atualizações Cotações'!$J$9),2) -> 186.04
A170: 158 | B170: 34492 | C170: Concreto usinado bombeável, fck=20 MPa, slump = 100 +/- 20 mm, exclui serviço de bombeamento | D170: m³ | E170: MAT | F170: SINAPI | G170: =VLOOKUP(B170,'Insumos SINAPI'!$A$8:$E$5279,5,FALSE) -> 416
A171: 159 | B171: 1527 | C171: Concreto usinado bombeável, fck=25 MPa, slump = 100 +/- 20 mm, inclui serviço de bombeamento | D171: m³ | E171: MAT | F171: SINAPI | G171: =VLOOKUP(B171,'Insumos SINAPI'!$A$8:$E$5279,5,FALSE) -> 463.37
A172: 160 | B172: 34493 | C172: Concreto usinado bombeável, fck=25 MPa, slump = 100 +/- 20 mm, exclui serviço de bombeamento | D172: m³ | E172: MAT | F172: SINAPI | G172: =VLOOKUP(B172,'Insumos SINAPI'!$A$8:$E$5279,5,FALSE) -> 427.72
A173: 161 | B173: 1539 | C173: Conector metálico tipo parafuso fendido (split bolt), para cabos até 16 mm² | D173: un | E173: MAT | F173: SINAPI | G173: =VLOOKUP(B173,'Insumos SINAPI'!$A$8:$E$5279,5,FALSE) -> 8.02
A174: 162 | B174: 11864 | C174: Conector metálico tipo parafuso fendido (split bolt), para cabos até 95 mm² | D174: un | E174: MAT | F174: SINAPI | G174: =VLOOKUP(B174,'Insumos SINAPI'!$A$8:$E$5279,5,FALSE) -> 33.49
A175: 163 | B175: 34498 | C175: Cone de sinalização em PVC flexível, h=70/76 cm | D175: un | E175: MAT | F175: SINAPI | G175: =VLOOKUP(B175,'Insumos SINAPI'!$A$8:$E$5279,5,FALSE) -> 114.53
A176: 164 | B176: 1607 | C176: Conjunto arruelas de vedação 5/16" | D176: cj | E176: MAT | F176: SINAPI | G176: =VLOOKUP(B176,'Insumos SINAPI'!$A$8:$E$5279,5,FALSE) -> 0.18
A177: 165 | B177: =+Cotações!A102 -> 77 | C177: Corrente aço galvanizado 5 mm elo longo 22 x 45 mm | D177: kg | E177: MAT | F177: Cotação | G177: =TRUNC(SMALL(Cotações!M102:N102,1)*(1+'Atualizações Cotações'!$J$9),2) -> 29.18
A178: 166 | B178: =+Cotações!A178 -> 128 | C178: CUB-RS R 16-N | D178: un | E178: MAT | F178: Cotação | G178: =TRUNC(SMALL(Cotações!M178:N178,1)*(1+'Atualizações Cotações'!$J$9),2) -> 1895.23
A179: 167 | B179: =+Cotações!A174 -> 126 | C179: Cuba inox p/bebedouro 38 cm | D179: un | E179: MAT | F179: Cotação | G179: =TRUNC(SMALL(Cotações!M174:N174,1)*(1+'Atualizações Cotações'!$J$9),2) -> 193.13
A180: 168 | B180: =+Cotações!A96 -> 73 | C180: Cumeeira galvalume ondulada 0,50 mm | D180: un | E180: MAT | F180: Cotação | G180: =TRUNC(SMALL(Cotações!M96:N96,1)*(1+'Atualizações Cotações'!$J$9),2) -> 35.77
A181: 169 | B181: 7181 | C181: Cumeeira para telha cerâmica | D181: un | E181: MAT | F181: SINAPI | G181: =VLOOKUP(B181,'Insumos SINAPI'!$A$8:$E$5279,5,FALSE) -> 3.51
A182: 170 | B182: 12034 | C182: Curva PVC 180⁰ 3/4" p/eletroduto roscável | D182: un | E182: MAT | F182: SINAPI | G182: =VLOOKUP(B182,'Insumos SINAPI'!$A$8:$E$5279,5,FALSE) -> 5.98
A183: 171 | B183: 1966 | C183: Curva PVC curta 90 esgoto predial 100 mm | D183: un | E183: MAT | F183: SINAPI | G183: =VLOOKUP(B183,'Insumos SINAPI'!$A$8:$E$5279,5,FALSE) -> 29.14
A184: 172 | B184: 1970 | C184: Curva PVC longa 90 esgoto predial 100 mm | D184: un | E184: MAT | F184: SINAPI | G184: =VLOOKUP(B184,'Insumos SINAPI'!$A$8:$E$5279,5,FALSE) -> 61.31
A185: 173 | B185: 2692 | C185: Desmoldante p/formas de madeira | D185: l | E185: MAT | F185: SINAPI | G185: =VLOOKUP(B185,'Insumos SINAPI'!$A$8:$E$5279,5,FALSE) -> 5.91
A186: 174 | B186: 13887 | C186: Disco de corte diamantado para concreto 350 mm | D186: un | E186: MAT | F186: SINAPI | G186: =VLOOKUP(B186,'Insumos SINAPI'!$A$8:$E$5279,5,FALSE) -> 589.52
A187: 175 | B187: =+Cotações!A103 -> 78 | C187: Disco de corte MR 832 - 7" | D187: un | E187: MAT | F187: Cotação | G187: =TRUNC(SMALL(Cotações!M103:N103,1)*(1+'Atualizações Cotações'!$J$9),2) -> 29.38
A188: 176 | B188: 2392 | C188: Disjuntor tipo NEMA, tripolar 10 até 50 A | D188: un | E188: MAT | F188: SINAPI | G188: =VLOOKUP(B188,'Insumos SINAPI'!$A$8:$E$5279,5,FALSE) -> 80.28
A189: 177 | B189: 2433 | C189: Dobradiça em aço/ferro 3 x 2 1/2" s/anel | D189: un | E189: MAT | F189: SINAPI | G189: =VLOOKUP(B189,'Insumos SINAPI'!$A$8:$E$5279,5,FALSE) -> 9.83
A190: 178 | B190: =+Cotações!A186 -> 132 | C190: Dobradiça ferro galvanizado 4" x 3" | D190: un | E190: MAT | F190: Cotação | G190: =TRUNC(SMALL(Cotações!M186:N186,1)*(1+'Atualizações Cotações'!$J$9),2) -> 9.8
A191: 179 | B191: =+Cotações!A190 -> 134 | C191: Dobradiça gonzo 5/8" | D191: un | E191: MAT | F191: Cotação | G191: =TRUNC(SMALL(Cotações!M190:N190,1),2) -> 6.65 | H191: Atualizado
A192: 180 | B192: 11002 | C192: Eletrodo revestido AWS - E6013, diâmetro igual a 2,50 mm | D192: kg | E192: MAT | F192: SINAPI | G192: =VLOOKUP(B192,'Insumos SINAPI'!$A$8:$E$5279,5,FALSE) -> 63.86
A193: 181 | B193: 2685 | C193: Eletroduto de PVC roscável de 1", sem luva | D193: m | E193: MAT | F193: SINAPI | G193: =VLOOKUP(B193,'Insumos SINAPI'!$A$8:$E$5279,5,FALSE) -> 7.29
A194: 182 | B194: 2705 | C194: Energia elétrica | D194: kWh | E194: MAT | F194: SINAPI | G194: =VLOOKUP(B194,'Insumos SINAPI'!$A$8:$E$5279,5,FALSE) -> 1.05
A195: 183 | B195: 6141 | C195: Engate flexível PVC 1/2" x 30 | D195: un | E195: MAT | F195: SINAPI | G195: =VLOOKUP(B195,'Insumos SINAPI'!$A$8:$E$5279,5,FALSE) -> 5.36
A196: 184 | B196: 14439 | C196: Escora de Eucalipto d=8 a 11 cm | D196: m | E196: MAT | F196: SINAPI | G196: =VLOOKUP(B196,'Insumos SINAPI'!$A$8:$E$5279,5,FALSE) -> 5.18
A197: 185 | B197: =+Cotações!A163 -> 120 | C197: Esgoto cloacal | D197: m³ | E197: MAT | F197: Cotação | G197: =TRUNC(SMALL(Cotações!M163:N163,1),2) -> 3.72 | H197: Atualizado
A198: 186 | B198: 39017 | C198: Espaçador circular em plástico, 4,2 a 12,5 mm | D198: m | E198: MAT | F198: SINAPI | G198: =VLOOKUP(B198,'Insumos SINAPI'!$A$8:$E$5279,5,FALSE) -> 0.12
A199: 187 | B199: 39315 | C199: Espaçador tipo garra dupla para ferragens de lajes e fundo de vigas | D199: m | E199: MAT | F199: SINAPI | G199: =VLOOKUP(B199,'Insumos SINAPI'!$A$8:$E$5279,5,FALSE) -> 0.2
A200: 188 | B200: =+Cotações!A105 -> 79 | C200: Esticador de arame | D200: un | E200: MAT | F200: Cotação | G200: =TRUNC(SMALL(Cotações!M105:N105,1)*(1+'Atualizações Cotações'!$J$9),2) -> 6.41 | H200: =IF('Atualizações Cotações'!$B$4="SIM","Ajustado pelo INCC","") -> Ajustado pelo INCC
A201: 189 | B201: 10886 | C201: Extintor de incêndio de água pressurizada (AP) de 10 l, Classe A | D201: un | E201: MAT | F201: SINAPI | G201: =VLOOKUP(B201,'Insumos SINAPI'!$A$8:$E$5279,5,FALSE) -> 219.53
A202: 190 | B202: 10891 | C202: Extintor de incêndio de pó químico seco (PQS) de 4 kg, Classe BC | D202: un | E202: MAT | F202: SINAPI | G202: =VLOOKUP(B202,'Insumos SINAPI'!$A$8:$E$5279,5,FALSE) -> 212.29
A203: 191 | B203: =+Cotações!A192 -> 135 | C203: Fecho bico de papagaio | D203: un | E203: MAT | F203: Cotação | G203: =TRUNC(SMALL(Cotações!M192:N192,1),2) -> 21.31 | H203: Atualizado
A204: 192 | B204: 38125 | C204: Fertilizante orgânico composto, classe A | D204: kg | E204: MAT | F204: SINAPI | G204: =VLOOKUP(B204,'Insumos SINAPI'!$A$8:$E$5279,5,FALSE) -> 1.23
... 192 more rows

Sheet M.O. (hidden)
A1: MÃO-DE-OBRA
A3: =CONCATENATE("Data Base SINAPI: ",$E$17) -> Data Base SINAPI: Janeiro/22
C5: SELECIONAR: | D5: c/desoneração
A7: =D5 -> c/desoneração | C7: Leis Sociais Horistas: | D7: =IF($D$5="c/desoneração",'Encargos Sociais'!C42,'Encargos Sociais'!E42) -> 0.8231 | E7: BDI= | F7: =IF($D$5="c/desoneração","28,21%","22,15%") -> 28,21%
C8: Leis Sociais Mensalistas: | D8: =IF($D$5="c/desoneração",'Encargos Sociais'!D42,'Encargos Sociais'!F42) -> 0.4598
A10: =+E17 -> Janeiro/22 | C10: Vem da aba Comp.SINAPI c_des. | D10: Vem da aba Comp.SINAPI s_des. | E10: Valor utilizado
A17: Código | B17: Composição | C17: Custo unitário (c/desoneração) | D17: Custo unitário (s/desoneração) | E17: Janeiro/22
A18: 88316 | B18: Servente | C18: =VLOOKUP(A18,'Comp.SINAPI c_des.'!$G$8:$K$50000,5,FALSE) -> 16.92 | D18: =VLOOKUP(A18,'Comp.SINAPI s_des.'!$G$8:$K$50000,5,FALSE) -> 18.84 | E18: =IF($D$5="c/desoneração",C18,(IF($D$5="s/desoneração",D18))) -> 16.92
A19: 88238 | B19: Ajudante de armador | C19: =VLOOKUP(A19,'Comp.SINAPI c_des.'!$G$8:$K$50000,5,FALSE) -> 16.95 | D19: =VLOOKUP(A19,'Comp.SINAPI s_des.'!$G$8:$K$50000,5,FALSE) -> 18.86 | E19: 16.95
A20: 88239 | B20: Ajudante de carpinteiro | C20: =VLOOKUP(A20,'Comp.SINAPI c_des.'!$G$8:$K$50000,5,FALSE) -> 16.87 | D20: =VLOOKUP(A20,'Comp.SINAPI s_des.'!$G$8:$K$50000,5,FALSE) -> 18.79 | E20: 16.87
A21: 88247 | B21: Auxiliar de eletricista | C21: =VLOOKUP(A21,'Comp.SINAPI c_des.'!$G$8:$K$50000,5,FALSE) -> 16.03 | D21: =VLOOKUP(A21,'Comp.SINAPI s_des.'!$G$8:$K$50000,5,FALSE) -> 17.79 | E21: 16.03
A22: 88253 | B22: Auxiliar de topógrafo | C22: =VLOOKUP(A22,'Comp.SINAPI c_des.'!$G$8:$K$50000,5,FALSE) -> 13.02 | D22: =VLOOKUP(A22,'Comp.SINAPI s_des.'!$G$8:$K$50000,5,FALSE) -> 14.84 | E22: 13.02
A23: 88248 | B23: Auxiliar de encanador | C23: =VLOOKUP(A23,'Comp.SINAPI c_des.'!$G$8:$K$50000,5,FALSE) -> 15.34 | D23: =VLOOKUP(A23,'Comp.SINAPI s_des.'!$G$8:$K$50000,5,FALSE) -> 17.09 | E23: 15.34
A24: 88251 | B24: Auxiliar de serralheiro | C24: =VLOOKUP(A24,'Comp.SINAPI c_des.'!$G$8:$K$50000,5,FALSE) -> 17.87 | D24: =VLOOKUP(A24,'Comp.SINAPI s_des.'!$G$8:$K$50000,5,FALSE) -> 19.92 | E24: 17.87
A25: 88309 | B25: Pedreiro | C25: =VLOOKUP(A25,'Comp.SINAPI c_des.'!$G$8:$K$50000,5,FALSE) -> 20.34 | D25: =VLOOKUP(A25,'Comp.SINAPI s_des.'!$G$8:$K$50000,5,FALSE) -> 22.79 | E25: 20.34
A26: 88310 | B26: Pintor | C26: =VLOOKUP(A26,'Comp.SINAPI c_des.'!$G$8:$K$50000,5,FALSE) -> 21.41 | D26: =VLOOKUP(A26,'Comp.SINAPI s_des.'!$G$8:$K$50000,5,FALSE) -> 23.85 | E26: 21.41
A27: 88262 | B27: Carpinteiro | C27: =VLOOKUP(A27,'Comp.SINAPI c_des.'!$G$8:$K$50000,5,FALSE) -> 20.1 | D27: =VLOOKUP(A27,'Comp.SINAPI s_des.'!$G$8:$K$50000,5,FALSE) -> 22.53 | E27: 20.1
A28: 88260 | B28: Calceteiro | C28: =VLOOKUP(A28,'Comp.SINAPI c_des.'!$G$8:$K$50000,5,FALSE) -> 17.98 | D28: =VLOOKUP(A28,'Comp.SINAPI s_des.'!$G$8:$K$50000,5,FALSE) -> 20.05 | E28: 17.98
A29: 88256 | B29: Ladrilhista | C29: =VLOOKUP(A29,'Comp.SINAPI c_des.'!$G$8:$K$50000,5,FALSE) -> 20.26 | D29: =VLOOKUP(A29,'Comp.SINAPI s_des.'!$G$8:$K$50000,5,FALSE) -> 22.7 | E29: 20.26
A30: 88323 | B30: Telhadista | C30: =VLOOKUP(A30,'Comp.SINAPI c_des.'!$G$8:$K$50000,5,FALSE) -> 20.48 | D30: =VLOOKUP(A30,'Comp.SINAPI s_des.'!$G$8:$K$50000,5,FALSE) -> 22.97 | E30: 20.48
A31: 88245 | B31: Armador | C31: =VLOOKUP(A31,'Comp.SINAPI c_des.'!$G$8:$K$50000,5,FALSE) -> 20.22 | D31: =VLOOKUP(A31,'Comp.SINAPI s_des.'!$G$8:$K$50000,5,FALSE) -> 22.65 | E31: 20.22
A32: 88315 | B32: Serralheiro | C32: =VLOOKUP(A32,'Comp.SINAPI c_des.'!$G$8:$K$50000,5,FALSE) -> 20.22 | D32: =VLOOKUP(A32,'Comp.SINAPI s_des.'!$G$8:$K$50000,5,FALSE) -> 22.65 | E32: 20.22
A33: 88441 | B33: Jardineiro | C33: =VLOOKUP(A33,'Comp.SINAPI c_des.'!$G$8:$K$50000,5,FALSE) -> 16.97 | D33: =VLOOKUP(A33,'Comp.SINAPI s_des.'!$G$8:$K$50000,5,FALSE) -> 18.89 | E33: 16.97
A34: 88264 | B34: Eletricista | C34: =VLOOKUP(A34,'Comp.SINAPI c_des.'!$G$8:$K$50000,5,FALSE) -> 20.73 | D34: =VLOOKUP(A34,'Comp.SINAPI s_des.'!$G$8:$K$50000,5,FALSE) -> 23.23 | E34: 20.73
A35: 88267 | B35: Encanador | C35: =VLOOKUP(A35,'Comp.SINAPI c_des.'!$G$8:$K$50000,5,FALSE) -> 19.9 | D35: =VLOOKUP(A35,'Comp.SINAPI s_des.'!$G$8:$K$50000,5,FALSE) -> 22.36 | E35: 19.9
A36: 88317 | B36: Soldador | C36: =VLOOKUP(A36,'Comp.SINAPI c_des.'!$G$8:$K$50000,5,FALSE) -> 24.39 | D36: =VLOOKUP(A36,'Comp.SINAPI s_des.'!$G$8:$K$50000,5,FALSE) -> 27.35 | E36: =IF($D$5="c/desoneração",C36,(IF($D$5="s/desoneração",D36))) -> 24.39
A37: 88281 | B37: Motorista de caminhão | C37: =VLOOKUP(A37,'Comp.SINAPI c_des.'!$G$8:$K$50000,5,FALSE) -> 21.04 | D37: =VLOOKUP(A37,'Comp.SINAPI s_des.'!$G$8:$K$50000,5,FALSE) -> 23.77 | E37: 21.04
A38: 88286 | B38: Motorista Op. Munck | C38: =VLOOKUP(A38,'Comp.SINAPI c_des.'!$G$8:$K$50000,5,FALSE) -> 22.65 | D38: =VLOOKUP(A38,'Comp.SINAPI s_des.'!$G$8:$K$50000,5,FALSE) -> 25.64 | E38: 22.65
A39: 88377 | B39: Operador de betoneira | C39: =VLOOKUP(A39,'Comp.SINAPI c_des.'!$G$8:$K$50000,5,FALSE) -> 19.74 | D39: =VLOOKUP(A39,'Comp.SINAPI s_des.'!$G$8:$K$50000,5,FALSE) -> 22.27 | E39: 19.74
A40: 88294 | B40: Operador de escavadeira | C40: =VLOOKUP(A40,'Comp.SINAPI c_des.'!$G$8:$K$50000,5,FALSE) -> 26.13 | D40: =VLOOKUP(A40,'Comp.SINAPI s_des.'!$G$8:$K$50000,5,FALSE) -> 29.67 | E40: 26.13
A41: 88297 | B41: Operador de máq. e equip. | C41: =VLOOKUP(A41,'Comp.SINAPI c_des.'!$G$8:$K$50000,5,FALSE) -> 22.56 | D41: =VLOOKUP(A41,'Comp.SINAPI s_des.'!$G$8:$K$50000,5,FALSE) -> 25.54 | E41: 22.56
A42: 88324 | B42: Tratorista | C42: =VLOOKUP(A42,'Comp.SINAPI c_des.'!$G$8:$K$50000,5,FALSE) -> 27.07 | D42: =VLOOKUP(A42,'Comp.SINAPI s_des.'!$G$8:$K$50000,5,FALSE) -> 30.76 | E42: 27.07
A43: 88326 | B43: Vigia (SINAPI) | C43: =VLOOKUP(A43,'Comp.SINAPI c_des.'!$G$8:$K$50000,5,FALSE) -> 21.21 | D43: =VLOOKUP(A43,'Comp.SINAPI s_des.'!$G$8:$K$50000,5,FALSE) -> 23.81 | E43: 21.21
A44: 93572 | B44: Encarregado (mês) | C44: =VLOOKUP(A44,'Comp.SINAPI c_des.'!$G$8:$K$50000,5,FALSE) -> 7377.72 | D44: =VLOOKUP(A44,'Comp.SINAPI s_des.'!$G$8:$K$50000,5,FALSE) -> 8489.41 | E44: 7377.72
A45: 94295 | B45: Mestre de Obras (mês) | C45: =VLOOKUP(A45,'Comp.SINAPI c_des.'!$G$8:$K$50000,5,FALSE) -> 10997.84 | D45: =VLOOKUP(A45,'Comp.SINAPI s_des.'!$G$8:$K$50000,5,FALSE) -> 12685.11 | E45: 10997.84
A46: 90781 | B46: Topógrafo | C46: =VLOOKUP(A46,'Comp.SINAPI c_des.'!$G$8:$K$50000,5,FALSE) -> 29.66 | D46: =VLOOKUP(A46,'Comp.SINAPI s_des.'!$G$8:$K$50000,5,FALSE) -> 34.12 | E46: 29.66
A47: 88597 | B47: Desenhista detalhista | C47: =VLOOKUP(A47,'Comp.SINAPI c_des.'!$G$8:$K$50000,5,FALSE) -> 34.46 | D47: =VLOOKUP(A47,'Comp.SINAPI s_des.'!$G$8:$K$50000,5,FALSE) -> 39.68 | E47: 34.46
A48: 90778 | B48: Engenheiro Civil de Obra | C48: =VLOOKUP(A48,'Comp.SINAPI c_des.'!$G$8:$K$50000,5,FALSE) -> 99.09 | D48: =VLOOKUP(A48,'Comp.SINAPI s_des.'!$G$8:$K$50000,5,FALSE) -> 114.57 | E48: 99.09

Sheet Cotações
A1: COTAÇÕES DE INSUMOS
A3: *Na célula com o nome do fornecedor, no comentário consta o seu e-mail | K3: Data Cotações: | N3: Abril/19
A4: **As cotações com valor em vermelho não fazem parte da média
A6: Código | B6: Insumo | C6: un | D6: Fornecedor 1 | E6: Fone | F6: Fornecedor 2 | G6: Fone | H6: Fornecedor 3 | I6: Fone | J6: Reserva | L6: Observações | M6: Média | N6: Mediana
D7: Allcomp | E7: 3024-7100 | F7: RM | G7: 3375-1700 | H7: Sulmak | I7: 2102-6063
A8: 1 | B8: Nível a Laser | C8: d | D8: 120 | F8: 120 | H8: 80 | M8: =TRUNC((AVERAGE(D8,F8,H8)),2) -> 106.66 | N8: =TRUNC((MEDIAN(D8:K8)),2) -> 120
D9: Similar | E9: 3341-5866 | F9: RM | G9: 3375-1700 | H9: Sulmak | I9: 2102-6063
A10: =+A8+1 -> 2 | B10: Betoneira 400 l | C10: d | D10: 50 | F10: 50 | H10: 50 | M10: =TRUNC((AVERAGE(D10,F10,H10)),2) -> 50 | N10: =TRUNC((MEDIAN(D10:K10)),2) -> 50
A11: =+A10+1 -> 3 | B11: Motor elétrico p/vibrador | C11: d | D11: 20 | F11: 30 | H11: 25 | M11: 25 | N11: 25
A12: =+A11+1 -> 4 | B12: Acabadora de superfície (helicóptero) + pás | C12: d | D12: 255 | F12: 240 | H12: 280 | M12: =TRUNC((AVERAGE(D12,F12,H12)),2) -> 258.33 | N12: =TRUNC((MEDIAN(D12:K12)),2) -> 255
A13: 5 | B13: Rolo compactador liso RCW900 | C13: h | D13: 56.25 | F13: 56.25 | H13: 50 | L13: Dividir valores por 8 h | M13: 54.16 | N13: 56.25
A14: =+A13+1 -> 6 | B14: Placa vibratória reversível CR3 | C14: d | D14: 90 | F14: 95 | H14: 90 | M14: 91.66 | N14: 90
A15: =+A14+1 -> 7 | B15: Cortadora de piso 350 mm | C15: d | D15: 70 | F15: 60 | H15: 50 | L15: 350 mm | M15: 60 | N15: =TRUNC((MEDIAN(D15:K15)),2) -> 60
A16: =+A15+1 -> 8 | B16: Esmerilhadeira 7" | C16: d | D16: 20 | F16: 20 | H16: 30 | L16: 7" | M16: 23.33 | N16: 20
D17: Juceli | E17: 3341-1060 | F17: Sul Air | G17: 3341-4378 | H17: Hiper-Ar | I17: 3374-4923
A18: =+A16+1 -> 9 | B18: Compressor de ar 175 PCM c/martelete pneumático | C18: d | D18: 500 | F18: 450 | H18: - | M18: =TRUNC((AVERAGE(D18,F18,H18)),2) -> 475 | N18: =TRUNC((MEDIAN(D18:K18)),2) -> 475
D19: Tecnisan | E19: 3428-6359 | F19: Freeban | G19: 3568-5221 | H19: Porto Sul | I19: 3045-4909 | J19: Toalete | K19: 3334-9650
A20: =+A18+1 -> 10 | B20: Locação sanitário Químico | C20: ms | D20: 650 | F20: 800 | H20: 1850 | J20: 650 | L20: 3 limpezas semanais | M20: =TRUNC((AVERAGE(D20,F20,J20)),2) -> 700 | N20: =TRUNC((MEDIAN(D20:K20)),2) -> 725 | P20: =+D20/$M$20 -> 0.9285714286 | Q20: =+F20/$M$20 -> 1.142857143 | R20: =+H20/$M$20 -> 2.642857143 | S20: =+J20/$M$20 -> 0.9285714286
D21: Planema | E21: 3242-9667 | F21: Sul Air | G21: 3341-4378 | H21: Dunorte | I21: 3361-4866
A22: =+A20+1 -> 11 | B22: Retroescavadeira c/operador | C22: h | D22: 120 | F22: 112.5 | H22: 137.5 | L22: (Tração 4x2) Valor da diária / 8 horas | M22: =TRUNC((AVERAGE(D22,F22,H22)),2) -> 123.33 | N22: =TRUNC((MEDIAN(D22:K22)),2) -> 120
D23: Planeta | E23: 15 3305-8547 | F23: Telbrás | G23: 3466-3066 | H23: Protefix | I23: 3222-0011
A24: =+A22+1 -> 12 | B24: Sinalizador eletrônico luminoso piscante | C24: un | D24: 121 | F24: 80.41 | H24: 105 | M24: =TRUNC((AVERAGE(D24,F24,H24)),2) -> 102.13 | N24: =TRUNC((MEDIAN(D24:K24)),2) -> 105
A25: =+A24+1 -> 13 | B25: Balizador h=1,05 cm | C25: un | D25: 67 | F25: 47 | H25: 55.8 | M25: =TRUNC((AVERAGE(D25,F25,H25)),2) -> 56.6 | N25: =TRUNC((MEDIAN(D25:K25)),2) -> 55.8
D26: 8 horas de engenheiro
A27: =+A25+1 -> 14 | B27: Projeto de Sinalização | C27: un | D27: =8*Insumos!$G$26 -> 792.72 | L27: Projeto com ART | M27: =TRUNC((AVERAGE(D27)),2) -> 792.72 | N27: =TRUNC((MEDIAN(D27:K27)),2) -> 792.72
D28: Madesul | E28: 3016-5500 | F28: Telharsul | G28: 3084-5474 | H28: Madeben | I28: 3072-0673 | J28: Guarujá | K28: 3246-5944
A29: =+A27+1 -> 15 | B29: Sarrafo cedrinho 2,5 x 2,5 cm | C29: m | D29: 2.1 | F29: 1.57 | H29: 1.66 | J29: 2.3 | M29: =TRUNC((AVERAGE(D29,F29,H29,J29)),2) -> 1.9 | N29: =TRUNC((MEDIAN(D29:K29)),2) -> 1.88
A30: =+A29+1 -> 16 | B30: Sarrafo cedrinho 2,5 x 5,0 cm | C30: m | D30: 3.37 | F30: 3.13 | H30: 3.33 | J30: 4.3 | M30: =TRUNC((AVERAGE(D30,F30,H30)),2) -> 3.27 | N30: 3.35
A31: =+A30+1 -> 17 | B31: Caibro cedrinho 5 x 7 cm | C31: m | D31: 10.12 | F31: 9.38 | H31: 9.32 | J31: 10.7 | M31: =TRUNC((AVERAGE(D31,F31,H31,J31)),2) -> 9.88 | N31: 9.75 | P31: =+D31/$N$31 -> 1.037948718 | Q31: =+F31/$N$31 -> 0.9620512821 | R31: =+H31/$N$31 -> 0.9558974359 | S31: =+J31/$N$31 -> 1.097435897
A32: =+A31+1 -> 18 | B32: Caibro cedrinho 5 x 10 cm | C32: m | D32: 13.5 | F32: 12.5 | H32: 13.32 | J32: 15 | M32: 13.58 | N32: 13.41
A33: 19 | B33: Caibro cedrinho 5 x 15 cm | C33: m | D33: 20.25 | F33: 18.75 | H33: 19.98 | J33: 22.1 | M33: 20.27 | N33: =TRUNC((MEDIAN(D33:K33)),2) -> 20.11
A34: 20 | B34: Caibro cedrinho 8 x 8 cm | C34: m | D34: 19.84 | F34: 16 | H34: 17.79 | J34: 16.1 | M34: 17.43 | N34: 16.94
A35: 21 | B35: Guia cedrinho 2,5 x 10 cm | C35: m | D35: 6.75 | F35: 6.25 | H35: 6.66 | J35: 7.5 | M35: 6.79 | N35: 6.7
A36: 22 | B36: Guia cedrinho 2,5 x 15 cm | C36: m | D36: 10.12 | F36: 9.4 | H36: 9.99 | J36: 11.1 | M36: 10.15 | N36: 10.05
A37: 23 | B37: Guia cedrinho 2,5 x 20 cm | C37: m | D37: 13.5 | F37: 12.5 | H37: 13.32 | J37: 14.25 | M37: 13.39 | N37: 13.41
A38: =+A37+1 -> 24 | B38: Guia eucalipto 2,5 x 10 cm | C38: m | D38: 1.75 | F38: 3.75 | H38: =9.41/5.4 -> 1.742592593 | J38: =9.5/5.5 -> 1.727272727 | M38: =TRUNC((AVERAGE(D38,FH38,J38)),2) -> 1.73 | N38: =TRUNC((MEDIAN(D38:K38)),2) -> 1.74
A39: 25 | B39: Guia eucalipto 2,5 x 20 cm | C39: m | D39: 3.5 | F39: 7.5 | H39: =18.83/5.4 -> 3.487037037 | J39: =19/5.5 -> 3.454545455 | M39: =TRUNC((AVERAGE(D39,H39,J39)),2) -> 3.48 | N39: 3.49
D40: Madesul | E40: 3016-5500 | F40: Canaã | G40: 3364-2999 | H40: Guarujá | I40: 3246-5944
A41: =+A39+1 -> 26 | B41: Tábua itaúba lixada e aplainada 2,5x20x5,50 | C41: pç | D41: 158.15 | F41: 137.5 | H41: 148.5 | L41: Bitolas das tábuas brutas: | M41: =TRUNC((AVERAGE(D41,F41,H41)),2) -> 148.05 | N41: =TRUNC((MEDIAN(D41:K41)),2) -> 148.5
A42: 27 | B42: Tábua itaúba lixada e aplainada 3x22x3,00 | C42: pç | D42: 215.62 | F42: 150 | H42: 162 | L42: Esp.: 2,5 , 4 , 5 , 8 , 10 , 15 cm | M42: =TRUNC((AVERAGE(F42,H42)),2) -> 156 | N42: 162
A43: 28 | B43: Tábua itaúba lixada e aplainada 3x22x4,00 | C43: pç | D43: 287.5 | F43: 200 | H43: 216 | L43: Larg.: 5, 7, 10, 15, 20, 25, 30 cm | M43: 208 | N43: 216
A44: 29 | B44: Tábua itaúba lixada e aplainada 3x22x4,50 | C44: pç | D44: 323.45 | F44: 225 | H44: 243 | L44: Comp.: 1, 1,5 , 2, 2,5 , 3, 3,5 , 4, 4,5 , 5, 5,5 m | M44: 234 | N44: 243
A45: 30 | B45: Tábua itaúba lixada e aplainada 3x30x3,00 | C45: pç | D45: 258.75 | F45: 180 | H45: 194.4 | M45: 187.2 | N45: 194.4
A46: 31 | B46: Tábua itaúba lixada e aplainada 3,5x15x5,50 | C46: pç | D46: 237.2 | F46: 165 | H46: 184.2 | M46: 174.6 | N46: 184.2
A47: 32 | B47: Tábua itaúba lixada e aplainada 3,5x25x2,00 | C47: pç | D47: 143.75 | F47: 100 | H47: 108 | M47: 104 | N47: 108
A48: 33 | B48: Tábua itaúba lixada e aplainada 4x10x4,00 | C48: pç | D48: 115 | F48: 80 | H48: 113.4 | M48: =TRUNC((AVERAGE(D48,H48)),2) -> 114.2 | N48: 113.4
A49: 34 | B49: Tábua itaúba lixada e aplainada 4x10x5,50 | C49: pç | D49: 158.15 | F49: 110 | H49: 156 | M49: =TRUNC((AVERAGE(D49,H49)),2) -> 157.07 | N49: 156
A50: 35 | B50: Tábua itaúba lixada e aplainada 4x30x3,00 | C50: pç | D50: 258.75 | F50: 180 | H50: 243 | M50: =TRUNC((AVERAGE(D50,H50)),2) -> 250.87 | N50: 243
A51: 36 | B51: Tábua itaúba lixada e aplainada 4x30x4,00 | C51: pç | D51: 345 | F51: 240 | H51: 324 | M51: =TRUNC((AVERAGE(D51,H51)),2) -> 334.5 | N51: 324
A52: 37 | B52: Tábua itaúba lixada e aplainada 4x30x4,50 | C52: pç | D52: 388.2 | F52: 270 | H52: 365 | M52: =TRUNC((AVERAGE(D52,H52)),2) -> 376.6 | N52: 365
A53: =+A52+1 -> 38 | B53: Sarrafo itaúba 2,5x5 | C53: m | D53: 5.25 | F53: 5.6 | H53: 8.1 | M53: =TRUNC((AVERAGE(D53,F53)),2) -> 5.42 | N53: 5.6
A54: 39 | B54: Caibro itaúba 5x5 | C54: m | D54: 10.5 | F54: 11.2 | H54: 16.2 | M54: 10.85 | N54: 11.2
A55: 40 | B55: Caibro itaúba 5x7 | C55: m | D55: 15.75 | F55: 16.9 | H55: 20.3 | M55: 16.32 | N55: 16.9
A56: 41 | B56: Caibro itaúba 5x10 | C56: m | D56: 21 | F56: 22.5 | H56: 28.4 | M56: 21.75 | N56: 22.5
A57: 42 | B57: Tábua itaúba 4x15 | C57: m | D57: 31.5 | F57: 27 | H57: 41.9 | M57: 29.25 | N57: 31.5
A58: 43 | B58: Tábua itaúba 4x25 | C58: m | D58: 52.5 | F58: 45 | H58: 67.5 | M58: 48.75 | N58: 52.5
A59: 44 | B59: Tábua itaúba 4x30 | C59: m | D59: 63 | F59: 54 | H59: 81 | M59: 58.5 | N59: 63
A60: 45 | B60: Tábua itaúba lixada e aplainada 3,5x19x1,80 | C60: pç | D60: 115 | F60: 80 | H60: 86.4 | M60: =TRUNC((AVERAGE(F60,H60)),2) -> 83.2 | N60: 86.4
A61: 46 | B61: Tábua itaúba lixada e aplainada 3,5x19x2,00 | C61: pç | D61: 115 | F61: 80 | H61: 108 | M61: =TRUNC((AVERAGE(D61,H61)),2) -> 111.5 | N61: 108 | P61: =+D61/N61 -> 1.064814815 | Q61: =+F61/N61 -> 0.7407407407 | R61: =+H61/N61 -> 1
D62: Delei Madeiras | E62: 3395-2275 | F62: Madelei | G62: 3373-8888 | H62: Cofel | I62: 3222-2255
A63: =+A61+1 -> 47 | B63: Laminado melamínico texturizado chapa 1,25 x 3,08 m esp=0,8 mm | C63: m² | D63: 25.71 | F63: 29.87 | H63: 25.71 | L63: Dividir o valor pela área da chapa (3,85 m²) | M63: =TRUNC((AVERAGE(D63,F63,H63)),2) -> 27.09 | N63: =TRUNC((MEDIAN(D63:K63)),2) -> 25.71
D64: Mariani | E64: 3403-2222 | F64: Flosul | G64: 51 3681-0100 | H64: MSA | I64: 3556-3711
A65: =+A63+1 -> 48 | B65: Tora eucalipto tratada d=20 cm | C65: m | D65: 57 | F65: 28.41 | H65: 30.1 | L65: Total=frete/m+tora (frete/ 99 m (cancha de bocha)) | M65: =TRUNC((AVERAGE(F65,H65)),2) -> 29.25 | N65: =TRUNC((MEDIAN(D65:K65)),2) -> 30.1
D66: SL parafusos | E66: 3411-9800 | F66: Guido Jacobus | G66: 3024-1200 | H66: Central de parafusos | I66: 3341-9353 | J66: Brasil dos parafusos | K66: 3326-1946
A67: =+A65+1 -> 49 | B67: Parafuso aço inox 1/4" x 3" c/porca | C67: un | D67: 1.13 | F67: 3.18 | H67: 1.23 | J67: 1.35 | L67: Acrescentar o valor da porca quando vier separado (R$ ___) | M67: =TRUNC((AVERAGE(D67,H67,J67)),2) -> 1.23 | N67: =TRUNC((MEDIAN(D67:K67)),2) -> 1.29
A68: 50 | B68: Parafuso francês zincado 5/16" x 2" c/porca | C68: un | D68: 0.4 | F68: 0.38 | H68: 0.47 | J68: 0.46 | M68: =TRUNC((AVERAGE(D68,F68,H68,J68)),2) -> 0.42 | N68: =TRUNC((MEDIAN(D68:K68)),2) -> 0.43
A69: 51 | B69: Parafuso francês zincado 5/16" x 2 1/2" c/ porca | C69: un | D69: 0.46 | F69: 0.44 | H69: 0.54 | J69: 0.53 | M69: =TRUNC((AVERAGE(D69,F69,H69,J69)),2) -> 0.49 | N69: 0.49 | P69: =+D69/M69 -> 0.9387755102 | Q69: =+F69/M69 -> 0.8979591837 | R69: =+H69/M69 -> 1.102040816 | S69: =+J69/M69 -> 1.081632653
A70: 52 | B70: Parafuso francês zincado 5/16" x 4" c/ porca | C70: un | D70: 0.64 | F70: 0.61 | H70: 0.75 | J70: 0.74 | M70: =TRUNC((AVERAGE(D70,F70,H70,J70)),2) -> 0.68 | N70: 0.69
A71: 53 | B71: Parafuso francês zincado 5/16" x 5" c/porca | C71: un | D71: 0.75 | F71: 0.71 | H71: 0.9 | J71: 0.87 | M71: =TRUNC((AVERAGE(D71,F71,H71,J71)),2) -> 0.8 | N71: 0.81
A72: 54 | B72: Parafuso inox auto atarraxante 4,8 x 70 cabeça chata | C72: un | D72: 0.51 | F72: 0.62 | H72: 1.1 | J72: 0.77 | M72: =TRUNC((AVERAGE(D72,F72,J72)),2) -> 0.63 | N72: 0.69
A73: 55 | B73: Parafuso inox auto atarraxante 4,8 x 100 cabeça chata | C73: un | D73: 1.04 | F73: - | H73: 1.66 | J73: 1.7 | M73: =TRUNC((AVERAGE(F73,H73,J73)),2) -> 1.68 | N73: 1.66
A74: 56 | B74: Parafuso sextavado aço zincado 1/2" x 1 1/2" | C74: un | D74: 0.74 | F74: 0.7 | H74: 1.1 | J74: 0.9 | M74: =TRUNC((AVERAGE(D74,F74,H74,J74)),2) -> 0.86 | N74: 0.82
A75: 57 | B75: Parafuso sextavado aço zincado 1/2" x 3 1/2" | C75: un | D75: 1.53 | F75: 1.46 | H75: 2.3 | J75: 1.56 | M75: =TRUNC((AVERAGE(D75,F75,J75)),2) -> 1.51 | N75: 1.54
A76: 58 | B76: Parafuso sextavado aço zincado 1/2" x 8" | C76: un | D76: 3.49 | F76: 3.33 | H76: 5.15 | J76: 4.24 | M76: =TRUNC((AVERAGE(D76,F76,J76)),2) -> 3.68 | N76: 3.86
A77: 59 | B77: Parafuso sextavado aço zincado 1/4" x 2" c/ porca | C77: un | D77: 0.24 | F77: 0.24 | H77: 0.4 | J77: 0.29 | L77: Acrescentar o valor da porca quando vier separado (R$ ___) | M77: =TRUNC((AVERAGE(D77,F77,J77)),2) -> 0.25 | N77: 0.26 | P77: =+D77/M77 -> 0.96 | Q77: =+F77/M77 -> 0.96 | R77: =+H77/M77 -> 1.6 | S77: =+J77/M77 -> 1.16
A78: 60 | B78: Parafuso sextavado rosca soberba 1/4" x 30 mm | C78: un | D78: 0.13 | F78: 0.13 | H78: 0.17 | J78: 0.17 | M78: =TRUNC((AVERAGE(D78,F78,H78,J78)),2) -> 0.15 | N78: 0.15
D79: Gerdau | E79: 3373-2500 | F79: Arcelor Mittal | G79: 2121-7777 | H79: Sidersul | I79: 3041-6565
A80: =+A78+1 -> 61 | B80: Barra ferro chato 7/8" x 1/8" | C80: kg | D80: 4.63 | F80: 4.14 | H80: 4.96 | M80: =TRUNC((AVERAGE(D80,F80,H80)),2) -> 4.57 | N80: =TRUNC((MEDIAN(D80:I80)),2) -> 4.63
A81: 62 | B81: Barra ferro chato 7/8" x 1/4" | C81: kg | D81: 4.67 | F81: 4.35 | H81: 4.96 | M81: 4.66 | N81: 4.67
A82: 63 | B82: Barra ferro chato 1 1/4" x 1/4" | C82: kg | D82: 4.67 | F82: 4.14 | H82: 4.96 | M82: 4.59 | N82: 4.67
A83: 64 | B83: Barra ferro chato 2" x 1/8" | C83: kg | D83: 5.21 | F83: 4.83 | H83: 4.96 | M83: 5 | N83: 4.96
A84: 65 | B84: Chapa aço 1/2" | C84: kg | D84: 4.14 | F84: 5.08 | H84: 4.95 | M84: 4.72 | N84: 4.95
A85: 66 | B85: Chapa aço 1/4" | C85: kg | D85: 4.14 | F85: 5.08 | H85: 4.95 | M85: 4.72 | N85: 4.95
A86: 67 | B86: Chapa aço 3/16" | C86: kg | D86: 4.14 | F86: 5.08 | H86: 4.95 | M86: 4.72 | N86: 4.95
D87: Redinox | E87: 3020-0707 | F87: Steel Sul | G87: 3059-8744 | H87: Galeazi | I87: 4042-8322
A88: =+A86+1 -> 68 | B88: Chapa aço inox e=1,00 mm (AISI 304) | C88: m² | D88: 156 | F88: 164.5 | H88: 199.62 | M88: =TRUNC((AVERAGE(D88,F88,H88)),2) -> 173.37 | N88: =TRUNC((MEDIAN(D88:K88)),2) -> 164.5
D89: Chapas aço + galvanização
A90: =+A88+1 -> 69 | B90: Chapa galvanizada 1/2" | C90: kg | L90: Insumo 71 + galvanização/kg (R$ 2,30) | M90: =TRUNC(IF(Cotações!M84<Cotações!N84,Cotações!M84,Cotações!N84)+((IF(Cotações!$M$94<Cotações!$N$94,Cotações!$M$94,Cotações!$N$94))),2) -> 7.12
A91: =+A90+1 -> 70 | B91: Chapa galvanizada 1/4" | C91: kg | L91: Insumo 72 + galvanização/kg (R$ 2,30) | M91: =TRUNC(IF(Cotações!M85<Cotações!N85,Cotações!M85,Cotações!N85)+((IF(Cotações!$M$94<Cotações!$N$94,Cotações!$M$94,Cotações!$N$94))),2) -> 7.12
A92: =+A91+1 -> 71 | B92: Chapa galvanizada 3/16" | C92: kg | L92: Insumo 73 + galvanização/kg (R$ 2,30) | M92: =TRUNC(IF(Cotações!M86<Cotações!N86,Cotações!M86,Cotações!N86)+((IF(Cotações!$M$94<Cotações!$N$94,Cotações!$M$94,Cotações!$N$94))),2) -> 7.12
D93: Beretta | E93: 3479-2222 | F93: ATN | G93: 3470-0000 | H93: Bento Sul | I93: 54 3453-5053
A94: =+A92+1 -> 72 | B94: Galvanização | C94: kg | D94: 2.5 | F94: 2.5 | H94: 2.2 | L94: preço por kg de chapa + 10% relativo ao peso total após galvanização | M94: =TRUNC((AVERAGE(D94,F94,H94)),2) -> 2.4 | N94: =TRUNC((MEDIAN(D94:K94)),2) -> 2.5
D95: Sulfer | E95: 3470-4004 | F95: Scharlau | G95: 3091-1525 | H95: Global Aço | I95: 3470-3522 | J95: Imp. Americana | K95: 3337-4611
A96: =+A94+1 -> 73 | B96: Cumeeira galvalume ondulada 0,50 mm | C96: un | D96: 28.6 | F96: 29.34 | H96: 30 | J96: 23.6 | L96: Cumeeira com 1 m de comprimento | M96: =TRUNC((AVERAGE(D96,F96,H96,J96)),2) -> 27.88 | N96: =TRUNC((MEDIAN(D96:K96)),2) -> 28.97
A97: 74 | B97: Telha galvalume ondulada 0,50 mm x 1,03 m x 1 m | C97: m | D97: 34.9 | F97: 26.3 | H97: 30 | J97: 23.6 | M97: =TRUNC((AVERAGE(D97,F97,H97,J97)),2) -> 28.7 | N97: =TRUNC((MEDIAN(D97:K97)),2) -> 28.15
D98: Sulfer | E98: 3470-4004 | F98: Aço Tubo | G98: 2126-9400 | H98: Açoduto | I98: 3058-5353 | J98: Ipiranga | K98: 3303-2100
A99: =+A97+1 -> 75 | B99: Tubo aço carbono 6" e=6,35 mm (NBR 6591) | C99: m | D99: - | F99: 206.34 | H99: 182.35 | J99: 150.15 | L99: tubo condutor | M99: =TRUNC((AVERAGE(F99,H99,J99)),2) -> 179.61 | N99: =TRUNC((MEDIAN(D99:K99)),2) -> 182.35
A100: 76 | B100: Tubo ferro preto quadrado 7x7 cm esp=3,00 mm | C100: m | D100: 73.71 | F100: - | H100: 56 | J100: 40.6 | L100: tubo / 6,00 m | M100: =TRUNC((AVERAGE(D100,H100,J100)),2) -> 56.77 | N100: =TRUNC((MEDIAN(D100:K100)),2) -> 56
D101: FG | E101: 3358-1213 | F101: Thony | G101: 3369-3737 | H101: FF | I101: 3092-5215
A102: =+A100+1 -> 77 | B102: Corrente aço galvanizado d=5 mm elo longo 22x45 mm | C102: kg | D102: 23.6 | F102: 21.9 | H102: 32.83 | L102: Na próxima atualização utilizar elo curto e=6 mm 22x40 mm | M102: =TRUNC((AVERAGE(D102,F102)),2) -> 22.75 | N102: =TRUNC((MEDIAN(D102:K102)),2) -> 23.6
A103: 78 | B103: Disco de Corte MR832 - 7" - Norton uso geral | C103: un | D103: 22.9 | F103: 26.34 | H103: 16.5 | M103: =TRUNC((AVERAGE(D103,F103)),2) -> 24.62 | N103: =TRUNC((MEDIAN(D103:K103)),2) -> 22.9
D104: Telas Nacional | E104: 3364-1688 | F104: Rio Branco | G104: 3466-8095 | H104: Renovar | I104: 3342-7711 | J104: Sul Tela | K104: 3372-1475
A105: =+A103+1 -> 79 | B105: Esticador de arame | C105: un | D105: 5 | F105: - | H105: 5 | J105: 7 | M105: =TRUNC((AVERAGE(D105,F105,H105,J105)),2) -> 5.66 | N105: =TRUNC((MEDIAN(D105:K105)),2) -> 5 | P105: =+D105/N105 -> 1 | R105: =+H105/N105 -> 1 | S105: =+J105/N105 -> 1.4
A106: =+A105+1 -> 80 | B106: Tela arame galvanizado 5x5 cm fio 12 BWG | C106: m² | D106: 22 | F106: 21 | H106: 26.5 | J106: 28.6 | M106: =TRUNC((AVERAGE(D106,F106,H106,J106)),2) -> 24.52 | N106: =TRUNC((MEDIAN(D106:K106)),2) -> 24.25 | P106: =+D106/N106 -> 0.9072164948 | Q106: =+F106/N106 -> 0.8659793814 | R106: =+H106/N106 -> 1.092783505 | S106: =+J106/N106 -> 1.179381443
A107: =+A106+1 -> 81 | B107: Tela arame galvanizado 4x4 cm fio 10 BWG | C107: m² | D107: 33 | F107: 49 | H107: 63 | J107: - | M107: =TRUNC((AVERAGE(D107,F107,H107)),2) -> 48.33 | N107: =TRUNC((MEDIAN(D107:K107)),2) -> 49
D108: Fundição Silva Três Rios | E108: (24) 2255-3130
A109: =+A107+1 -> 82 | B109: Fradinho em ferro fundido | C109: un | D109: 216 | M109: =TRUNC((AVERAGE(D109)),2) -> 216 | N109: =TRUNC((MEDIAN(D109:K109)),2) -> 216
D110: Ziober | E110: 44 3029-4410 | F110: Milla (Ginast) | G110: 19 3363-1051 | H110: Flex | I110: 17 3223-2766
A111: =+A109+1 -> 83 | B111: Abdominal | C111: un | D111: 1850 | F111: 6000 | H111: 3500 | L111: Galvanizados | M111: =TRUNC((AVERAGE(D111,H111)),2) -> 2675 | N111: =TRUNC((MEDIAN(D111:K111)),2) -> 3500
A112: =+A111+1 -> 84 | B112: Adução e abdução de pernas duplo | C112: un | D112: 3631 | F112: 9600 | H112: 5900 | M112: =TRUNC((AVERAGE(D112,H112)),2) -> 4765.5 | N112: 5900
A113: 85 | B113: Esqui triplo conjugado | C113: un | D113: 5546 | F113: 12740 | H113: 6515 | M113: 6030.5 | N113: 6515
A114: 86 | B114: Jogo de barras | C114: un | D114: 3050 | F114: 13520 | H114: 4950 | M114: 4000 | N114: 4950
A115: 87 | B115: Multiexercitador conjugado 6 funções | C115: un | D115: 5853 | F115: 15600 | H115: 6650 | M115: 6251.5 | N115: 6650
A116: 88 | B116: Peitoral duplo | C116: un | D116: 4450 | F116: 10900 | H116: 5675 | M116: 5062.5 | N116: 5675
A117: 89 | B117: Placa orientativa (ATI) | C117: un | D117: 2210 | F117: 7080 | H117: 3900 | M117: 3055 | N117: 3900
A118: 90 | B118: Pressão de pernas triplo conjugado | C118: un | D118: 3429 | F118: 6250 | H118: 5100 | M118: 4264.5 | N118: 5100
A119: 91 | B119: Puxador duplo | C119: un | D119: 4436 | F119: 12120 | H119: 5725 | M119: 5080.5 | N119: 5725
A120: 92 | B120: Remada (APC) | C120: un | D120: 2665 | F120: 5020 | H120: 2710 | M120: 2687.5 | N120: 2710
A121: 93 | B121: Simulador de caminhada triplo conjugado | C121: un | D121: 5160 | F121: 9320 | H121: 6150 | M121: 5655 | N121: 6150
A122: 94 | B122: Simulador de remo | C122: un | D122: 2190 | F122: 3400 | H122: 4250 | M122: 3220 | N122: 3400
A123: =+A122+1 -> 95 | B123: Voador peitoral e voador dorsal (APC) | C123: un | D123: 4105 | F123: 5940 | H123: 2710 | M123: 3407.5 | N123: 4105
D124: Shopping de Pedras | E124: 3249-1111 | F124: Eládio | G124: 3328-5858 | H124: São Cristóvão | I124: 54 3477-1305 | J124: Santo Antônio | K124: 54 3242-1061
A125: =+A123+1 -> 96 | B125: Basalto Irregular | C125: m² | D125: 35 | F125: 45 | H125: 33 | J125: 32 | M125: =TRUNC((AVERAGE(D125,H125,J125)),2) -> 33.33 | N125: 34
A126: =+A125+1 -> 97 | B126: Basalto Irregular meio retalhão | C126: m² | D126: 110 | F126: 120 | H126: 100 | J126: 72 | M126: =TRUNC((AVERAGE(D126,F126,H126)),2) -> 110 | N126: 105
A127: =+A126+1 -> 98 | B127: Basalto Regular talhado | C127: =C126 -> m² | D127: 70 | F127: 85 | H127: 70 | J127: 69 | M127: =TRUNC((AVERAGE(D127,H127,J127)),2) -> 69.66 | N127: 70
A128: =+A127+1 -> 99 | B128: Basalto Regular serrado | C128: m² | D128: 86 | F128: 100 | H128: 79 | J128: 96 | M128: =TRUNC((AVERAGE(D128,F128,H128,J128)),2) -> 90.25 | N128: 91
D129: DPS | E129: 3499-1536 | F129: Incorevest | G129: 3062-5119 | H129: Artsul | I129: 3266-1780 | J129: RF Suprimentos | K129: 3059-7270
A130: =+A128+1 -> 100 | B130: Lajota de concreto 45x45cm esp.=2,5cm | C130: m² | D130: 26.9 | F130: 32 | H130: 24.5 | J130: 25.9 | M130: =TRUNC((AVERAGE(D130,H130,J130)),2) -> 25.76 | N130: 26.4
A131: =+A130+1 -> 101 | B131: Piso Podotátil 25 x 25 cm | C131: un | D131: 3 | F131: 2.8 | H131: 3.3 | J131: 3.4 | M131: =TRUNC((AVERAGE(D131,F131,H131,J131)),2) -> 3.12 | N131: =TRUNC((MEDIAN(D131:K131)),2) -> 3.15
D132: Maquitel | E132: 3403-3232
A133: =+A131+1 -> 102 | B133: Saibro rosa - posto obra | C133: m³ | D133: 49.33 | L133: Fazer média dos fretes (Centro, Ipanema, Sarandi) | M133: =TRUNC((AVERAGE(D133)),2) -> 49.33 | N133: 49.33
D134: Rossatto | E134: 3250-5076 | F134: Jardins da Aldeia | G134: 3488-6251 | H134: Gramados Vargas | I134: 3367-2625 | J134: Canoas Garden | K134: 3472-4931
A135: =+A133+1 -> 103 | B135: Composto Orgânico | C135: m³ | D135: 180 | F135: 130 | H135: 120 | J135: 160 | M135: =TRUNC((AVERAGE(D135,F135,H135,J135)),2) -> 147.5 | N135: 145
A136: =+A135+1 -> 104 | B136: Grama catarina (Axonopus compressus) | C136: m² | D136: 9.5 | F136: 12 | H136: 8 | J136: 12 | M136: =TRUNC((AVERAGE(D136,F136,H136,J136)),2) -> 10.37 | N136: 10.75
A137: =+A136+1 -> 105 | B137: Grama de campo ( 1ª qualidade) | C137: =C136 -> m² | D137: - | F137: 6 | H137: 6 | J137: 6.5 | M137: =TRUNC((AVERAGE(F137,H137,J137)),2) -> 6.16 | N137: 6
D138: Sulcopy | E138: 2103-4660 | F138: Impacto | G138: 3334-9900 | H138: Sul10 | I138: 4061-1001 | J138: Pino | K138: 3012-9090
A139: =+A137+1 -> 106 | B139: Placa em lona impressa c/ 6 m² | C139: m² | D139: 80 | F139: 50 | H139: 70 | J139: 51.75 | L139: Solicitar valor de placa com 6,00 m/2 (Dividir valor por 6) | M139: =TRUNC((AVERAGE(D139,F139,H139,J139)),2) -> 62.93 | N139: 60.87 | P139: =+D139/N139 -> 1.314276327 | Q139: =+F139/N139 -> 0.8214227041 | R139: =+H139/N139 -> 1.149991786 | S139: =+J139/N139 -> 0.8501724988
D140: Construtec | E140: 3012-2333 | F140: Reis e Reis | G140: 12 3966-9977 | H140: TecMachine | I140: 11 4643-4846 | J140: Neomatex | K140: 11 4771-1323
A141: =+A139+1 -> 107 | B141: Microfibra de polipropileno (sc 600 g) | C141: sc | D141: 20.4 | F141: 10.94 | H141: 10.59 | J141: 11.4 | L141: Saco de 600 g (600 g/m³ de concreto) | M141: =TRUNC((AVERAGE(F141,H141,J141)),2) -> 10.97 | N141: 11.17
D142: Mineração Peixoto | E142: 51 3678-1020 | F142: Grani Torre | G142: 11 2246-1250 | H142: Polipiso | I142: 99116-4697
A143: =+A141+1 -> 108 | B143: Argamassa de alta resistência (Piso duro) | C143: kg | D143: 0.74 | F143: 0.65 | H143: 0.77 | L143: Frete para 1800,00 kg | M143: =TRUNC((AVERAGE(D143,F143,H143)),2) -> 0.72 | N143: 0.74
D144: Constinta | E144: 3341-6344 | F144: Amauri | G144: 3322-7100 | H144: Porto Cores | I144: 3346-3339 | J144: Aquarela Tintas | K144: 3223-0133
A145: =+A143+1 -> 109 | B145: Fundo p/ galvanizado | C145: l | D145: 27.33 | F145: 23.61 | H145: 29.05 | J145: 27.5 | M145: =TRUNC((AVERAGE(D145,F145,H145,J145)),2) -> 26.87 | N145: 27.41 | P145: =+D145/M145 -> 1.017119464 | Q145: =+F145/M145 -> 0.8786751023 | R145: =+H145/M145 -> 1.081131373 | S145: =+J145/M145 -> 1.023446223
D146: Drenamac | E146: 3029-7593 | F146: Drenotec | G146: 3119-1244 | H146: Geofoco | I146: 0800-378-8500
A147: =+A145+1 -> 110 | B147: Manta Geotêxtil para cura do concreto | C147: m² | D147: 2.2 | F147: 2.5 | H147: 2.1 | L147: Bidim CC-10 | M147: =TRUNC((AVERAGE(D147,F147,H147)),2) -> 2.26 | N147: =TRUNC((MEDIAN(D147:K147)),2) -> 2.2
D148: Prod Equipam. MB | E148: 3377-2035
A149: =+A147+1 -> 111 | B149: Papeleira metálica basculante H-30 | C149: un | D149: 551 | M149: =TRUNC((AVERAGE(D149)),2) -> 551 | N149: 551
D150: Elevato | E150: 3349-0200 | F150: SIA | G150: 3375-3800 | H150: Mil Torneiras | I150: 3371-3200
A151: =+A149+1 -> 112 | B151: Válvula de mictório anti-vandalismo alta pressão Docol | C151: un | D151: 557.81 | F151: 362.1 | H151: 413.9 | M151: =TRUNC((AVERAGE(D151,F151,H151)),2) -> 444.6 | N151: 413.9
D152: LC | E152: 3217-1323 | F152: De Grandi | G152: 3307-7724 | H152: Bello | I152: 3217-5900 | J152: Belotto | K152: 3541-5521
A153: =+A151+1 -> 113 | B153: Placa de granito | C153: un | D153: 450 | F153: 650 | H153: 840 | J153: 750 | M153: =TRUNC((AVERAGE(D153,F153,H153,J153)),2) -> 672.5 | N153: 700
D154: Gaúcha | E154: 3245-3500 | F154: Desentulha | G154: 3248-2282 | H154: Nichele | I154: 3246-7864
A155: =+A153+1 -> 114 | B155: Caçamba 4,00 m3 | C155: un | D155: 390 | F155: 360 | H155: 405 | L155: Média Centro com Zona Sul caliça e terra | M155: =TRUNC((AVERAGE(D155,F155,H155)),2) -> 385 | N155: 390 | P155: =+D155/M155 -> 1.012987013 | Q155: =+F155/M155 -> 0.9350649351 | R155: =+H155/M155 -> 1.051948052
D156: Transguga | E156: 3337-6060 | F156: Britas do Sul | G156: 3245-2093 | H156: Areia Norte | I156: 3340-9032 | J156: Balinha | K156: 3434-0059
A157: =+A155+1 -> 115 | B157: Areia Peneirada - posto obra | C157: m³ | D157: 65 | F157: 90 | H157: 65 | J157: 70 | M157: =TRUNC((AVERAGE(D157,F157,H157,J157)),2) -> 72.5 | N157: =TRUNC((MEDIAN(D157:K157)),2) -> 67.5
A158: =+A157+1 -> 116 | B158: Brita 1 ou 2 - posto obra | C158: m³ | D158: 65 | F158: 75 | H158: 65 | J158: 65 | M158: =TRUNC((AVERAGE(D158,F158,H158,J158)),2) -> 67.5 | N158: 65
D159: DMAE | E159: 3289-9537
A160: =+A158+1 -> 117 | B160: Taxa instalação água DMAE | C160: cj | D160: 465.36 | L160: Engª Ana | M160: =TRUNC((AVERAGE(D160)),2) -> 465.36 | N160: 465.36
A161: =+A160+1 -> 118 | B161: Taxa instalação esgoto DMAE | C161: cj | D161: 300.94 | M161: =TRUNC((AVERAGE(D161)),2) -> 300.94 | N161: 300.94
A162: =+A161+1 -> 119 | B162: Água tratada* | C162: m³ | D162: 4.66 | M162: =TRUNC((AVERAGE(D162)),2) -> 4.66 | N162: 4.66 | P162: =+D162/M162 -> 1
A163: =+A162+1 -> 120 | B163: Esgoto cloacal* | C163: m³ | D163: =TRUNC((0.8*D162),2) -> 3.72 | M163: =TRUNC((AVERAGE(D163)),2) -> 3.72 | N163: 3.72 | P163: =+D163/M163 -> 1
D164: PMPA | E164: Decreto
A165: =+A163+1 -> 121 | B165: Contribuição Iluminação Pública (CIP) | C165: cj | D165: 22.08 | L165: Decreto 19.242, de 7/12/2015 - Consumidor não residencial - Bandeira amarela | M165: =TRUNC((AVERAGE(D165)),2) -> 22.08 | N165: 22.08
D166: Rebello | E166: 3239-4844 | F166: Tomazelli | G166: 3340-2111 | H166: Paraíso das Pedras | I166: 11 2461-0772 | J166: Interlagos | K166: 11 5666-0006
A167: =+A165+1 -> 122 | B167: Pedra Portuguesa | C167: m² | D167: 90 | F167: 78 | H167: 78.75 | J167: 85 | M167: =TRUNC((AVERAGE(D167,F167,H167,J167)),2) -> 82.93 | N167: =TRUNC((MEDIAN(D167:K167)),2) -> 81.87
D168: Tchê | E168: 3522-0206 | F168: SRS | G168: 3544-1156 | H168: Maico Pedras | I168: 99817-3559 | J168: Marcão Pedras | K168: 3431-7078
A169: =+A167+1 -> 123 | B169: Laje de Grês 90x45 | C169: un | D169: 6.9 | F169: 7.5 | H169: 6 | J169: 6.5 | M169: =TRUNC((AVERAGE(D169,F169,H169,J169)),2) -> 6.72 | N169: =TRUNC((MEDIAN(D169:K169)),2) -> 6.7
A170: =+A169+1 -> 124 | B170: Pedra de Grês 43x21x12 | C170: un | D170: 1.9 | F170: 2.2 | H170: 1.8 | J170: 1.75 | M170: =TRUNC((AVERAGE(D170,F170,H170,J170)),2) -> 1.91 | N170: =TRUNC((MEDIAN(D170:K170)),2) -> 1.85
D171: Ponte Pedras | E171: 11 4485-3034 | F171: Balinha | G171: 3434-0059
A172: =+A170+1 -> 125 | B172: Pedra de Alicerce | C172: un | D172: 6 | F172: 4.5 | M172: =TRUNC((AVERAGE(D172,F172)),2) -> 5.25 | N172: =TRUNC((MEDIAN(D172:G172)),2) -> 5.25
D173: Supreme | E173: 3012-9962 | F173: Via Inox | G173: 3275-1111 | H173: Magazine do Inox | I173: 3060-2074 | J173: Stilo Elevato | K173: 3333-8200
A174: =+A172+1 -> 126 | B174: Cuba Inox polida d=38 cm c/válvula 3 1/2" | C174: un | D174: 140 | F174: 161.4 | H174: 150.2 | J174: 301.03 | M174: =TRUNC((AVERAGE(D174,F174,H174)),2) -> 150.53 | N174: =TRUNC((MEDIAN(D174:K174)),2) -> 155.8
D175: RZ | E175: 3212-7911 | F175: Copyserv | G175: 3212-1612 | H175: DWG | I175: 3022-7978 | J175: MI Digital | K175: 3574-8012
A176: =+A174+1 -> 127 | B176: Plotagem | C176: m² | D176: 11.89 | F176: 12 | H176: 10.7 | J176: 10.58 | L176: PB, Papel sulfite, gramatura | M176: =TRUNC((AVERAGE(D176,F176,H176,J176)),2) -> 11.29 | N176: =TRUNC((MEDIAN(D176:K176)),2) -> 11.29
D177: Sinduscon | E177: Site
A178: =+A176+1 -> 128 | B178: CUB-RS R 16-N | C178: un | D178: 1477.13 | M178: =TRUNC((AVERAGE(D178)),2) -> 1477.13 | N178: =TRUNC((MEDIAN(D178:K178)),2) -> 1477.13
D179: CREA-RS | E179: Site
A180: =+A178+1 -> 129 | B180: ART* | C180: un | D180: 233.94 | M180: =TRUNC((AVERAGE(D180)),2) -> 233.94 | N180: =TRUNC((MEDIAN(D180:K180)),2) -> 233.94 | P180: =+D180/M180 -> 1
D181: PMPA | E181: Site
A182: =+A180+1 -> 130 | B182: UFM | C182: un | D182: 4.1771 | M182: =TRUNC((AVERAGE(D182)),2) -> 4.17 | N182: =TRUNC((MEDIAN(D182:K182)),2) -> 4.17 | O182: x
D183: Casa do Granito | E183: 3233-0052 | F183: La Pietra | G183: 3334-6544 | H183: Bonapedras | I183: 3012-4393 | J183: AGPetrea | K183: 3126-3792
A184: =+A182+1 -> 131 | B184: Tabuleiro damas | C184: un | D184: 700 | F184: 320 | H184: 550 | J184: 320 | M184: =TRUNC((AVERAGE(D184,F184,H184,J184)),2) -> 472.5 | N184: =TRUNC((MEDIAN(D184:K184)),2) -> 435
D185: Americanas | E185: Site | F185: Magazine Luiza | G185: Site | H185: Walmart | I185: Site
A186: =+A184+1 -> 132 | B186: Dobradiça galvanizada 4"x2 1/2" | C186: un | D186: 7.9 | F186: 6.63 | H186: 8.39 | M186: =TRUNC((AVERAGE(D186,F186,H186)),2) -> 7.64 | N186: =TRUNC((MEDIAN(D186:K186)),2) -> 7.9
D187: Tumelero | E187: Site | F187: Leroy Merlin | G187: Site | H187: Cassol | I187: Site
A188: =+A186+1 -> 133 | B188: Fita zebrada - 7 cm x 200 m | C188: un | D188: 0.07 | F188: 0.09 | H188: 0.12 | M188: =TRUNC((AVERAGE(D188,F188,H188)),2) -> 0.09 | N188: =TRUNC((MEDIAN(D188:K188)),2) -> 0.09
D189: FG | E189: Site | F189: Mundo das Fechaduras | G189: Site | H189: Magazine Luiza | I189: Site
A190: =+A188+1 -> 134 | B190: Dobradiça Gonzo 5/8"* | C190: un | D190: 6.66 | F190: 6.3 | H190: 6.99 | M190: =TRUNC((AVERAGE(D190,F190,H190)),2) -> 6.65 | N190: =TRUNC((MEDIAN(D190:K190)),2) -> 6.66 | P190: =+D190/M190 -> 1.001503759 | Q190: =+F190/M190 -> 0.9473684211 | R190: =+H190/M190 -> 1.05112782
D191: FG | E191: Site | F191: Guimepa | G191: Site | H191: Cassol | I191: Site
A192: =+A190+1 -> 135 | B192: Fecho bico de papagaio* | C192: un | D192: 17.13 | F192: 22.8 | H192: 24 | M192: =TRUNC((AVERAGE(D192,F192,H192)),2) -> 21.31 | N192: =TRUNC((MEDIAN(D192:K192)),2) -> 22.8 | P192: =+D192/M192 -> 0.8038479587 | Q192: =+F192/M192 -> 1.069920225 | R192: =+H192/M192 -> 1.126231816
A193: =+A192+1 -> 136 | B193: Porta cadeado 2 1/2"* | C193: un | D193: 5 | F193: 11.4 | H193: 12 | M193: =TRUNC((AVERAGE(F193,H193)),2) -> 11.7 | N193: =TRUNC((MEDIAN(D193:K193)),2) -> 11.4 | P193: =+D193/N193 -> 0.4385964912 | Q193: =+F193/N193 -> 1 | R193: =+H193/N193 -> 1.052631579

Sheet BDI
A1: Composição do BDI
A3: *Conforme Decreto nº 19.224, de 25 de novembro de 2015 (PMPA)
A5: TOMADOR: | B5: PREFEITURA MUNICIPAL DE PORTO ALEGRE
A6: Nº CONTRATO:
A7: OBJETO: | B7: =+PO!B10 -> REVITALIZAÇÃO DA PRAÇA A.R.I. - CACHORRÓDROMO - ÁREA 135/02
A8: DATA: | B8: =IF(PO!$B$11="","",PO!$B$11) -> 2022-03-02 | C8: =IF(PO!$C$11="","",PO!$C$11) ->  | D8: =IF(PO!$C$11="","",PO!$C$11) ->  | E8: =IF(PO!$C$11="","",PO!$C$11) ->  | F8: =IF(PO!$C$11="","",PO!$C$11) -> 
A9: ART: | B9: =IF(PO!$B$12="","",PO!$B$12) -> 11751298
A10: CONTRIBUIÇÃO PREVIDENCIÁRIA: | D10: =IF(M.O.!$D$5="c/desoneração","Orçamento COM DESONERAÇÃO (Lei 13.161/2015)","Orçamento SEM DESONERAÇÃO (Lei 13.161/2015)") -> Orçamento COM DESONERAÇÃO (Lei 13.161/2015)
A12: TIPO DE OBRA | D12: Contratação de obras e serviços de INFRAESTRUTURA, incluindo pavimentação, iluminação pública, praças, saneamento, sistemas de água, esgoto cloacal e pluvial e seus respectivos serviços de conservação e manutenção
A13: Parcelas
A14: (AC) - Administração Central | D14: 4.03
A15: (S) + (G) - Seguro e Garantia | D15: 0.65
A16: (R) - Risco | D16: 1.33
A17: (DF) - Despesas Financeiras | D17: 1.52
A18: (L) - Lucro | D18: 8
A19: (I1) - PIS | D19: 0.65
A20: (I2) - COFINS | D20: 3
A21: (I3) - ISSQN | D21: 1.2
A22: (I4) - Contrib. Previdenciária | D22: 4.5
A23: BDI Calculado, incluindo I4 - com desoneração | D23: 0.2821
A24: BDI Calculado, desconsiderando I4 - sem desoneração | D24: 0.2215
A26: Os valores de BDI foram calculados com o emprego da fórmula abaixo (Acórdão 2622/2013 - TCU):
A33: Declaro para os devidos fins que, conforme legislação tributária municipal, a base de cálculo para o ISS das atividades Pavimentação, Iluminação Pública, Praças, Saneamento, Sistemas de água, Esgoto Cloacal e Pluvial e seus respectivos serviços de conservação e manutenção é de 30%, com a respectiva alíquota de 4%.
A39: Declaro para os devidos fins que o detalhamento de encargos sociais atende ao estabelecido no SINAPI/RS de
B40: =CONCATENATE(M.O.!$E$17,",") -> Janeiro/22, | E40: sendo utilizada a opção de mão-de-obra horista e mensalista | F40: =IF(M.O.!$D$5="c/desoneração","com desoneração,","sem desoneração,") -> com desoneração,
A41: e que esta é a alternativa mais adequada para a Administração Pública.

Sheet Encargos Sociais
A1: Composição dos Encargos Sociais
D3: Mês de referência: | F3: Jan/21
A5: ENCARGOS SOCIAIS SOBRE A MÃO-DE-OBRA
A6: Código | B6: Descrição | C6: Com Desoneração | E6: Sem Desoneração
C7: Horista | D7: Mensalista | E7: Horista | F7: Mensalista
A8: GRUPO A
A9: A1 | B9: INSS | C9: 0 | D9: 0 | E9: 0.2 | F9: 0.2
A10: A2 | B10: SESI | C10: 0.015 | D10: 0.015 | E10: 0.015 | F10: 0.015
A11: A3 | B11: SENAI | C11: 0.01 | D11: 0.01 | E11: 0.01 | F11: 0.01
A12: A4 | B12: INCRA | C12: 0.002 | D12: 0.002 | E12: 0.002 | F12: 0.002
A13: A5 | B13: SEBRAE | C13: 0.006 | D13: 0.006 | E13: 0.006 | F13: 0.006
A14: A6 | B14: Salário Educação | C14: 0.025 | D14: 0.025 | E14: 0.025 | F14: 0.025
A15: A7 | B15: Seguro Contra Acidentes de Trabalho | C15: 0.03 | D15: 0.03 | E15: 0.03 | F15: 0.03
A16: A8 | B16: FGTS | C16: 0.08 | D16: 0.08 | E16: 0.08 | F16: 0.08
A17: A9 | B17: SECONCI | C17: 0 | D17: 0 | E17: 0 | F17: 0
A18: A | B18: Total | C18: =SUM(C9:C17) -> 0.168 | D18: =SUM(D9:D17) -> 0.168 | E18: 0.368 | F18: 0.368
A19: GRUPO B
A20: B1 | B20: Repouso Semanal Remunerado | C20: 0.1793 | D20: 0 | E20: 0.1793 | F20: 0
A21: B2 | B21: Feriados | C21: 0.0424 | D21: 0 | E21: 0.0424 | F21: 0
A22: B3 | B22: Auxílio - Enfermidade | C22: 0.0085 | D22: 0.0066 | E22: 0.0085 | F22: 0.0066
A23: B4 | B23: 13º Salário | C23: 0.1081 | D23: 0.0833 | E23: 0.1081 | F23: 0.0833
A24: B5 | B24: Licença Paternidade | C24: 0.0007 | D24: 0.0006 | E24: 0.0007 | F24: 0.0006
A25: B6 | B25: Faltas Justificadas | C25: 0.0072 | D25: 0.0056 | E25: 0.0072 | F25: 0.0056
A26: B7 | B26: Dias de Chuvas | C26: 0.0153 | D26: 0 | E26: 0.0153 | F26: 0
A27: B8 | B27: Auxílio Acidente de Trabalho | C27: 0.001 | D27: 0.0008 | E27: 0.001 | F27: 0.0008
A28: B9 | B28: Férias Gozadas | C28: 0.0814 | D28: 0.0628 | E28: 0.0814 | F28: 0.0628
A29: B10 | B29: Salário Maternidade | C29: 0.0003 | D29: 0.0002 | E29: 0.0003 | F29: 0.0002
A30: B | B30: Total | C30: =SUM(C20:C29) -> 0.4442 | D30: =SUM(D20:D29) -> 0.1599 | E30: 0.4442 | F30: 0.1599
A31: GRUPO C
A32: C1 | B32: Aviso Prévio Indenizado | C32: 0.045 | D32: 0.0347 | E32: 0.045 | F32: 0.0347
A33: C2 | B33: Aviso Prévio Trabalhado | C33: 0.0011 | D33: 0.0008 | E33: 0.0011 | F33: 0.0008
A34: C3 | B34: Férias Indenizadas | C34: 0.0478 | D34: 0.0368 | E34: 0.0478 | F34: 0.0368
A35: C4 | B35: Depósito Rescisão Sem Justa Causa | C35: 0.0348 | D35: 0.0269 | E35: 0.0348 | F35: 0.0269
A36: C5 | B36: Indenização Adicional | C36: 0.0038 | D36: 0.0029 | E36: 0.0038 | F36: 0.0029
A37: C | B37: Total | C37: =SUM(C32:C36) -> 0.1325 | D37: =SUM(D32:D36) -> 0.1021 | E37: 0.1325 | F37: 0.1021
A38: GRUPO D
A39: D1 | B39: Reincidência de Grupo A sobre Grupo B | C39: =ROUND((C18*C30),4) -> 0.0746 | D39: =ROUND((D18*D30),4) -> 0.0269 | E39: 0.1635 | F39: 0.0588
A40: D2 | B40: Reincidência de Grupo A sobre Aviso Prévio Trabalhado e Reincidência do FGTS sobre Aviso Prévio Indenizado | C40: =ROUND(((C18*C33)+(C16*C32)),4) -> 0.0038 | D40: =ROUND(((D18*D33)+(D16*D32)),4) -> 0.0029 | E40: 0.004 | F40: 0.0031
A41: D | B41: Total | C41: =SUM(C39:C40) -> 0.0784 | D41: =SUM(D39:D40) -> 0.0298 | E41: 0.1675 | F41: 0.0619
A42: TOTAL (A+B+C+D) | C42: =+C18+C30+C37+C41 -> 0.8231 | D42: =+D18+D30+D37+D41 -> 0.4598 | E42: 1.1122 | F42: 0.6919

Sheet Cronograma
A1: CRONOGRAMA FÍSICO-FINANCEIRO | AC1: INSTRUÇÕES
AC2: *Preencher com as porcentagens de cada item. *Ocultar colunas não utilizadas (não deletar). *As linhas devem ser ocultadas, nunca deletadas. *Não preencher as porcentagens de engenheiro, mestre e encarregado.
A3: OBJETO: | B3: =+PO!$B$10 -> REVITALIZAÇÃO DA PRAÇA A.R.I. - CACHORRÓDROMO - ÁREA 135/02
A4: DATA: | B4: =IF(PO!$B$11="","",PO!$B$11) -> 2022-03-02 | C4: =+PO!B3:L3 -> 0
A5: ART nº: | B5: =IF(PO!$B$12="","",PO!$B$12) -> 11751298
AG7: Mensais s/ administração local | AT7: Administração proporcional
A8: ITEM | B8: SERVIÇO | C8: VALOR DO SERVIÇO | D8: 30 dias | F8: 45 dias | H8: 90 dias | J8: 120 dias | L8: 150 dias | N8: 180 dias | P8: 210 dias | R8: 240 dias | T8: 270 dias | V8: 300 dias | X8: 330 dias | Z8: 360 dias
D9: % | E9: Valor | F9: % | G9: Valor | H9: % | I9: Valor | J9: % | K9: Valor | L9: % | M9: Valor | N9: % | O9: Valor | P9: % | Q9: Valor | R9: % | S9: Valor | T9: % | U9: Valor | V9: % | W9: Valor | X9: % | Y9: Valor | Z9: % | AA9: Valor | AG9: Mês 1 | AH9: Mês 2 | AI9: Mês 3 | AJ9: Mês 4 | AK9: Mês 5 | AL9: Mês 6 | AM9: Mês 7 | AN9: Mês 8 | AO9: Mês 9 | AP9: Mês 10 | AQ9: Mês 11 | AR9: Mês 12 | AT9: Total s/administração: | AV9: =SUM(AG278:AR278) -> 98538.33
A10: =+PO!B17 -> 1 | B10: SERVIÇOS PRELIMINARES: | AT10: Mensais s/ administração | AV10: Proporção
A11: =+PO!B18 -> 1.1 | B11: LIMPEZA MANUAL DE VEGETAÇÃO EM TERRENO COM ENXADA | C11: =+PO!L18 -> 505.3 | D11: 1 | E11: =D11*$C11 -> 505.3 | G11: =F11*$C11 -> 0 | I11: =H11*$C11 -> 0 | K11: =J11*$C11 -> 0 | M11: =L11*$C11 -> 0 | O11: =N11*$C11 -> 0 | Q11: =P11*$C11 -> 0 | S11: =R11*$C11 -> 0 | U11: =T11*$C11 -> 0 | W11: =V11*$C11 -> 0 | Y11: =X11*$C11 -> 0 | AA11: =Z11*$C11 -> 0 | AC11: =+D11+F11+H11+J11+L11+N11+P11+R11+T11+V11+X11+Z11 -> 1 | AD11: =+E11+G11+I11+K11+M11+O11+Q11+S11+U11+W11+Y11+AA11 -> 505.3 | AE11: =IF(C11=AD11,"ok!","incompleto") -> ok! | AG11: =+E11 -> 505.3 | AH11: =+G11 -> 0 | AI11: =+I11 -> 0 | AJ11: =+K11 -> 0 | AK11: =+M11 -> 0 | AL11: =+O11 -> 0 | AM11: =+Q11 -> 0 | AN11: =+S11 -> 0 | AO11: =+U11 -> 0 | AP11: =+W11 -> 0 | AQ11: =+Y11 -> 0 | AR11: =+AA11 -> 0
A12: =+PO!B19 -> 0 | B12: DEMOLIÇÃO DE CONCRETO ARMADO COM MARTELETE C/REMOÇÃO DE ENTULHO | C12: =+PO!L19 -> 0 | E12: =D12*$C12 -> 0 | G12: =F12*$C12 -> 0 | I12: =H12*$C12 -> 0 | K12: =J12*$C12 -> 0 | M12: =L12*$C12 -> 0 | O12: =N12*$C12 -> 0 | Q12: =P12*$C12 -> 0 | S12: =R12*$C12 -> 0 | U12: =T12*$C12 -> 0 | W12: =V12*$C12 -> 0 | Y12: =X12*$C12 -> 0 | AA12: =Z12*$C12 -> 0 | AC12: 0 | AD12: 0 | AE12: ok! | AG12: 0 | AH12: 0 | AI12: 0 | AJ12: 0 | AK12: 0 | AL12: 0 | AM12: 0 | AN12: 0 | AO12: 0 | AP12: 0 | AQ12: 0 | AR12: 0 | AT12: Mês 1 | AU12: =+AG278 -> 65482.6738 | AV12: =+AU12/$AV$9 -> 0.6645401216
A13: =+PO!B20 -> 0 | B13: DEMOLIÇÃO DE PISO DE CONCRETO ARMADO COM MARTELETE Esp = 8 cm C/REMOÇÃO DE ENTULHO | C13: =+PO!L20 -> 0 | E13: =D13*$C13 -> 0 | G13: =F13*$C13 -> 0 | I13: =H13*$C13 -> 0 | K13: =J13*$C13 -> 0 | M13: =L13*$C13 -> 0 | O13: =N13*$C13 -> 0 | Q13: =P13*$C13 -> 0 | S13: =R13*$C13 -> 0 | U13: =T13*$C13 -> 0 | W13: =V13*$C13 -> 0 | Y13: =X13*$C13 -> 0 | AA13: =Z13*$C13 -> 0 | AC13: 0 | AD13: 0 | AE13: ok! | AG13: 0 | AH13: 0 | AI13: 0 | AJ13: 0 | AK13: 0 | AL13: 0 | AM13: 0 | AN13: 0 | AO13: 0 | AP13: 0 | AQ13: 0 | AR13: 0 | AT13: Mês 2 | AU13: =+AH278 -> 33055.6562 | AV13: =+AU13/$AV$9 -> 0.3354598784
A14: =+PO!B21 -> 0 | B14: REMOÇÃO DE PASSEIOS | C14: =+PO!L21 -> 0 | E14: 0 | G14: 0 | I14: 0 | K14: 0 | M14: 0 | O14: 0 | Q14: 0 | S14: 0 | U14: 0 | W14: 0 | Y14: 0 | AA14: 0 | AC14: 0 | AD14: 0 | AE14: ok! | AG14: =+E14 -> 0 | AH14: =+G14 -> 0 | AI14: =+I14 -> 0 | AJ14: =+K14 -> 0 | AK14: =+M14 -> 0 | AL14: =+O14 -> 0 | AM14: =+Q14 -> 0 | AN14: =+S14 -> 0 | AO14: =+U14 -> 0 | AP14: =+W14 -> 0 | AQ14: =+Y14 -> 0 | AR14: =+AA14 -> 0 | AT14: Mês 3 | AU14: =+AI278 -> 0 | AV14: 0
A15: =+PO!B22 -> 0 | B15: DEMOLIÇÃO TELAMENTO h=5,50 m S/TUBOS E S/VIGA C/REMOÇÃO DE ENTULHO | C15: =+PO!L22 -> 0 | E15: 0 | G15: 0 | I15: 0 | K15: 0 | M15: 0 | O15: 0 | Q15: 0 | S15: 0 | U15: 0 | W15: 0 | Y15: 0 | AA15: 0 | AC15: 0 | AD15: 0 | AE15: ok! | AG15: 0 | AH15: 0 | AI15: 0 | AJ15: 0 | AK15: 0 | AL15: 0 | AM15: 0 | AN15: 0 | AO15: 0 | AP15: 0 | AQ15: 0 | AR15: 0 | AT15: Mês 4 | AU15: =+AJ278 -> 0 | AV15: 0
A16: =+PO!B23 -> 0 | B16: DEMOLIÇÃO TELAMENTO h=3,00 m S/TUBOS E S/VIGA C/REMOÇÃO DE ENTULHO | C16: =+PO!L23 -> 0 | E16: 0 | G16: 0 | I16: 0 | K16: 0 | M16: 0 | O16: 0 | Q16: 0 | S16: 0 | U16: 0 | W16: 0 | Y16: 0 | AA16: 0 | AC16: 0 | AD16: 0 | AE16: ok! | AG16: 0 | AH16: 0 | AI16: 0 | AJ16: 0 | AK16: 0 | AL16: 0 | AM16: 0 | AN16: 0 | AO16: 0 | AP16: 0 | AQ16: 0 | AR16: 0 | AT16: Mês 5 | AU16: =+AK278 -> 0 | AV16: 0
A17: =+PO!B24 -> 0 | B17: DEMOLIÇÃO TELAMENTO h=1,00 m C/REMOÇÃO DE ENTULHO | C17: =+PO!L24 -> 0 | E17: 0 | G17: 0 | I17: 0 | K17: 0 | M17: 0 | O17: 0 | Q17: 0 | S17: 0 | U17: 0 | W17: 0 | Y17: 0 | AA17: 0 | AC17: 0 | AD17: 0 | AE17: ok! | AG17: 0 | AH17: 0 | AI17: 0 | AJ17: 0 | AK17: 0 | AL17: 0 | AM17: 0 | AN17: 0 | AO17: 0 | AP17: 0 | AQ17: 0 | AR17: 0 | AT17: Mês 6 | AU17: =+AL278 -> 0 | AV17: 0
A18: =+PO!B25 -> 0 | B18: DEMOLIÇÃO TUBOS TELAMENTO h=5,50 m C/REMOÇÃO DE ENTULHO | C18: =+PO!L25 -> 0 | E18: 0 | G18: 0 | I18: 0 | K18: 0 | M18: 0 | O18: 0 | Q18: 0 | S18: 0 | U18: 0 | W18: 0 | Y18: 0 | AA18: 0 | AC18: 0 | AD18: 0 | AE18: ok! | AG18: 0 | AH18: 0 | AI18: 0 | AJ18: 0 | AK18: 0 | AL18: 0 | AM18: 0 | AN18: 0 | AO18: 0 | AP18: 0 | AQ18: 0 | AR18: 0 | AT18: Mês 7 | AU18: =+AM278 -> 0 | AV18: 0
A19: =+PO!B26 -> 0 | B19: DEMOLIÇÃO TUBOS TELAMENTO h=3,00 m C/REMOÇÃO DE ENTULHO | C19: =+PO!L26 -> 0 | E19: 0 | G19: 0 | I19: 0 | K19: 0 | M19: 0 | O19: 0 | Q19: 0 | S19: 0 | U19: 0 | W19: 0 | Y19: 0 | AA19: 0 | AC19: 0 | AD19: 0 | AE19: ok! | AG19: 0 | AH19: 0 | AI19: 0 | AJ19: 0 | AK19: 0 | AL19: 0 | AM19: 0 | AN19: 0 | AO19: 0 | AP19: 0 | AQ19: 0 | AR19: 0 | AT19: Mês 8 | AU19: =+AN278 -> 0 | AV19: 0
A20: =+PO!B27 -> 0 | B20: DEMOLIÇÃO VIGA TELAMENTO C/REMOÇÃO DE ENTULHO | C20: =+PO!L27 -> 0 | E20: 0 | G20: 0 | I20: 0 | K20: 0 | M20: 0 | O20: 0 | Q20: 0 | S20: 0 | U20: 0 | W20: 0 | Y20: 0 | AA20: 0 | AC20: 0 | AD20: 0 | AE20: ok! | AG20: 0 | AH20: 0 | AI20: 0 | AJ20: 0 | AK20: 0 | AL20: 0 | AM20: 0 | AN20: 0 | AO20: 0 | AP20: 0 | AQ20: 0 | AR20: 0 | AT20: Mês 9 | AU20: =+AO278 -> 0 | AV20: 0
A21: =+PO!B28 -> 0 | B21: REMOÇÃO MEIO-FIO VIÁRIO C/REMOÇÃO DE ENTULHO | C21: =+PO!L28 -> 0 | E21: 0 | G21: 0 | I21: 0 | K21: 0 | M21: 0 | O21: 0 | Q21: 0 | S21: 0 | U21: 0 | W21: 0 | Y21: 0 | AA21: 0 | AC21: 0 | AD21: 0 | AE21: ok! | AG21: 0 | AH21: 0 | AI21: 0 | AJ21: 0 | AK21: 0 | AL21: 0 | AM21: 0 | AN21: 0 | AO21: 0 | AP21: 0 | AQ21: 0 | AR21: 0 | AT21: Mês 10 | AU21: =+AP278 -> 0 | AV21: 0
A22: =+PO!B29 -> 0 | B22: REMOÇÃO BANCO C/ ENCOSTO | C22: =+PO!L29 -> 0 | E22: 0 | G22: 0 | I22: 0 | K22: 0 | M22: 0 | O22: 0 | Q22: 0 | S22: 0 | U22: 0 | W22: 0 | Y22: 0 | AA22: 0 | AC22: 0 | AD22: 0 | AE22: ok! | AG22: 0 | AH22: 0 | AI22: 0 | AJ22: 0 | AK22: 0 | AL22: 0 | AM22: 0 | AN22: 0 | AO22: 0 | AP22: 0 | AQ22: 0 | AR22: 0 | AT22: Mês 11 | AU22: =+AQ278 -> 0 | AV22: 0
A23: =+PO!B30 -> 0 | B23: REMOÇÃO BANCO S/ ENCOSTO | C23: =+PO!L30 -> 0 | E23: 0 | G23: 0 | I23: 0 | K23: 0 | M23: 0 | O23: 0 | Q23: 0 | S23: 0 | U23: 0 | W23: 0 | Y23: 0 | AA23: 0 | AC23: 0 | AD23: 0 | AE23: ok! | AG23: 0 | AH23: 0 | AI23: 0 | AJ23: 0 | AK23: 0 | AL23: 0 | AM23: 0 | AN23: 0 | AO23: 0 | AP23: 0 | AQ23: 0 | AR23: 0 | AT23: Mês 12 | AU23: =+AR278 -> 0 | AV23: 0
A24: =+PO!B31 -> 0 | B24: REMOÇÃO PARACICLO | C24: =+PO!L31 -> 0 | E24: 0 | G24: 0 | I24: 0 | K24: 0 | M24: 0 | O24: 0 | Q24: 0 | S24: 0 | U24: 0 | W24: 0 | Y24: 0 | AA24: 0 | AC24: 0 | AD24: 0 | AE24: ok! | AG24: 0 | AH24: 0 | AI24: 0 | AJ24: 0 | AK24: 0 | AL24: 0 | AM24: 0 | AN24: 0 | AO24: 0 | AP24: 0 | AQ24: 0 | AR24: 0 | AT24: Total | AU24: =SUM(AU12:AU23) -> 98538.33 | AV24: =SUM(AV12:AV23) -> 1
A25: =+PO!B32 -> 0 | B25: DEMOLIÇÃO CAIXA DE AREIA C/REMOÇÃO DE ENTULHOS | C25: =+PO!L32 -> 0 | E25: 0 | G25: 0 | I25: 0 | K25: 0 | M25: 0 | O25: 0 | Q25: 0 | S25: 0 | U25: 0 | W25: 0 | Y25: 0 | AA25: 0 | AC25: 0 | AD25: 0 | AE25: ok! | AG25: 0 | AH25: 0 | AI25: 0 | AJ25: 0 | AK25: 0 | AL25: 0 | AM25: 0 | AN25: 0 | AO25: 0 | AP25: 0 | AQ25: 0 | AR25: 0
A26: =+PO!B33 -> 0 | B26: DEMOLIÇÃO CANCHA DE BOCHA C/REMOÇÃO DE ENTULHOS | C26: =+PO!L33 -> 0 | E26: 0 | G26: 0 | I26: 0 | K26: 0 | M26: 0 | O26: 0 | Q26: 0 | S26: 0 | U26: 0 | W26: 0 | Y26: 0 | AA26: 0 | AC26: 0 | AD26: 0 | AE26: ok! | AG26: 0 | AH26: 0 | AI26: 0 | AJ26: 0 | AK26: 0 | AL26: 0 | AM26: 0 | AN26: 0 | AO26: 0 | AP26: 0 | AQ26: 0 | AR26: 0
A27: =+PO!B34 -> 0 | B27: DEMOLIÇÃO COBERTURA CANCHA DE BOCHA C/REMOÇÃO DE ENTULHOS | C27: =+PO!L34 -> 0 | E27: 0 | G27: 0 | I27: 0 | K27: 0 | M27: 0 | O27: 0 | Q27: 0 | S27: 0 | U27: 0 | W27: 0 | Y27: 0 | AA27: 0 | AC27: 0 | AD27: 0 | AE27: ok! | AG27: 0 | AH27: 0 | AI27: 0 | AJ27: 0 | AK27: 0 | AL27: 0 | AM27: 0 | AN27: 0 | AO27: 0 | AP27: 0 | AQ27: 0 | AR27: 0
A28: =+PO!B35 -> 0 | B28: DEMOLIÇÃO CHURRASQUEIRA C/REMOÇÃO DE ENTULHOS | C28: =+PO!L35 -> 0 | E28: 0 | G28: 0 | I28: 0 | K28: 0 | M28: 0 | O28: 0 | Q28: 0 | S28: 0 | U28: 0 | W28: 0 | Y28: 0 | AA28: 0 | AC28: 0 | AD28: 0 | AE28: ok! | AG28: 0 | AH28: 0 | AI28: 0 | AJ28: 0 | AK28: 0 | AL28: 0 | AM28: 0 | AN28: 0 | AO28: 0 | AP28: 0 | AQ28: 0 | AR28: 0
A29: =+PO!B36 -> 0 | B29: DEMOLIÇÃO MESA E BANCOS DE CONCRETO C/REMOÇÃO DE ENTULHOS | C29: =+PO!L36 -> 0 | E29: 0 | G29: 0 | I29: 0 | K29: 0 | M29: 0 | O29: 0 | Q29: 0 | S29: 0 | U29: 0 | W29: 0 | Y29: 0 | AA29: 0 | AC29: 0 | AD29: 0 | AE29: ok! | AG29: 0 | AH29: 0 | AI29: 0 | AJ29: 0 | AK29: 0 | AL29: 0 | AM29: 0 | AN29: 0 | AO29: 0 | AP29: 0 | AQ29: 0 | AR29: 0
A30: =+PO!B37 -> 0 | B30: DEMOLIÇÃO BEBEDOURO C/REMOÇÃO DE ENTULHOS | C30: =+PO!L37 -> 0 | E30: 0 | G30: 0 | I30: 0 | K30: 0 | M30: 0 | O30: 0 | Q30: 0 | S30: 0 | U30: 0 | W30: 0 | Y30: 0 | AA30: 0 | AC30: 0 | AD30: 0 | AE30: ok! | AG30: 0 | AH30: 0 | AI30: 0 | AJ30: 0 | AK30: 0 | AL30: 0 | AM30: 0 | AN30: 0 | AO30: 0 | AP30: 0 | AQ30: 0 | AR30: 0
A31: =+PO!B38 -> 0 | B31: DEMOLIÇÃO FRADINHO BASE CIRCULAR C/REMOÇÃO DE ENTULHOS | C31: =+PO!L38 -> 0 | E31: 0 | G31: 0 | I31: 0 | K31: 0 | M31: 0 | O31: 0 | Q31: 0 | S31: 0 | U31: 0 | W31: 0 | Y31: 0 | AA31: 0 | AC31: 0 | AD31: 0 | AE31: ok! | AG31: 0 | AH31: 0 | AI31: 0 | AJ31: 0 | AK31: 0 | AL31: 0 | AM31: 0 | AN31: 0 | AO31: 0 | AP31: 0 | AQ31: 0 | AR31: 0
A32: =+PO!B39 -> 0 | B32: DEMOLIÇÃO FRADINHO BASE OCTOGONAL C/REMOÇÃO DE ENTULHOS | C32: =+PO!L39 -> 0 | E32: 0 | G32: 0 | I32: 0 | K32: 0 | M32: 0 | O32: 0 | Q32: 0 | S32: 0 | U32: 0 | W32: 0 | Y32: 0 | AA32: 0 | AC32: 0 | AD32: 0 | AE32: ok! | AG32: 0 | AH32: 0 | AI32: 0 | AJ32: 0 | AK32: 0 | AL32: 0 | AM32: 0 | AN32: 0 | AO32: 0 | AP32: 0 | AQ32: 0 | AR32: 0
A33: =+PO!B40 -> 0 | B33: REMOÇÃO MESA DE DAMAS | C33: =+PO!L40 -> 0 | E33: 0 | G33: 0 | I33: 0 | K33: 0 | M33: 0 | O33: 0 | Q33: 0 | S33: 0 | U33: 0 | W33: 0 | Y33: 0 | AA33: 0 | AC33: 0 | AD33: 0 | AE33: ok! | AG33: 0 | AH33: 0 | AI33: 0 | AJ33: 0 | AK33: 0 | AL33: 0 | AM33: 0 | AN33: 0 | AO33: 0 | AP33: 0 | AQ33: 0 | AR33: 0
A34: =+PO!B41 -> 0 | B34: REMOÇÃO LIXEIRA | C34: =+PO!L41 -> 0 | E34: 0 | G34: 0 | I34: 0 | K34: 0 | M34: 0 | O34: 0 | Q34: 0 | S34: 0 | U34: 0 | W34: 0 | Y34: 0 | AA34: 0 | AC34: 0 | AD34: 0 | AE34: ok! | AG34: 0 | AH34: 0 | AI34: 0 | AJ34: 0 | AK34: 0 | AL34: 0 | AM34: 0 | AN34: 0 | AO34: 0 | AP34: 0 | AQ34: 0 | AR34: 0
A35: =+PO!B42 -> 0 | B35: REMOÇÃO ESTRUTURA 1, 2, 3, 5 E 7 | C35: =+PO!L42 -> 0 | E35: 0 | G35: 0 | I35: 0 | K35: 0 | M35: 0 | O35: 0 | Q35: 0 | S35: 0 | U35: 0 | W35: 0 | Y35: 0 | AA35: 0 | AC35: 0 | AD35: 0 | AE35: ok! | AG35: 0 | AH35: 0 | AI35: 0 | AJ35: 0 | AK35: 0 | AL35: 0 | AM35: 0 | AN35: 0 | AO35: 0 | AP35: 0 | AQ35: 0 | AR35: 0
A36: =+PO!B43 -> 0 | B36: REMOÇÃO ESTRUTURA 4 | C36: =+PO!L43 -> 0 | E36: 0 | G36: 0 | I36: 0 | K36: 0 | M36: 0 | O36: 0 | Q36: 0 | S36: 0 | U36: 0 | W36: 0 | Y36: 0 | AA36: 0 | AC36: 0 | AD36: 0 | AE36: ok! | AG36: 0 | AH36: 0 | AI36: 0 | AJ36: 0 | AK36: 0 | AL36: 0 | AM36: 0 | AN36: 0 | AO36: 0 | AP36: 0 | AQ36: 0 | AR36: 0
A37: =+PO!B44 -> 0 | B37: REMOÇÃO ESTRUTURA 6 E 8 | C37: =+PO!L44 -> 0 | E37: 0 | G37: 0 | I37: 0 | K37: 0 | M37: 0 | O37: 0 | Q37: 0 | S37: 0 | U37: 0 | W37: 0 | Y37: 0 | AA37: 0 | AC37: 0 | AD37: 0 | AE37: ok! | AG37: 0 | AH37: 0 | AI37: 0 | AJ37: 0 | AK37: 0 | AL37: 0 | AM37: 0 | AN37: 0 | AO37: 0 | AP37: 0 | AQ37: 0 | AR37: 0
A38: =+PO!B45 -> 0 | B38: REMOÇÃO ESTRUTURA 9 | C38: =+PO!L45 -> 0 | E38: 0 | G38: 0 | I38: 0 | K38: 0 | M38: 0 | O38: 0 | Q38: 0 | S38: 0 | U38: 0 | W38: 0 | Y38: 0 | AA38: 0 | AC38: 0 | AD38: 0 | AE38: ok! | AG38: 0 | AH38: 0 | AI38: 0 | AJ38: 0 | AK38: 0 | AL38: 0 | AM38: 0 | AN38: 0 | AO38: 0 | AP38: 0 | AQ38: 0 | AR38: 0
A39: =+PO!B46 -> 0 | B39: REMOÇÃO GANGORRA | C39: =+PO!L46 -> 0 | E39: 0 | G39: 0 | I39: 0 | K39: 0 | M39: 0 | O39: 0 | Q39: 0 | S39: 0 | U39: 0 | W39: 0 | Y39: 0 | AA39: 0 | AC39: 0 | AD39: 0 | AE39: ok! | AG39: 0 | AH39: 0 | AI39: 0 | AJ39: 0 | AK39: 0 | AL39: 0 | AM39: 0 | AN39: 0 | AO39: 0 | AP39: 0 | AQ39: 0 | AR39: 0
A40: =+PO!B47 -> 0 | B40: REMOÇÃO BARRA-BALANÇO | C40: =+PO!L47 -> 0 | E40: 0 | G40: 0 | I40: 0 | K40: 0 | M40: 0 | O40: 0 | Q40: 0 | S40: 0 | U40: 0 | W40: 0 | Y40: 0 | AA40: 0 | AC40: 0 | AD40: 0 | AE40: ok! | AG40: 0 | AH40: 0 | AI40: 0 | AJ40: 0 | AK40: 0 | AL40: 0 | AM40: 0 | AN40: 0 | AO40: 0 | AP40: 0 | AQ40: 0 | AR40: 0
A41: =+PO!B48 -> 0 | B41: REMOÇÃO BALANÇO PADRÃO SMAM | C41: =+PO!L48 -> 0 | E41: 0 | G41: 0 | I41: 0 | K41: 0 | M41: 0 | O41: 0 | Q41: 0 | S41: 0 | U41: 0 | W41: 0 | Y41: 0 | AA41: 0 | AC41: 0 | AD41: 0 | AE41: ok! | AG41: 0 | AH41: 0 | AI41: 0 | AJ41: 0 | AK41: 0 | AL41: 0 | AM41: 0 | AN41: 0 | AO41: 0 | AP41: 0 | AQ41: 0 | AR41: 0
A42: =+PO!B49 -> 0 | B42: REMOÇÃO 1/2 BALANÇO | C42: =+PO!L49 -> 0 | E42: 0 | G42: 0 | I42: 0 | K42: 0 | M42: 0 | O42: 0 | Q42: 0 | S42: 0 | U42: 0 | W42: 0 | Y42: 0 | AA42: 0 | AC42: 0 | AD42: 0 | AE42: ok! | AG42: 0 | AH42: 0 | AI42: 0 | AJ42: 0 | AK42: 0 | AL42: 0 | AM42: 0 | AN42: 0 | AO42: 0 | AP42: 0 | AQ42: 0 | AR42: 0
A43: =+PO!B50 -> 0 | B43: REMOÇÃO ESCORREGADOR | C43: =+PO!L50 -> 0 | E43: 0 | G43: 0 | I43: 0 | K43: 0 | M43: 0 | O43: 0 | Q43: 0 | S43: 0 | U43: 0 | W43: 0 | Y43: 0 | AA43: 0 | AC43: =+D43+F43+H43+J43+L43+N43+P43+R43+T43+V43+X43+Z43 -> 0 | AD43: =+E43+G43+I43+K43+M43+O43+Q43+S43+U43+W43+Y43+AA43 -> 0 | AE43: =IF(C43=AD43,"ok!","incompleto") -> ok! | AG43: =+E43 -> 0 | AH43: =+G43 -> 0 | AI43: =+I43 -> 0 | AJ43: =+K43 -> 0 | AK43: =+M43 -> 0 | AL43: =+O43 -> 0 | AM43: =+Q43 -> 0 | AN43: =+S43 -> 0 | AO43: =+U43 -> 0 | AP43: =+W43 -> 0 | AQ43: =+Y43 -> 0 | AR43: =+AA43 -> 0
A44: =+PO!B51 -> 0 | B44: REMOÇÃO BARRA ALONGAMENTO - 2 ALTURAS | C44: =+PO!L51 -> 0 | E44: 0 | G44: 0 | I44: 0 | K44: 0 | M44: 0 | O44: 0 | Q44: 0 | S44: 0 | U44: 0 | W44: 0 | Y44: 0 | AA44: 0 | AC44: 0 | AD44: 0 | AE44: ok! | AG44: 0 | AH44: 0 | AI44: 0 | AJ44: 0 | AK44: 0 | AL44: 0 | AM44: 0 | AN44: 0 | AO44: 0 | AP44: 0 | AQ44: 0 | AR44: 0
A45: =+PO!B52 -> 0 | B45: REMOÇÃO BARRAS PARALELAS | C45: =+PO!L52 -> 0 | E45: 0 | G45: 0 | I45: 0 | K45: 0 | M45: 0 | O45: 0 | Q45: 0 | S45: 0 | U45: 0 | W45: 0 | Y45: 0 | AA45: 0 | AC45: 0 | AD45: 0 | AE45: ok! | AG45: 0 | AH45: 0 | AI45: 0 | AJ45: 0 | AK45: 0 | AL45: 0 | AM45: 0 | AN45: 0 | AO45: 0 | AP45: 0 | AQ45: 0 | AR45: 0
A46: =+PO!B53 -> 0 | B46: REMOÇÃO APOIO P/ MEMBROS SUPERIORES | C46: =+PO!L53 -> 0 | E46: 0 | G46: 0 | I46: 0 | K46: 0 | M46: 0 | O46: 0 | Q46: 0 | S46: 0 | U46: 0 | W46: 0 | Y46: 0 | AA46: 0 | AC46: 0 | AD46: 0 | AE46: ok! | AG46: 0 | AH46: 0 | AI46: 0 | AJ46: 0 | AK46: 0 | AL46: 0 | AM46: 0 | AN46: 0 | AO46: 0 | AP46: 0 | AQ46: 0 | AR46: 0
A47: =+PO!B54 -> 0 | B47: REMOÇÃO BARRA P/ ALONGAMENTO | C47: =+PO!L54 -> 0 | E47: 0 | G47: 0 | I47: 0 | K47: 0 | M47: 0 | O47: 0 | Q47: 0 | S47: 0 | U47: 0 | W47: 0 | Y47: 0 | AA47: 0 | AC47: 0 | AD47: 0 | AE47: ok! | AG47: 0 | AH47: 0 | AI47: 0 | AJ47: 0 | AK47: 0 | AL47: 0 | AM47: 0 | AN47: 0 | AO47: 0 | AP47: 0 | AQ47: 0 | AR47: 0
A48: =+PO!B55 -> 0 | B48: REMOÇÃO BARRA HORIZONTAL 4 MÓDULOS | C48: =+PO!L55 -> 0 | E48: 0 | G48: 0 | I48: 0 | K48: 0 | M48: 0 | O48: 0 | Q48: 0 | S48: 0 | U48: 0 | W48: 0 | Y48: 0 | AA48: 0 | AC48: 0 | AD48: 0 | AE48: ok! | AG48: 0 | AH48: 0 | AI48: 0 | AJ48: 0 | AK48: 0 | AL48: 0 | AM48: 0 | AN48: 0 | AO48: 0 | AP48: 0 | AQ48: 0 | AR48: 0
A49: =+PO!B56 -> 0 | B49: REMOÇÃO BARRA HORIZONTAL 3 MÓDULOS | C49: =+PO!L56 -> 0 | E49: 0 | G49: 0 | I49: 0 | K49: 0 | M49: 0 | O49: 0 | Q49: 0 | S49: 0 | U49: 0 | W49: 0 | Y49: 0 | AA49: 0 | AC49: 0 | AD49: 0 | AE49: ok! | AG49: 0 | AH49: 0 | AI49: 0 | AJ49: 0 | AK49: 0 | AL49: 0 | AM49: 0 | AN49: 0 | AO49: 0 | AP49: 0 | AQ49: 0 | AR49: 0
A50: =+PO!B57 -> 0 | B50: REMOÇÃO BARRA HORIZONTAL 1 MÓDULO | C50: =+PO!L57 -> 0 | E50: 0 | G50: 0 | I50: 0 | K50: 0 | M50: 0 | O50: 0 | Q50: 0 | S50: 0 | U50: 0 | W50: 0 | Y50: 0 | AA50: 0 | AC50: 0 | AD50: 0 | AE50: ok! | AG50: 0 | AH50: 0 | AI50: 0 | AJ50: 0 | AK50: 0 | AL50: 0 | AM50: 0 | AN50: 0 | AO50: 0 | AP50: 0 | AQ50: 0 | AR50: 0
A51: =+PO!B58 -> 0 | B51: REMOÇÃO ESPALDAR | C51: =+PO!L58 -> 0 | E51: 0 | G51: 0 | I51: 0 | K51: 0 | M51: 0 | O51: 0 | Q51: 0 | S51: 0 | U51: 0 | W51: 0 | Y51: 0 | AA51: 0 | AC51: 0 | AD51: 0 | AE51: ok! | AG51: 0 | AH51: 0 | AI51: 0 | AJ51: 0 | AK51: 0 | AL51: 0 | AM51: 0 | AN51: 0 | AO51: 0 | AP51: 0 | AQ51: 0 | AR51: 0
A52: =+PO!B59 -> 0 | B52: REMOÇÃO PRANCHA ABDOMINAIS | C52: =+PO!L59 -> 0 | E52: 0 | G52: 0 | I52: 0 | K52: 0 | M52: 0 | O52: 0 | Q52: 0 | S52: 0 | U52: 0 | W52: 0 | Y52: 0 | AA52: 0 | AC52: 0 | AD52: 0 | AE52: ok! | AG52: 0 | AH52: 0 | AI52: 0 | AJ52: 0 | AK52: 0 | AL52: 0 | AM52: 0 | AN52: 0 | AO52: 0 | AP52: 0 | AQ52: 0 | AR52: 0
A53: =+PO!B60 -> 0 | B53: REMOÇÃO GOLEIRA FUTEBOL DE SALÃO | C53: =+PO!L60 -> 0 | E53: 0 | G53: 0 | I53: 0 | K53: 0 | M53: 0 | O53: 0 | Q53: 0 | S53: 0 | U53: 0 | W53: 0 | Y53: 0 | AA53: 0 | AC53: 0 | AD53: 0 | AE53: ok! | AG53: 0 | AH53: 0 | AI53: 0 | AJ53: 0 | AK53: 0 | AL53: 0 | AM53: 0 | AN53: 0 | AO53: 0 | AP53: 0 | AQ53: 0 | AR53: 0
A54: =+PO!B61 -> 0 | B54: REMOÇÃO GOLEIRA FUTEBOL SOCIETY | C54: =+PO!L61 -> 0 | E54: 0 | G54: 0 | I54: 0 | K54: 0 | M54: 0 | O54: 0 | Q54: 0 | S54: 0 | U54: 0 | W54: 0 | Y54: 0 | AA54: 0 | AC54: 0 | AD54: 0 | AE54: ok! | AG54: 0 | AH54: 0 | AI54: 0 | AJ54: 0 | AK54: 0 | AL54: 0 | AM54: 0 | AN54: 0 | AO54: 0 | AP54: 0 | AQ54: 0 | AR54: 0
A55: =+PO!B62 -> 0 | B55: REMOÇÃO GOLEIRA FUTEBOL DE CAMPO | C55: =+PO!L62 -> 0 | E55: 0 | G55: 0 | I55: 0 | K55: 0 | M55: 0 | O55: 0 | Q55: 0 | S55: 0 | U55: 0 | W55: 0 | Y55: 0 | AA55: 0 | AC55: 0 | AD55: 0 | AE55: ok! | AG55: 0 | AH55: 0 | AI55: 0 | AJ55: 0 | AK55: 0 | AL55: 0 | AM55: 0 | AN55: 0 | AO55: 0 | AP55: 0 | AQ55: 0 | AR55: 0
A56: =+PO!B63 -> 0 | B56: REMOÇÃO POSTE DE VÔLEI | C56: =+PO!L63 -> 0 | E56: 0 | G56: 0 | I56: 0 | K56: 0 | M56: 0 | O56: 0 | Q56: 0 | S56: 0 | U56: 0 | W56: 0 | Y56: 0 | AA56: 0 | AC56: 0 | AD56: 0 | AE56: ok! | AG56: 0 | AH56: 0 | AI56: 0 | AJ56: 0 | AK56: 0 | AL56: 0 | AM56: 0 | AN56: 0 | AO56: 0 | AP56: 0 | AQ56: 0 | AR56: 0
A57: =+PO!B64 -> 0 | B57: REMOÇÃO TABELA DE BASQUETE | C57: =+PO!L64 -> 0 | E57: 0 | G57: 0 | I57: 0 | K57: 0 | M57: 0 | O57: 0 | Q57: 0 | S57: 0 | U57: 0 | W57: 0 | Y57: 0 | AA57: 0 | AC57: 0 | AD57: 0 | AE57: ok! | AG57: 0 | AH57: 0 | AI57: 0 | AJ57: 0 | AK57: 0 | AL57: 0 | AM57: 0 | AN57: 0 | AO57: 0 | AP57: 0 | AQ57: 0 | AR57: 0
A58: =+PO!B65 -> 0 | B58: REMOÇÃO DE ÁRVORES | C58: =+PO!L65 -> 0 | E58: 0 | G58: 0 | I58: 0 | K58: 0 | M58: 0 | O58: 0 | Q58: 0 | S58: 0 | U58: 0 | W58: 0 | Y58: 0 | AA58: 0 | AC58: 0 | AD58: 0 | AE58: ok! | AG58: 0 | AH58: 0 | AI58: 0 | AJ58: 0 | AK58: 0 | AL58: 0 | AM58: 0 | AN58: 0 | AO58: 0 | AP58: 0 | AQ58: 0 | AR58: 0
A59: =+PO!B66 -> 0 | B59: DESTOCAMENTO | C59: =+PO!L66 -> 0 | E59: 0 | G59: 0 | I59: 0 | K59: 0 | M59: 0 | O59: 0 | Q59: 0 | S59: 0 | U59: 0 | W59: 0 | Y59: 0 | AA59: 0 | AC59: 0 | AD59: 0 | AE59: ok! | AG59: 0 | AH59: 0 | AI59: 0 | AJ59: 0 | AK59: 0 | AL59: 0 | AM59: 0 | AN59: 0 | AO59: 0 | AP59: 0 | AQ59: 0 | AR59: 0
A60: =+PO!B67 -> 0 | B60: TRANSPLANTE DE ÁRVORES | C60: =+PO!L67 -> 0 | E60: 0 | G60: 0 | I60: 0 | K60: 0 | M60: 0 | O60: 0 | Q60: 0 | S60: 0 | U60: 0 | W60: 0 | Y60: 0 | AA60: 0 | AC60: 0 | AD60: 0 | AE60: ok! | AG60: 0 | AH60: 0 | AI60: 0 | AJ60: 0 | AK60: 0 | AL60: 0 | AM60: 0 | AN60: 0 | AO60: 0 | AP60: 0 | AQ60: 0 | AR60: 0
A61: =+PO!B68 -> 1.2 | B61: REMOÇÃO DE ENTULHO C/CAÇAMBA | C61: =+PO!L68 -> 1127.75 | D61: 1 | E61: 1127.75 | G61: 0 | I61: 0 | K61: 0 | M61: 0 | O61: 0 | Q61: 0 | S61: 0 | U61: 0 | W61: 0 | Y61: 0 | AA61: 0 | AC61: 1 | AD61: 1127.75 | AE61: ok! | AG61: 1127.75 | AH61: 0 | AI61: 0 | AJ61: 0 | AK61: 0 | AL61: 0 | AM61: 0 | AN61: 0 | AO61: 0 | AP61: 0 | AQ61: 0 | AR61: 0
A62: =+PO!B69 -> 0 | B62: PLOTAGENS | C62: =+PO!L69 -> 0 | E62: 0 | G62: 0 | I62: 0 | K62: 0 | M62: 0 | O62: 0 | Q62: 0 | S62: 0 | U62: 0 | W62: 0 | Y62: 0 | AA62: 0 | AC62: 0 | AD62: 0 | AE62: ok! | AG62: 0 | AH62: 0 | AI62: 0 | AJ62: 0 | AK62: 0 | AL62: 0 | AM62: 0 | AN62: 0 | AO62: 0 | AP62: 0 | AQ62: 0 | AR62: 0
A63: =+PO!B70 -> 0 | B63: "AS BUILT" | C63: =+PO!L70 -> 0 | E63: 0 | G63: 0 | I63: 0 | K63: 0 | M63: 0 | O63: 0 | Q63: 0 | S63: 0 | U63: 0 | W63: 0 | Y63: 0 | AA63: 0 | AC63: 0 | AD63: 0 | AE63: ok! | AG63: 0 | AH63: 0 | AI63: 0 | AJ63: 0 | AK63: 0 | AL63: 0 | AM63: 0 | AN63: 0 | AO63: 0 | AP63: 0 | AQ63: 0 | AR63: 0
A64: =+PO!B72 -> 2 | B64: DESPESAS LEGAIS, LICENÇAS, TAXAS, CONTRIBUIÇÕES
A65: =+PO!B73 -> 2.1 | B65: ART (ANOTAÇÃO DE RESPONSABILIDADE TÉCNICA) | C65: =+PO!L73 -> 299.93 | D65: 1 | E65: 299.93 | G65: =F65*$C65 -> 0 | I65: =H65*$C65 -> 0 | K65: =J65*$C65 -> 0 | M65: =L65*$C65 -> 0 | O65: =N65*$C65 -> 0 | Q65: =P65*$C65 -> 0 | S65: =R65*$C65 -> 0 | U65: =T65*$C65 -> 0 | W65: =V65*$C65 -> 0 | Y65: =X65*$C65 -> 0 | AA65: =Z65*$C65 -> 0 | AC65: =+D65+F65+H65+J65+L65+N65+P65+R65+T65+V65+X65+Z65 -> 1 | AD65: 299.93 | AE65: =IF(C65=AD65,"ok!","incompleto") -> ok! | AG65: =+E65 -> 299.93 | AH65: =+G65 -> 0 | AI65: =+I65 -> 0 | AJ65: =+K65 -> 0 | AK65: =+M65 -> 0 | AL65: =+O65 -> 0 | AM65: =+Q65 -> 0 | AN65: =+S65 -> 0 | AO65: =+U65 -> 0 | AP65: =+W65 -> 0 | AQ65: =+Y65 -> 0 | AR65: =+AA65 -> 0
A66: =+PO!B74 -> 0 | B66: CIP (CONTRIBUIÇÃO ILUMINAÇÃO PÚBLICA) | C66: =+PO!L74 -> 0 | E66: 0 | G66: =F66*$C66 -> 0 | I66: 0 | K66: =J66*$C66 -> 0 | M66: =L66*$C66 -> 0 | O66: =N66*$C66 -> 0 | Q66: =P66*$C66 -> 0 | S66: =R66*$C66 -> 0 | U66: =T66*$C66 -> 0 | W66: =V66*$C66 -> 0 | Y66: =X66*$C66 -> 0 | AA66: =Z66*$C66 -> 0 | AC66: 0 | AD66: 0 | AE66: =IF(C66=AD66,"ok!","incompleto") -> ok! | AG66: =+E66 -> 0 | AH66: =+G66 -> 0 | AI66: =+I66 -> 0 | AJ66: =+K66 -> 0 | AK66: =+M66 -> 0 | AL66: =+O66 -> 0 | AM66: =+Q66 -> 0 | AN66: =+S66 -> 0 | AO66: =+U66 -> 0 | AP66: =+W66 -> 0 | AQ66: =+Y66 -> 0 | AR66: =+AA66 -> 0
A67: =+PO!B75 -> 0 | B67: MTRCC (MANIFESTO DE TRANSPORTE DE RESÍDUOS DA CONSTRUÇÃO CIVIL) | C67: =+PO!L75 -> 0 | E67: 0 | G67: =F67*$C67 -> 0 | I67: 0 | K67: =J67*$C67 -> 0 | M67: =L67*$C67 -> 0 | O67: =N67*$C67 -> 0 | Q67: =P67*$C67 -> 0 | S67: =R67*$C67 -> 0 | U67: =T67*$C67 -> 0 | W67: =V67*$C67 -> 0 | Y67: =X67*$C67 -> 0 | AA67: =Z67*$C67 -> 0 | AC67: 0 | AD67: 0 | AE67: =IF(C67=AD67,"ok!","incompleto") -> ok! | AG67: =+E67 -> 0 | AH67: =+G67 -> 0 | AI67: =+I67 -> 0 | AJ67: =+K67 -> 0 | AK67: =+M67 -> 0 | AL67: =+O67 -> 0 | AM67: =+Q67 -> 0 | AN67: =+S67 -> 0 | AO67: =+U67 -> 0 | AP67: =+W67 -> 0 | AQ67: =+Y67 -> 0 | AR67: =+AA67 -> 0
A68: =+PO!B76 -> 0 | B68: PCMAT (PROGRAMA DE CONDIÇÕES E MEIO AMBIENTE DE TRABALHO NA INDÚSTRIA DA CONSTRUÇÃO) | C68: =+PO!L76 -> 0 | E68: 0 | G68: =F68*$C68 -> 0 | I68: 0 | K68: =J68*$C68 -> 0 | M68: =L68*$C68 -> 0 | O68: =N68*$C68 -> 0 | Q68: =P68*$C68 -> 0 | S68: =R68*$C68 -> 0 | U68: =T68*$C68 -> 0 | W68: =V68*$C68 -> 0 | Y68: =X68*$C68 -> 0 | AA68: =Z68*$C68 -> 0 | AC68: 0 | AD68: 0 | AE68: =IF(C68=AD68,"ok!","incompleto") -> ok! | AG68: =+E68 -> 0 | AH68: =+G68 -> 0 | AI68: =+I68 -> 0 | AJ68: =+K68 -> 0 | AK68: =+M68 -> 0 | AL68: =+O68 -> 0 | AM68: =+Q68 -> 0 | AN68: =+S68 -> 0 | AO68: =+U68 -> 0 | AP68: =+W68 -> 0 | AQ68: =+Y68 -> 0 | AR68: =+AA68 -> 0
A69: =+PO!B78 -> 3 | B69: INSTALAÇÕES PROVISÓRIAS
A70: =+PO!B79 -> 3.1 | B70: TAPUME EM CHAPA DE COMPENSADO RESINADO | C70: =+PO!L79 -> 8428.5 | D70: 1 | E70: 8428.5 | G70: =F70*$C70 -> 0 | I70: 0 | K70: =J70*$C70 -> 0 | M70: =L70*$C70 -> 0 | O70: =N70*$C70 -> 0 | Q70: =P70*$C70 -> 0 | S70: =R70*$C70 -> 0 | U70: =T70*$C70 -> 0 | W70: =V70*$C70 -> 0 | Y70: =X70*$C70 -> 0 | AA70: =Z70*$C70 -> 0 | AC70: =+D70+F70+H70+J70+L70+N70+P70+R70+T70+V70+X70+Z70 -> 1 | AD70: =+E70+G70+I70+K70+M70+O70+Q70+S70+U70+W70+Y70+AA70 -> 8428.5 | AE70: =IF(C70=AD70,"ok!","incompleto") -> ok! | AG70: =+E70 -> 8428.5 | AH70: =+G70 -> 0 | AI70: =+I70 -> 0 | AJ70: =+K70 -> 0 | AK70: =+M70 -> 0 | AL70: =+O70 -> 0 | AM70: =+Q70 -> 0 | AN70: =+S70 -> 0 | AO70: =+U70 -> 0 | AP70: =+W70 -> 0 | AQ70: =+Y70 -> 0 | AR70: =+AA70 -> 0
A71: =+PO!B80 -> 0 | B71: TAPUME EM TELA GALVANIZADA | C71: =+PO!L80 -> 0 | E71: 0 | G71: 0 | I71: 0 | K71: 0 | M71: 0 | O71: 0 | Q71: 0 | S71: 0 | U71: 0 | W71: 0 | Y71: 0 | AA71: 0 | AC71: 0 | AD71: 0 | AE71: ok! | AG71: 0 | AH71: 0 | AI71: 0 | AJ71: 0 | AK71: 0 | AL71: 0 | AM71: 0 | AN71: 0 | AO71: 0 | AP71: 0 | AQ71: 0 | AR71: 0
A72: =+PO!B81 -> 3.2 | B72: DESMONTAGEM DE TAPUME | C72: =+PO!L81 -> 208.5 | E72: =D72*$C72 -> 0 | F72: 1 | G72: =F72*$C72 -> 208.5 | I72: =H72*$C72 -> 0 | K72: =J72*$C72 -> 0 | M72: =L72*$C72 -> 0 | O72: =N72*$C72 -> 0 | Q72: =P72*$C72 -> 0 | S72: =R72*$C72 -> 0 | U72: =T72*$C72 -> 0 | W72: =V72*$C72 -> 0 | Y72: =X72*$C72 -> 0 | AA72: =Z72*$C72 -> 0 | AC72: =+D72+F72+H72+J72+L72+N72+P72+R72+T72+V72+X72+Z72 -> 1 | AD72: =+E72+G72+I72+K72+M72+O72+Q72+S72+U72+W72+Y72+AA72 -> 208.5 | AE72: =IF(C72=AD72,"ok!","incompleto") -> ok! | AG72: =+E72 -> 0 | AH72: =+G72 -> 208.5 | AI72: =+I72 -> 0 | AJ72: =+K72 -> 0 | AK72: =+M72 -> 0 | AL72: =+O72 -> 0 | AM72: =+Q72 -> 0 | AN72: =+S72 -> 0 | AO72: =+U72 -> 0 | AP72: =+W72 -> 0 | AQ72: =+Y72 -> 0 | AR72: =+AA72 -> 0
A73: =+PO!B82 -> 0 | B73: GALPÃO DE OBRA | C73: =+PO!L82 -> 0 | E73: 0 | G73: 0 | I73: 0 | K73: 0 | M73: 0 | O73: 0 | Q73: 0 | S73: 0 | U73: 0 | W73: 0 | Y73: 0 | AA73: 0 | AC73: 0 | AD73: 0 | AE73: ok! | AG73: 0 | AH73: 0 | AI73: 0 | AJ73: 0 | AK73: 0 | AL73: 0 | AM73: 0 | AN73: 0 | AO73: 0 | AP73: 0 | AQ73: 0 | AR73: 0
A74: =+PO!B83 -> 3.3 | B74: TELHEIRO | C74: =+PO!L83 -> 8168.85 | D74: 1 | E74: =D74*$C74 -> 8168.85 | G74: =F74*$C74 -> 0 | I74: =H74*$C74 -> 0 | K74: =J74*$C74 -> 0 | M74: =L74*$C74 -> 0 | O74: =N74*$C74 -> 0 | Q74: =P74*$C74 -> 0 | S74: =R74*$C74 -> 0 | U74: =T74*$C74 -> 0 | W74: =V74*$C74 -> 0 | Y74: =X74*$C74 -> 0 | AA74: =Z74*$C74 -> 0 | AC74: =+D74+F74+H74+J74+L74+N74+P74+R74+T74+V74+X74+Z74 -> 1 | AD74: =+E74+G74+I74+K74+M74+O74+Q74+S74+U74+W74+Y74+AA74 -> 8168.85 | AE74: =IF(C74=AD74,"ok!","incompleto") -> ok! | AG74: =+E74 -> 8168.85 | AH74: =+G74 -> 0 | AI74: =+I74 -> 0 | AJ74: =+K74 -> 0 | AK74: =+M74 -> 0 | AL74: =+O74 -> 0 | AM74: =+Q74 -> 0 | AN74: =+S74 -> 0 | AO74: =+U74 -> 0 | AP74: =+W74 -> 0 | AQ74: =+Y74 -> 0 | AR74: =+AA74 -> 0
A75: =+PO!B84 -> 3.4 | B75: LOCAÇÃO SANITÁRIO QUÍMICO | C75: =+PO!L84 -> 1727.23 | D75: 0.67 | E75: 1157.2441 | F75: 0.33 | G75: 569.9859 | I75: 0 | K75: 0 | M75: 0 | O75: 0 | Q75: 0 | S75: 0 | U75: 0 | W75: 0 | Y75: 0 | AA75: 0 | AC75: 1 | AD75: 1727.23 | AE75: ok! | AG75: 1157.2441 | AH75: 569.9859 | AI75: 0 | AJ75: 0 | AK75: 0 | AL75: 0 | AM75: 0 | AN75: 0 | AO75: 0 | AP75: 0 | AQ75: 0 | AR75: 0
A76: =+PO!B85 -> 3.5 | B76: LOCAÇÃO CONTAINER ESCRITÓRIO S/FRETE | C76: =+PO!L85 -> 1111.81 | D76: 0.67 | E76: 744.9127 | F76: 0.33 | G76: 366.8973 | I76: 0 | K76: 0 | M76: 0 | O76: 0 | Q76: 0 | S76: 0 | U76: 0 | W76: 0 | Y76: 0 | AA76: 0 | AC76: 1 | AD76: 1111.81 | AE76: ok! | AG76: 744.9127 | AH76: 366.8973 | AI76: 0 | AJ76: 0 | AK76: 0 | AL76: 0 | AM76: 0 | AN76: 0 | AO76: 0 | AP76: 0 | AQ76: 0 | AR76: 0
A77: =+PO!B86 -> 0 | B77: LOCAÇÃO CONTAINER SANITÁRIO S/FRETE | C77: =+PO!L86 -> 0 | E77: 0 | G77: 0 | I77: 0 | K77: 0 | M77: 0 | O77: 0 | Q77: 0 | S77: 0 | U77: 0 | W77: 0 | Y77: 0 | AA77: 0 | AC77: 0 | AD77: 0 | AE77: ok! | AG77: 0 | AH77: 0 | AI77: 0 | AJ77: 0 | AK77: 0 | AL77: 0 | AM77: 0 | AN77: 0 | AO77: 0 | AP77: 0 | AQ77: 0 | AR77: 0
A78: =+PO!B87 -> 3.6 | B78: FRETE P/ CONTAINER | C78: =+PO!L87 -> 1354.34 | D78: 0.5 | E78: 677.17 | F78: 0.5 | G78: 677.17 | I78: 0 | K78: 0 | M78: 0 | O78: 0 | Q78: 0 | S78: 0 | U78: 0 | W78: 0 | Y78: 0 | AA78: 0 | AC78: 1 | AD78: 1354.34 | AE78: ok! | AG78: 677.17 | AH78: 677.17 | AI78: 0 | AJ78: 0 | AK78: 0 | AL78: 0 | AM78: 0 | AN78: 0 | AO78: 0 | AP78: 0 | AQ78: 0 | AR78: 0
A79: =+PO!B88 -> 0 | B79: INSTALAÇÃO PROVISÓRIA DE ENERGIA | C79: =+PO!L88 -> 0 | E79: 0 | G79: 0 | I79: 0 | K79: 0 | M79: 0 | O79: 0 | Q79: 0 | S79: 0 | U79: 0 | W79: 0 | Y79: 0 | AA79: 0 | AC79: 0 | AD79: 0 | AE79: ok! | AG79: 0 | AH79: 0 | AI79: 0 | AJ79: 0 | AK79: 0 | AL79: 0 | AM79: 0 | AN79: 0 | AO79: 0 | AP79: 0 | AQ79: 0 | AR79: 0
A80: =+PO!B89 -> 0 | B80: INSTALAÇÃO PROVISÓRIA DE ÁGUA | C80: =+PO!L89 -> 0 | E80: 0 | G80: 0 | I80: 0 | K80: 0 | M80: 0 | O80: 0 | Q80: 0 | S80: 0 | U80: 0 | W80: 0 | Y80: 0 | AA80: 0 | AC80: 0 | AD80: 0 | AE80: ok! | AG80: 0 | AH80: 0 | AI80: 0 | AJ80: 0 | AK80: 0 | AL80: 0 | AM80: 0 | AN80: 0 | AO80: 0 | AP80: 0 | AQ80: 0 | AR80: 0
A81: =+PO!B90 -> 0 | B81: INSTALAÇÃO PROVISÓRIA DE ESGOTO | C81: =+PO!L90 -> 0 | E81: 0 | G81: 0 | I81: 0 | K81: 0 | M81: 0 | O81: 0 | Q81: 0 | S81: 0 | U81: 0 | W81: 0 | Y81: 0 | AA81: 0 | AC81: 0 | AD81: 0 | AE81: ok! | AG81: 0 | AH81: 0 | AI81: 0 | AJ81: 0 | AK81: 0 | AL81: 0 | AM81: 0 | AN81: 0 | AO81: 0 | AP81: 0 | AQ81: 0 | AR81: 0
A82: =+PO!B91 -> 3.7 | B82: PLACA DE OBRA | C82: =+PO!L91 -> 1118.76 | D82: 1 | E82: 1118.76 | G82: 0 | I82: 0 | K82: 0 | M82: 0 | O82: 0 | Q82: 0 | S82: 0 | U82: 0 | W82: 0 | Y82: 0 | AA82: 0 | AC82: 1 | AD82: 1118.76 | AE82: ok! | AG82: 1118.76 | AH82: 0 | AI82: 0 | AJ82: 0 | AK82: 0 | AL82: 0 | AM82: 0 | AN82: 0 | AO82: 0 | AP82: 0 | AQ82: 0 | AR82: 0
A83: =+PO!B92 -> 0 | B83: SINALIZAÇÃO COM FITA ZEBRADA FIXADA EM CONE PLÁSTICO | C83: =+PO!L92 -> 0 | E83: =D83*$C83 -> 0 | G83: =F83*$C83 -> 0 | I83: =H83*$C83 -> 0 | K83: =J83*$C83 -> 0 | M83: =L83*$C83 -> 0 | O83: =N83*$C83 -> 0 | Q83: =P83*$C83 -> 0 | S83: =R83*$C83 -> 0 | U83: =T83*$C83 -> 0 | W83: =V83*$C83 -> 0 | Y83: =X83*$C83 -> 0 | AA83: =Z83*$C83 -> 0 | AC83: 0 | AD83: 0 | AE83: ok! | AG83: =+E83 -> 0 | AH83: =+G83 -> 0 | AI83: =+I83 -> 0 | AJ83: =+K83 -> 0 | AK83: =+M83 -> 0 | AL83: =+O83 -> 0 | AM83: =+Q83 -> 0 | AN83: =+S83 -> 0 | AO83: =+U83 -> 0 | AP83: =+W83 -> 0 | AQ83: =+Y83 -> 0 | AR83: =+AA83 -> 0
A84: =+PO!B93 -> 3.8 | B84: SINALIZAÇÃO COM TELA PLÁSTICA LARANJA FIXADA EM CONE PLÁSTICO | C84: =+PO!L93 -> 1232.25 | D84: 1 | E84: =D84*$C84 -> 1232.25 | G84: =F84*$C84 -> 0 | I84: =H84*$C84 -> 0 | K84: =J84*$C84 -> 0 | M84: =L84*$C84 -> 0 | O84: =N84*$C84 -> 0 | Q84: =P84*$C84 -> 0 | S84: =R84*$C84 -> 0 | U84: =T84*$C84 -> 0 | W84: =V84*$C84 -> 0 | Y84: =X84*$C84 -> 0 | AA84: =Z84*$C84 -> 0 | AC84: 1 | AD84: 1232.25 | AE84: ok! | AG84: =+E84 -> 1232.25 | AH84: =+G84 -> 0 | AI84: =+I84 -> 0 | AJ84: =+K84 -> 0 | AK84: =+M84 -> 0 | AL84: =+O84 -> 0 | AM84: =+Q84 -> 0 | AN84: =+S84 -> 0 | AO84: =+U84 -> 0 | AP84: =+W84 -> 0 | AQ84: =+Y84 -> 0 | AR84: =+AA84 -> 0
A85: =+PO!B94 -> 0 | B85: SINALIZAÇÃO COM SINALIZADOR ELETRÔNICO PISCANTE FIXADO EM CONE PLÁSTICO | C85: =+PO!L94 -> 0 | E85: =D85*$C85 -> 0 | G85: =F85*$C85 -> 0 | I85: =H85*$C85 -> 0 | K85: =J85*$C85 -> 0 | M85: =L85*$C85 -> 0 | O85: =N85*$C85 -> 0 | Q85: =P85*$C85 -> 0 | S85: =R85*$C85 -> 0 | U85: =T85*$C85 -> 0 | W85: =V85*$C85 -> 0 | Y85: =X85*$C85 -> 0 | AA85: =Z85*$C85 -> 0 | AC85: 0 | AD85: 0 | AE85: ok! | AG85: =+E85 -> 0 | AH85: =+G85 -> 0 | AI85: =+I85 -> 0 | AJ85: =+K85 -> 0 | AK85: =+M85 -> 0 | AL85: =+O85 -> 0 | AM85: =+Q85 -> 0 | AN85: =+S85 -> 0 | AO85: =+U85 -> 0 | AP85: =+W85 -> 0 | AQ85: =+Y85 -> 0 | AR85: =+AA85 -> 0
A86: =+PO!B95 -> 0 | B86: PROJETO DE SINALIZAÇÃO | C86: =+PO!L95 -> 0 | E86: =D86*$C86 -> 0 | G86: =F86*$C86 -> 0 | I86: =H86*$C86 -> 0 | K86: =J86*$C86 -> 0 | M86: =L86*$C86 -> 0 | O86: =N86*$C86 -> 0 | Q86: =P86*$C86 -> 0 | S86: =R86*$C86 -> 0 | U86: =T86*$C86 -> 0 | W86: =V86*$C86 -> 0 | Y86: =X86*$C86 -> 0 | AA86: =Z86*$C86 -> 0 | AC86: =+D86+F86+H86+J86+L86+N86+P86+R86+T86+V86+X86+Z86 -> 0 | AD86: =+E86+G86+I86+K86+M86+O86+Q86+S86+U86+W86+Y86+AA86 -> 0 | AE86: =IF(C86=AD86,"ok!","incompleto") -> ok! | AG86: =+E86 -> 0 | AH86: =+G86 -> 0 | AI86: =+I86 -> 0 | AJ86: =+K86 -> 0 | AK86: =+M86 -> 0 | AL86: =+O86 -> 0 | AM86: =+Q86 -> 0 | AN86: =+S86 -> 0 | AO86: =+U86 -> 0 | AP86: =+W86 -> 0 | AQ86: =+Y86 -> 0 | AR86: =+AA86 -> 0
A87: =+PO!B96 -> 3.9 | B87: LOCAÇÃO | C87: =+PO!L96 -> 60.39 | D87: 1 | E87: 60.39 | G87: 0 | I87: 0 | K87: 0 | M87: 0 | O87: 0 | Q87: 0 | S87: 0 | U87: 0 | W87: 0 | Y87: 0 | AA87: 0 | AC87: 1 | AD87: 60.39 | AE87: ok! | AG87: 60.39 | AH87: 0 | AI87: 0 | AJ87: 0 | AK87: 0 | AL87: 0 | AM87: 0 | AN87: 0 | AO87: 0 | AP87: 0 | AQ87: 0 | AR87: 0
A88: =+PO!B97 -> 3.10 | B88: NIVELAMENTO | C88: =+PO!L97 -> 48.9 | D88: 1 | E88: 48.9 | G88: 0 | I88: 0 | K88: 0 | M88: 0 | O88: 0 | Q88: 0 | S88: 0 | U88: 0 | W88: 0 | Y88: 0 | AA88: 0 | AC88: 1 | AD88: 48.9 | AE88: ok! | AG88: 48.9 | AH88: 0 | AI88: 0 | AJ88: 0 | AK88: 0 | AL88: 0 | AM88: 0 | AN88: 0 | AO88: 0 | AP88: 0 | AQ88: 0 | AR88: 0
A89: =+PO!B99 -> 4 | B89: ADMINISTRAÇÃO LOCAL
A90: =+PO!B100 -> 4.1 | B90: ENGENHEIRO | C90: =+PO!L100 -> 6288.63 | D90: =+$AV$12 -> 0.6645401216 | E90: =D90*$C90 -> 4179.046945 | F90: =+$AV$13 -> 0.3354598784 | G90: =F90*$C90 -> 2109.583055 | H90: =+$AV$14 -> 0 | I90: =H90*$C90 -> 0 | J90: =+$AV$15 -> 0 | K90: =J90*$C90 -> 0 | L90: =+$AV$16 -> 0 | M90: =L90*$C90 -> 0 | N90: =+$AV$17 -> 0 | O90: =N90*$C90 -> 0 | P90: =+$AV$18 -> 0 | Q90: =P90*$C90 -> 0 | R90: =+$AV$19 -> 0 | S90: =R90*$C90 -> 0 | T90: =+$AV$20 -> 0 | U90: =T90*$C90 -> 0 | V90: =+$AV$21 -> 0 | W90: =V90*$C90 -> 0 | X90: =+$AV$22 -> 0 | Y90: =X90*$C90 -> 0 | Z90: =+$AV$23 -> 0 | AA90: =Z90*$C90 -> 0 | AC90: =+D90+F90+H90+J90+L90+N90+P90+R90+T90+V90+X90+Z90 -> 1 | AD90: 6288.63 | AE90: =IF(C90=AD90,"ok!","incompleto") -> ok!
A91: =+PO!B101 -> 0 | B91: MESTRE DE OBRAS | C91: =+PO!L101 -> 0 | D91: 0.6645401216 | E91: 0 | F91: 0.3354598784 | G91: 0 | H91: 0 | I91: 0 | J91: 0 | K91: 0 | L91: 0 | M91: 0 | N91: 0 | O91: 0 | P91: 0 | Q91: 0 | R91: 0 | S91: 0 | T91: 0 | U91: 0 | V91: 0 | W91: 0 | X91: 0 | Y91: 0 | Z91: 0 | AA91: 0 | AC91: 1 | AD91: 0 | AE91: ok!
A92: =+PO!B102 -> 4.2 | B92: ENCARREGADO | C92: =+PO!L102 -> 14188.46 | D92: 0.6645401216 | E92: 9428.800934 | F92: 0.3354598784 | G92: 4759.659066 | H92: 0 | I92: 0 | J92: 0 | K92: 0 | L92: 0 | M92: 0 | N92: 0 | O92: 0 | P92: 0 | Q92: 0 | R92: 0 | S92: 0 | T92: 0 | U92: 0 | V92: 0 | W92: 0 | X92: 0 | Y92: 0 | Z92: 0 | AA92: 0 | AC92: 1 | AD92: 14188.46 | AE92: ok!
A93: =+PO!B103 -> 4.3 | B93: VIGIA NOTURNO (SINAPI) | C93: =+PO!L103 -> 9789.6 | D93: 0.6645401216 | E93: 6505.581974 | F93: 0.3354598784 | G93: 3284.018026 | H93: 0 | I93: 0 | J93: 0 | K93: 0 | L93: 0 | M93: 0 | N93: 0 | O93: 0 | P93: 0 | Q93: 0 | R93: 0 | S93: 0 | T93: 0 | U93: 0 | V93: 0 | W93: 0 | X93: 0 | Y93: 0 | Z93: 0 | AA93: 0 | AC93: =+D93+F93+H93+J93+L93+N93+P93+R93+T93+V93+X93+Z93 -> 1 | AD93: 9789.6 | AE93: ok!
A94: =+PO!B104 -> 0 | B94: VIGIA NOTURNO | C94: =+PO!L104 -> 0 | D94: 0.6645401216 | E94: 0 | F94: 0.3354598784 | G94: 0 | H94: 0 | I94: 0 | J94: 0 | K94: 0 | L94: 0 | M94: 0 | N94: 0 | O94: 0 | P94: 0 | Q94: 0 | R94: 0 | S94: 0 | T94: 0 | U94: 0 | V94: 0 | W94: 0 | X94: 0 | Y94: 0 | Z94: 0 | AA94: 0 | AC94: 1 | AD94: 0 | AE94: ok!
A95: =+PO!B105 -> 4.4 | B95: VIGIA DIURNO SÁBADOS, DOMINGOS E FERIADOS | C95: =+PO!L105 -> 4644.4 | D95: 0.6645401216 | E95: 3086.390141 | F95: 0.3354598784 | G95: 1558.009859 | H95: 0 | I95: 0 | J95: 0 | K95: 0 | L95: 0 | M95: 0 | N95: 0 | O95: 0 | P95: 0 | Q95: 0 | R95: 0 | S95: 0 | T95: 0 | U95: 0 | V95: 0 | W95: 0 | X95: 0 | Y95: 0 | Z95: 0 | AA95: 0 | AC95: 1 | AD95: 4644.4 | AE95: ok!
A96: =+PO!B106 -> 4.5 | B96: FORNECIMENTO E INSTALAÇÃO DE EXTINTOR DE PÓ QUÍMICO SECO (PQS), 4 kg | C96: =+PO!L106 -> 294.52 | D96: 0.6645401216 | E96: 195.7203566 | F96: 0.3354598784 | G96: =F96*$C96 -> 98.79964339 | H96: 0 | I96: =H96*$C96 -> 0 | J96: 0 | K96: =J96*$C96 -> 0 | L96: 0 | M96: =L96*$C96 -> 0 | N96: 0 | O96: =N96*$C96 -> 0 | P96: 0 | Q96: =P96*$C96 -> 0 | R96: 0 | S96: =R96*$C96 -> 0 | T96: 0 | U96: =T96*$C96 -> 0 | V96: 0 | W96: =V96*$C96 -> 0 | X96: 0 | Y96: =X96*$C96 -> 0 | Z96: 0 | AA96: =Z96*$C96 -> 0 | AC96: =+D96+F96+H96+J96+L96+N96+P96+R96+T96+V96+X96+Z96 -> 1 | AD96: =+E96+G96+I96+K96+M96+O96+Q96+S96+U96+W96+Y96+AA96 -> 294.52 | AE96: =IF(C96=AD96,"ok!","incompleto") -> ok!
A97: =+PO!B107 -> 4.6 | B97: FORNECIMENTO E INSTALAÇÃO DE EXTINTOR DE ÁGUA PRESSURIZADA (AP), 10 l | C97: =+PO!L107 -> 303.8 | D97: 0.6645401216 | E97: 201.8872889 | F97: 0.3354598784 | G97: 101.9127111 | H97: 0 | I97: 0 | J97: 0 | K97: 0 | L97: 0 | M97: 0 | N97: 0 | O97: 0 | P97: 0 | Q97: 0 | R97: 0 | S97: 0 | T97: 0 | U97: 0 | V97: 0 | W97: 0 | X97: 0 | Y97: 0 | Z97: 0 | AA97: 0 | AC97: 1 | AD97: 303.8 | AE97: ok!
A98: =+PO!B108 -> 4.7 | B98: GERADOR DE ENERGIA ELÉTRICA | C98: =+PO!L108 -> 2623.17 | D98: 0.6645401216 | E98: 1743.201711 | F98: 0.3354598784 | G98: 879.9682892 | H98: 0 | I98: 0 | J98: 0 | K98: 0 | L98: 0 | M98: 0 | N98: 0 | O98: 0 | P98: 0 | Q98: 0 | R98: 0 | S98: 0 | T98: 0 | U98: 0 | V98: 0 | W98: 0 | X98: 0 | Y98: 0 | Z98: 0 | AA98: 0 | AC98: 1 | AD98: 2623.17 | AE98: ok!
A99: =+PO!B109 -> 4.8 | B99: CONSUMO DE ÁGUA TRATADA | C99: =+PO!L109 -> 214.87 | D99: 0.6645401216 | E99: 142.7897359 | F99: 0.3354598784 | G99: 72.08026407 | H99: 0 | I99: 0 | J99: 0 | K99: 0 | L99: 0 | M99: 0 | N99: 0 | O99: 0 | P99: 0 | Q99: 0 | R99: 0 | S99: 0 | T99: 0 | U99: 0 | V99: 0 | W99: 0 | X99: 0 | Y99: 0 | Z99: 0 | AA99: 0 | AC99: 1 | AD99: 214.87 | AE99: ok!
A100: =+PO!B111 -> 5 | B100: MOVIMENTO DE TERRA
A101: =+PO!B112 -> 5.1 | B101: MODELAGEM | C101: =+PO!L112 -> 497.15 | E101: =D101*$C101 -> 0 | F101: 1 | G101: =F101*$C101 -> 497.15 | I101: =H101*$C101 -> 0 | K101: =J101*$C101 -> 0 | M101: =L101*$C101 -> 0 | O101: =N101*$C101 -> 0 | Q101: =P101*$C101 -> 0 | S101: =R101*$C101 -> 0 | U101: =T101*$C101 -> 0 | W101: =V101*$C101 -> 0 | Y101: =X101*$C101 -> 0 | AA101: =Z101*$C101 -> 0 | AC101: =+D101+F101+H101+J101+L101+N101+P101+R101+T101+V101+X101+Z101 -> 1 | AD101: 497.15 | AE101: =IF(C101=AD101,"ok!","incompleto") -> ok! | AG101: =+E101 -> 0 | AH101: =+G101 -> 497.15 | AI101: =+I101 -> 0 | AJ101: =+K101 -> 0 | AK101: =+M101 -> 0 | AL101: =+O101 -> 0 | AM101: =+Q101 -> 0 | AN101: =+S101 -> 0 | AO101: =+U101 -> 0 | AP101: =+W101 -> 0 | AQ101: =+Y101 -> 0 | AR101: =+AA101 -> 0
A102: =+PO!B113 -> 0 | B102: TERRAPLENAGEM | C102: =+PO!L113 -> 0 | E102: 0 | G102: 0 | I102: 0 | K102: 0 | M102: 0 | O102: 0 | Q102: 0 | S102: 0 | U102: 0 | W102: 0 | Y102: 0 | AA102: 0 | AC102: 0 | AD102: 0 | AE102: ok! | AG102: 0 | AH102: 0 | AI102: 0 | AJ102: 0 | AK102: 0 | AL102: 0 | AM102: 0 | AN102: 0 | AO102: 0 | AP102: 0 | AQ102: 0 | AR102: 0
A103: =+PO!B114 -> 0 | B103: ATERRO MECÂNICO COM MATERIAL IMPORTADO COM COMPACTAÇÃO MECÂNICA | C103: =+PO!L114 -> 0 | E103: 0 | G103: 0 | I103: 0 | K103: 0 | M103: 0 | O103: 0 | Q103: 0 | S103: 0 | U103: 0 | W103: 0 | Y103: 0 | AA103: 0 | AC103: 0 | AD103: 0 | AE103: ok! | AG103: 0 | AH103: 0 | AI103: 0 | AJ103: 0 | AK103: 0 | AL103: 0 | AM103: 0 | AN103: 0 | AO103: 0 | AP103: 0 | AQ103: 0 | AR103: 0
A104: =+PO!B115 -> 5.2 | B104: ATERRO MANUAL COM MATERIAL IMPORTADO COM COMPACTAÇÃO MECÂNICA | C104: =+PO!L115 -> 2831.92 | D104: 0.5 | E104: 1415.96 | F104: 0.5 | G104: 1415.96 | I104: 0 | K104: 0 | M104: 0 | O104: 0 | Q104: 0 | S104: 0 | U104: 0 | W104: 0 | Y104: 0 | AA104: 0 | AC104: 1 | AD104: 2831.92 | AE104: ok! | AG104: 1415.96 | AH104: 1415.96 | AI104: 0 | AJ104: 0 | AK104: 0 | AL104: 0 | AM104: 0 | AN104: 0 | AO104: 0 | AP104: 0 | AQ104: 0 | AR104: 0
A105: =+PO!B116 -> 0 | B105: ATERRO MANUAL COM MATERIAL IMPORTADO COM COMPACTAÇÃO MANUAL | C105: =+PO!L116 -> 0 | E105: =D105*$C105 -> 0 | G105: =F105*$C105 -> 0 | I105: =H105*$C105 -> 0 | K105: =J105*$C105 -> 0 | M105: =L105*$C105 -> 0 | O105: =N105*$C105 -> 0 | Q105: =P105*$C105 -> 0 | S105: =R105*$C105 -> 0 | U105: =T105*$C105 -> 0 | W105: =V105*$C105 -> 0 | Y105: =X105*$C105 -> 0 | AA105: =Z105*$C105 -> 0 | AC105: =+D105+F105+H105+J105+L105+N105+P105+R105+T105+V105+X105+Z105 -> 0 | AD105: =+E105+G105+I105+K105+M105+O105+Q105+S105+U105+W105+Y105+AA105 -> 0 | AE105: =IF(C105=AD105,"ok!","incompleto") -> ok! | AG105: =+E105 -> 0 | AH105: =+G105 -> 0 | AI105: =+I105 -> 0 | AJ105: =+K105 -> 0 | AK105: =+M105 -> 0 | AL105: =+O105 -> 0 | AM105: =+Q105 -> 0 | AN105: =+S105 -> 0 | AO105: =+U105 -> 0 | AP105: =+W105 -> 0 | AQ105: =+Y105 -> 0 | AR105: =+AA105 -> 0
A106: =+PO!B117 -> 0 | B106: ESCAVAÇÃO MANUAL DE SOLO ATÉ 1,30 m | C106: =+PO!L117 -> 0 | E106: 0 | G106: 0 | I106: 0 | K106: 0 | M106: 0 | O106: 0 | Q106: 0 | S106: 0 | U106: 0 | W106: 0 | Y106: 0 | AA106: 0 | AC106: 0 | AD106: 0 | AE106: ok! | AG106: 0 | AH106: 0 | AI106: 0 | AJ106: 0 | AK106: 0 | AL106: 0 | AM106: 0 | AN106: 0 | AO106: 0 | AP106: 0 | AQ106: 0 | AR106: 0
A107: =+PO!B118 -> 0 | B107: ESCAVAÇÃO MECÂNICA DE SOLO | C107: =+PO!L118 -> 0 | E107: 0 | G107: 0 | I107: 0 | K107: 0 | M107: 0 | O107: 0 | Q107: 0 | S107: 0 | U107: 0 | W107: 0 | Y107: 0 | AA107: 0 | AC107: 0 | AD107: 0 | AE107: ok! | AG107: 0 | AH107: 0 | AI107: 0 | AJ107: 0 | AK107: 0 | AL107: 0 | AM107: 0 | AN107: 0 | AO107: 0 | AP107: 0 | AQ107: 0 | AR107: 0
A108: =+PO!B119 -> 0 | B108: REATERRO MANUAL C/COMPACTAÇÃO MANUAL | C108: =+PO!L119 -> 0 | E108: 0 | G108: 0 | I108: 0 | K108: 0 | M108: 0 | O108: 0 | Q108: 0 | S108: 0 | U108: 0 | W108: 0 | Y108: 0 | AA108: 0 | AC108: 0 | AD108: 0 | AE108: ok! | AG108: 0 | AH108: 0 | AI108: 0 | AJ108: 0 | AK108: 0 | AL108: 0 | AM108: 0 | AN108: 0 | AO108: 0 | AP108: 0 | AQ108: 0 | AR108: 0
A109: =+PO!B121 -> 6 | B109: PAVIMENTAÇÃO
A110: =+PO!B122 -> 0 | B110: NIVELAMENTO CAIXA DE PASSAGEM | C110: =+PO!L122 -> 0 | E110: 0 | G110: 0 | I110: 0 | K110: 0 | M110: 0 | O110: 0 | Q110: 0 | S110: 0 | U110: 0 | W110: 0 | Y110: 0 | AA110: 0 | AC110: =+D110+F110+H110+J110+L110+N110+P110+R110+T110+V110+X110+Z110 -> 0 | AD110: =+E110+G110+I110+K110+M110+O110+Q110+S110+U110+W110+Y110+AA110 -> 0 | AE110: =IF(C110=AD110,"ok!","incompleto") -> ok! | AG110: =+E110 -> 0 | AH110: =+G110 -> 0 | AI110: =+I110 -> 0 | AJ110: =+K110 -> 0 | AK110: =+M110 -> 0 | AL110: =+O110 -> 0 | AM110: =+Q110 -> 0 | AN110: =+S110 -> 0 | AO110: =+U110 -> 0 | AP110: =+W110 -> 0 | AQ110: =+Y110 -> 0 | AR110: =+AA110 -> 0
A111: =+PO!B123 -> 0 | B111: LASTRO DE BRITA | C111: =+PO!L123 -> 0 | E111: 0 | G111: 0 | I111: 0 | K111: 0 | M111: 0 | O111: 0 | Q111: 0 | S111: 0 | U111: 0 | W111: 0 | Y111: 0 | AA111: 0 | AC111: 0 | AD111: 0 | AE111: ok! | AG111: 0 | AH111: 0 | AI111: 0 | AJ111: 0 | AK111: 0 | AL111: 0 | AM111: 0 | AN111: 0 | AO111: 0 | AP111: 0 | AQ111: 0 | AR111: 0
A112: =+PO!B124 -> 0 | B112: SAIBRO ROSA - COMPACTAÇÃO MECÂNICA - 6 cm | C112: =+PO!L124 -> 0 | E112: 0 | G112: 0 | I112: 0 | K112: 0 | M112: 0 | O112: 0 | Q112: 0 | S112: 0 | U112: 0 | W112: 0 | Y112: 0 | AA112: 0 | AC112: 0 | AD112: 0 | AE112: ok! | AG112: 0 | AH112: 0 | AI112: 0 | AJ112: 0 | AK112: 0 | AL112: 0 | AM112: 0 | AN112: 0 | AO112: 0 | AP112: 0 | AQ112: 0 | AR112: 0
A113: =+PO!B125 -> 0 | B113: SAIBRO ROSA - COMPACTAÇÃO MECÂNICA - 6 cm | C113: =+PO!L125 -> 0 | E113: 0 | G113: 0 | I113: 0 | K113: 0 | M113: 0 | O113: 0 | Q113: 0 | S113: 0 | U113: 0 | W113: 0 | Y113: 0 | AA113: 0 | AC113: 0 | AD113: 0 | AE113: ok! | AG113: 0 | AH113: 0 | AI113: 0 | AJ113: 0 | AK113: 0 | AL113: 0 | AM113: 0 | AN113: 0 | AO113: 0 | AP113: 0 | AQ113: 0 | AR113: 0
A114: =+PO!B126 -> 0 | B114: PISO CONCRETO ARMADO 8 cm - PASSEIO - S/PODOTÁTIL | C114: =+PO!L126 -> 0 | E114: 0 | G114: 0 | I114: 0 | K114: 0 | M114: 0 | O114: 0 | Q114: 0 | S114: 0 | U114: 0 | W114: 0 | Y114: 0 | AA114: 0 | AC114: 0 | AD114: 0 | AE114: ok! | AG114: 0 | AH114: 0 | AI114: 0 | AJ114: 0 | AK114: 0 | AL114: 0 | AM114: 0 | AN114: 0 | AO114: 0 | AP114: 0 | AQ114: 0 | AR114: 0
A115: =+PO!B127 -> 0 | B115: PISO CONCRETO ARMADO 8 cm - PASSEIO - C/PODOTÁTIL | C115: =+PO!L127 -> 0 | E115: =D115*$C115 -> 0 | G115: =F115*$C115 -> 0 | I115: =H115*$C115 -> 0 | K115: =J115*$C115 -> 0 | M115: =L115*$C115 -> 0 | O115: =N115*$C115 -> 0 | Q115: =P115*$C115 -> 0 | S115: =R115*$C115 -> 0 | U115: =T115*$C115 -> 0 | W115: =V115*$C115 -> 0 | Y115: =X115*$C115 -> 0 | AA115: =Z115*$C115 -> 0 | AC115: =+D115+F115+H115+J115+L115+N115+P115+R115+T115+V115+X115+Z115 -> 0 | AD115: =+E115+G115+I115+K115+M115+O115+Q115+S115+U115+W115+Y115+AA115 -> 0 | AE115: =IF(C115=AD115,"ok!","incompleto") -> ok! | AG115: =+E115 -> 0 | AH115: =+G115 -> 0 | AI115: =+I115 -> 0 | AJ115: =+K115 -> 0 | AK115: =+M115 -> 0 | AL115: =+O115 -> 0 | AM115: =+Q115 -> 0 | AN115: =+S115 -> 0 | AO115: =+U115 -> 0 | AP115: =+W115 -> 0 | AQ115: =+Y115 -> 0 | AR115: =+AA115 -> 0
A116: =+PO!B128 -> 0 | B116: PISO CONCRETO ARMADO 8 cm - QUADRA (PANO ÚNICO) | C116: =+PO!L128 -> 0 | E116: 0 | G116: 0 | I116: 0 | K116: 0 | M116: 0 | O116: 0 | Q116: 0 | S116: 0 | U116: 0 | W116: 0 | Y116: 0 | AA116: 0 | AC116: 0 | AD116: 0 | AE116: ok! | AG116: 0 | AH116: 0 | AI116: 0 | AJ116: 0 | AK116: 0 | AL116: 0 | AM116: 0 | AN116: 0 | AO116: 0 | AP116: 0 | AQ116: 0 | AR116: 0
A117: =+PO!B129 -> 0 | B117: PISO CONCRETO ARMADO 10 cm - ACADEMIA 3ª IDADE | C117: =+PO!L129 -> 0 | E117: 0 | G117: 0 | I117: 0 | K117: 0 | M117: 0 | O117: 0 | Q117: 0 | S117: 0 | U117: 0 | W117: 0 | Y117: 0 | AA117: 0 | AC117: 0 | AD117: 0 | AE117: ok! | AG117: 0 | AH117: 0 | AI117: 0 | AJ117: 0 | AK117: 0 | AL117: 0 | AM117: 0 | AN117: 0 | AO117: 0 | AP117: 0 | AQ117: 0 | AR117: 0
A118: =+PO!B130 -> 0 | B118: PISO CONCRETO ARMADO 20 cm - ARMADURA DUPLA | C118: =+PO!L130 -> 0 | E118: 0 | G118: 0 | I118: 0 | K118: 0 | M118: 0 | O118: 0 | Q118: 0 | S118: 0 | U118: 0 | W118: 0 | Y118: 0 | AA118: 0 | AC118: 0 | AD118: 0 | AE118: ok! | AG118: 0 | AH118: 0 | AI118: 0 | AJ118: 0 | AK118: 0 | AL118: 0 | AM118: 0 | AN118: 0 | AO118: 0 | AP118: 0 | AQ118: 0 | AR118: 0
A119: =+PO!B131 -> 0 | B119: PAVIMENTAÇÃO BLOCOS RETANGULARES DE CONCRETO COR NATURAL - 6 cm - 35 MPa | C119: =+PO!L131 -> 0 | E119: 0 | G119: 0 | I119: 0 | K119: 0 | M119: 0 | O119: 0 | Q119: 0 | S119: 0 | U119: 0 | W119: 0 | Y119: 0 | AA119: 0 | AC119: 0 | AD119: 0 | AE119: ok! | AG119: 0 | AH119: 0 | AI119: 0 | AJ119: 0 | AK119: 0 | AL119: 0 | AM119: 0 | AN119: 0 | AO119: 0 | AP119: 0 | AQ119: 0 | AR119: 0
A120: =+PO!B132 -> 0 | B120: PAVIMENTAÇÃO BLOCOS RETANGULARES DE CONCRETO COLORIDO - 6 cm - 35 MPa | C120: =+PO!L132 -> 0 | E120: =D120*$C120 -> 0 | G120: =F120*$C120 -> 0 | I120: =H120*$C120 -> 0 | K120: =J120*$C120 -> 0 | M120: =L120*$C120 -> 0 | O120: =N120*$C120 -> 0 | Q120: =P120*$C120 -> 0 | S120: =R120*$C120 -> 0 | U120: =T120*$C120 -> 0 | W120: =V120*$C120 -> 0 | Y120: =X120*$C120 -> 0 | AA120: =Z120*$C120 -> 0 | AC120: =+D120+F120+H120+J120+L120+N120+P120+R120+T120+V120+X120+Z120 -> 0 | AD120: =+E120+G120+I120+K120+M120+O120+Q120+S120+U120+W120+Y120+AA120 -> 0 | AE120: =IF(C120=AD120,"ok!","incompleto") -> ok! | AG120: =+E120 -> 0 | AH120: =+G120 -> 0 | AI120: =+I120 -> 0 | AJ120: =+K120 -> 0 | AK120: =+M120 -> 0 | AL120: =+O120 -> 0 | AM120: =+Q120 -> 0 | AN120: =+S120 -> 0 | AO120: =+U120 -> 0 | AP120: =+W120 -> 0 | AQ120: =+Y120 -> 0 | AR120: =+AA120 -> 0
A121: =+PO!B133 -> 0 | B121: PAVIMENTAÇÃO BLOCOS RETANGULARES DE CONCRETO COR NATURAL - 8 cm - 35 MPa | C121: =+PO!L133 -> 0 | E121: 0 | G121: 0 | I121: 0 | K121: 0 | M121: 0 | O121: 0 | Q121: 0 | S121: 0 | U121: 0 | W121: 0 | Y121: 0 | AA121: 0 | AC121: 0 | AD121: 0 | AE121: ok! | AG121: 0 | AH121: 0 | AI121: 0 | AJ121: 0 | AK121: 0 | AL121: 0 | AM121: 0 | AN121: 0 | AO121: 0 | AP121: 0 | AQ121: 0 | AR121: 0
A122: =+PO!B134 -> 0 | B122: FAIXAS BLOCOS RETANGULARES DE CONCRETO COR NATURAL - 6 cm - 35 MPa (LARGURA 20 cm) | C122: =+PO!L134 -> 0 | E122: 0 | G122: 0 | I122: 0 | K122: 0 | M122: 0 | O122: 0 | Q122: 0 | S122: 0 | U122: 0 | W122: 0 | Y122: 0 | AA122: 0 | AC122: 0 | AD122: 0 | AE122: ok! | AG122: 0 | AH122: 0 | AI122: 0 | AJ122: 0 | AK122: 0 | AL122: 0 | AM122: 0 | AN122: 0 | AO122: 0 | AP122: 0 | AQ122: 0 | AR122: 0
A123: =+PO!B135 -> 0 | B123: PAVIMENTAÇÃO PARALELEPÍPEDO | C123: =+PO!L135 -> 0 | E123: 0 | G123: 0 | I123: 0 | K123: 0 | M123: 0 | O123: 0 | Q123: 0 | S123: 0 | U123: 0 | W123: 0 | Y123: 0 | AA123: 0 | AC123: 0 | AD123: 0 | AE123: ok! | AG123: 0 | AH123: 0 | AI123: 0 | AJ123: 0 | AK123: 0 | AL123: 0 | AM123: 0 | AN123: 0 | AO123: 0 | AP123: 0 | AQ123: 0 | AR123: 0
A124: =+PO!B136 -> 0 | B124: PEDRA PORTUGUESA | C124: =+PO!L136 -> 0 | E124: 0 | G124: 0 | I124: 0 | K124: 0 | M124: 0 | O124: 0 | Q124: 0 | S124: 0 | U124: 0 | W124: 0 | Y124: 0 | AA124: 0 | AC124: 0 | AD124: 0 | AE124: ok! | AG124: 0 | AH124: 0 | AI124: 0 | AJ124: 0 | AK124: 0 | AL124: 0 | AM124: 0 | AN124: 0 | AO124: 0 | AP124: 0 | AQ124: 0 | AR124: 0
A125: =+PO!B137 -> 0 | B125: LAJE DE GRÊS ASSENTADA NA AREIA | C125: =+PO!L137 -> 0 | E125: 0 | G125: 0 | I125: 0 | K125: 0 | M125: 0 | O125: 0 | Q125: 0 | S125: 0 | U125: 0 | W125: 0 | Y125: 0 | AA125: 0 | AC125: 0 | AD125: 0 | AE125: ok! | AG125: 0 | AH125: 0 | AI125: 0 | AJ125: 0 | AK125: 0 | AL125: 0 | AM125: 0 | AN125: 0 | AO125: 0 | AP125: 0 | AQ125: 0 | AR125: 0
A126: =+PO!B138 -> 0 | B126: LAJE DE GRÊS ASSENTADA NA MASSA | C126: =+PO!L138 -> 0 | E126: 0 | G126: 0 | I126: 0 | K126: 0 | M126: 0 | O126: 0 | Q126: 0 | S126: 0 | U126: 0 | W126: 0 | Y126: 0 | AA126: 0 | AC126: 0 | AD126: 0 | AE126: ok! | AG126: 0 | AH126: 0 | AI126: 0 | AJ126: 0 | AK126: 0 | AL126: 0 | AM126: 0 | AN126: 0 | AO126: 0 | AP126: 0 | AQ126: 0 | AR126: 0
A127: =+PO!B139 -> 0 | B127: LAJE DE GRÊS ASSENTADA NA ARGILA | C127: =+PO!L139 -> 0 | E127: 0 | G127: 0 | I127: 0 | K127: 0 | M127: 0 | O127: 0 | Q127: 0 | S127: 0 | U127: 0 | W127: 0 | Y127: 0 | AA127: 0 | AC127: 0 | AD127: 0 | AE127: ok! | AG127: 0 | AH127: 0 | AI127: 0 | AJ127: 0 | AK127: 0 | AL127: 0 | AM127: 0 | AN127: 0 | AO127: 0 | AP127: 0 | AQ127: 0 | AR127: 0
A128: =+PO!B140 -> 0 | B128: BASALTO IRREGULAR - JUNTA BITOLADA | C128: =+PO!L140 -> 0 | E128: 0 | G128: 0 | I128: 0 | K128: 0 | M128: 0 | O128: 0 | Q128: 0 | S128: 0 | U128: 0 | W128: 0 | Y128: 0 | AA128: 0 | AC128: 0 | AD128: 0 | AE128: ok! | AG128: 0 | AH128: 0 | AI128: 0 | AJ128: 0 | AK128: 0 | AL128: 0 | AM128: 0 | AN128: 0 | AO128: 0 | AP128: 0 | AQ128: 0 | AR128: 0
A129: =+PO!B141 -> 0 | B129: BASALTO IRREGULAR | C129: =+PO!L141 -> 0 | E129: 0 | G129: 0 | I129: 0 | K129: 0 | M129: 0 | O129: 0 | Q129: 0 | S129: 0 | U129: 0 | W129: 0 | Y129: 0 | AA129: 0 | AC129: 0 | AD129: 0 | AE129: ok! | AG129: 0 | AH129: 0 | AI129: 0 | AJ129: 0 | AK129: 0 | AL129: 0 | AM129: 0 | AN129: 0 | AO129: 0 | AP129: 0 | AQ129: 0 | AR129: 0
A130: =+PO!B142 -> 0 | B130: BASALTO REGULAR TALHADO | C130: =+PO!L142 -> 0 | E130: 0 | G130: 0 | I130: 0 | K130: 0 | M130: 0 | O130: 0 | Q130: 0 | S130: 0 | U130: 0 | W130: 0 | Y130: 0 | AA130: 0 | AC130: 0 | AD130: 0 | AE130: ok! | AG130: 0 | AH130: 0 | AI130: 0 | AJ130: 0 | AK130: 0 | AL130: 0 | AM130: 0 | AN130: 0 | AO130: 0 | AP130: 0 | AQ130: 0 | AR130: 0
A131: =+PO!B143 -> 0 | B131: BASALTO REGULAR SERRADO | C131: =+PO!L143 -> 0 | E131: 0 | G131: 0 | I131: 0 | K131: 0 | M131: 0 | O131: 0 | Q131: 0 | S131: 0 | U131: 0 | W131: 0 | Y131: 0 | AA131: 0 | AC131: 0 | AD131: 0 | AE131: ok! | AG131: 0 | AH131: 0 | AI131: 0 | AJ131: 0 | AK131: 0 | AL131: 0 | AM131: 0 | AN131: 0 | AO131: 0 | AP131: 0 | AQ131: 0 | AR131: 0
A132: =+PO!B144 -> 0 | B132: AREIA MÉDIA PENEIRADA | C132: =+PO!L144 -> 0 | E132: =D132*$C132 -> 0 | G132: =F132*$C132 -> 0 | I132: =H132*$C132 -> 0 | K132: =J132*$C132 -> 0 | M132: =L132*$C132 -> 0 | O132: =N132*$C132 -> 0 | Q132: =P132*$C132 -> 0 | S132: =R132*$C132 -> 0 | U132: =T132*$C132 -> 0 | W132: =V132*$C132 -> 0 | Y132: =X132*$C132 -> 0 | AA132: =Z132*$C132 -> 0 | AC132: =+D132+F132+H132+J132+L132+N132+P132+R132+T132+V132+X132+Z132 -> 0 | AD132: =+E132+G132+I132+K132+M132+O132+Q132+S132+U132+W132+Y132+AA132 -> 0 | AE132: =IF(C132=AD132,"ok!","incompleto") -> ok! | AG132: =+E132 -> 0 | AH132: =+G132 -> 0 | AI132: =+I132 -> 0 | AJ132: =+K132 -> 0 | AK132: =+M132 -> 0 | AL132: =+O132 -> 0 | AM132: =+Q132 -> 0 | AN132: =+S132 -> 0 | AO132: =+U132 -> 0 | AP132: =+W132 -> 0 | AQ132: =+Y132 -> 0 | AR132: =+AA132 -> 0
A133: =+PO!B145 -> 0 | B133: LAJOTA CONCRETO | C133: =+PO!L145 -> 0 | E133: 0 | G133: 0 | I133: 0 | K133: 0 | M133: 0 | O133: 0 | Q133: 0 | S133: 0 | U133: 0 | W133: 0 | Y133: 0 | AA133: 0 | AC133: 0 | AD133: 0 | AE133: ok! | AG133: 0 | AH133: 0 | AI133: 0 | AJ133: 0 | AK133: 0 | AL133: 0 | AM133: 0 | AN133: 0 | AO133: 0 | AP133: 0 | AQ133: 0 | AR133: 0
A134: =+PO!B146 -> 0 | B134: PISO PODOTÁTIL | C134: =+PO!L146 -> 0 | E134: 0 | G134: 0 | I134: 0 | K134: 0 | M134: 0 | O134: 0 | Q134: 0 | S134: 0 | U134: 0 | W134: 0 | Y134: 0 | AA134: 0 | AC134: 0 | AD134: 0 | AE134: ok! | AG134: 0 | AH134: 0 | AI134: 0 | AJ134: 0 | AK134: 0 | AL134: 0 | AM134: 0 | AN134: 0 | AO134: 0 | AP134: 0 | AQ134: 0 | AR134: 0
A135: =+PO!B148 -> 7 | B135: MEIO-FIO
A136: =+PO!B149 -> 0 | B136: MEIO-FIO CONCRETO MOLDADO NO LOCAL - PADRÃO SMAM | C136: =+PO!L149 -> 0 | E136: =D136*$C136 -> 0 | G136: =F136*$C136 -> 0 | I136: =H136*$C136 -> 0 | K136: =J136*$C136 -> 0 | M136: =L136*$C136 -> 0 | O136: =N136*$C136 -> 0 | Q136: =P136*$C136 -> 0 | S136: =R136*$C136 -> 0 | U136: =T136*$C136 -> 0 | W136: =V136*$C136 -> 0 | Y136: =X136*$C136 -> 0 | AA136: =Z136*$C136 -> 0 | AC136: =+D136+F136+H136+J136+L136+N136+P136+R136+T136+V136+X136+Z136 -> 0 | AD136: 0 | AE136: =IF(C136=AD136,"ok!","incompleto") -> ok! | AG136: =+E136 -> 0 | AH136: =+G136 -> 0 | AI136: =+I136 -> 0 | AJ136: =+K136 -> 0 | AK136: =+M136 -> 0 | AL136: =+O136 -> 0 | AM136: =+Q136 -> 0 | AN136: =+S136 -> 0 | AO136: =+U136 -> 0 | AP136: =+W136 -> 0 | AQ136: =+Y136 -> 0 | AR136: =+AA136 -> 0
A137: =+PO!B150 -> 0 | B137: MEIO-FIO CURVO CONCRETO MOLDADO NO LOCAL - PADRÃO SMAM | C137: =+PO!L150 -> 0 | E137: =D137*$C137 -> 0 | G137: =F137*$C137 -> 0 | I137: =H137*$C137 -> 0 | K137: =J137*$C137 -> 0 | M137: =L137*$C137 -> 0 | O137: =N137*$C137 -> 0 | Q137: =P137*$C137 -> 0 | S137: =R137*$C137 -> 0 | U137: =T137*$C137 -> 0 | W137: =V137*$C137 -> 0 | Y137: =X137*$C137 -> 0 | AA137: =Z137*$C137 -> 0 | AC137: 0 | AD137: 0 | AE137: =IF(C137=AD137,"ok!","incompleto") -> ok! | AG137: =+E137 -> 0 | AH137: =+G137 -> 0 | AI137: =+I137 -> 0 | AJ137: =+K137 -> 0 | AK137: =+M137 -> 0 | AL137: =+O137 -> 0 | AM137: =+Q137 -> 0 | AN137: =+S137 -> 0 | AO137: =+U137 -> 0 | AP137: =+W137 -> 0 | AQ137: =+Y137 -> 0 | AR137: =+AA137 -> 0
A138: =+PO!B151 -> 0 | B138: MEIO-FIO VIÁRIO DE CONCRETO PRÉ-MOLDADO | C138: =+PO!L151 -> 0 | E138: =D138*$C138 -> 0 | G138: =F138*$C138 -> 0 | I138: =H138*$C138 -> 0 | K138: =J138*$C138 -> 0 | M138: =L138*$C138 -> 0 | O138: =N138*$C138 -> 0 | Q138: =P138*$C138 -> 0 | S138: =R138*$C138 -> 0 | U138: =T138*$C138 -> 0 | W138: =V138*$C138 -> 0 | Y138: =X138*$C138 -> 0 | AA138: =Z138*$C138 -> 0 | AC138: 0 | AD138: 0 | AE138: =IF(C138=AD138,"ok!","incompleto") -> ok! | AG138: =+E138 -> 0 | AH138: =+G138 -> 0 | AI138: =+I138 -> 0 | AJ138: =+K138 -> 0 | AK138: =+M138 -> 0 | AL138: =+O138 -> 0 | AM138: =+Q138 -> 0 | AN138: =+S138 -> 0 | AO138: =+U138 -> 0 | AP138: =+W138 -> 0 | AQ138: =+Y138 -> 0 | AR138: =+AA138 -> 0
A139: =+PO!B152 -> 0 | B139: REPOSIÇÃO MEIO-FIO VIÁRIO | C139: =+PO!L152 -> 0 | E139: =D139*$C139 -> 0 | G139: =F139*$C139 -> 0 | I139: =H139*$C139 -> 0 | K139: =J139*$C139 -> 0 | M139: =L139*$C139 -> 0 | O139: =N139*$C139 -> 0 | Q139: =P139*$C139 -> 0 | S139: =R139*$C139 -> 0 | U139: =T139*$C139 -> 0 | W139: =V139*$C139 -> 0 | Y139: =X139*$C139 -> 0 | AA139: =Z139*$C139 -> 0 | AC139: 0 | AD139: 0 | AE139: =IF(C139=AD139,"ok!","incompleto") -> ok! | AG139: =+E139 -> 0 | AH139: =+G139 -> 0 | AI139: =+I139 -> 0 | AJ139: =+K139 -> 0 | AK139: =+M139 -> 0 | AL139: =+O139 -> 0 | AM139: =+Q139 -> 0 | AN139: =+S139 -> 0 | AO139: =+U139 -> 0 | AP139: =+W139 -> 0 | AQ139: =+Y139 -> 0 | AR139: =+AA139 -> 0
A140: =+PO!B153 -> 0 | B140: REALINHAMENTO MEIO-FIO VIÁRIO | C140: =+PO!L153 -> 0 | E140: =D140*$C140 -> 0 | G140: =F140*$C140 -> 0 | I140: =H140*$C140 -> 0 | K140: =J140*$C140 -> 0 | M140: =L140*$C140 -> 0 | O140: =N140*$C140 -> 0 | Q140: =P140*$C140 -> 0 | S140: =R140*$C140 -> 0 | U140: =T140*$C140 -> 0 | W140: =V140*$C140 -> 0 | Y140: =X140*$C140 -> 0 | AA140: =Z140*$C140 -> 0 | AC140: 0 | AD140: 0 | AE140: =IF(C140=AD140,"ok!","incompleto") -> ok! | AG140: =+E140 -> 0 | AH140: =+G140 -> 0 | AI140: =+I140 -> 0 | AJ140: =+K140 -> 0 | AK140: =+M140 -> 0 | AL140: =+O140 -> 0 | AM140: =+Q140 -> 0 | AN140: =+S140 -> 0 | AO140: =+U140 -> 0 | AP140: =+W140 -> 0 | AQ140: =+Y140 -> 0 | AR140: =+AA140 -> 0
A141: =+PO!B155 -> 8 | B141: DEGRAU
A142: =+PO!B156 -> 0 | B142: DEGRAU CONCRETO L=2,00 m - BASE GRANITO - PADRÃO SMAM | C142: =+PO!L156 -> 0 | E142: =D142*$C142 -> 0 | G142: =F142*$C142 -> 0 | I142: =H142*$C142 -> 0 | K142: =J142*$C142 -> 0 | M142: =L142*$C142 -> 0 | O142: =N142*$C142 -> 0 | Q142: =P142*$C142 -> 0 | S142: =R142*$C142 -> 0 | U142: =T142*$C142 -> 0 | W142: =V142*$C142 -> 0 | Y142: =X142*$C142 -> 0 | AA142: =Z142*$C142 -> 0 | AC142: =+D142+F142+H142+J142+L142+N142+P142+R142+T142+V142+X142+Z142 -> 0 | AD142: 0 | AE142: =IF(C142=AD142,"ok!","incompleto") -> ok! | AG142: =+E142 -> 0 | AH142: =+G142 -> 0 | AI142: =+I142 -> 0 | AJ142: =+K142 -> 0 | AK142: =+M142 -> 0 | AL142: =+O142 -> 0 | AM142: =+Q142 -> 0 | AN142: =+S142 -> 0 | AO142: =+U142 -> 0 | AP142: =+W142 -> 0 | AQ142: =+Y142 -> 0 | AR142: =+AA142 -> 0
A143: =+PO!B157 -> 0 | B143: DEGRAU CONCRETO L=2,00 m - BASE GRÊS - PADRÃO SMAM | C143: =+PO!L157 -> 0 | E143: =D143*$C143 -> 0 | G143: =F143*$C143 -> 0 | I143: =H143*$C143 -> 0 | K143: =J143*$C143 -> 0 | M143: =L143*$C143 -> 0 | O143: =N143*$C143 -> 0 | Q143: =P143*$C143 -> 0 | S143: =R143*$C143 -> 0 | U143: =T143*$C143 -> 0 | W143: =V143*$C143 -> 0 | Y143: =X143*$C143 -> 0 | AA143: =Z143*$C143 -> 0 | AC143: 0 | AD143: 0 | AE143: =IF(C143=AD143,"ok!","incompleto") -> ok! | AG143: =+E143 -> 0 | AH143: =+G143 -> 0 | AI143: =+I143 -> 0 | AJ143: =+K143 -> 0 | AK143: =+M143 -> 0 | AL143: =+O143 -> 0 | AM143: =+Q143 -> 0 | AN143: =+S143 -> 0 | AO143: =+U143 -> 0 | AP143: =+W143 -> 0 | AQ143: =+Y143 -> 0 | AR143: =+AA143 -> 0
A144: =+PO!B159 -> 9 | B144: ACESSIBILIDADE
A145: =+PO!B160 -> 0 | B145: RAMPA PPNE'S TIPO 1 - 1,50 m (ABA 50 cm) | C145: =+PO!L160 -> 0 | E145: =D145*$C145 -> 0 | G145: =F145*$C145 -> 0 | I145: =H145*$C145 -> 0 | K145: =J145*$C145 -> 0 | M145: =L145*$C145 -> 0 | O145: =N145*$C145 -> 0 | Q145: =P145*$C145 -> 0 | S145: =R145*$C145 -> 0 | U145: =T145*$C145 -> 0 | W145: =V145*$C145 -> 0 | Y145: =X145*$C145 -> 0 | AA145: =Z145*$C145 -> 0 | AC145: =+D145+F145+H145+J145+L145+N145+P145+R145+T145+V145+X145+Z145 -> 0 | AD145: 0 | AE145: =IF(C145=AD145,"ok!","incompleto") -> ok! | AG145: =+E145 -> 0 | AH145: =+G145 -> 0 | AI145: =+I145 -> 0 | AJ145: =+K145 -> 0 | AK145: =+M145 -> 0 | AL145: =+O145 -> 0 | AM145: =+Q145 -> 0 | AN145: =+S145 -> 0 | AO145: =+U145 -> 0 | AP145: =+W145 -> 0 | AQ145: =+Y145 -> 0 | AR145: =+AA145 -> 0
A146: =+PO!B161 -> 0 | B146: RAMPA PPNE'S TIPO 1 - 1,50 m (ABA 1,50 m) | C146: =+PO!L161 -> 0 | E146: 0 | G146: 0 | I146: 0 | K146: 0 | M146: 0 | O146: 0 | Q146: 0 | S146: 0 | U146: 0 | W146: 0 | Y146: 0 | AA146: 0 | AC146: 0 | AD146: 0 | AE146: ok! | AG146: 0 | AH146: 0 | AI146: 0 | AJ146: 0 | AK146: 0 | AL146: 0 | AM146: 0 | AN146: 0 | AO146: 0 | AP146: 0 | AQ146: 0 | AR146: 0
A147: =+PO!B162 -> 0 | B147: RAMPA PPNE'S TIPO 1 - 1,50 m (SEM ABA) | C147: =+PO!L162 -> 0 | E147: 0 | G147: 0 | I147: 0 | K147: 0 | M147: 0 | O147: 0 | Q147: 0 | S147: 0 | U147: 0 | W147: 0 | Y147: 0 | AA147: 0 | AC147: =+D147+F147+H147+J147+L147+N147+P147+R147+T147+V147+X147+Z147 -> 0 | AD147: 0 | AE147: ok! | AG147: 0 | AH147: 0 | AI147: 0 | AJ147: 0 | AK147: 0 | AL147: 0 | AM147: 0 | AN147: 0 | AO147: 0 | AP147: 0 | AQ147: 0 | AR147: 0
A148: =+PO!B163 -> 0 | B148: RAMPA PPNE'S TIPO 1 - 4,00 m | C148: =+PO!L163 -> 0 | E148: 0 | G148: 0 | I148: 0 | K148: 0 | M148: 0 | O148: 0 | Q148: 0 | S148: 0 | U148: 0 | W148: 0 | Y148: 0 | AA148: 0 | AC148: 0 | AD148: 0 | AE148: ok! | AG148: 0 | AH148: 0 | AI148: 0 | AJ148: 0 | AK148: 0 | AL148: 0 | AM148: 0 | AN148: 0 | AO148: 0 | AP148: 0 | AQ148: 0 | AR148: 0
A149: =+PO!B164 -> 0 | B149: RAMPA PPNE'S TIPO 2 (CALÇADA ESTREITA) - 1,50 m | C149: =+PO!L164 -> 0 | E149: 0 | G149: 0 | I149: 0 | K149: 0 | M149: 0 | O149: 0 | Q149: 0 | S149: 0 | U149: 0 | W149: 0 | Y149: 0 | AA149: 0 | AC149: 0 | AD149: 0 | AE149: ok! | AG149: 0 | AH149: 0 | AI149: 0 | AJ149: 0 | AK149: 0 | AL149: 0 | AM149: 0 | AN149: 0 | AO149: 0 | AP149: 0 | AQ149: 0 | AR149: 0
A150: =+PO!B166 -> 0 | B150: CORRIMÃO PPNE'S | C150: =+PO!L166 -> 0 | E150: 0 | G150: 0 | I150: 0 | K150: 0 | M150: 0 | O150: 0 | Q150: 0 | S150: 0 | U150: 0 | W150: 0 | Y150: 0 | AA150: 0 | AC150: 0 | AD150: 0 | AE150: ok! | AG150: 0 | AH150: 0 | AI150: 0 | AJ150: 0 | AK150: 0 | AL150: 0 | AM150: 0 | AN150: 0 | AO150: 0 | AP150: 0 | AQ150: 0 | AR150: 0
A151: =+PO!B168 -> 10 | B151: QUADRAS
A152: =+PO!B169 -> 0 | B152: TELAMENTO h=5,50 m - PADRÃO SMAM | C152: =+PO!L169 -> 0 | E152: =D152*$C152 -> 0 | G152: =F152*$C152 -> 0 | I152: =H152*$C152 -> 0 | K152: =J152*$C152 -> 0 | M152: =L152*$C152 -> 0 | O152: =N152*$C152 -> 0 | Q152: =P152*$C152 -> 0 | S152: =R152*$C152 -> 0 | U152: =T152*$C152 -> 0 | W152: =V152*$C152 -> 0 | Y152: =X152*$C152 -> 0 | AA152: =Z152*$C152 -> 0 | AC152: =+D152+F152+H152+J152+L152+N152+P152+R152+T152+V152+X152+Z152 -> 0 | AD152: =+E152+G152+I152+K152+M152+O152+Q152+S152+U152+W152+Y152+AA152 -> 0 | AE152: =IF(C152=AD152,"ok!","incompleto") -> ok! | AG152: =+E152 -> 0 | AH152: =+G152 -> 0 | AI152: =+I152 -> 0 | AJ152: =+K152 -> 0 | AK152: =+M152 -> 0 | AL152: =+O152 -> 0 | AM152: =+Q152 -> 0 | AN152: =+S152 -> 0 | AO152: =+U152 -> 0 | AP152: =+W152 -> 0 | AQ152: =+Y152 -> 0 | AR152: =+AA152 -> 0
A153: =+PO!B170 -> 0 | B153: TELAMENTO h=3,00 m - PADRÃO SMAM | C153: =+PO!L170 -> 0 | E153: 0 | G153: 0 | I153: 0 | K153: 0 | M153: 0 | O153: 0 | Q153: 0 | S153: 0 | U153: 0 | W153: 0 | Y153: 0 | AA153: 0 | AC153: 0 | AD153: 0 | AE153: ok! | AG153: 0 | AH153: 0 | AI153: 0 | AJ153: 0 | AK153: 0 | AL153: 0 | AM153: 0 | AN153: 0 | AO153: 0 | AP153: 0 | AQ153: 0 | AR153: 0
A154: =+PO!B171 -> 0 | B154: TELAMENTO h=1,00 m - PADRÃO SMAM | C154: =+PO!L171 -> 0 | E154: 0 | G154: 0 | I154: 0 | K154: 0 | M154: 0 | O154: 0 | Q154: 0 | S154: 0 | U154: 0 | W154: 0 | Y154: 0 | AA154: 0 | AC154: 0 | AD154: 0 | AE154: ok! | AG154: 0 | AH154: 0 | AI154: 0 | AJ154: 0 | AK154: 0 | AL154: 0 | AM154: 0 | AN154: 0 | AO154: 0 | AP154: 0 | AQ154: 0 | AR154: 0
A155: =+PO!B172 -> 0 | B155: TELAMENTO h=3,00 m VÔLEI DE PRAIA - PADRÃO SMAM | C155: =+PO!L172 -> 0 | E155: 0 | G155: 0 | I155: 0 | K155: 0 | M155: 0 | O155: 0 | Q155: 0 | S155: 0 | U155: 0 | W155: 0 | Y155: 0 | AA155: 0 | AC155: 0 | AD155: 0 | AE155: ok! | AG155: 0 | AH155: 0 | AI155: 0 | AJ155: 0 | AK155: 0 | AL155: 0 | AM155: 0 | AN155: 0 | AO155: 0 | AP155: 0 | AQ155: 0 | AR155: 0
A156: =+PO!B173 -> 0 | B156: GOLEIRA FUTSAL | C156: =+PO!L173 -> 0 | E156: 0 | G156: 0 | I156: 0 | K156: 0 | M156: 0 | O156: 0 | Q156: 0 | S156: 0 | U156: 0 | W156: 0 | Y156: 0 | AA156: 0 | AC156: 0 | AD156: 0 | AE156: ok! | AG156: 0 | AH156: 0 | AI156: 0 | AJ156: 0 | AK156: 0 | AL156: 0 | AM156: 0 | AN156: 0 | AO156: 0 | AP156: 0 | AQ156: 0 | AR156: 0
A157: =+PO!B174 -> 0 | B157: GOLEIRA FUTEBOL SOCIETY | C157: =+PO!L174 -> 0 | E157: 0 | G157: 0 | I157: 0 | K157: 0 | M157: 0 | O157: 0 | Q157: 0 | S157: 0 | U157: 0 | W157: 0 | Y157: 0 | AA157: 0 | AC157: 0 | AD157: 0 | AE157: ok! | AG157: 0 | AH157: 0 | AI157: 0 | AJ157: 0 | AK157: 0 | AL157: 0 | AM157: 0 | AN157: 0 | AO157: 0 | AP157: 0 | AQ157: 0 | AR157: 0
A158: =+PO!B175 -> 0 | B158: GOLEIRA FUTEBOL DE CAMPO | C158: =+PO!L175 -> 0 | E158: 0 | G158: 0 | I158: 0 | K158: 0 | M158: 0 | O158: 0 | Q158: 0 | S158: 0 | U158: 0 | W158: 0 | Y158: 0 | AA158: 0 | AC158: 0 | AD158: 0 | AE158: ok! | AG158: 0 | AH158: 0 | AI158: 0 | AJ158: 0 | AK158: 0 | AL158: 0 | AM158: 0 | AN158: 0 | AO158: 0 | AP158: 0 | AQ158: 0 | AR158: 0
A159: =+PO!B176 -> 0 | B159: POSTE DE VÔLEI | C159: =+PO!L176 -> 0 | E159: 0 | G159: 0 | I159: 0 | K159: 0 | M159: 0 | O159: 0 | Q159: 0 | S159: 0 | U159: 0 | W159: 0 | Y159: 0 | AA159: 0 | AC159: 0 | AD159: 0 | AE159: ok! | AG159: 0 | AH159: 0 | AI159: 0 | AJ159: 0 | AK159: 0 | AL159: 0 | AM159: 0 | AN159: 0 | AO159: 0 | AP159: 0 | AQ159: 0 | AR159: 0
A160: =+PO!B177 -> 0 | B160: POSTE DE VÔLEI QUADRA DE AREIA | C160: =+PO!L177 -> 0 | E160: 0 | G160: 0 | I160: 0 | K160: 0 | M160: 0 | O160: 0 | Q160: 0 | S160: 0 | U160: 0 | W160: 0 | Y160: 0 | AA160: 0 | AC160: 0 | AD160: 0 | AE160: ok! | AG160: 0 | AH160: 0 | AI160: 0 | AJ160: 0 | AK160: 0 | AL160: 0 | AM160: 0 | AN160: 0 | AO160: 0 | AP160: 0 | AQ160: 0 | AR160: 0
A161: =+PO!B178 -> 0 | B161: POSTE DE TÊNIS QUADRA DE AREIA | C161: =+PO!L178 -> 0 | E161: =D161*$C161 -> 0 | G161: =F161*$C161 -> 0 | I161: =H161*$C161 -> 0 | K161: =J161*$C161 -> 0 | M161: =L161*$C161 -> 0 | O161: =N161*$C161 -> 0 | Q161: =P161*$C161 -> 0 | S161: =R161*$C161 -> 0 | U161: =T161*$C161 -> 0 | W161: =V161*$C161 -> 0 | Y161: =X161*$C161 -> 0 | AA161: =Z161*$C161 -> 0 | AC161: =+D161+F161+H161+J161+L161+N161+P161+R161+T161+V161+X161+Z161 -> 0 | AD161: =+E161+G161+I161+K161+M161+O161+Q161+S161+U161+W161+Y161+AA161 -> 0 | AE161: =IF(C161=AD161,"ok!","incompleto") -> ok! | AG161: =+E161 -> 0 | AH161: =+G161 -> 0 | AI161: =+I161 -> 0 | AJ161: =+K161 -> 0 | AK161: =+M161 -> 0 | AL161: =+O161 -> 0 | AM161: =+Q161 -> 0 | AN161: =+S161 -> 0 | AO161: =+U161 -> 0 | AP161: =+W161 -> 0 | AQ161: =+Y161 -> 0 | AR161: =+AA161 -> 0
A162: =+PO!B179 -> 0 | B162: TABELA DE BASQUETE - PADRÃO SMAM | C162: =+PO!L179 -> 0 | E162: 0 | G162: 0 | I162: 0 | K162: 0 | M162: 0 | O162: 0 | Q162: 0 | S162: 0 | U162: 0 | W162: 0 | Y162: 0 | AA162: 0 | AC162: 0 | AD162: 0 | AE162: ok! | AG162: 0 | AH162: 0 | AI162: 0 | AJ162: 0 | AK162: 0 | AL162: 0 | AM162: 0 | AN162: 0 | AO162: 0 | AP162: 0 | AQ162: 0 | AR162: 0
A163: =+PO!B180 -> 0 | B163: DEMARCAÇÃO QUADRA ESPORTIVA FUTSAL | C163: =+PO!L180 -> 0 | E163: 0 | G163: 0 | I163: 0 | K163: 0 | M163: 0 | O163: 0 | Q163: 0 | S163: 0 | U163: 0 | W163: 0 | Y163: 0 | AA163: 0 | AC163: 0 | AD163: 0 | AE163: ok! | AG163: 0 | AH163: 0 | AI163: 0 | AJ163: 0 | AK163: 0 | AL163: 0 | AM163: 0 | AN163: 0 | AO163: 0 | AP163: 0 | AQ163: 0 | AR163: 0
A164: =+PO!B181 -> 0 | B164: DEMARCAÇÃO QUADRA ESPORTIVA BASQUETE E/OU VÔLEI | C164: =+PO!L181 -> 0 | E164: =D164*$C164 -> 0 | G164: =F164*$C164 -> 0 | I164: =H164*$C164 -> 0 | K164: =J164*$C164 -> 0 | M164: =L164*$C164 -> 0 | O164: =N164*$C164 -> 0 | Q164: =P164*$C164 -> 0 | S164: =R164*$C164 -> 0 | U164: =T164*$C164 -> 0 | W164: =V164*$C164 -> 0 | Y164: =X164*$C164 -> 0 | AA164: =Z164*$C164 -> 0 | AC164: =+D164+F164+H164+J164+L164+N164+P164+R164+T164+V164+X164+Z164 -> 0 | AD164: =+E164+G164+I164+K164+M164+O164+Q164+S164+U164+W164+Y164+AA164 -> 0 | AE164: =IF(C164=AD164,"ok!","incompleto") -> ok! | AG164: =+E164 -> 0 | AH164: =+G164 -> 0 | AI164: =+I164 -> 0 | AJ164: =+K164 -> 0 | AK164: =+M164 -> 0 | AL164: =+O164 -> 0 | AM164: =+Q164 -> 0 | AN164: =+S164 -> 0 | AO164: =+U164 -> 0 | AP164: =+W164 -> 0 | AQ164: =+Y164 -> 0 | AR164: =+AA164 -> 0
A165: =+PO!B182 -> 0 | B165: DRENO QUADRA DE AREIA | C165: =+PO!L182 -> 0 | E165: 0 | G165: 0 | I165: 0 | K165: 0 | M165: 0 | O165: 0 | Q165: 0 | S165: 0 | U165: 0 | W165: 0 | Y165: 0 | AA165: 0 | AC165: 0 | AD165: 0 | AE165: ok! | AG165: 0 | AH165: 0 | AI165: 0 | AJ165: 0 | AK165: 0 | AL165: 0 | AM165: 0 | AN165: 0 | AO165: 0 | AP165: 0 | AQ165: 0 | AR165: 0
A166: =+PO!B184 -> 6 | B166: EQUIPAMENTOS/MOBILIÁRIO URBANO
A167: =+PO!B185 -> 6.1 | B167: BANCO B (C/ ENCOSTO) - L=2,00 m - PADRÃO SMAM | C167: =+PO!L185 -> 7578.68 | E167: =D167*$C167 -> 0 | F167: 1 | G167: =F167*$C167 -> 7578.68 | I167: =H167*$C167 -> 0 | K167: =J167*$C167 -> 0 | M167: =L167*$C167 -> 0 | O167: =N167*$C167 -> 0 | Q167: =P167*$C167 -> 0 | S167: =R167*$C167 -> 0 | U167: =T167*$C167 -> 0 | W167: =V167*$C167 -> 0 | Y167: =X167*$C167 -> 0 | AA167: =Z167*$C167 -> 0 | AC167: =+D167+F167+H167+J167+L167+N167+P167+R167+T167+V167+X167+Z167 -> 1 | AD167: =+E167+G167+I167+K167+M167+O167+Q167+S167+U167+W167+Y167+AA167 -> 7578.68 | AE167: =IF(C167=AD167,"ok!","incompleto") -> ok! | AG167: =+E167 -> 0 | AH167: =+G167 -> 7578.68 | AI167: =+I167 -> 0 | AJ167: =+K167 -> 0 | AK167: =+M167 -> 0 | AL167: =+O167 -> 0 | AM167: =+Q167 -> 0 | AN167: =+S167 -> 0 | AO167: =+U167 -> 0 | AP167: =+W167 -> 0 | AQ167: =+Y167 -> 0 | AR167: =+AA167 -> 0
A168: =+PO!B186 -> 0 | B168: BANCO A (S/ ENCOSTO) - L=1,80 m - PADRÃO SMAM | C168: =+PO!L186 -> 0 | E168: 0 | G168: 0 | I168: 0 | K168: 0 | M168: 0 | O168: 0 | Q168: 0 | S168: 0 | U168: 0 | W168: 0 | Y168: 0 | AA168: 0 | AC168: 0 | AD168: 0 | AE168: ok! | AG168: 0 | AH168: 0 | AI168: 0 | AJ168: 0 | AK168: 0 | AL168: 0 | AM168: 0 | AN168: 0 | AO168: 0 | AP168: 0 | AQ168: 0 | AR168: 0
A169: =+PO!B187 -> 0 | B169: BANCO D (S/ ENCOSTO) - L=2,00 m - PADRÃO SMAM | C169: =+PO!L187 -> 0 | E169: 0 | G169: 0 | I169: 0 | K169: 0 | M169: 0 | O169: 0 | Q169: 0 | S169: 0 | U169: 0 | W169: 0 | Y169: 0 | AA169: 0 | AC169: 0 | AD169: 0 | AE169: ok! | AG169: 0 | AH169: 0 | AI169: 0 | AJ169: 0 | AK169: 0 | AL169: 0 | AM169: 0 | AN169: 0 | AO169: 0 | AP169: 0 | AQ169: 0 | AR169: 0
A170: =+PO!B188 -> 0 | B170: PARACICLO | C170: =+PO!L188 -> 0 | E170: 0 | G170: 0 | I170: 0 | K170: 0 | M170: 0 | O170: 0 | Q170: 0 | S170: 0 | U170: 0 | W170: 0 | Y170: 0 | AA170: 0 | AC170: 0 | AD170: 0 | AE170: ok! | AG170: 0 | AH170: 0 | AI170: 0 | AJ170: 0 | AK170: 0 | AL170: 0 | AM170: 0 | AN170: 0 | AO170: 0 | AP170: 0 | AQ170: 0 | AR170: 0
A171: =+PO!B189 -> 0 | B171: CAIXA DE AREIA - PADRÃO SMAM | C171: =+PO!L189 -> 0 | E171: 0 | G171: 0 | I171: 0 | K171: 0 | M171: 0 | O171: 0 | Q171: 0 | S171: 0 | U171: 0 | W171: 0 | Y171: 0 | AA171: 0 | AC171: 0 | AD171: 0 | AE171: ok! | AG171: 0 | AH171: 0 | AI171: 0 | AJ171: 0 | AK171: 0 | AL171: 0 | AM171: 0 | AN171: 0 | AO171: 0 | AP171: 0 | AQ171: 0 | AR171: 0
A172: =+PO!B190 -> 0 | B172: CANCHA DE BOCHA - PADRÃO SMAM | C172: =+PO!L190 -> 0 | E172: 0 | G172: 0 | I172: 0 | K172: 0 | M172: 0 | O172: 0 | Q172: 0 | S172: 0 | U172: 0 | W172: 0 | Y172: 0 | AA172: 0 | AC172: 0 | AD172: 0 | AE172: ok! | AG172: 0 | AH172: 0 | AI172: 0 | AJ172: 0 | AK172: 0 | AL172: 0 | AM172: 0 | AN172: 0 | AO172: 0 | AP172: 0 | AQ172: 0 | AR172: 0
A173: =+PO!B191 -> 0 | B173: COBERTURA P/ CANCHA DE BOCHA | C173: =+PO!L191 -> 0 | E173: 0 | G173: 0 | I173: 0 | K173: 0 | M173: 0 | O173: 0 | Q173: 0 | S173: 0 | U173: 0 | W173: 0 | Y173: 0 | AA173: 0 | AC173: 0 | AD173: 0 | AE173: ok! | AG173: 0 | AH173: 0 | AI173: 0 | AJ173: 0 | AK173: 0 | AL173: 0 | AM173: 0 | AN173: 0 | AO173: 0 | AP173: 0 | AQ173: 0 | AR173: 0
A174: =+PO!B192 -> 0 | B174: CHURRASQUEIRA C/PISO DE CONCRETO - PADRÃO SMAM | C174: =+PO!L192 -> 0 | E174: 0 | G174: 0 | I174: 0 | K174: 0 | M174: 0 | O174: 0 | Q174: 0 | S174: 0 | U174: 0 | W174: 0 | Y174: 0 | AA174: 0 | AC174: 0 | AD174: 0 | AE174: ok! | AG174: 0 | AH174: 0 | AI174: 0 | AJ174: 0 | AK174: 0 | AL174: 0 | AM174: 0 | AN174: 0 | AO174: 0 | AP174: 0 | AQ174: 0 | AR174: 0
A175: =+PO!B193 -> 0 | B175: CHURRASQUEIRA - PADRÃO SMAM | C175: =+PO!L193 -> 0 | E175: 0 | G175: 0 | I175: 0 | K175: 0 | M175: 0 | O175: 0 | Q175: 0 | S175: 0 | U175: 0 | W175: 0 | Y175: 0 | AA175: 0 | AC175: 0 | AD175: 0 | AE175: ok! | AG175: 0 | AH175: 0 | AI175: 0 | AJ175: 0 | AK175: 0 | AL175: 0 | AM175: 0 | AN175: 0 | AO175: 0 | AP175: 0 | AQ175: 0 | AR175: 0
A176: =+PO!B194 -> 0 | B176: MESA E BANCOS DE CONCRETO P/ CHURRASQUEIRA - PADRÃO SMAM | C176: =+PO!L194 -> 0 | E176: 0 | G176: 0 | I176: 0 | K176: 0 | M176: 0 | O176: 0 | Q176: 0 | S176: 0 | U176: 0 | W176: 0 | Y176: 0 | AA176: 0 | AC176: 0 | AD176: 0 | AE176: ok! | AG176: 0 | AH176: 0 | AI176: 0 | AJ176: 0 | AK176: 0 | AL176: 0 | AM176: 0 | AN176: 0 | AO176: 0 | AP176: 0 | AQ176: 0 | AR176: 0
A177: =+PO!B195 -> 0 | B177: COBERTURA P/ CHURRASQUEIRA - PADRÃO SMAM | C177: =+PO!L195 -> 0 | E177: 0 | G177: 0 | I177: 0 | K177: 0 | M177: 0 | O177: 0 | Q177: 0 | S177: 0 | U177: 0 | W177: 0 | Y177: 0 | AA177: 0 | AC177: 0 | AD177: 0 | AE177: ok! | AG177: 0 | AH177: 0 | AI177: 0 | AJ177: 0 | AK177: 0 | AL177: 0 | AM177: 0 | AN177: 0 | AO177: 0 | AP177: 0 | AQ177: 0 | AR177: 0
A178: =+PO!B196 -> 0 | B178: BEBEDOURO C/ VÁLVULA ANTI-VANDALISMO - PADRÃO SMAM | C178: =+PO!L196 -> 0 | E178: 0 | G178: 0 | I178: 0 | K178: 0 | M178: 0 | O178: 0 | Q178: 0 | S178: 0 | U178: 0 | W178: 0 | Y178: 0 | AA178: 0 | AC178: 0 | AD178: 0 | AE178: ok! | AG178: 0 | AH178: 0 | AI178: 0 | AJ178: 0 | AK178: 0 | AL178: 0 | AM178: 0 | AN178: 0 | AO178: 0 | AP178: 0 | AQ178: 0 | AR178: 0
A179: =+PO!B197 -> 0 | B179: FRADINHO CONCRETO BASE CIRCULAR - PADRÃO SMAM | C179: =+PO!L197 -> 0 | E179: 0 | G179: 0 | I179: 0 | K179: 0 | M179: 0 | O179: 0 | Q179: 0 | S179: 0 | U179: 0 | W179: 0 | Y179: 0 | AA179: 0 | AC179: 0 | AD179: 0 | AE179: ok! | AG179: 0 | AH179: 0 | AI179: 0 | AJ179: 0 | AK179: 0 | AL179: 0 | AM179: 0 | AN179: 0 | AO179: 0 | AP179: 0 | AQ179: 0 | AR179: 0
A180: =+PO!B198 -> 0 | B180: FRADINHO CONCRETO BASE OCTOGONAL - PADRÃO SMAM | C180: =+PO!L198 -> 0 | E180: 0 | G180: 0 | I180: 0 | K180: 0 | M180: 0 | O180: 0 | Q180: 0 | S180: 0 | U180: 0 | W180: 0 | Y180: 0 | AA180: 0 | AC180: 0 | AD180: 0 | AE180: ok! | AG180: 0 | AH180: 0 | AI180: 0 | AJ180: 0 | AK180: 0 | AL180: 0 | AM180: 0 | AN180: 0 | AO180: 0 | AP180: 0 | AQ180: 0 | AR180: 0
A181: =+PO!B199 -> 0 | B181: FRADINHO EM FERRO FUNDIDO | C181: =+PO!L199 -> 0 | E181: 0 | G181: 0 | I181: 0 | K181: 0 | M181: 0 | O181: 0 | Q181: 0 | S181: 0 | U181: 0 | W181: 0 | Y181: 0 | AA181: 0 | AC181: 0 | AD181: 0 | AE181: ok! | AG181: 0 | AH181: 0 | AI181: 0 | AJ181: 0 | AK181: 0 | AL181: 0 | AM181: 0 | AN181: 0 | AO181: 0 | AP181: 0 | AQ181: 0 | AR181: 0
A182: =+PO!B200 -> 0 | B182: MESA DE DAMAS - PADRÃO SMAM | C182: =+PO!L200 -> 0 | E182: 0 | G182: 0 | I182: 0 | K182: 0 | M182: 0 | O182: 0 | Q182: 0 | S182: 0 | U182: 0 | W182: 0 | Y182: 0 | AA182: 0 | AC182: 0 | AD182: 0 | AE182: ok! | AG182: 0 | AH182: 0 | AI182: 0 | AJ182: 0 | AK182: 0 | AL182: 0 | AM182: 0 | AN182: 0 | AO182: 0 | AP182: 0 | AQ182: 0 | AR182: 0
A183: =+PO!B201 -> 0 | B183: LIXEIRA METÁLICA | C183: =+PO!L201 -> 0 | E183: 0 | G183: 0 | I183: 0 | K183: 0 | M183: 0 | O183: 0 | Q183: 0 | S183: 0 | U183: 0 | W183: 0 | Y183: 0 | AA183: 0 | AC183: 0 | AD183: 0 | AE183: ok! | AG183: 0 | AH183: 0 | AI183: 0 | AJ183: 0 | AK183: 0 | AL183: 0 | AM183: 0 | AN183: 0 | AO183: 0 | AP183: 0 | AQ183: 0 | AR183: 0
A184: =+PO!B202 -> 0 | B184: PISTA DE PATINAÇÃO | C184: =+PO!L202 -> 0 | E184: 0 | G184: 0 | I184: 0 | K184: 0 | M184: 0 | O184: 0 | Q184: 0 | S184: 0 | U184: 0 | W184: 0 | Y184: 0 | AA184: 0 | AC184: 0 | AD184: 0 | AE184: ok! | AG184: 0 | AH184: 0 | AI184: 0 | AJ184: 0 | AK184: 0 | AL184: 0 | AM184: 0 | AN184: 0 | AO184: 0 | AP184: 0 | AQ184: 0 | AR184: 0
A185: =+PO!B203 -> 6.2 | B185: TELAMENTO CACHORRÓDROMO | C185: =+PO!L203 -> 57852.51 | D185: 0.7 | E185: 40496.757 | F185: 0.3 | G185: 17355.753 | I185: 0 | K185: 0 | M185: 0 | O185: 0 | Q185: 0 | S185: 0 | U185: 0 | W185: 0 | Y185: 0 | AA185: 0 | AC185: 1 | AD185: 57852.51 | AE185: ok! | AG185: =+E185 -> 40496.757 | AH185: =+G185 -> 17355.753 | AI185: =+I185 -> 0 | AJ185: =+K185 -> 0 | AK185: =+M185 -> 0 | AL185: =+O185 -> 0 | AM185: =+Q185 -> 0 | AN185: =+S185 -> 0 | AO185: =+U185 -> 0 | AP185: =+W185 -> 0 | AQ185: =+Y185 -> 0 | AR185: =+AA185 -> 0
A186: =+PO!B204 -> 6.3 | B186: PORTÃO DE ACESSO CACHORRÓDROMO | C186: =+PO!L204 -> 2068.48 | E186: =D186*$C186 -> 0 | F186: 1 | G186: =F186*$C186 -> 2068.48 | I186: =H186*$C186 -> 0 | K186: =J186*$C186 -> 0 | M186: =L186*$C186 -> 0 | O186: =N186*$C186 -> 0 | Q186: =P186*$C186 -> 0 | S186: =R186*$C186 -> 0 | U186: =T186*$C186 -> 0 | W186: =V186*$C186 -> 0 | Y186: =X186*$C186 -> 0 | AA186: =Z186*$C186 -> 0 | AC186: =+D186+F186+H186+J186+L186+N186+P186+R186+T186+V186+X186+Z186 -> 1 | AD186: 2068.48 | AE186: =IF(C186=AD186,"ok!","incompleto") -> ok! | AG186: =+E186 -> 0 | AH186: =+G186 -> 2068.48 | AI186: =+I186 -> 0 | AJ186: =+K186 -> 0 | AK186: =+M186 -> 0 | AL186: =+O186 -> 0 | AM186: =+Q186 -> 0 | AN186: =+S186 -> 0 | AO186: =+U186 -> 0 | AP186: =+W186 -> 0 | AQ186: =+Y186 -> 0 | AR186: =+AA186 -> 0
A187: =+PO!B205 -> 6.4 | B187: PORTÃO DE ACESSO DE SERVIÇO CACHORRÓDROMO | C187: =+PO!L205 -> 2317.08 | E187: =D187*$C187 -> 0 | F187: 1 | G187: =F187*$C187 -> 2317.08 | I187: =H187*$C187 -> 0 | K187: =J187*$C187 -> 0 | M187: =L187*$C187 -> 0 | O187: =N187*$C187 -> 0 | Q187: =P187*$C187 -> 0 | S187: =R187*$C187 -> 0 | U187: =T187*$C187 -> 0 | W187: =V187*$C187 -> 0 | Y187: =X187*$C187 -> 0 | AA187: =Z187*$C187 -> 0 | AC187: =+D187+F187+H187+J187+L187+N187+P187+R187+T187+V187+X187+Z187 -> 1 | AD187: 2317.08 | AE187: =IF(C187=AD187,"ok!","incompleto") -> ok! | AG187: =+E187 -> 0 | AH187: =+G187 -> 2317.08 | AI187: =+I187 -> 0 | AJ187: =+K187 -> 0 | AK187: =+M187 -> 0 | AL187: =+O187 -> 0 | AM187: =+Q187 -> 0 | AN187: =+S187 -> 0 | AO187: =+U187 -> 0 | AP187: =+W187 -> 0 | AQ187: =+Y187 -> 0 | AR187: =+AA187 -> 0
A188: =+PO!B206 -> 0 | B188: GUARDA-CORPO PARA RECANTO INFANTIL | C188: =+PO!L206 -> 0 | E188: 0 | G188: 0 | I188: 0 | K188: 0 | M188: 0 | O188: 0 | Q188: 0 | S188: 0 | U188: 0 | W188: 0 | Y188: 0 | AA188: 0 | AC188: 0 | AD188: 0 | AE188: ok! | AG188: 0 | AH188: 0 | AI188: 0 | AJ188: 0 | AK188: 0 | AL188: 0 | AM188: 0 | AN188: 0 | AO188: 0 | AP188: 0 | AQ188: 0 | AR188: 0
A189: =+PO!B207 -> 0 | B189: GRADIL DE FERRO | C189: =+PO!L207 -> 0 | E189: 0 | G189: 0 | I189: 0 | K189: 0 | M189: 0 | O189: 0 | Q189: 0 | S189: 0 | U189: 0 | W189: 0 | Y189: 0 | AA189: 0 | AC189: 0 | AD189: 0 | AE189: ok! | AG189: =+E189 -> 0 | AH189: =+G189 -> 0 | AI189: =+I189 -> 0 | AJ189: =+K189 -> 0 | AK189: =+M189 -> 0 | AL189: =+O189 -> 0 | AM189: =+Q189 -> 0 | AN189: =+S189 -> 0 | AO189: =+U189 -> 0 | AP189: =+W189 -> 0 | AQ189: =+Y189 -> 0 | AR189: =+AA189 -> 0
A190: =+PO!B208 -> 0 | B190: CERCAMENTO COM MOURÃO DE CONCRETO S/VIGA DE FUNDAÇÃO | C190: =+PO!L208 -> 0 | E190: 0 | G190: 0 | I190: 0 | K190: 0 | M190: 0 | O190: 0 | Q190: 0 | S190: 0 | U190: 0 | W190: 0 | Y190: 0 | AA190: 0 | AC190: 0 | AD190: 0 | AE190: ok! | AG190: 0 | AH190: 0 | AI190: 0 | AJ190: 0 | AK190: 0 | AL190: 0 | AM190: 0 | AN190: 0 | AO190: 0 | AP190: 0 | AQ190: 0 | AR190: 0
A191: =+PO!B209 -> 0 | B191: CERCAMENTO COM MOURÃO DE CONCRETO C/VIGA DE FUNDAÇÃO | C191: =+PO!L209 -> 0 | E191: 0 | G191: 0 | I191: 0 | K191: 0 | M191: 0 | O191: 0 | Q191: 0 | S191: 0 | U191: 0 | W191: 0 | Y191: 0 | AA191: 0 | AC191: 0 | AD191: 0 | AE191: ok! | AG191: 0 | AH191: 0 | AI191: 0 | AJ191: 0 | AK191: 0 | AL191: 0 | AM191: 0 | AN191: 0 | AO191: 0 | AP191: 0 | AQ191: 0 | AR191: 0
A192: =+PO!B210 -> 0 | B192: FUNDAÇÃO PEDRA DE GRANITO | C192: =+PO!L210 -> 0 | E192: =D192*$C192 -> 0 | G192: =F192*$C192 -> 0 | I192: =H192*$C192 -> 0 | K192: =J192*$C192 -> 0 | M192: =L192*$C192 -> 0 | O192: =N192*$C192 -> 0 | Q192: =P192*$C192 -> 0 | S192: =R192*$C192 -> 0 | U192: =T192*$C192 -> 0 | W192: =V192*$C192 -> 0 | Y192: =X192*$C192 -> 0 | AA192: =Z192*$C192 -> 0 | AC192: 0 | AD192: =+E192+G192+I192+K192+M192+O192+Q192+S192+U192+W192+Y192+AA192 -> 0 | AE192: =IF(C192=AD192,"ok!","incompleto") -> ok! | AG192: =+E192 -> 0 | AH192: =+G192 -> 0 | AI192: =+I192 -> 0 | AJ192: =+K192 -> 0 | AK192: =+M192 -> 0 | AL192: =+O192 -> 0 | AM192: =+Q192 -> 0 | AN192: =+S192 -> 0 | AO192: =+U192 -> 0 | AP192: =+W192 -> 0 | AQ192: =+Y192 -> 0 | AR192: =+AA192 -> 0
A193: =+PO!B211 -> 0 | B193: ALVENARIA GRANITO S/FUNDAÇÃO | C193: =+PO!L211 -> 0 | E193: 0 | G193: 0 | I193: 0 | K193: 0 | M193: 0 | O193: 0 | Q193: 0 | S193: 0 | U193: 0 | W193: 0 | Y193: 0 | AA193: 0 | AC193: 0 | AD193: 0 | AE193: ok! | AG193: 0 | AH193: 0 | AI193: 0 | AJ193: 0 | AK193: 0 | AL193: 0 | AM193: 0 | AN193: 0 | AO193: 0 | AP193: 0 | AQ193: 0 | AR193: 0
A194: =+PO!B212 -> 0 | B194: PLACA DE IDENTIFICAÇÃO DE PRAÇA | C194: =+PO!L212 -> 0 | E194: 0 | G194: 0 | I194: 0 | K194: 0 | M194: 0 | O194: 0 | Q194: 0 | S194: 0 | U194: 0 | W194: 0 | Y194: 0 | AA194: 0 | AC194: 0 | AD194: 0 | AE194: ok! | AG194: 0 | AH194: 0 | AI194: 0 | AJ194: 0 | AK194: 0 | AL194: 0 | AM194: 0 | AN194: 0 | AO194: 0 | AP194: 0 | AQ194: 0 | AR194: 0
A195: =+PO!B214 -> 12 | B195: BRINQUEDOS
A196: =+PO!B215 -> 12.1 | B196: ESTRUTURA 1 - FERRO GALVANIZADO - "S" | C196: =+PO!L215 -> 0 | E196: =D196*$C196 -> 0 | G196: =F196*$C196 -> 0 | I196: =H196*$C196 -> 0 | K196: =J196*$C196 -> 0 | M196: =L196*$C196 -> 0 | O196: =N196*$C196 -> 0 | Q196: =P196*$C196 -> 0 | S196: =R196*$C196 -> 0 | U196: =T196*$C196 -> 0 | W196: =V196*$C196 -> 0 | Y196: =X196*$C196 -> 0 | AA196: =Z196*$C196 -> 0 | AC196: =+D196+F196+H196+J196+L196+N196+P196+R196+T196+V196+X196+Z196 -> 0 | AD196: =+E196+G196+I196+K196+M196+O196+Q196+S196+U196+W196+Y196+AA196 -> 0 | AE196: =IF(C196=AD196,"ok!","incompleto") -> ok! | AG196: =+E196 -> 0 | AH196: =+G196 -> 0 | AI196: =+I196 -> 0 | AJ196: =+K196 -> 0 | AK196: =+M196 -> 0 | AL196: =+O196 -> 0 | AM196: =+Q196 -> 0 | AN196: =+S196 -> 0 | AO196: =+U196 -> 0 | AP196: =+W196 -> 0 | AQ196: =+Y196 -> 0 | AR196: =+AA196 -> 0
A197: =+PO!B216 -> 12.2 | B197: ESTRUTURA 2 - FERRO GALVANIZADO | C197: =+PO!L216 -> 0 | E197: =D197*$C197 -> 0 | G197: =F197*$C197 -> 0 | I197: =H197*$C197 -> 0 | K197: =J197*$C197 -> 0 | M197: =L197*$C197 -> 0 | O197: =N197*$C197 -> 0 | Q197: =P197*$C197 -> 0 | S197: =R197*$C197 -> 0 | U197: =T197*$C197 -> 0 | W197: =V197*$C197 -> 0 | Y197: =X197*$C197 -> 0 | AA197: =Z197*$C197 -> 0 | AC197: 0 | AD197: 0 | AE197: ok! | AG197: 0 | AH197: 0 | AI197: 0 | AJ197: 0 | AK197: 0 | AL197: 0 | AM197: 0 | AN197: 0 | AO197: 0 | AP197: 0 | AQ197: 0 | AR197: 0
A198: =+PO!B217 -> 12.3 | B198: ESTRUTURA 3 - FERRO GALVANIZADO | C198: =+PO!L217 -> 0 | E198: 0 | G198: 0 | I198: 0 | K198: 0 | M198: 0 | O198: 0 | Q198: 0 | S198: 0 | U198: 0 | W198: 0 | Y198: 0 | AA198: 0 | AC198: 0 | AD198: 0 | AE198: ok! | AG198: 0 | AH198: 0 | AI198: 0 | AJ198: 0 | AK198: 0 | AL198: 0 | AM198: 0 | AN198: 0 | AO198: 0 | AP198: 0 | AQ198: 0 | AR198: 0
A199: =+PO!B218 -> 12.4 | B199: ESTRUTURA 4 - FERRO GALVANIZADO - GAIOLA | C199: =+PO!L218 -> 0 | E199: 0 | G199: 0 | I199: 0 | K199: 0 | M199: 0 | O199: 0 | Q199: 0 | S199: 0 | U199: 0 | W199: 0 | Y199: 0 | AA199: 0 | AC199: 0 | AD199: 0 | AE199: ok! | AG199: 0 | AH199: 0 | AI199: 0 | AJ199: 0 | AK199: 0 | AL199: 0 | AM199: 0 | AN199: 0 | AO199: 0 | AP199: 0 | AQ199: 0 | AR199: 0
A200: =+PO!B219 -> 12.5 | B200: ESTRUTURA 5 - FERRO GALVANIZADO - ARCO | C200: =+PO!L219 -> 0 | E200: 0 | G200: 0 | I200: 0 | K200: 0 | M200: 0 | O200: 0 | Q200: 0 | S200: 0 | U200: 0 | W200: 0 | Y200: 0 | AA200: 0 | AC200: 0 | AD200: 0 | AE200: ok! | AG200: 0 | AH200: 0 | AI200: 0 | AJ200: 0 | AK200: 0 | AL200: 0 | AM200: 0 | AN200: 0 | AO200: 0 | AP200: 0 | AQ200: 0 | AR200: 0
A201: =+PO!B220 -> 12.6 | B201: ESTRUTURA 6 - FERRO GALVANIZADO - TÚNEL DE FERRO | C201: =+PO!L220 -> 0 | E201: 0 | G201: 0 | I201: 0 | K201: 0 | M201: 0 | O201: 0 | Q201: 0 | S201: 0 | U201: 0 | W201: 0 | Y201: 0 | AA201: 0 | AC201: 0 | AD201: 0 | AE201: ok! | AG201: 0 | AH201: 0 | AI201: 0 | AJ201: 0 | AK201: 0 | AL201: 0 | AM201: 0 | AN201: 0 | AO201: 0 | AP201: 0 | AQ201: 0 | AR201: 0
... 77 more rows

Sheet Curva ABC
A1: Curva ABC | I1: INSTRUÇÕES
I2: *Acessar a guia dados; *Selecionar a célula E9; *Clicar em classificar de Z a A; *Para desfazer, selecionar a célula B9 e clicar em classificar de A a Z.
B3: OBRA: | C3: =+PO!$B$10 -> REVITALIZAÇÃO DA PRAÇA A.R.I. - CACHORRÓDROMO - ÁREA 135/02 | E3: A=80% DO VALOR DO ORÇAMENTO
B4: DATA: | C4: =IF(PO!$B$11="","",PO!$B$11) -> 2022-03-02 | E4: B=15% DO VALOR DO ORÇAMENTO
B5: ART: | C5: =IF(PO!$B$12="","",PO!$B$12) -> 11751298 | E5: C=5% DO VALOR DO ORÇAMENTO
B7: Item | C7: Descrição | D7: Valor | E7: % | F7: % acum. | G7: ABC | I7: Observação: Se o primeiro item não estiver incluso na seleção,proceder da seguinte forma: *Na guia Dados, clicar em Classificar; *Desmarcar a caixa de seleção "Meus dados contém cabeçalho"; *Clicar novamente em classificar de Z a A.
B9: 171 | C9: TELAMENTO CACHORRÓDROMO | D9: =+PO!L203 -> 57852.51 | E9: =+D9/$D$261 -> 0.422633454 | F9: =+F8+E9 -> 0.422633454 | G9: =IF(OR(F9<0.8,E9>0.8),"A",(IF(OR(F9<0.95,E9>0.15),"B","C"))) -> A
A10: x | B10: 80 | C10: ENCARREGADO | D10: =+PO!L102 -> 14188.46 | E10: 0.1036518183 | F10: 0.5262852723 | G10: A
B11: 81 | C11: VIGIA NOTURNO (SINAPI) | D11: =+PO!L103 -> 9789.6 | E11: 0.07151655928 | F11: 0.5978018316 | G11: A
A12: x | B12: 59 | C12: TAPUME EM CHAPA DE COMPENSADO RESINADO | D12: =+PO!L79 -> 8428.5 | E12: 0.06157323281 | F12: 0.6593750644 | G12: A
B13: 63 | C13: TELHEIRO | D13: =+PO!L83 -> 8168.85 | E13: 0.0596763959 | F13: 0.7190514603 | G13: A
A14: x | B14: 151 | C14: BANCO B (C/ ENCOSTO) - L=2,00 m - PADRÃO SMAM | D14: =+PO!L185 -> 7578.68 | E14: 0.05536499116 | F14: 0.7744164514 | G14: A
A15: x | B15: 78 | C15: ENGENHEIRO | D15: =+PO!L100 -> 6288.63 | E15: 0.04594071057 | F15: 0.820357162 | G15: B
A16: x | B16: 83 | C16: VIGIA DIURNO SÁBADOS, DOMINGOS E FERIADOS | D16: =+PO!L105 -> 4644.4 | E16: 0.03392901732 | F16: 0.8542861793 | G16: B
A17: x | B17: 91 | C17: ATERRO MANUAL COM MATERIAL IMPORTADO COM COMPACTAÇÃO MECÂNICA | D17: =+PO!L115 -> 2831.92 | E17: 0.02068819712 | F17: 0.8749743764 | G17: B
A18: x | B18: 86 | C18: CONSUMO DE ENERGIA ELÉTRICA | D18: =+PO!L108 -> 2623.17 | E18: 0.01916320307 | F18: 0.8941375795 | G18: B
B19: 173 | C19: PORTÃO DE ACESSO DE SERVIÇO CACHORRÓDROMO | D19: =+PO!L205 -> 2317.08 | E19: 0.01692710521 | F19: 0.9110646847 | G19: B
B20: 172 | C20: PORTÃO DE ACESSO CACHORRÓDROMO | D20: =+PO!L204 -> 2068.48 | E20: 0.01511099254 | F20: 0.9261756773 | G20: B
A21: x | B21: 64 | C21: LOCAÇÃO SANITÁRIO QUÍMICO | D21: =+PO!L84 -> 1727.23 | E21: 0.01261803819 | F21: 0.9387937155 | G21: B
A22: x | B22: 67 | C22: FRETE P/ CONTAINER | D22: =+PO!L87 -> 1354.34 | E22: 0.009893942234 | F22: 0.9486876577 | G22: B
B23: 73 | C23: SINALIZAÇÃO COM TELA PLÁSTICA LARANJA FIXADA EM CONE PLÁSTICO | D23: =+PO!L93 -> 1232.25 | E23: 0.009002030744 | F23: 0.9576896884 | G23: C
A24: x | B24: 52 | C24: REMOÇÃO DE ENTULHO C/CAÇAMBA | D24: =+PO!L68 -> 1127.75 | E24: 0.008238620549 | F24: 0.965928309 | G24: C
A25: x | B25: 71 | C25: PLACA DE OBRA | D25: =+PO!L91 -> 1118.76 | E25: 0.008172945356 | F25: 0.9741012543 | G25: C
A26: x | B26: 65 | C26: LOCAÇÃO CONTAINER ESCRITÓRIO S/FRETE | D26: =+PO!L85 -> 1111.81 | E26: 0.008122173099 | F26: 0.9822234274 | G26: C
A27: x | B27: 1 | C27: LIMPEZA MANUAL DE VEGETAÇÃO EM TERRENO COM ENXADA | D27: =+PO!L18 -> 505.3 | E27: 0.003691398771 | F27: 0.9859148262 | G27: C
A28: x | B28: 88 | C28: MODELAGEM | D28: =+PO!L112 -> 497.15 | E28: 0.003631860081 | F28: 0.9895466863 | G28: C
B29: 85 | C29: FORNECIMENTO E INSTALAÇÃO DE EXTINTOR DE ÁGUA PRESSURIZADA (AP), 10 l | D29: =+PO!L107 -> 303.8 | E29: 0.002219368586 | F29: 0.9917660549 | G29: C
A30: x | B30: 55 | C30: ART (ANOTAÇÃO DE RESPONSABILIDADE TÉCNICA) | D30: =+PO!L73 -> 299.93 | E30: 0.00219109684 | F30: 0.9939571517 | G30: C
B31: 84 | C31: FORNECIMENTO E INSTALAÇÃO DE EXTINTOR DE PÓ QUÍMICO SECO (PQS), 4 kg | D31: =+PO!L106 -> 294.52 | E31: 0.002151574839 | F31: 0.9961087266 | G31: C
A32: x | B32: 87 | C32: CONSUMO DE ÁGUA TRATADA | D32: =+PO!L109 -> 214.87 | E32: 0.001569702857 | F32: 0.9976784294 | G32: C
B33: 61 | C33: DESMONTAGEM DE TAPUME | D33: =+PO!L81 -> 208.5 | E33: 0.00152316771 | F33: 0.9992015971 | G33: C
A34: x | B34: 76 | C34: LOCAÇÃO | D34: =+PO!L96 -> 60.39 | E34: 0.0004411707337 | F34: 0.9996427679 | G34: C
A35: x | B35: 77 | C35: NIVELAMENTO | D35: =+PO!L97 -> 48.9 | E35: 0.0003572321391 | F35: 1 | G35: C
A36: x | B36: 2 | C36: DEMOLIÇÃO DE CONCRETO ARMADO COM MARTELETE C/REMOÇÃO DE ENTULHO | D36: =+PO!L19 -> 0 | E36: 0 | F36: 1 | G36: C
A37: x | B37: 3 | C37: DEMOLIÇÃO DE PISO DE CONCRETO ARMADO COM MARTELETE Esp = 8 cm C/REMOÇÃO DE ENTULHO | D37: =+PO!L20 -> 0 | E37: 0 | F37: 1 | G37: C
B38: 4 | C38: REMOÇÃO DE PASSEIOS | D38: =+PO!L21 -> 0 | E38: 0 | F38: 1 | G38: C
A39: x | B39: 5 | C39: DEMOLIÇÃO TELAMENTO h=5,50 m S/TUBOS E S/VIGA C/REMOÇÃO DE ENTULHO | D39: =+PO!L22 -> 0 | E39: 0 | F39: 1 | G39: C
A40: x | B40: 6 | C40: DEMOLIÇÃO TELAMENTO h=3,00 m S/TUBOS E S/VIGA C/REMOÇÃO DE ENTULHO | D40: =+PO!L23 -> 0 | E40: 0 | F40: 1 | G40: C
A41: x | B41: 7 | C41: DEMOLIÇÃO TELAMENTO h=1,00 m C/REMOÇÃO DE ENTULHO | D41: =+PO!L24 -> 0 | E41: 0 | F41: 1 | G41: C
A42: x | B42: 8 | C42: DEMOLIÇÃO TUBOS TELAMENTO h=5,50 m C/REMOÇÃO DE ENTULHO | D42: =+PO!L25 -> 0 | E42: 0 | F42: 1 | G42: C
A43: x | B43: 9 | C43: DEMOLIÇÃO TUBOS TELAMENTO h=3,00 m C/REMOÇÃO DE ENTULHO | D43: =+PO!L26 -> 0 | E43: 0 | F43: 1 | G43: C
A44: x | B44: 10 | C44: DEMOLIÇÃO VIGA TELAMENTO C/REMOÇÃO DE ENTULHO | D44: =+PO!L27 -> 0 | E44: 0 | F44: 1 | G44: C
A45: x | B45: 11 | C45: REMOÇÃO MEIO-FIO VIÁRIO C/REMOÇÃO DE ENTULHO | D45: =+PO!L28 -> 0 | E45: 0 | F45: 1 | G45: C
A46: x | B46: 12 | C46: REMOÇÃO BANCO C/ ENCOSTO | D46: =+PO!L29 -> 0 | E46: 0 | F46: 1 | G46: C
A47: x | B47: 13 | C47: REMOÇÃO BANCO S/ ENCOSTO | D47: =+PO!L30 -> 0 | E47: 0 | F47: 1 | G47: C
A48: x | B48: 14 | C48: REMOÇÃO PARACICLO | D48: =+PO!L31 -> 0 | E48: 0 | F48: 1 | G48: C
A49: x | B49: 15 | C49: DEMOLIÇÃO CAIXA DE AREIA C/REMOÇÃO DE ENTULHOS | D49: =+PO!L32 -> 0 | E49: 0 | F49: 1 | G49: C
A50: x | B50: 16 | C50: DEMOLIÇÃO CANCHA DE BOCHA C/REMOÇÃO DE ENTULHOS | D50: =+PO!L33 -> 0 | E50: 0 | F50: 1 | G50: C
A51: x | B51: 17 | C51: DEMOLIÇÃO COBERTURA CANCHA DE BOCHA C/REMOÇÃO DE ENTULHOS | D51: =+PO!L34 -> 0 | E51: 0 | F51: 1 | G51: C
A52: x | B52: 18 | C52: DEMOLIÇÃO CHURRASQUEIRA C/REMOÇÃO DE ENTULHOS | D52: =+PO!L35 -> 0 | E52: 0 | F52: 1 | G52: C
A53: x | B53: 19 | C53: DEMOLIÇÃO MESA E BANCOS DE CONCRETO C/REMOÇÃO DE ENTULHOS | D53: =+PO!L36 -> 0 | E53: 0 | F53: 1 | G53: C
A54: x | B54: 20 | C54: DEMOLIÇÃO BEBEDOURO C/ PISO DE CONCRETO C/REMOÇÃO DE ENTULHOS | D54: 0 | E54: 0 | F54: 1 | G54: C
A55: x | B55: 21 | C55: DEMOLIÇÃO BEBEDOURO C/REMOÇÃO DE ENTULHOS | D55: =+PO!L37 -> 0 | E55: 0 | F55: 1 | G55: C
A56: x | B56: 22 | C56: DEMOLIÇÃO FRADINHO BASE CIRCULAR C/REMOÇÃO DE ENTULHOS | D56: =+PO!L38 -> 0 | E56: 0 | F56: 1 | G56: C
A57: x | B57: 23 | C57: DEMOLIÇÃO FRADINHO BASE OCTOGONAL C/REMOÇÃO DE ENTULHOS | D57: =+PO!L39 -> 0 | E57: 0 | F57: 1 | G57: C
A58: x | B58: 24 | C58: REMOÇÃO MESA DE DAMAS | D58: =+PO!L40 -> 0 | E58: 0 | F58: 1 | G58: C
A59: x | B59: 25 | C59: REMOÇÃO LIXEIRA | D59: =+PO!L41 -> 0 | E59: 0 | F59: 1 | G59: C
A60: x | B60: 26 | C60: REMOÇÃO ESTRUTURA 1, 2, 3, 5 E 7 | D60: =+PO!L42 -> 0 | E60: 0 | F60: 1 | G60: C
A61: x | B61: 27 | C61: REMOÇÃO ESTRUTURA 4 | D61: =+PO!L43 -> 0 | E61: 0 | F61: 1 | G61: C
A62: x | B62: 28 | C62: REMOÇÃO ESTRUTURA 6 E 8 | D62: =+PO!L44 -> 0 | E62: 0 | F62: 1 | G62: C
A63: x | B63: 29 | C63: REMOÇÃO ESTRUTURA 9 | D63: =+PO!L45 -> 0 | E63: 0 | F63: 1 | G63: C
A64: x | B64: 30 | C64: REMOÇÃO GANGORRA | D64: =+PO!L46 -> 0 | E64: 0 | F64: 1 | G64: C
A65: x | B65: 31 | C65: REMOÇÃO BARRA-BALANÇO | D65: =+PO!L47 -> 0 | E65: 0 | F65: 1 | G65: C
A66: x | B66: 32 | C66: REMOÇÃO BALANÇO PADRÃO SMAM | D66: =+PO!L48 -> 0 | E66: 0 | F66: 1 | G66: C
A67: x | B67: 33 | C67: REMOÇÃO 1/2 BALANÇO | D67: =+PO!L49 -> 0 | E67: 0 | F67: 1 | G67: C
A68: x | B68: 34 | C68: REMOÇÃO ESCORREGADOR | D68: =+PO!L50 -> 0 | E68: 0 | F68: 1 | G68: C
A69: x | B69: 35 | C69: REMOÇÃO BARRA ALONGAMENTO - 2 ALTURAS | D69: =+PO!L51 -> 0 | E69: 0 | F69: 1 | G69: C
A70: x | B70: 36 | C70: REMOÇÃO BARRAS PARALELAS | D70: =+PO!L52 -> 0 | E70: 0 | F70: 1 | G70: C
A71: x | B71: 37 | C71: REMOÇÃO APOIO P/ MEMBROS SUPERIORES | D71: =+PO!L53 -> 0 | E71: 0 | F71: 1 | G71: C
A72: x | B72: 38 | C72: REMOÇÃO BARRA P/ ALONGAMENTO | D72: =+PO!L54 -> 0 | E72: 0 | F72: 1 | G72: C
A73: x | B73: 39 | C73: REMOÇÃO BARRA HORIZONTAL 4 MÓDULOS | D73: =+PO!L55 -> 0 | E73: =+D73/$D$261 -> 0 | F73: =+F72+E73 -> 1 | G73: =IF(OR(F73<0.8,E73>0.8),"A",(IF(OR(F73<0.95,E73>0.15),"B","C"))) -> C
A74: x | B74: 40 | C74: REMOÇÃO BARRA HORIZONTAL 3 MÓDULOS | D74: =+PO!L56 -> 0 | E74: 0 | F74: 1 | G74: C
A75: x | B75: 41 | C75: REMOÇÃO BARRA HORIZONTAL 1 MÓDULO | D75: =+PO!L57 -> 0 | E75: 0 | F75: 1 | G75: C
A76: x | B76: 42 | C76: REMOÇÃO ESPALDAR | D76: =+PO!L58 -> 0 | E76: 0 | F76: 1 | G76: C
A77: x | B77: 43 | C77: REMOÇÃO PRANCHA ABDOMINAIS | D77: =+PO!L59 -> 0 | E77: 0 | F77: 1 | G77: C
A78: x | B78: 44 | C78: REMOÇÃO GOLEIRA FUTEBOL DE SALÃO | D78: =+PO!L60 -> 0 | E78: 0 | F78: 1 | G78: C
A79: x | B79: 45 | C79: REMOÇÃO GOLEIRA FUTEBOL SOCIETY | D79: =+PO!L61 -> 0 | E79: 0 | F79: 1 | G79: C
A80: x | B80: 46 | C80: REMOÇÃO GOLEIRA FUTEBOL DE CAMPO | D80: =+PO!L62 -> 0 | E80: 0 | F80: 1 | G80: C
A81: x | B81: 47 | C81: REMOÇÃO POSTE DE VÔLEI | D81: =+PO!L63 -> 0 | E81: 0 | F81: 1 | G81: C
A82: x | B82: 48 | C82: REMOÇÃO TABELA DE BASQUETE | D82: =+PO!L64 -> 0 | E82: 0 | F82: 1 | G82: C
A83: x | B83: 49 | C83: REMOÇÃO DE ÁRVORES | D83: =+PO!L65 -> 0 | E83: 0 | F83: 1 | G83: C
A84: x | B84: 50 | C84: DESTOCAMENTO | D84: =+PO!L66 -> 0 | E84: 0 | F84: 1 | G84: C
A85: x | B85: 51 | C85: TRANSPLANTE DE ÁRVORES | D85: =+PO!L67 -> 0 | E85: 0 | F85: 1 | G85: C
A86: x | B86: 53 | C86: PLOTAGENS | D86: =+PO!L69 -> 0 | E86: 0 | F86: 1 | G86: C
A87: x | B87: 54 | C87: "AS BUILT" | D87: =+PO!L70 -> 0 | E87: 0 | F87: 1 | G87: C
A88: x | B88: 56 | C88: CIP (CONTRIBUIÇÃO ILUMINAÇÃO PÚBLICA) | D88: =+PO!L74 -> 0 | E88: 0 | F88: 1 | G88: C
A89: x | B89: 57 | C89: MTRCC (MANIFESTO DE TRANSPORTE DE RESÍDUOS DA CONSTRUÇÃO CIVIL) | D89: =+PO!L75 -> 0 | E89: 0 | F89: 1 | G89: C
A90: x | B90: 58 | C90: PCMAT (PROGRAMA DE CONDIÇÕES E MEIO AMBIENTE DE TRABALHO NA INDÚSTRIA DA CONSTRUÇÃO) | D90: =+PO!L76 -> 0 | E90: 0 | F90: 1 | G90: C
A91: x | B91: 60 | C91: TAPUME EM TELA GALVANIZADA | D91: =+PO!L80 -> 0 | E91: 0 | F91: 1 | G91: C
A92: x | B92: 62 | C92: GALPÃO DE OBRA | D92: =+PO!L82 -> 0 | E92: 0 | F92: 1 | G92: C
A93: x | B93: 66 | C93: LOCAÇÃO CONTAINER SANITÁRIO S/FRETE | D93: =+PO!L86 -> 0 | E93: 0 | F93: 1 | G93: C
A94: x | B94: 68 | C94: INSTALAÇÃO PROVISÓRIA DE ENERGIA | D94: =+PO!L88 -> 0 | E94: 0 | F94: 1 | G94: C
A95: x | B95: 69 | C95: INSTALAÇÃO PROVISÓRIA DE ÁGUA | D95: =+PO!L89 -> 0 | E95: 0 | F95: 1 | G95: C
A96: x | B96: 70 | C96: INSTALAÇÃO PROVISÓRIA DE ESGOTO | D96: =+PO!L90 -> 0 | E96: 0 | F96: 1 | G96: C
A97: x | B97: 72 | C97: SINALIZAÇÃO COM FITA ZEBRADA FIXADA EM CONE PLÁSTICO | D97: =+PO!L92 -> 0 | E97: 0 | F97: 1 | G97: C
B98: 74 | C98: SINALIZAÇÃO COM SINALIZADOR ELETRÔNICO PISCANTE FIXADO EM CONE PLÁSTICO | D98: =+PO!L94 -> 0 | E98: 0 | F98: 1 | G98: C
B99: 75 | C99: PROJETO DE SINALIZAÇÃO | D99: =+PO!L95 -> 0 | E99: 0 | F99: 1 | G99: C
A100: x | B100: 79 | C100: MESTRE DE OBRAS | D100: =+PO!L101 -> 0 | E100: 0 | F100: 1 | G100: C
A101: x | B101: 82 | C101: VIGIA NOTURNO | D101: =+PO!L104 -> 0 | E101: 0 | F101: 1 | G101: C
A102: x | B102: 89 | C102: TERRAPLENAGEM | D102: =+PO!L113 -> 0 | E102: 0 | F102: 1 | G102: C
A103: x | B103: 90 | C103: ATERRO MECÂNICO COM MATERIAL IMPORTADO | D103: =+PO!L114 -> 0 | E103: 0 | F103: 1 | G103: C
B104: 94 | C104: ATERRO MANUAL C/MATERIAL IMPORTADO C/COMPACTAÇÃO MANUAL | D104: =+PO!L116 -> 0 | E104: 0 | F104: 1 | G104: C
A105: x | B105: 95 | C105: ESCAVAÇÃO MANUAL DE SOLO ATÉ 1,30 m | D105: =+PO!L117 -> 0 | E105: 0 | F105: 1 | G105: C
A106: x | B106: 96 | C106: ESCAVAÇÃO MECÂNICA DE SOLO | D106: =+PO!L118 -> 0 | E106: 0 | F106: 1 | G106: C
A107: x | B107: 97 | C107: REATERRO MANUAL C/COMPACTAÇÃO MANUAL | D107: =+PO!L119 -> 0 | E107: 0 | F107: 1 | G107: C
A108: x | B108: 98 | C108: NIVELAMENTO CAIXA DE PASSAGEM | D108: =+PO!L122 -> 0 | E108: 0 | F108: 1 | G108: C
A109: x | B109: 99 | C109: LASTRO DE BRITA | D109: =+PO!L123 -> 0 | E109: 0 | F109: 1 | G109: C
A110: x | B110: 100 | C110: SAIBRO ROSA - COMPACTAÇÃO MECÂNICA - 6 cm | D110: =+PO!L124 -> 0 | E110: 0 | F110: 1 | G110: C
A111: x | B111: 101 | C111: SAIBRO ROSA - COMPACTAÇÃO MECÂNICA - 6 cm | D111: =+PO!L125 -> 0 | E111: 0 | F111: 1 | G111: C
A112: x | B112: 102 | C112: PISO CONCRETO ARMADO 8 cm - PASSEIO - S/PODOTÁTIL | D112: =+PO!L126 -> 0 | E112: 0 | F112: 1 | G112: C
B113: 103 | C113: PISO CONCRETO ARMADO 8 cm - PASSEIO - C/PODOTÁTIL | D113: =+PO!L127 -> 0 | E113: 0 | F113: 1 | G113: C
A114: x | B114: 104 | C114: PISO CONCRETO ARMADO 8 cm - QUADRA (PANO ÚNICO) | D114: =+PO!L128 -> 0 | E114: 0 | F114: 1 | G114: C
A115: x | B115: 105 | C115: PISO CONCRETO ARMADO 10 cm - ACADEMIA 3ª IDADE | D115: =+PO!L129 -> 0 | E115: 0 | F115: 1 | G115: C
A116: x | B116: 106 | C116: PISO CONCRETO ARMADO 20 cm - ARMADURA DUPLA | D116: =+PO!L130 -> 0 | E116: 0 | F116: 1 | G116: C
A117: x | B117: 107 | C117: PAVIMENTAÇÃO BLOCOS RETANGULARES DE CONCRETO COR NATURAL - 6 cm - 35 MPa | D117: =+PO!L131 -> 0 | E117: 0 | F117: 1 | G117: C
B118: 108 | C118: PAVIMENTAÇÃO BLOCOS RETANGULARES DE CONCRETO COLORIDO - 6 cm - 35 MPa | D118: =+PO!L132 -> 0 | E118: 0 | F118: 1 | G118: C
A119: x | B119: 109 | C119: PAVIMENTAÇÃO BLOCOS RETANGULARES DE CONCRETO COR NATURAL - 8 cm - 35 MPa | D119: =+PO!L133 -> 0 | E119: 0 | F119: 1 | G119: C
A120: x | B120: 110 | C120: FAIXAS BLOCOS RETANGULARES DE CONCRETO COR NATURAL - 6 cm - 35 MPa (LARGURA 20 cm) | D120: =+PO!L134 -> 0 | E120: 0 | F120: 1 | G120: C
A121: x | B121: 111 | C121: PAVIMENTAÇÃO PARALELEPÍPEDO | D121: =+PO!L135 -> 0 | E121: 0 | F121: 1 | G121: C
A122: x | B122: 112 | C122: PEDRA PORTUGUESA | D122: =+PO!L136 -> 0 | E122: 0 | F122: 1 | G122: C
A123: x | B123: 113 | C123: LAJE DE GRÊS ASSENTADA NA AREIA | D123: =+PO!L137 -> 0 | E123: 0 | F123: 1 | G123: C
A124: x | B124: 114 | C124: LAJE DE GRÊS ASSENTADA NA MASSA | D124: =+PO!L138 -> 0 | E124: 0 | F124: 1 | G124: C
A125: x | B125: 115 | C125: LAJE DE GRÊS ASSENTADA NA ARGILA | D125: =+PO!L139 -> 0 | E125: 0 | F125: 1 | G125: C
A126: x | B126: 116 | C126: BASALTO IRREGULAR - JUNTA BITOLADA | D126: =+PO!L140 -> 0 | E126: 0 | F126: 1 | G126: C
A127: x | B127: 117 | C127: BASALTO IRREGULAR | D127: =+PO!L141 -> 0 | E127: 0 | F127: 1 | G127: C
A128: x | B128: 118 | C128: BASALTO REGULAR TALHADO | D128: =+PO!L142 -> 0 | E128: 0 | F128: 1 | G128: C
A129: x | B129: 119 | C129: BASALTO REGULAR SERRADO | D129: =+PO!L143 -> 0 | E129: 0 | F129: 1 | G129: C
B130: 120 | C130: AREIA MÉDIA PENEIRADA | D130: =+PO!L144 -> 0 | E130: 0 | F130: 1 | G130: C
A131: x | B131: 121 | C131: LAJOTA CONCRETO | D131: =+PO!L145 -> 0 | E131: 0 | F131: 1 | G131: C
A132: x | B132: 122 | C132: PISO PODOTÁTIL | D132: =+PO!L146 -> 0 | E132: 0 | F132: 1 | G132: C
A133: x | B133: 123 | C133: MEIO-FIO CONCRETO MOLDADO NO LOCAL - PADRÃO SMAM | D133: =+PO!L149 -> 0 | E133: 0 | F133: 1 | G133: C
A134: x | B134: 124 | C134: MEIO-FIO CURVO CONCRETO MOLDADO NO LOCAL - PADRÃO SMAM | D134: =+PO!L150 -> 0 | E134: 0 | F134: 1 | G134: C
A135: x | B135: 125 | C135: MEIO-FIO VIÁRIO DE CONCRETO PRÉ-MOLDADO | D135: =+PO!L151 -> 0 | E135: 0 | F135: 1 | G135: C
A136: x | B136: 126 | C136: REPOSIÇÃO MEIO-FIO VIÁRIO | D136: =+PO!L152 -> 0 | E136: 0 | F136: 1 | G136: C
A137: x | B137: 127 | C137: REALINHAMENTO MEIO-FIO VIÁRIO | D137: =+PO!L153 -> 0 | E137: =+D137/$D$261 -> 0 | F137: =+F136+E137 -> 1 | G137: =IF(OR(F137<0.8,E137>0.8),"A",(IF(OR(F137<0.95,E137>0.15),"B","C"))) -> C
A138: x | B138: 129 | C138: DEGRAU CONCRETO L=2,00 m - BASE GRANITO - PADRÃO SMAM | D138: =+PO!L156 -> 0 | E138: 0 | F138: 1 | G138: C
A139: x | B139: 130 | C139: DEGRAU CONCRETO L=2,00 m - BASE GRÊS - PADRÃO SMAM | D139: =+PO!L157 -> 0 | E139: 0 | F139: 1 | G139: C
A140: x | B140: 131 | C140: RAMPA PPNE'S TIPO 1 - 1,50 m (ABA 50 cm) | D140: =+PO!L160 -> 0 | E140: 0 | F140: 1 | G140: C
B141: 132 | C141: RAMPA PPNE'S TIPO 1 - 1,50 m (ABA 1,50 m) | D141: =+PO!L161 -> 0 | E141: 0 | F141: 1 | G141: C
B142: 133 | C142: RAMPA PPNE'S TIPO 1 - 1,50 m (SEM ABA) | D142: =+PO!L162 -> 0 | E142: 0 | F142: 1 | G142: C
A143: x | B143: 134 | C143: RAMPA PPNE'S TIPO 1 - 4,00 m | D143: =+PO!L163 -> 0 | E143: 0 | F143: 1 | G143: C
A144: x | B144: 135 | C144: RAMPA PPNE'S TIPO 2 (CALÇADA ESTREITA) - 1,50 m | D144: =+PO!L164 -> 0 | E144: 0 | F144: 1 | G144: C
A145: x | B145: 136 | C145: CORRIMÃO PPNE'S | D145: =+PO!L166 -> 0 | E145: 0 | F145: 1 | G145: C
A146: x | B146: 137 | C146: TELAMENTO h=5,50 m - PADRÃO SMAM | D146: =+PO!L169 -> 0 | E146: 0 | F146: 1 | G146: C
A147: x | B147: 138 | C147: TELAMENTO h=3,00 m - PADRÃO SMAM | D147: =+PO!L170 -> 0 | E147: 0 | F147: 1 | G147: C
A148: x | B148: 139 | C148: TELAMENTO h=1,00 m - PADRÃO SMAM | D148: =+PO!L171 -> 0 | E148: 0 | F148: 1 | G148: C
A149: x | B149: 140 | C149: TELAMENTO h=3,00 m VÔLEI DE PRAIA - PADRÃO SMAM | D149: =+PO!L172 -> 0 | E149: 0 | F149: 1 | G149: C
A150: x | B150: 141 | C150: GOLEIRA FUTSAL | D150: =+PO!L173 -> 0 | E150: 0 | F150: 1 | G150: C
A151: x | B151: 142 | C151: GOLEIRA FUTEBOL SOCIETY | D151: =+PO!L174 -> 0 | E151: 0 | F151: 1 | G151: C
A152: x | B152: 143 | C152: GOLEIRA FUTEBOL DE CAMPO | D152: =+PO!L175 -> 0 | E152: 0 | F152: 1 | G152: C
A153: x | B153: 144 | C153: POSTE DE VÔLEI | D153: =+PO!L176 -> 0 | E153: 0 | F153: 1 | G153: C
A154: x | B154: 145 | C154: POSTE DE VÔLEI QUADRA DE AREIA | D154: =+PO!L177 -> 0 | E154: 0 | F154: 1 | G154: C
B155: 146 | C155: POSTE DE TÊNIS QUADRA DE AREIA | D155: =+PO!L178 -> 0 | E155: 0 | F155: 1 | G155: C
A156: x | B156: 147 | C156: TABELA DE BASQUETE - PADRÃO SMAM | D156: =+PO!L179 -> 0 | E156: 0 | F156: 1 | G156: C
A157: x | B157: 148 | C157: DEMARCAÇÃO QUADRA ESPORTIVA FUTSAL | D157: =+PO!L180 -> 0 | E157: 0 | F157: 1 | G157: C
B158: 149 | C158: DEMARCAÇÃO QUADRA ESPORTIVA BASQUETE E/OU VÔLEI | D158: =+PO!L181 -> 0 | E158: 0 | F158: 1 | G158: C
A159: x | B159: 150 | C159: DRENO QUADRA DE AREIA | D159: =+PO!L182 -> 0 | E159: 0 | F159: 1 | G159: C
A160: x | B160: 154 | C160: BANCO A (S/ ENCOSTO) - L=1,80 m - PADRÃO SMAM | D160: =+PO!L186 -> 0 | E160: 0 | F160: 1 | G160: C
A161: x | B161: 155 | C161: BANCO D (S/ ENCOSTO) - L=2,00 m - PADRÃO SMAM | D161: =+PO!L187 -> 0 | E161: 0 | F161: 1 | G161: C
A162: x | B162: 156 | C162: PARACICLO | D162: =+PO!L188 -> 0 | E162: 0 | F162: 1 | G162: C
A163: x | B163: 157 | C163: CAIXA DE AREIA - PADRÃO SMAM | D163: =+PO!L189 -> 0 | E163: 0 | F163: 1 | G163: C
A164: x | B164: 158 | C164: CANCHA DE BOCHA - PADRÃO SMAM | D164: =+PO!L190 -> 0 | E164: 0 | F164: 1 | G164: C
A165: x | B165: 159 | C165: COBERTURA P/ CANCHA DE BOCHA | D165: =+PO!L191 -> 0 | E165: 0 | F165: 1 | G165: C
A166: x | B166: 160 | C166: CHURRASQUEIRA C/PISO DE CONCRETO - PADRÃO SMAM | D166: =+PO!L192 -> 0 | E166: 0 | F166: 1 | G166: C
A167: x | B167: 161 | C167: CHURRASQUEIRA - PADRÃO SMAM | D167: =+PO!L193 -> 0 | E167: 0 | F167: 1 | G167: C
A168: x | B168: 162 | C168: MESA E BANCOS DE CONCRETO P/ CHURRASQUEIRA - PADRÃO SMAM | D168: =+PO!L194 -> 0 | E168: 0 | F168: 1 | G168: C
A169: x | B169: 163 | C169: COBERTURA P/ CHURRASQUEIRA - PADRÃO SMAM | D169: =+PO!L195 -> 0 | E169: 0 | F169: 1 | G169: C
A170: x | B170: 164 | C170: BEBEDOURO C/ VÁLVULA ANTI-VANDALISMO - PADRÃO SMAM | D170: =+PO!L196 -> 0 | E170: 0 | F170: 1 | G170: C
A171: x | B171: 165 | C171: FRADINHO CONCRETO BASE CIRCULAR - PADRÃO SMAM | D171: =+PO!L197 -> 0 | E171: 0 | F171: 1 | G171: C
A172: x | B172: 166 | C172: FRADINHO CONCRETO BASE OCTOGONAL - PADRÃO SMAM | D172: =+PO!L198 -> 0 | E172: 0 | F172: 1 | G172: C
A173: x | B173: 167 | C173: FRADINHO EM FERRO FUNDIDO | D173: =+PO!L199 -> 0 | E173: 0 | F173: 1 | G173: C
A174: x | B174: 168 | C174: MESA DE DAMAS - PADRÃO SMAM | D174: =+PO!L200 -> 0 | E174: 0 | F174: 1 | G174: C
A175: x | B175: 169 | C175: LIXEIRA METÁLICA | D175: =+PO!L201 -> 0 | E175: 0 | F175: 1 | G175: C
A176: x | B176: 170 | C176: PISTA DE PATINAÇÃO | D176: =+PO!L202 -> 0 | E176: 0 | F176: 1 | G176: C
A177: x | B177: 174 | C177: GUARDA-CORPO PARA RECANTO INFANTIL | D177: =+PO!L206 -> 0 | E177: 0 | F177: 1 | G177: C
B178: 175 | C178: GRADIL DE FERRO | D178: =+PO!L207 -> 0 | E178: 0 | F178: 1 | G178: C
A179: x | B179: 176 | C179: CERCAMENTO COM MOURÃO DE CONCRETO S/VIGA DE FUNDAÇÃO | D179: =+PO!L208 -> 0 | E179: 0 | F179: 1 | G179: C
A180: x | B180: 177 | C180: CERCAMENTO COM MOURÃO DE CONCRETO C/VIGA DE FUNDAÇÃO | D180: =+PO!L209 -> 0 | E180: 0 | F180: 1 | G180: C
B181: 178 | C181: FUNDAÇÃO PEDRA DE GRANITO | D181: =+PO!L210 -> 0 | E181: 0 | F181: 1 | G181: C
A182: x | B182: 179 | C182: ALVENARIA GRANITO S/FUNDAÇÃO | D182: =+PO!L211 -> 0 | E182: 0 | F182: 1 | G182: C
A183: x | B183: 180 | C183: PLACA DE IDENTIFICAÇÃO DE PRAÇA | D183: =+PO!L212 -> 0 | E183: 0 | F183: 1 | G183: C
A184: x | B184: 181 | C184: ESTRUTURA 1 - FERRO GALVANIZADO - "S" | D184: =+PO!L215 -> 0 | E184: 0 | F184: 1 | G184: C
A185: x | B185: 182 | C185: ESTRUTURA 2 - FERRO GALVANIZADO | D185: =+PO!L216 -> 0 | E185: 0 | F185: 1 | G185: C
A186: x | B186: 183 | C186: ESTRUTURA 3 - FERRO GALVANIZADO | D186: =+PO!L217 -> 0 | E186: 0 | F186: 1 | G186: C
A187: x | B187: 184 | C187: ESTRUTURA 4 - FERRO GALVANIZADO - GAIOLA | D187: =+PO!L218 -> 0 | E187: 0 | F187: 1 | G187: C
A188: x | B188: 185 | C188: ESTRUTURA 5 - FERRO GALVANIZADO - ARCO | D188: =+PO!L219 -> 0 | E188: 0 | F188: 1 | G188: C
A189: x | B189: 186 | C189: ESTRUTURA 6 - FERRO GALVANIZADO - TÚNEL DE FERRO | D189: =+PO!L220 -> 0 | E189: 0 | F189: 1 | G189: C
A190: x | B190: 187 | C190: ESTRUTURA 7 - FERRO GALVANIZADO - "Y" | D190: =+PO!L221 -> 0 | E190: 0 | F190: 1 | G190: C
A191: x | B191: 188 | C191: ESTRUTURA 8 - FERRO GALVANIZADO - AVIÃO | D191: =+PO!L222 -> 0 | E191: 0 | F191: 1 | G191: C
A192: x | B192: 189 | C192: ESTRUTURA 9 - FERRO GALVANIZADO | D192: =+PO!L223 -> 0 | E192: 0 | F192: 1 | G192: C
A193: x | B193: 190 | C193: GANGORRA DUPLA | D193: =+PO!L224 -> 0 | E193: 0 | F193: 1 | G193: C
A194: x | B194: 191 | C194: GANGORRA TRIPLA | D194: =+PO!L225 -> 0 | E194: 0 | F194: 1 | G194: C
A195: x | B195: 192 | C195: BARRA-BALANÇO | D195: =+PO!L226 -> 0 | E195: 0 | F195: 1 | G195: C
A196: x | B196: 193 | C196: BALANÇO MISTO | D196: =+PO!L227 -> 0 | E196: 0 | F196: 1 | G196: C
A197: x | B197: 194 | C197: BALANÇO JUVENIL | D197: =+PO!L228 -> 0 | E197: 0 | F197: 1 | G197: C
A198: x | B198: 195 | C198: BALANÇO INFANTIL | D198: =+PO!L229 -> 0 | E198: 0 | F198: 1 | G198: C
A199: x | B199: 196 | C199: ESCORREGADOR | D199: =+PO!L230 -> 0 | E199: 0 | F199: 1 | G199: C
A200: x | B200: 197 | C200: BARRA ALONGAMENTO - 2 ALTURAS | D200: =+PO!L233 -> 0 | E200: 0 | F200: 1 | G200: C
A201: x | B201: 198 | C201: BARRAS PARALELAS | D201: =+PO!L234 -> 0 | E201: =+D201/$D$261 -> 0 | F201: =+F200+E201 -> 1 | G201: =IF(OR(F201<0.8,E201>0.8),"A",(IF(OR(F201<0.95,E201>0.15),"B","C"))) -> C
A202: x | B202: 199 | C202: APOIO P/ MEMBROS SUPERIORES | D202: =+PO!L235 -> 0 | E202: 0 | F202: 1 | G202: C
... 58 more rows

Sheet Vigia (hidden)
A1: VIGIA | AI1: Preencher nas atualizações
A2: Regime 12x36
A3: d | B3: Seg | C3: Ter | D3: Qua | E3: Qui | F3: Sex | G3: Sab | H3: Dom | I3: Seg | J3: Ter | K3: Qua | L3: Qui | M3: Sex | N3: Sab | O3: Dom | P3: Seg | Q3: Ter | R3: Qua | S3: Qui | T3: Sex | U3: Sab | V3: Dom | W3: Seg | X3: Ter | Y3: Qua | Z3: Qui | AA3: Sex | AB3: Sab | AC3: Dom | AD3: Seg | AE3: Ter | AG3: Horário da obra: 7:30 às 17:18
A4: h | B4: 1 | C4: 2 | D4: 3 | E4: 4 | F4: 5 | G4: 6 | H4: 7 | I4: 8 | J4: 9 | K4: 10 | L4: 11 | M4: 12 | N4: 13 | O4: 14 | P4: 15 | Q4: 16 | R4: 17 | S4: 18 | T4: 19 | U4: 20 | V4: 21 | W4: 22 | X4: 23 | Y4: 24 | Z4: 25 | AA4: 26 | AB4: 27 | AC4: 28 | AD4: 29 | AE4: 30 | AG4: Horário Vigia Noturno: 19:00 às 7:00
A5: 0 | B5: 1 | C5: 1 | D5: 1 | E5: 1 | F5: 1 | G5: 1 | H5: 1 | I5: 1 | J5: 1 | K5: 1 | L5: 1 | M5: 1 | N5: 1 | O5: 1 | P5: 1 | Q5: 1 | R5: 1 | S5: 1 | T5: 1 | U5: 1 | V5: 1 | W5: 1 | X5: 1 | Y5: 1 | Z5: 1 | AA5: 1 | AB5: 1 | AC5: 1 | AD5: 1 | AE5: 1 | AG5: Horas extras servente: 2 h 12 min = | AN5: 2.2 | AO5: horas
A6: 1 | B6: 1 | C6: 1 | D6: 1 | E6: 1 | F6: 1 | G6: 1 | H6: 1 | I6: 1 | J6: 1 | K6: 1 | L6: 1 | M6: 1 | N6: 1 | O6: 1 | P6: 1 | Q6: 1 | R6: 1 | S6: 1 | T6: 1 | U6: 1 | V6: 1 | W6: 1 | X6: 1 | Y6: 1 | Z6: 1 | AA6: 1 | AB6: 1 | AC6: 1 | AD6: 1 | AE6: 1
A7: 2 | B7: 1 | C7: 1 | D7: 1 | E7: 1 | F7: 1 | G7: 1 | H7: 1 | I7: 1 | J7: 1 | K7: 1 | L7: 1 | M7: 1 | N7: 1 | O7: 1 | P7: 1 | Q7: 1 | R7: 1 | S7: 1 | T7: 1 | U7: 1 | V7: 1 | W7: 1 | X7: 1 | Y7: 1 | Z7: 1 | AA7: 1 | AB7: 1 | AC7: 1 | AD7: 1 | AE7: 1 | AG7: Hora do Vigia: | AJ7: 5.38 | AL7: Risco = | AN7: 0.15 | AP7: Fonte: SindiVigilantes 2019
A8: 3 | B8: 1 | C8: 1 | D8: 1 | E8: 1 | F8: 1 | G8: 1 | H8: 1 | I8: 1 | J8: 1 | K8: 1 | L8: 1 | M8: 1 | N8: 1 | O8: 1 | P8: 1 | Q8: 1 | R8: 1 | S8: 1 | T8: 1 | U8: 1 | V8: 1 | W8: 1 | X8: 1 | Y8: 1 | Z8: 1 | AA8: 1 | AB8: 1 | AC8: 1 | AD8: 1 | AE8: 1 | AG8: Hora noturna: | AJ8: =+TRUNC((AJ7*1.2),2) -> 6.45
A9: 4 | B9: 1 | C9: 1 | D9: 1 | E9: 1 | F9: 1 | G9: 1 | H9: 1 | I9: 1 | J9: 1 | K9: 1 | L9: 1 | M9: 1 | N9: 1 | O9: 1 | P9: 1 | Q9: 1 | R9: 1 | S9: 1 | T9: 1 | U9: 1 | V9: 1 | W9: 1 | X9: 1 | Y9: 1 | Z9: 1 | AA9: 1 | AB9: 1 | AC9: 1 | AD9: 1 | AE9: 1 | AG9: Hora com risco: | AJ9: Normal: | AL9: =TRUNC(AJ7*(1+AN7),2) -> 6.18
A10: 5 | B10: 1 | C10: 1 | D10: 1 | E10: 1 | F10: 1 | G10: 1 | H10: 1 | I10: 1 | J10: 1 | K10: 1 | L10: 1 | M10: 1 | N10: 1 | O10: 1 | P10: 1 | Q10: 1 | R10: 1 | S10: 1 | T10: 1 | U10: 1 | V10: 1 | W10: 1 | X10: 1 | Y10: 1 | Z10: 1 | AA10: 1 | AB10: 1 | AC10: 1 | AD10: 1 | AE10: 1 | AJ10: Noturna: | AL10: =TRUNC(AJ8*(1+AN7),2) -> 7.41
A11: 6 | B11: 1 | C11: 1 | D11: 1 | E11: 1 | F11: 1 | G11: 1 | H11: 1 | I11: 1 | J11: 1 | K11: 1 | L11: 1 | M11: 1 | N11: 1 | O11: 1 | P11: 1 | Q11: 1 | R11: 1 | S11: 1 | T11: 1 | U11: 1 | V11: 1 | W11: 1 | X11: 1 | Y11: 1 | Z11: 1 | AA11: 1 | AB11: 1 | AC11: 1 | AD11: 1 | AE11: 1 | AG11: Hora normal: | AN11: =+AL9 -> 6.18 | AP11: Fonte: SindiVigilantes 2019
A12: 7 | B12: 0.5 | C12: 1 | D12: 0.5 | E12: 0.5 | F12: 0.5 | G12: 1 | H12: 1 | I12: 0.5 | J12: 0.5 | K12: 0.5 | L12: 0.5 | M12: 0.5 | N12: 1 | O12: 1 | P12: 0.5 | Q12: 0.5 | R12: 0.5 | S12: 0.5 | T12: 0.5 | U12: 1 | V12: 1 | W12: 0.5 | X12: 0.5 | Y12: 0.5 | Z12: 0.5 | AA12: 0.5 | AB12: 1 | AC12: 1 | AD12: 0.5 | AE12: 0.5 | AG12: Hora noturna: | AN12: =+AN11*1.2 -> 7.416
A14: 8 | C14: 1 | G14: 1 | H14: 1 | N14: 1 | O14: 1 | U14: 1 | V14: 1 | AB14: 1 | AC14: 1 | AG14: Hora extra normal: | AN14: =+AN11*1.5 -> 9.27
A15: 9 | C15: 1 | G15: 1 | H15: 1 | N15: 1 | O15: 1 | U15: 1 | V15: 1 | AB15: 1 | AC15: 1 | AG15: Hora extra noturna: | AN15: =+AN14*1.2 -> 11.124
A16: 10 | C16: 1 | G16: 1 | H16: 1 | N16: 1 | O16: 1 | U16: 1 | V16: 1 | AB16: 1 | AC16: 1 | AG16: Hora normal domingos e feriados: | AN16: =TRUNC((AN11*2),2) -> 12.36
A17: 11 | C17: 1 | G17: 1 | H17: 1 | N17: 1 | O17: 1 | U17: 1 | V17: 1 | AB17: 1 | AC17: 1 | AG17: Hora noturna domingos e feriados: | AN17: =+AN16*1.2 -> 14.832
A18: 12 | C18: 1 | G18: 1 | H18: 1 | N18: 1 | O18: 1 | U18: 1 | V18: 1 | AB18: 1 | AC18: 1 | AG18: Regime 12x36 horas Noturno - 15 dias: | AN18: 1602.1
A19: 13 | C19: 1 | G19: 1 | H19: 1 | N19: 1 | O19: 1 | U19: 1 | V19: 1 | AB19: 1 | AC19: 1 | AG19: 2 vigias (30 dias): | AN19: =+AN18*2 -> 3204.2
A20: 14 | C20: 1 | G20: 1 | H20: 1 | N20: 1 | O20: 1 | U20: 1 | V20: 1 | AB20: 1 | AC20: 1 | AG20: Hora servente (c/L.S. c/desoneração): | AN20: =+M.O.!C18 -> 16.92 | AP20: =CONCATENATE("Fonte: SINAPI ",M.O.!$E$17) -> Fonte: SINAPI Janeiro/22
A21: 15 | C21: 1 | G21: 1 | H21: 1 | N21: 1 | O21: 1 | U21: 1 | V21: 1 | AB21: 1 | AC21: 1 | AG21: Hora extra servente (c/L.S. c/desoneração): | AN21: =TRUNC((AN20*1.5),2) -> 25.38
A22: 16 | C22: 1 | G22: 1 | H22: 1 | N22: 1 | O22: 1 | U22: 1 | V22: 1 | AB22: 1 | AC22: 1 | AG22: Hora servente (c/L.S. s/desoneração): | AN22: =+M.O.!D18 -> 18.84
A23: 17 | C23: 1 | G23: 1 | H23: 1 | N23: 1 | O23: 1 | U23: 1 | V23: 1 | AB23: 1 | AC23: 1 | AG23: Hora extra servente (c/L.S. s/desoneração): | AN23: =TRUNC((AN22*1.5),2) -> 28.26
B24: 0.7 | D24: 0.7 | E24: 0.7 | F24: 0.7 | I24: 0.7 | J24: 0.7 | K24: 0.7 | L24: 0.7 | M24: 0.7 | P24: 0.7 | Q24: 0.7 | R24: 0.7 | S24: 0.7 | T24: 0.7 | W24: 0.7 | X24: 0.7 | Y24: 0.7 | Z24: 0.7 | AA24: 0.7 | AD24: 0.7 | AE24: 0.7
